Workbook

Sheet Notes
A1: HighVolumeBreakouts.xlsm; Traders Tip spreadsheet created for the April 2021 Issue
A2: Coded beginning 2021-February-09 by Ronald McAllister (rpmac_xltt@sprynet.com)
A4: This Workbook demonstrates an EXCEL version of the ideas presented
A5: by Markos Katsanos in an article titled "Detecting High-Volume Breakouts"
A6: which originally appeared in the April 2021 issue of
A7: "Technical Analysis of Stocks and Commodities" magazine.
A9: * * * * * * * * * * * * * * * *
A11: Development Notes:
A18: Fig 1 | C18: IDEX | D18: From | E18: 2019-05-24
D19: To | E19: 2020-11-24
A22: New for May 2021
A23: Upgraded the data download logic to do a better job of catching the common data download errors and provide a more graceful resolution.
A24: This includes better user notification of the nature of the error and some user control over how the error should be handled.
A25: User notification comes in teh form of a MSGbox display that includes the (sometimes cryptic) description of the error and offers the user three options.
A27: Abort - If I could customize the title, I would rename this button to "Debug"
A28: This choice places you in Debug mode at the failing VBA statement.
A29: Unless you are feeling good about your VBA (and Network) debugging skills, this is probably not for you.
A31: Retry
A32: Lets the code retry the failed download request.
A33: This is a reasonable option if the download request timed out (similar to video buffering) or your network connection has dropped out..
A34: Probably a good idea to make sure your internet connection is alive and well before you select Retry.
A36: Ignore
A37: Lets the code fall thru to a (hopefully) graceful error completion with the error indicated at the top of the InputPriceData tab
A39: New for August 2020
A40: Restructured my Symbol-Not-Found detection and now stop further processing in the not found case
A42: New with the May 2020 version of my T-Tips template: VBA to implement a "Perpetual" U.S. Markets Closed Holiday Calendar.
A44: Why we need one: The Yahoo Finance recently has begun having occasional filtration problems where bars for U.S. Market Closed Holidays
A45: make their way onto the Historical Data web page and into the Historical Data download.
A47: While testing this May 2020 spreadsheet with different symbols, I found that I sometimes had bars with the text "null" in the price fields.
A48: My code always translates the "null" text price values to zeros.
A49: The resulting zeros cause real problems with indicator computations and the amount of blank space below price candles on the price chart.
A51: "null" price bars can be valid for very lightly traded penny sheet symbols which may not trade every day the markets are open.
A52: But is definitely not normal for symbols on the big boards.
A54: A closer look determined that these "bars" were for holiday dates when the US markets are normally closed.
A55: I found it interesting that some times the next download for the same symbol would not contain any of these "holiday" bars. Weird!
A57: My approach here was to write code to determine if the DATE on a null price values bar falls on one of the 9 market closed U.S. Holidays.
A58: If the bar date corresponds to one of these market closed holidays, I drop the bar before it reaches the InputPriceData tab.
A59: If the date is not a holiday, I let the bar through with the resulting zero values.
A61: No messy tables to update over the years as there are good solid rules that can be used in VBA or any other programming language to determine
A62: the dates for U.S. Market Closed Holidays for any given calendar year.
A64: This workbook contains and uses VBA macros and may take advantage of user defined VBA Class structures.
A65: Input Data:
A66: The data in this workbook is sorted date-descending (most recent date at the top). All cell formulas and
A67: VBA routines are built assuming this date sequence.
A69: ERROR 9 (already fixed in this spreadsheet)
A70: On or about Jan 29, 2020 Yahoo Finance changed the format of the split factor expression used their historical data downloads.
A71: The Split expression went from using "/" as in "New Share Number/Old Share Number",
A72: to using ":" as in "New Share Number:Old Share Number".
A73: This caused the then current version of my VBA code to fail with a "Runtime Error '9': subscript out of range".
A75: Fix for this ERROR 9
A76: For T-Tip spreadsheets from September 2018 up to present:
A77: Selecting the Debug option takes one into the VBA at the code line which causes the failure:
A78: CellArray(C_A_RowNdx, C_A_ColNdx + 1) = SplitFactors(1)
A79: Two lines above the failing VBA line is a line that reads:
A80: SplitFactors = Split(CsvColumns(CsvColNdx), "/")
A81: Change the / to a :
A82: The corrected line should now read
A83: SplitFactors = Split(CsvColumns(CsvColNdx), ":")
A85: If you are fixing several spreadsheets and do not want to use the failure to find the fix location,
A86: you can use VBA’s FIND dialog (Ctrl F) to look for the substring
A87: SplitFactors =
A88: Do include one space and the equal sign in your FIND string
A89: Select the "Current Project" option
A90: There should only be one instance.
A92: T-Tip spreadsheets prior to the September 2018 spreadsheet do not hard fail.
A94: They just get weird results in the split columns of the Input Price Data tab (soft fail).
A95: These older spreadsheets used different data retrieval and formatting logic.
A97: To fix these older spreadsheets:
A98: In the VBA editor, use find (CTRL-F).
A99: Select the "Current Project" option, and search for the following:
A100: OtherChar:="/"
A101: You are looking for a hit in a line reading:
A102: Other:=True, OtherChar:="/", _
A103: This line is part of a multiline block of code starting with a line that reads:
A104: SplitRange.Offset(0, 1).Resize(SpRows, 1).TextToColumns
A105: Change the / to a : so that the line reads
A106: Other:=True, OtherChar:=":", _
A109: 2019-04-04 Finally came up with a mechanism to align the left location and overall length of the cursor scroll bar so that the left most and right most
A110: scroll bar thumb positions visually align reasonably well with the left and right ends of the price chart horizontal axis.
A111: Makes it a little easier to visually align the Thumb and thus the cursor with points of interest on the charts.
A113: Older:
B114: My sincere apologies to our Macintosh based readers: Neither MSXML nor WinHttpRequest are supported in your environment. So as it stands this version of the spreadsheet will not work for you.
B115: See "Why this approach does not work for Macintosh" below.
B116: I am investigating cURL as a non-Querytable based approach for the Macintosh environment.
A118: The new Yahoo Finance history download interface has changed rather radically. The biggest hurdle being a pseudo-security requirement of adding a
B119: crumb character string to any URL requesting any type of history download. That crumb must match up (by way of some sort of hash algorithm) with
B120: the Yahoo Finance cookie that must also be sent with any request to the new Yahoo History down load interface.
B122: A crumb value is returned, buried in the HTML for any of what I call the "entry level" Yahoo Finance web pages (no crumb security requirement for entry level pages).
B123: A crumb may come with other Yahoo Finance pages. A crumb may even accompany some of the secured pages as well. I have not checked.
B125: Entry level pages are the top level pages of the various Yahoo Finance dialogs and include: Quote Lookup, Stock Summary Quote, and any of the pages
B126: with links in the horizontal row with the "Summary" link on the quote summary page such as Options, Historical Data, and the rest.
B128: To date I have found no way to get at this crumb value using any native EXCEL capabilities.
B130: So this crumb requirement effectively shuts out any solution that attempts to exclusively use built-in facilities of EXCEL, which is to say a purely Querytables solution.
B132: The approach built for this Traders Tip spreadsheet uses WINHTTP calls to Load the InputPriceData worksheet.
B134: First I call to get the HTML text for the Yahoo Summary Quote page using the requested symbol. From this HTML text I extract the full company name,
B135: the market it trades, the market status and time stamp, and finally the associated crumb string. There is a bunch of other useful bits buried in this HTML
B136: text that do not necessarily appear on the web page your browser presents. Perhaps some day I will go after and build a worksheet with these other bits.
B138: Next I add the freshly extracted crumb string to the URLs I use in three separate WINHTTP calls to retrieve Price history, Split history, and Dividend history respectively.
B140: From there VBA code proceeds as in the past to fill in the cell formulas and formatting that make the "prettied up" InputPriceData sheet.
A142: Why this approach works for Windows:
B143: WINHTTP maintains a temporary computer memory cache where cookies are maintained for as long as the WINHTTP object is instantiated.
B144: WINHTTP updates this cache any time a "set cookie" header accompanies a web response.
B145: Subsequent WINHTTP calls automatically search this cache for cookies and add any "appropriate" cookies to the headers
B146: of any web requests that get sent out.
B147: This cookie handling automation means that even if the response to our WINHTTP call for the Summary web page includes a new version of
B148: the Yahoo Finance cookie, the imbedded Crumb value will always match the cookie newly installed in the cache!
A151: Why this approach does not work for Macintosh:
B152: For what it is worth, the Macintosh version of the MS Office suite of products do in fact maintain a special, shared amongst themselves only, cookie cache.
B153: They automate cookie handling into and from this cache JUST for the Office products and any Querytable activity they might originate.
B155: This cache is not tied to, nor shared with, any browser that might be installed on the MAC. And I have not found anything with HTTP capabilities similar to
B156: MSXML that can work with that Office product cookie cache.
B158: When working in the MAC EXCEL environment, I have not yet become conversant with a Mac based WINHTTP like capability.
B159: So l currently have no mechanism to replicate the non-Querytable data retrieval process I am using in Windows environments.
B160: A software product called CURL has been suggested as providing this capability in the MAC environment.
B161: A version of CURL is available for the Windows So some day I may explore its capabilities and how to access those capabilities from VBA.
A163: Calculation and Chart Worksheet Usage Comments:
C164: In General, Items in Bolded BLUE are items you may freely change to play what-if games.
C165: Be sure to have a backup copy of the spreadsheet before you alter anything else.
A167: Features carried forward from the June 2016 version of my T-Tips Template
A168: Added a pair of buttons near cell F12 that will allow the user to step the charting window forward or backward one bar for each click.
A169: I find this to be a good way to test my understanding of the author's ideas as I step through the evolution of the price behavior and the indicators.
B171: First: In the "Help! I would like to plot data" area.
B172: Added button to resolve #NA problems by locating the bar in the input data with a slightly more recent date than what the user actually requested.
B173: I find this particularly useful when I have a general idea of where I want to be date wise. Now I can pick a set of dates "out of the air".
B174: If either (or both) of my date specifications fall between dates that are available in the price history,
B175: this button will resolve them to the dates of the nearest, slightly more recent input bars.
B176: I can then refine my data interval search as necessary from there.
B177: Really great when working with Weekly or Monthly studies!
C178: 2016Jun11 - added logic to the "I would like to chart.." button to detect #N/A values and terminate
C179: gracefully with a message instead of blowing up in the charting logic.
B181: Second: In the "Price Chart Windowing Controls" area. (A11 and A12)
B182: When retrieving data for a new symbol or when changing from daily to weekly or monthly data, there was the possibility that the
B183: residual settings in A11 and A12 would fall outside of the number bars available on the input data tab after the new data retrieval.
B184: In certain combinations, this could create a serious error in the chart sizing logic and crash the spreadsheet.
B185: I have taken this opportunity to update the validity checking logic used in the chart sizing macros
B186: to adjust these values as necessary so that they fall within the boundaries of the newly retrieved input data.
A187: Features carried forward from the October 2015 Traders Tips Template
B188: Improved automation: changes to any of the following will automatically initiate calculations appropriate to reflect a change.
C189: Changing either of cells A11 (pan) or A12 (zoom) will automatically initiate the same chart sizing macros that the manual
C190: "Set Chart" button uses.

Sheet InputPriceData
A1: Ideanomics, Inc. (IDEX) -NasdaqGS (Daily)
M2: To retrieve data for symbols traded on non US Exchanges, | II2: 241.79
A3: Request Online Yahoo History for: | F3: Market State == > | G3: As of | H3: 10:11:00 | I3: EST. Market open. | M3: you will need to append the dot-suffix for the exchange to the symbol.
A4: Symbol | B4: IDEX | D4: Valid | I4: =OFFSET(I4,-2,0,1,1) -> 0 | M4: The following links provide a description of how to use the exchange suffix
A5: From | B5: 1950-10-01 | D5: Data | M5: along with a list of suffixes for the major world exchanges. | AD5: Trailing 12 Div return (Cur Close)
A6: To | B6: =NOW() -> 2021-02-19T10:43:58.260 | D6: Types | E6: =VLOOKUP(B7,D7:E10,2,FALSE) -> d | M6: https://help.yahoo.com/kb/finance/SLN2310.html
A7: Data Type | B7: Daily | D7: Daily | E7: d | M7: And
A8: Crumb | B8: hSjASDx/FeV | D8: Weekly | E8: w | M8: https://www.stockmarketeye.com/users-guide/ticker-symbols-and-data-providers/data-providers.html
A9: Available Data | D9: Monthly | E9: m
A10: Bar Count: | B10: 3461 | M10: You may search on “exchange suffixes” for additional discussions | AD10: =OFFSET(AC15,1,0,1,1)/OFFSET(N15,1,0,1,1) -> 0
A11: From: | B11: =IF(B10<=0,"",OFFSET(B15,B10,IF(HistReqDataType="v",1,0),1,1)) -> 2007-05-23 | W11: Trailing 12 Month Dividend Returns
A12: To: | B12: =IF(B10<=0,"",IF(HistReqDataType="v",OFFSET(B15,2,1,1,1),OFFSET(B15,1,0,1,1))) -> 2021-02-19 | W12: Raw Close price on Dividend date | X12: Div Year and Month | Y12: Looking for year ago Div Year and Month | Z12: Year ago Div Date we found | AA12: row offset to year ago div Date | AB12: Same month flag | AC12: Trailing 12 Div Total | AD12: Trailing 12 Div return
Q13: Split History | S13: 0 | T13: Running | U13: Dividend History
B14: Raw Data Values | H14: Adjusted | I14: Price Adjust | J14: Vol Adjust | K14: Adjusted Values | P14: Last | Q14: Effective | R14: Shares | T14: Vol Adjust | V14: 0
A15: RelRow | B15: Date | C15: Open | D15: High | E15: Low | F15: Close | G15: Volume | H15: Close | I15: Factor | J15: Factor | K15: Open | L15: High | M15: Low | N15: Close | O15: Volume | P15: Trade | Q15: 44247 | R15: New | S15: Old | T15: 1 | U15: Date | V15: $ / Share
A16: 1 | B16: 2021-02-19 | C16: 3.99 | D16: 4.15 | E16: 3.88 | F16: 3.92 | G16: 8623006 | H16: 3.92 | I16: =IF(F16=0,1,H16/F16) -> 1 | J16: =INDEX(OFFSET($T$15,0,0,$S$13+1,1),MATCH(B16,OFFSET($Q$15,0,0,$S$13+1,1),-1)) -> 1 | K16: =ROUND($I16*C16,2) -> 3.99 | L16: =ROUND($I16*D16,2) -> 4.15 | M16: 3.88 | N16: 3.92 | O16: =G16*J16 -> 8623006 | Q16: 2012-02-13 | R16: 1 | S16: 75
A17: 2 | B17: 2021-02-18 | C17: 3.86 | D17: 4.03 | E17: 3.71 | F17: 3.73 | G17: 31125500 | H17: 3.73 | I17: =IF(F17=0,1,H17/F17) -> 1 | J17: =INDEX(OFFSET($T$15,0,0,$S$13+1,1),MATCH(B17,OFFSET($Q$15,0,0,$S$13+1,1),-1)) -> 1 | K17: =ROUND($I17*C17,2) -> 3.86 | L17: =ROUND($I17*D17,2) -> 4.03 | M17: =ROUND($I17*E17,2) -> 3.71 | N17: =ROUND($I17*F17,2) -> 3.73 | O17: =G17*J17 -> 31125500
A18: 3 | B18: 2021-02-17 | C18: 4.43 | D18: 4.44 | E18: 3.92 | F18: 4.08 | G18: 37127700 | H18: 4.08 | I18: 1 | J18: 1 | K18: 4.43 | L18: 4.44 | M18: 3.92 | N18: 4.08 | O18: 37127700
A19: 4 | B19: 2021-02-16 | C19: 4.81 | D19: 4.88 | E19: 4.38 | F19: 4.47 | G19: 30120300 | H19: 4.47 | I19: 1 | J19: 1 | K19: 4.81 | L19: 4.88 | M19: 4.38 | N19: 4.47 | O19: 30120300
A20: 5 | B20: 2021-02-12 | C20: 4.6 | D20: 4.82 | E20: 4.28 | F20: 4.62 | G20: 33293200 | H20: 4.62 | I20: 1 | J20: 1 | K20: 4.6 | L20: 4.82 | M20: 4.28 | N20: 4.62 | O20: 33293200
A21: 6 | B21: 2021-02-11 | C21: 5.03 | D21: 5.04 | E21: 4.65 | F21: 4.75 | G21: 33475800 | H21: 4.75 | I21: 1 | J21: 1 | K21: 5.03 | L21: 5.04 | M21: 4.65 | N21: 4.75 | O21: 33475800
A22: 7 | B22: 2021-02-10 | C22: 5.3 | D22: 5.37 | E22: 4.86 | F22: 4.96 | G22: 38972300 | H22: 4.96 | I22: 1 | J22: 1 | K22: 5.3 | L22: 5.37 | M22: 4.86 | N22: 4.96 | O22: 38972300
A23: 8 | B23: 2021-02-09 | C23: 5.39 | D23: 5.41 | E23: 5.12 | F23: 5.29 | G23: 32389400 | H23: 5.29 | I23: 1 | J23: 1 | K23: 5.39 | L23: 5.41 | M23: 5.12 | N23: 5.29 | O23: 32389400
A24: 9 | B24: 2021-02-08 | C24: 5.05 | D24: 5.45 | E24: 5.04 | F24: 5.43 | G24: 40726900 | H24: 5.43 | I24: 1 | J24: 1 | K24: 5.05 | L24: 5.45 | M24: 5.04 | N24: 5.43 | O24: 40726900
A25: 10 | B25: 2021-02-05 | C25: 5.51 | D25: 5.53 | E25: 4.86 | F25: 4.95 | G25: 65530500 | H25: 4.95 | I25: 1 | J25: 1 | K25: 5.51 | L25: 5.53 | M25: 4.86 | N25: 4.95 | O25: 65530500
A26: 11 | B26: 2021-02-04 | C26: 4.56 | D26: 5.32 | E26: 4.45 | F26: 5.29 | G26: 86624800 | H26: 5.29 | I26: 1 | J26: 1 | K26: 4.56 | L26: 5.32 | M26: 4.45 | N26: 5.29 | O26: 86624800
A27: 12 | B27: 2021-02-03 | C27: 4.39 | D27: 4.73 | E27: 4.36 | F27: 4.42 | G27: 39345100 | H27: 4.42 | I27: 1 | J27: 1 | K27: 4.39 | L27: 4.73 | M27: 4.36 | N27: 4.42 | O27: 39345100
A28: 13 | B28: 2021-02-02 | C28: 4.55 | D28: 4.55 | E28: 4.08 | F28: 4.35 | G28: 47170400 | H28: 4.35 | I28: 1 | J28: 1 | K28: 4.55 | L28: 4.55 | M28: 4.08 | N28: 4.35 | O28: 47170400
A29: 14 | B29: 2021-02-01 | C29: 4.07 | D29: 4.75 | E29: 3.97 | F29: 4.34 | G29: 95396800 | H29: 4.34 | I29: 1 | J29: 1 | K29: 4.07 | L29: 4.75 | M29: 3.97 | N29: 4.34 | O29: 95396800
A30: 15 | B30: 2021-01-29 | C30: 3.99 | D30: 4.14 | E30: 3.8 | F30: 3.87 | G30: 28364400 | H30: 3.87 | I30: 1 | J30: 1 | K30: 3.99 | L30: 4.14 | M30: 3.8 | N30: 3.87 | O30: 28364400
A31: 16 | B31: 2021-01-28 | C31: 4.2 | D31: 4.48 | E31: 3.81 | F31: 3.97 | G31: 48663300 | H31: 3.97 | I31: 1 | J31: 1 | K31: 4.2 | L31: 4.48 | M31: 3.81 | N31: 3.97 | O31: 48663300
A32: 17 | B32: 2021-01-27 | C32: 3.58 | D32: 4.58 | E32: 3.52 | F32: 4.11 | G32: 85057700 | H32: 4.11 | I32: 1 | J32: 1 | K32: 3.58 | L32: 4.58 | M32: 3.52 | N32: 4.11 | O32: 85057700
A33: 18 | B33: 2021-01-26 | C33: 4.24 | D33: 4.25 | E33: 3.79 | F33: 3.86 | G33: 57196300 | H33: 3.86 | I33: 1 | J33: 1 | K33: 4.24 | L33: 4.25 | M33: 3.79 | N33: 3.86 | O33: 57196300
A34: 19 | B34: 2021-01-25 | C34: 3.83 | D34: 4.15 | E34: 3.52 | F34: 4.04 | G34: 100628100 | H34: 4.04 | I34: 1 | J34: 1 | K34: 3.83 | L34: 4.15 | M34: 3.52 | N34: 4.04 | O34: 100628100
A35: 20 | B35: 2021-01-22 | C35: 3.11 | D35: 3.54 | E35: 3.09 | F35: 3.47 | G35: 45933500 | H35: 3.47 | I35: 1 | J35: 1 | K35: 3.11 | L35: 3.54 | M35: 3.09 | N35: 3.47 | O35: 45933500
A36: 21 | B36: 2021-01-21 | C36: 3.22 | D36: 3.23 | E36: 3.05 | F36: 3.18 | G36: 27014300 | H36: 3.18 | I36: 1 | J36: 1 | K36: 3.22 | L36: 3.23 | M36: 3.05 | N36: 3.18 | O36: 27014300
A37: 22 | B37: 2021-01-20 | C37: 3.4 | D37: 3.4 | E37: 3.14 | F37: 3.27 | G37: 25317100 | H37: 3.27 | I37: 1 | J37: 1 | K37: 3.4 | L37: 3.4 | M37: 3.14 | N37: 3.27 | O37: 25317100
A38: 23 | B38: 2021-01-19 | C38: 3.27 | D38: 3.44 | E38: 3.07 | F38: 3.34 | G38: 50337600 | H38: 3.34 | I38: 1 | J38: 1 | K38: 3.27 | L38: 3.44 | M38: 3.07 | N38: 3.34 | O38: 50337600
A39: 24 | B39: 2021-01-15 | C39: 3.67 | D39: 3.68 | E39: 3.07 | F39: 3.18 | G39: 83920800 | H39: 3.18 | I39: 1 | J39: 1 | K39: 3.67 | L39: 3.68 | M39: 3.07 | N39: 3.18 | O39: 83920800
A40: 25 | B40: 2021-01-14 | C40: 2.84 | D40: 3.64 | E40: 2.82 | F40: 3.3 | G40: 135387400 | H40: 3.3 | I40: 1 | J40: 1 | K40: 2.84 | L40: 3.64 | M40: 2.82 | N40: 3.3 | O40: 135387400
A41: 26 | B41: 2021-01-13 | C41: 2.87 | D41: 2.92 | E41: 2.7 | F41: 2.71 | G41: 41381700 | H41: 2.71 | I41: 1 | J41: 1 | K41: 2.87 | L41: 2.92 | M41: 2.7 | N41: 2.71 | O41: 41381700
A42: 27 | B42: 2021-01-12 | C42: 2.93 | D42: 2.98 | E42: 2.73 | F42: 2.88 | G42: 43440900 | H42: 2.88 | I42: 1 | J42: 1 | K42: 2.93 | L42: 2.98 | M42: 2.73 | N42: 2.88 | O42: 43440900
A43: 28 | B43: 2021-01-11 | C43: 3.05 | D43: 3.37 | E43: 2.82 | F43: 2.88 | G43: 79921800 | H43: 2.88 | I43: 1 | J43: 1 | K43: 3.05 | L43: 3.37 | M43: 2.82 | N43: 2.88 | O43: 79921800
A44: 29 | B44: 2021-01-08 | C44: 3.47 | D44: 3.89 | E44: 3 | F44: 3.16 | G44: 174938900 | H44: 3.16 | I44: 1 | J44: 1 | K44: 3.47 | L44: 3.89 | M44: 3 | N44: 3.16 | O44: 174938900
A45: 30 | B45: 2021-01-07 | C45: 2.34 | D45: 3 | E45: 2.32 | F45: 2.98 | G45: 103883400 | H45: 2.98 | I45: 1 | J45: 1 | K45: 2.34 | L45: 3 | M45: 2.32 | N45: 2.98 | O45: 103883400
A46: 31 | B46: 2021-01-06 | C46: 2.38 | D46: 2.53 | E46: 2.12 | F46: 2.19 | G46: 57678600 | H46: 2.19 | I46: 1 | J46: 1 | K46: 2.38 | L46: 2.53 | M46: 2.12 | N46: 2.19 | O46: 57678600
A47: 32 | B47: 2021-01-05 | C47: 2.14 | D47: 2.37 | E47: 2.07 | F47: 2.34 | G47: 51609200 | H47: 2.34 | I47: 1 | J47: 1 | K47: 2.14 | L47: 2.37 | M47: 2.07 | N47: 2.34 | O47: 51609200
A48: 33 | B48: 2021-01-04 | C48: 2 | D48: 2.15 | E48: 1.9 | F48: 2.06 | G48: 25352300 | H48: 2.06 | I48: 1 | J48: 1 | K48: 2 | L48: 2.15 | M48: 1.9 | N48: 2.06 | O48: 25352300
A49: 34 | B49: 2020-12-31 | C49: 1.99 | D49: 2.08 | E49: 1.92 | F49: 1.99 | G49: 22414100 | H49: 1.99 | I49: 1 | J49: 1 | K49: 1.99 | L49: 2.08 | M49: 1.92 | N49: 1.99 | O49: 22414100
A50: 35 | B50: 2020-12-30 | C50: 2.05 | D50: 2.11 | E50: 1.95 | F50: 1.96 | G50: 31974900 | H50: 1.96 | I50: 1 | J50: 1 | K50: 2.05 | L50: 2.11 | M50: 1.95 | N50: 1.96 | O50: 31974900
A51: 36 | B51: 2020-12-29 | C51: 2.32 | D51: 2.32 | E51: 2.03 | F51: 2.09 | G51: 42029900 | H51: 2.09 | I51: 1 | J51: 1 | K51: 2.32 | L51: 2.32 | M51: 2.03 | N51: 2.09 | O51: 42029900
A52: 37 | B52: 2020-12-28 | C52: 2.58 | D52: 2.6 | E52: 2.31 | F52: 2.34 | G52: 58774700 | H52: 2.34 | I52: 1 | J52: 1 | K52: 2.58 | L52: 2.6 | M52: 2.31 | N52: 2.34 | O52: 58774700
A53: 38 | B53: 2020-12-24 | C53: 2.21 | D53: 2.27 | E53: 2.11 | F53: 2.27 | G53: 19536500 | H53: 2.27 | I53: 1 | J53: 1 | K53: 2.21 | L53: 2.27 | M53: 2.11 | N53: 2.27 | O53: 19536500
A54: 39 | B54: 2020-12-23 | C54: 2.21 | D54: 2.3 | E54: 2.15 | F54: 2.18 | G54: 27256600 | H54: 2.18 | I54: 1 | J54: 1 | K54: 2.21 | L54: 2.3 | M54: 2.15 | N54: 2.18 | O54: 27256600
A55: 40 | B55: 2020-12-22 | C55: 2.18 | D55: 2.4 | E55: 2.07 | F55: 2.14 | G55: 58256200 | H55: 2.14 | I55: 1 | J55: 1 | K55: 2.18 | L55: 2.4 | M55: 2.07 | N55: 2.14 | O55: 58256200
A56: 41 | B56: 2020-12-21 | C56: 2.03 | D56: 2.1 | E56: 1.91 | F56: 2.04 | G56: 33955100 | H56: 2.04 | I56: 1 | J56: 1 | K56: 2.03 | L56: 2.1 | M56: 1.91 | N56: 2.04 | O56: 33955100
A57: 42 | B57: 2020-12-18 | C57: 1.77 | D57: 2.05 | E57: 1.66 | F57: 1.98 | G57: 43235900 | H57: 1.98 | I57: 1 | J57: 1 | K57: 1.77 | L57: 2.05 | M57: 1.66 | N57: 1.98 | O57: 43235900
A58: 43 | B58: 2020-12-17 | C58: 1.82 | D58: 1.85 | E58: 1.76 | F58: 1.79 | G58: 17995800 | H58: 1.79 | I58: 1 | J58: 1 | K58: 1.82 | L58: 1.85 | M58: 1.76 | N58: 1.79 | O58: 17995800
A59: 44 | B59: 2020-12-16 | C59: 1.87 | D59: 1.88 | E59: 1.81 | F59: 1.86 | G59: 12694000 | H59: 1.86 | I59: 1 | J59: 1 | K59: 1.87 | L59: 1.88 | M59: 1.81 | N59: 1.86 | O59: 12694000
A60: 45 | B60: 2020-12-15 | C60: 1.88 | D60: 1.89 | E60: 1.82 | F60: 1.87 | G60: 13884600 | H60: 1.87 | I60: 1 | J60: 1 | K60: 1.88 | L60: 1.89 | M60: 1.82 | N60: 1.87 | O60: 13884600
A61: 46 | B61: 2020-12-14 | C61: 1.91 | D61: 1.99 | E61: 1.82 | F61: 1.87 | G61: 19268900 | H61: 1.87 | I61: 1 | J61: 1 | K61: 1.91 | L61: 1.99 | M61: 1.82 | N61: 1.87 | O61: 19268900
A62: 47 | B62: 2020-12-11 | C62: 1.82 | D62: 1.9 | E62: 1.78 | F62: 1.84 | G62: 19654900 | H62: 1.84 | I62: 1 | J62: 1 | K62: 1.82 | L62: 1.9 | M62: 1.78 | N62: 1.84 | O62: 19654900
A63: 48 | B63: 2020-12-10 | C63: 1.97 | D63: 2.03 | E63: 1.87 | F63: 1.92 | G63: 24842200 | H63: 1.92 | I63: 1 | J63: 1 | K63: 1.97 | L63: 2.03 | M63: 1.87 | N63: 1.92 | O63: 24842200
A64: 49 | B64: 2020-12-09 | C64: 2.13 | D64: 2.14 | E64: 2 | F64: 2.06 | G64: 29041300 | H64: 2.06 | I64: 1 | J64: 1 | K64: 2.13 | L64: 2.14 | M64: 2 | N64: 2.06 | O64: 29041300
A65: 50 | B65: 2020-12-08 | C65: 2.16 | D65: 2.2 | E65: 2.08 | F65: 2.17 | G65: 32119400 | H65: 2.17 | I65: 1 | J65: 1 | K65: 2.16 | L65: 2.2 | M65: 2.08 | N65: 2.17 | O65: 32119400
A66: 51 | B66: 2020-12-07 | C66: 2.07 | D66: 2.2 | E66: 2 | F66: 2.07 | G66: 36479900 | H66: 2.07 | I66: 1 | J66: 1 | K66: 2.07 | L66: 2.2 | M66: 2 | N66: 2.07 | O66: 36479900
A67: 52 | B67: 2020-12-04 | C67: 2.17 | D67: 2.17 | E67: 1.98 | F67: 2.02 | G67: 37270200 | H67: 2.02 | I67: 1 | J67: 1 | K67: 2.17 | L67: 2.17 | M67: 1.98 | N67: 2.02 | O67: 37270200
A68: 53 | B68: 2020-12-03 | C68: 2.37 | D68: 2.38 | E68: 2.11 | F68: 2.17 | G68: 32309600 | H68: 2.17 | I68: 1 | J68: 1 | K68: 2.37 | L68: 2.38 | M68: 2.11 | N68: 2.17 | O68: 32309600
A69: 54 | B69: 2020-12-02 | C69: 1.99 | D69: 2.5 | E69: 1.8 | F69: 2.33 | G69: 75530700 | H69: 2.33 | I69: 1 | J69: 1 | K69: 1.99 | L69: 2.5 | M69: 1.8 | N69: 2.33 | O69: 75530700
A70: 55 | B70: 2020-12-01 | C70: 2.64 | D70: 2.68 | E70: 2.08 | F70: 2.2 | G70: 63101700 | H70: 2.2 | I70: 1 | J70: 1 | K70: 2.64 | L70: 2.68 | M70: 2.08 | N70: 2.2 | O70: 63101700
A71: 56 | B71: 2020-11-30 | C71: 2.99 | D71: 3.02 | E71: 2.55 | F71: 2.77 | G71: 63034900 | H71: 2.77 | I71: 1 | J71: 1 | K71: 2.99 | L71: 3.02 | M71: 2.55 | N71: 2.77 | O71: 63034900
A72: 57 | B72: 2020-11-27 | C72: 3.01 | D72: 3.16 | E72: 2.7 | F72: 2.77 | G72: 49022200 | H72: 2.77 | I72: 1 | J72: 1 | K72: 3.01 | L72: 3.16 | M72: 2.7 | N72: 2.77 | O72: 49022200
A73: 58 | B73: 2020-11-25 | C73: 2.67 | D73: 2.91 | E73: 2.51 | F73: 2.71 | G73: 87585700 | H73: 2.71 | I73: 1 | J73: 1 | K73: 2.67 | L73: 2.91 | M73: 2.51 | N73: 2.71 | O73: 87585700
A74: 59 | B74: 2020-11-24 | C74: 3.95 | D74: 4.75 | E74: 2.21 | F74: 3.15 | G74: 351923500 | H74: 3.15 | I74: 1 | J74: 1 | K74: 3.95 | L74: 4.75 | M74: 2.21 | N74: 3.15 | O74: 351923500
A75: 60 | B75: 2020-11-23 | C75: 2.09 | D75: 2.88 | E75: 2.08 | F75: 2.62 | G75: 281082800 | H75: 2.62 | I75: 1 | J75: 1 | K75: 2.09 | L75: 2.88 | M75: 2.08 | N75: 2.62 | O75: 281082800
A76: 61 | B76: 2020-11-20 | C76: 1.36 | D76: 1.75 | E76: 1.29 | F76: 1.54 | G76: 110318300 | H76: 1.54 | I76: 1 | J76: 1 | K76: 1.36 | L76: 1.75 | M76: 1.29 | N76: 1.54 | O76: 110318300
A77: 62 | B77: 2020-11-19 | C77: 1.24 | D77: 1.28 | E77: 1.16 | F77: 1.2 | G77: 26159500 | H77: 1.2 | I77: 1 | J77: 1 | K77: 1.24 | L77: 1.28 | M77: 1.16 | N77: 1.2 | O77: 26159500
A78: 63 | B78: 2020-11-18 | C78: 1.13 | D78: 1.32 | E78: 1.13 | F78: 1.16 | G78: 27181700 | H78: 1.16 | I78: 1 | J78: 1 | K78: 1.13 | L78: 1.32 | M78: 1.13 | N78: 1.16 | O78: 27181700
A79: 64 | B79: 2020-11-17 | C79: 1.08 | D79: 1.16 | E79: 1.03 | F79: 1.1 | G79: 13471600 | H79: 1.1 | I79: 1 | J79: 1 | K79: 1.08 | L79: 1.16 | M79: 1.03 | N79: 1.1 | O79: 13471600
A80: 65 | B80: 2020-11-16 | C80: 1.19 | D80: 1.22 | E80: 1.1 | F80: 1.17 | G80: 32133300 | H80: 1.17 | I80: 1 | J80: 1 | K80: 1.19 | L80: 1.22 | M80: 1.1 | N80: 1.17 | O80: 32133300
A81: 66 | B81: 2020-11-13 | C81: 1.04 | D81: 1.07 | E81: 0.98 | F81: 0.99 | G81: 14235600 | H81: 0.99 | I81: =IF(F81=0,1,H81/F81) -> 1 | J81: =INDEX(OFFSET($T$15,0,0,$S$13+1,1),MATCH(B81,OFFSET($Q$15,0,0,$S$13+1,1),-1)) -> 1 | K81: =ROUND($I81*C81,2) -> 1.04 | L81: =ROUND($I81*D81,2) -> 1.07 | M81: =ROUND($I81*E81,2) -> 0.98 | N81: =ROUND($I81*F81,2) -> 0.99 | O81: =G81*J81 -> 14235600
A82: 67 | B82: 2020-11-12 | C82: 0.95 | D82: 1.04 | E82: 0.93 | F82: 0.97 | G82: 10522000 | H82: 0.97 | I82: 1 | J82: 1 | K82: 0.95 | L82: 1.04 | M82: 0.93 | N82: 0.97 | O82: 10522000
A83: 68 | B83: 2020-11-11 | C83: 0.9 | D83: 0.91 | E83: 0.89 | F83: 0.91 | G83: 2406700 | H83: 0.91 | I83: 1 | J83: 1 | K83: 0.9 | L83: 0.91 | M83: 0.89 | N83: 0.91 | O83: 2406700
A84: 69 | B84: 2020-11-10 | C84: 0.93 | D84: 0.93 | E84: 0.88 | F84: 0.89 | G84: 5271700 | H84: 0.89 | I84: 1 | J84: 1 | K84: 0.93 | L84: 0.93 | M84: 0.88 | N84: 0.89 | O84: 5271700
A85: 70 | B85: 2020-11-09 | C85: 0.98 | D85: 1.1 | E85: 0.94 | F85: 0.97 | G85: 10425100 | H85: 0.97 | I85: 1 | J85: 1 | K85: 0.98 | L85: 1.1 | M85: 0.94 | N85: 0.97 | O85: 10425100
A86: 71 | B86: 2020-11-06 | C86: 0.95 | D86: 0.95 | E86: 0.91 | F86: 0.94 | G86: 2723300 | H86: 0.94 | I86: 1 | J86: 1 | K86: 0.95 | L86: 0.95 | M86: 0.91 | N86: 0.94 | O86: 2723300
A87: 72 | B87: 2020-11-05 | C87: 0.9 | D87: 0.94 | E87: 0.88 | F87: 0.93 | G87: 4079800 | H87: 0.93 | I87: 1 | J87: 1 | K87: 0.9 | L87: 0.94 | M87: 0.88 | N87: 0.93 | O87: 4079800
A88: 73 | B88: 2020-11-04 | C88: 0.85 | D88: 0.88 | E88: 0.84 | F88: 0.87 | G88: 1739800 | H88: 0.87 | I88: 1 | J88: 1 | K88: 0.85 | L88: 0.88 | M88: 0.84 | N88: 0.87 | O88: 1739800
A89: 74 | B89: 2020-11-03 | C89: 0.83 | D89: 0.87 | E89: 0.82 | F89: 0.84 | G89: 2304400 | H89: 0.84 | I89: 1 | J89: 1 | K89: 0.83 | L89: 0.87 | M89: 0.82 | N89: 0.84 | O89: 2304400
A90: 75 | B90: 2020-11-02 | C90: 0.8 | D90: 0.83 | E90: 0.8 | F90: 0.82 | G90: 2319900 | H90: 0.82 | I90: 1 | J90: 1 | K90: 0.8 | L90: 0.83 | M90: 0.8 | N90: 0.82 | O90: 2319900
A91: 76 | B91: 2020-10-30 | C91: 0.8 | D91: 0.83 | E91: 0.8 | F91: 0.82 | G91: 2805300 | H91: 0.82 | I91: 1 | J91: 1 | K91: 0.8 | L91: 0.83 | M91: 0.8 | N91: 0.82 | O91: 2805300
A92: 77 | B92: 2020-10-29 | C92: 0.85 | D92: 0.85 | E92: 0.81 | F92: 0.83 | G92: 2247400 | H92: 0.83 | I92: 1 | J92: 1 | K92: 0.85 | L92: 0.85 | M92: 0.81 | N92: 0.83 | O92: 2247400
A93: 78 | B93: 2020-10-28 | C93: 0.86 | D93: 0.87 | E93: 0.83 | F93: 0.84 | G93: 3157800 | H93: 0.84 | I93: 1 | J93: 1 | K93: 0.86 | L93: 0.87 | M93: 0.83 | N93: 0.84 | O93: 3157800
A94: 79 | B94: 2020-10-27 | C94: 0.9 | D94: 0.9 | E94: 0.87 | F94: 0.88 | G94: 3147700 | H94: 0.88 | I94: 1 | J94: 1 | K94: 0.9 | L94: 0.9 | M94: 0.87 | N94: 0.88 | O94: 3147700
A95: 80 | B95: 2020-10-26 | C95: 0.9 | D95: 0.92 | E95: 0.88 | F95: 0.9 | G95: 4624900 | H95: 0.9 | I95: 1 | J95: 1 | K95: 0.9 | L95: 0.92 | M95: 0.88 | N95: 0.9 | O95: 4624900
A96: 81 | B96: 2020-10-23 | C96: 0.95 | D96: 0.96 | E96: 0.88 | F96: 0.94 | G96: 6300900 | H96: 0.94 | I96: 1 | J96: 1 | K96: 0.95 | L96: 0.96 | M96: 0.88 | N96: 0.94 | O96: 6300900
A97: 82 | B97: 2020-10-22 | C97: 0.92 | D97: 1.15 | E97: 0.91 | F97: 0.96 | G97: 38285800 | H97: 0.96 | I97: 1 | J97: 1 | K97: 0.92 | L97: 1.15 | M97: 0.91 | N97: 0.96 | O97: 38285800
A98: 83 | B98: 2020-10-21 | C98: 0.88 | D98: 0.89 | E98: 0.85 | F98: 0.85 | G98: 3156200 | H98: 0.85 | I98: 1 | J98: 1 | K98: 0.88 | L98: 0.89 | M98: 0.85 | N98: 0.85 | O98: 3156200
A99: 84 | B99: 2020-10-20 | C99: 0.89 | D99: 0.9 | E99: 0.85 | F99: 0.86 | G99: 3228400 | H99: 0.86 | I99: 1 | J99: 1 | K99: 0.89 | L99: 0.9 | M99: 0.85 | N99: 0.86 | O99: 3228400
A100: 85 | B100: 2020-10-19 | C100: 0.92 | D100: 0.92 | E100: 0.89 | F100: 0.9 | G100: 3301000 | H100: 0.9 | I100: 1 | J100: 1 | K100: 0.92 | L100: 0.92 | M100: 0.89 | N100: 0.9 | O100: 3301000
A101: 86 | B101: 2020-10-16 | C101: 0.95 | D101: 0.95 | E101: 0.92 | F101: 0.92 | G101: 3407500 | H101: 0.92 | I101: 1 | J101: 1 | K101: 0.95 | L101: 0.95 | M101: 0.92 | N101: 0.92 | O101: 3407500
A102: 87 | B102: 2020-10-15 | C102: 0.95 | D102: 0.97 | E102: 0.91 | F102: 0.94 | G102: 3728500 | H102: 0.94 | I102: 1 | J102: 1 | K102: 0.95 | L102: 0.97 | M102: 0.91 | N102: 0.94 | O102: 3728500
A103: 88 | B103: 2020-10-14 | C103: 0.98 | D103: 0.99 | E103: 0.95 | F103: 0.95 | G103: 3605200 | H103: 0.95 | I103: 1 | J103: 1 | K103: 0.98 | L103: 0.99 | M103: 0.95 | N103: 0.95 | O103: 3605200
A104: 89 | B104: 2020-10-13 | C104: 0.99 | D104: 1 | E104: 0.97 | F104: 0.98 | G104: 1964700 | H104: 0.98 | I104: 1 | J104: 1 | K104: 0.99 | L104: 1 | M104: 0.97 | N104: 0.98 | O104: 1964700
A105: 90 | B105: 2020-10-12 | C105: 1 | D105: 1.02 | E105: 0.99 | F105: 1 | G105: 2846800 | H105: 1 | I105: 1 | J105: 1 | K105: 1 | L105: 1.02 | M105: 0.99 | N105: 1 | O105: 2846800
A106: 91 | B106: 2020-10-09 | C106: 0.99 | D106: 1.02 | E106: 0.98 | F106: 1 | G106: 3382200 | H106: 1 | I106: 1 | J106: 1 | K106: 0.99 | L106: 1.02 | M106: 0.98 | N106: 1 | O106: 3382200
A107: 92 | B107: 2020-10-08 | C107: 0.99 | D107: 1 | E107: 0.96 | F107: 0.97 | G107: 3367900 | H107: 0.97 | I107: 1 | J107: 1 | K107: 0.99 | L107: 1 | M107: 0.96 | N107: 0.97 | O107: 3367900
A108: 93 | B108: 2020-10-07 | C108: 0.97 | D108: 1.01 | E108: 0.95 | F108: 0.96 | G108: 4737300 | H108: 0.96 | I108: 1 | J108: 1 | K108: 0.97 | L108: 1.01 | M108: 0.95 | N108: 0.96 | O108: 4737300
A109: 94 | B109: 2020-10-06 | C109: 0.91 | D109: 1.04 | E109: 0.9 | F109: 0.95 | G109: 14636400 | H109: 0.95 | I109: 1 | J109: 1 | K109: 0.91 | L109: 1.04 | M109: 0.9 | N109: 0.95 | O109: 14636400
A110: 95 | B110: 2020-10-05 | C110: 0.91 | D110: 0.94 | E110: 0.91 | F110: 0.91 | G110: 2690900 | H110: 0.91 | I110: 1 | J110: 1 | K110: 0.91 | L110: 0.94 | M110: 0.91 | N110: 0.91 | O110: 2690900
A111: 96 | B111: 2020-10-02 | C111: 0.9 | D111: 0.93 | E111: 0.88 | F111: 0.91 | G111: 2893100 | H111: 0.91 | I111: 1 | J111: 1 | K111: 0.9 | L111: 0.93 | M111: 0.88 | N111: 0.91 | O111: 2893100
A112: 97 | B112: 2020-10-01 | C112: 0.89 | D112: 1 | E112: 0.89 | F112: 0.95 | G112: 4844500 | H112: 0.95 | I112: 1 | J112: 1 | K112: 0.89 | L112: 1 | M112: 0.89 | N112: 0.95 | O112: 4844500
A113: 98 | B113: 2020-09-30 | C113: 0.9 | D113: 0.96 | E113: 0.89 | F113: 0.91 | G113: 4392800 | H113: 0.91 | I113: 1 | J113: 1 | K113: 0.9 | L113: 0.96 | M113: 0.89 | N113: 0.91 | O113: 4392800
A114: 99 | B114: 2020-09-29 | C114: 0.96 | D114: 0.97 | E114: 0.9 | F114: 0.91 | G114: 4970400 | H114: 0.91 | I114: 1 | J114: 1 | K114: 0.96 | L114: 0.97 | M114: 0.9 | N114: 0.91 | O114: 4970400
A115: 100 | B115: 2020-09-28 | C115: 1 | D115: 1.04 | E115: 0.93 | F115: 0.96 | G115: 6895600 | H115: 0.96 | I115: 1 | J115: 1 | K115: 1 | L115: 1.04 | M115: 0.93 | N115: 0.96 | O115: 6895600
A116: 101 | B116: 2020-09-25 | C116: 0.9 | D116: 1.04 | E116: 0.87 | F116: 0.97 | G116: 13520800 | H116: 0.97 | I116: 1 | J116: 1 | K116: 0.9 | L116: 1.04 | M116: 0.87 | N116: 0.97 | O116: 13520800
A117: 102 | B117: 2020-09-24 | C117: 0.84 | D117: 0.93 | E117: 0.82 | F117: 0.87 | G117: 11281800 | H117: 0.87 | I117: 1 | J117: 1 | K117: 0.84 | L117: 0.93 | M117: 0.82 | N117: 0.87 | O117: 11281800
A118: 103 | B118: 2020-09-23 | C118: 0.9 | D118: 0.91 | E118: 0.81 | F118: 0.81 | G118: 12442200 | H118: 0.81 | I118: 1 | J118: 1 | K118: 0.9 | L118: 0.91 | M118: 0.81 | N118: 0.81 | O118: 12442200
A119: 104 | B119: 2020-09-22 | C119: 0.93 | D119: 0.95 | E119: 0.9 | F119: 0.91 | G119: 6769300 | H119: 0.91 | I119: 1 | J119: 1 | K119: 0.93 | L119: 0.95 | M119: 0.9 | N119: 0.91 | O119: 6769300
A120: 105 | B120: 2020-09-21 | C120: 1 | D120: 1 | E120: 0.92 | F120: 0.97 | G120: 7538500 | H120: 0.97 | I120: 1 | J120: 1 | K120: 1 | L120: 1 | M120: 0.92 | N120: 0.97 | O120: 7538500
A121: 106 | B121: 2020-09-18 | C121: 1.04 | D121: 1.04 | E121: 0.99 | F121: 1.01 | G121: 6069500 | H121: 1.01 | I121: 1 | J121: 1 | K121: 1.04 | L121: 1.04 | M121: 0.99 | N121: 1.01 | O121: 6069500
A122: 107 | B122: 2020-09-17 | C122: 1.05 | D122: 1.08 | E122: 0.95 | F122: 1.04 | G122: 6887100 | H122: 1.04 | I122: 1 | J122: 1 | K122: 1.05 | L122: 1.08 | M122: 0.95 | N122: 1.04 | O122: 6887100
A123: 108 | B123: 2020-09-16 | C123: 1.08 | D123: 1.09 | E123: 1.05 | F123: 1.08 | G123: 6817200 | H123: 1.08 | I123: 1 | J123: 1 | K123: 1.08 | L123: 1.09 | M123: 1.05 | N123: 1.08 | O123: 6817200
A124: 109 | B124: 2020-09-15 | C124: 1.11 | D124: 1.19 | E124: 1.08 | F124: 1.12 | G124: 12095700 | H124: 1.12 | I124: 1 | J124: 1 | K124: 1.11 | L124: 1.19 | M124: 1.08 | N124: 1.12 | O124: 12095700
A125: 110 | B125: 2020-09-14 | C125: 1.09 | D125: 1.22 | E125: 1.05 | F125: 1.21 | G125: 7217900 | H125: 1.21 | I125: 1 | J125: 1 | K125: 1.09 | L125: 1.22 | M125: 1.05 | N125: 1.21 | O125: 7217900
A126: 111 | B126: 2020-09-11 | C126: 1.08 | D126: 1.11 | E126: 1.03 | F126: 1.09 | G126: 5287400 | H126: 1.09 | I126: 1 | J126: 1 | K126: 1.08 | L126: 1.11 | M126: 1.03 | N126: 1.09 | O126: 5287400
A127: 112 | B127: 2020-09-10 | C127: 1.16 | D127: 1.16 | E127: 1.1 | F127: 1.1 | G127: 3579800 | H127: 1.1 | I127: 1 | J127: 1 | K127: 1.16 | L127: 1.16 | M127: 1.1 | N127: 1.1 | O127: 3579800
A128: 113 | B128: 2020-09-09 | C128: 1.11 | D128: 1.14 | E128: 1.08 | F128: 1.11 | G128: 3409300 | H128: 1.11 | I128: 1 | J128: 1 | K128: 1.11 | L128: 1.14 | M128: 1.08 | N128: 1.11 | O128: 3409300
A129: 114 | B129: 2020-09-08 | C129: 1.1 | D129: 1.14 | E129: 1.07 | F129: 1.08 | G129: 5121400 | H129: 1.08 | I129: 1 | J129: 1 | K129: 1.1 | L129: 1.14 | M129: 1.07 | N129: 1.08 | O129: 5121400
A130: 115 | B130: 2020-09-04 | C130: 1.19 | D130: 1.2 | E130: 1.05 | F130: 1.16 | G130: 7197100 | H130: 1.16 | I130: 1 | J130: 1 | K130: 1.19 | L130: 1.2 | M130: 1.05 | N130: 1.16 | O130: 7197100
A131: 116 | B131: 2020-09-03 | C131: 1.26 | D131: 1.28 | E131: 1.2 | F131: 1.2 | G131: 4408200 | H131: 1.2 | I131: 1 | J131: 1 | K131: 1.26 | L131: 1.28 | M131: 1.2 | N131: 1.2 | O131: 4408200
A132: 117 | B132: 2020-09-02 | C132: 1.23 | D132: 1.29 | E132: 1.2 | F132: 1.25 | G132: 6088300 | H132: 1.25 | I132: 1 | J132: 1 | K132: 1.23 | L132: 1.29 | M132: 1.2 | N132: 1.25 | O132: 6088300
A133: 118 | B133: 2020-09-01 | C133: 1.26 | D133: 1.27 | E133: 1.21 | F133: 1.25 | G133: 5224600 | H133: 1.25 | I133: 1 | J133: 1 | K133: 1.26 | L133: 1.27 | M133: 1.21 | N133: 1.25 | O133: 5224600
A134: 119 | B134: 2020-08-31 | C134: 1.31 | D134: 1.32 | E134: 1.25 | F134: 1.28 | G134: 5277100 | H134: 1.28 | I134: 1 | J134: 1 | K134: 1.31 | L134: 1.32 | M134: 1.25 | N134: 1.28 | O134: 5277100
A135: 120 | B135: 2020-08-28 | C135: 1.3 | D135: 1.3 | E135: 1.26 | F135: 1.28 | G135: 3171000 | H135: 1.28 | I135: 1 | J135: 1 | K135: 1.3 | L135: 1.3 | M135: 1.26 | N135: 1.28 | O135: 3171000
A136: 121 | B136: 2020-08-27 | C136: 1.27 | D136: 1.38 | E136: 1.26 | F136: 1.29 | G136: 7689200 | H136: 1.29 | I136: 1 | J136: 1 | K136: 1.27 | L136: 1.38 | M136: 1.26 | N136: 1.29 | O136: 7689200
A137: 122 | B137: 2020-08-26 | C137: 1.28 | D137: 1.3 | E137: 1.25 | F137: 1.28 | G137: 4495600 | H137: 1.28 | I137: 1 | J137: 1 | K137: 1.28 | L137: 1.3 | M137: 1.25 | N137: 1.28 | O137: 4495600
A138: 123 | B138: 2020-08-25 | C138: 1.22 | D138: 1.3 | E138: 1.18 | F138: 1.26 | G138: 8960400 | H138: 1.26 | I138: 1 | J138: 1 | K138: 1.22 | L138: 1.3 | M138: 1.18 | N138: 1.26 | O138: 8960400
A139: 124 | B139: 2020-08-24 | C139: 1.26 | D139: 1.27 | E139: 1.2 | F139: 1.2 | G139: 5347100 | H139: 1.2 | I139: 1 | J139: 1 | K139: 1.26 | L139: 1.27 | M139: 1.2 | N139: 1.2 | O139: 5347100
A140: 125 | B140: 2020-08-21 | C140: 1.37 | D140: 1.39 | E140: 1.22 | F140: 1.23 | G140: 8901300 | H140: 1.23 | I140: 1 | J140: 1 | K140: 1.37 | L140: 1.39 | M140: 1.22 | N140: 1.23 | O140: 8901300
A141: 126 | B141: 2020-08-20 | C141: 1.21 | D141: 1.45 | E141: 1.11 | F141: 1.4 | G141: 23968900 | H141: 1.4 | I141: 1 | J141: 1 | K141: 1.21 | L141: 1.45 | M141: 1.11 | N141: 1.4 | O141: 23968900
A142: 127 | B142: 2020-08-19 | C142: 1.21 | D142: 1.23 | E142: 1.19 | F142: 1.21 | G142: 5392800 | H142: 1.21 | I142: 1 | J142: 1 | K142: 1.21 | L142: 1.23 | M142: 1.19 | N142: 1.21 | O142: 5392800
A143: 128 | B143: 2020-08-18 | C143: 1.27 | D143: 1.28 | E143: 1.2 | F143: 1.23 | G143: 9766300 | H143: 1.23 | I143: 1 | J143: 1 | K143: 1.27 | L143: 1.28 | M143: 1.2 | N143: 1.23 | O143: 9766300
A144: 129 | B144: 2020-08-17 | C144: 1.32 | D144: 1.32 | E144: 1.28 | F144: 1.28 | G144: 7023400 | H144: 1.28 | I144: 1 | J144: 1 | K144: 1.32 | L144: 1.32 | M144: 1.28 | N144: 1.28 | O144: 7023400
A145: 130 | B145: 2020-08-14 | C145: 1.32 | D145: 1.38 | E145: 1.3 | F145: 1.33 | G145: 5541900 | H145: 1.33 | I145: =IF(F145=0,1,H145/F145) -> 1 | J145: =INDEX(OFFSET($T$15,0,0,$S$13+1,1),MATCH(B145,OFFSET($Q$15,0,0,$S$13+1,1),-1)) -> 1 | K145: =ROUND($I145*C145,2) -> 1.32 | L145: =ROUND($I145*D145,2) -> 1.38 | M145: =ROUND($I145*E145,2) -> 1.3 | N145: =ROUND($I145*F145,2) -> 1.33 | O145: =G145*J145 -> 5541900
A146: 131 | B146: 2020-08-13 | C146: 1.38 | D146: 1.38 | E146: 1.3 | F146: 1.32 | G146: 8258800 | H146: 1.32 | I146: 1 | J146: 1 | K146: 1.38 | L146: 1.38 | M146: 1.3 | N146: 1.32 | O146: 8258800
A147: 132 | B147: 2020-08-12 | C147: 1.34 | D147: 1.49 | E147: 1.27 | F147: 1.42 | G147: 16932000 | H147: 1.42 | I147: 1 | J147: 1 | K147: 1.34 | L147: 1.49 | M147: 1.27 | N147: 1.42 | O147: 16932000
A148: 133 | B148: 2020-08-11 | C148: 1.42 | D148: 1.45 | E148: 1.32 | F148: 1.36 | G148: 20880900 | H148: 1.36 | I148: 1 | J148: 1 | K148: 1.42 | L148: 1.45 | M148: 1.32 | N148: 1.36 | O148: 20880900
A149: 134 | B149: 2020-08-10 | C149: 1.84 | D149: 1.85 | E149: 1.73 | F149: 1.78 | G149: 25105700 | H149: 1.78 | I149: 1 | J149: 1 | K149: 1.84 | L149: 1.85 | M149: 1.73 | N149: 1.78 | O149: 25105700
A150: 135 | B150: 2020-08-07 | C150: 1.67 | D150: 1.67 | E150: 1.51 | F150: 1.63 | G150: 10203100 | H150: 1.63 | I150: 1 | J150: 1 | K150: 1.67 | L150: 1.67 | M150: 1.51 | N150: 1.63 | O150: 10203100
A151: 136 | B151: 2020-08-06 | C151: 1.64 | D151: 1.68 | E151: 1.56 | F151: 1.66 | G151: 8417800 | H151: 1.66 | I151: 1 | J151: 1 | K151: 1.64 | L151: 1.68 | M151: 1.56 | N151: 1.66 | O151: 8417800
A152: 137 | B152: 2020-08-05 | C152: 1.48 | D152: 1.65 | E152: 1.45 | F152: 1.62 | G152: 11514500 | H152: 1.62 | I152: 1 | J152: 1 | K152: 1.48 | L152: 1.65 | M152: 1.45 | N152: 1.62 | O152: 11514500
A153: 138 | B153: 2020-08-04 | C153: 1.66 | D153: 1.66 | E153: 1.37 | F153: 1.42 | G153: 15828000 | H153: 1.42 | I153: 1 | J153: 1 | K153: 1.66 | L153: 1.66 | M153: 1.37 | N153: 1.42 | O153: 15828000
A154: 139 | B154: 2020-08-03 | C154: 1.54 | D154: 1.72 | E154: 1.51 | F154: 1.64 | G154: 20834500 | H154: 1.64 | I154: 1 | J154: 1 | K154: 1.54 | L154: 1.72 | M154: 1.51 | N154: 1.64 | O154: 20834500
A155: 140 | B155: 2020-07-31 | C155: 1.48 | D155: 1.55 | E155: 1.42 | F155: 1.47 | G155: 8849600 | H155: 1.47 | I155: 1 | J155: 1 | K155: 1.48 | L155: 1.55 | M155: 1.42 | N155: 1.47 | O155: 8849600
A156: 141 | B156: 2020-07-30 | C156: 1.3 | D156: 1.65 | E156: 1.29 | F156: 1.43 | G156: 33661000 | H156: 1.43 | I156: 1 | J156: 1 | K156: 1.3 | L156: 1.65 | M156: 1.29 | N156: 1.43 | O156: 33661000
A157: 142 | B157: 2020-07-29 | C157: 1.28 | D157: 1.34 | E157: 1.24 | F157: 1.32 | G157: 7803600 | H157: 1.32 | I157: 1 | J157: 1 | K157: 1.28 | L157: 1.34 | M157: 1.24 | N157: 1.32 | O157: 7803600
A158: 143 | B158: 2020-07-28 | C158: 1.24 | D158: 1.34 | E158: 1.22 | F158: 1.31 | G158: 8310700 | H158: 1.31 | I158: 1 | J158: 1 | K158: 1.24 | L158: 1.34 | M158: 1.22 | N158: 1.31 | O158: 8310700
A159: 144 | B159: 2020-07-27 | C159: 1.32 | D159: 1.32 | E159: 1.24 | F159: 1.25 | G159: 7444000 | H159: 1.25 | I159: 1 | J159: 1 | K159: 1.32 | L159: 1.32 | M159: 1.24 | N159: 1.25 | O159: 7444000
A160: 145 | B160: 2020-07-24 | C160: 1.29 | D160: 1.34 | E160: 1.27 | F160: 1.29 | G160: 5494400 | H160: 1.29 | I160: 1 | J160: 1 | K160: 1.29 | L160: 1.34 | M160: 1.27 | N160: 1.29 | O160: 5494400
A161: 146 | B161: 2020-07-23 | C161: 1.35 | D161: 1.36 | E161: 1.3 | F161: 1.3 | G161: 7131700 | H161: 1.3 | I161: 1 | J161: 1 | K161: 1.35 | L161: 1.36 | M161: 1.3 | N161: 1.3 | O161: 7131700
A162: 147 | B162: 2020-07-22 | C162: 1.36 | D162: 1.44 | E162: 1.33 | F162: 1.35 | G162: 9430500 | H162: 1.35 | I162: 1 | J162: 1 | K162: 1.36 | L162: 1.44 | M162: 1.33 | N162: 1.35 | O162: 9430500
A163: 148 | B163: 2020-07-21 | C163: 1.52 | D163: 1.57 | E163: 1.37 | F163: 1.4 | G163: 13046000 | H163: 1.4 | I163: 1 | J163: 1 | K163: 1.52 | L163: 1.57 | M163: 1.37 | N163: 1.4 | O163: 13046000
A164: 149 | B164: 2020-07-20 | C164: 1.35 | D164: 1.48 | E164: 1.3 | F164: 1.46 | G164: 16808000 | H164: 1.46 | I164: 1 | J164: 1 | K164: 1.35 | L164: 1.48 | M164: 1.3 | N164: 1.46 | O164: 16808000
A165: 150 | B165: 2020-07-17 | C165: 1.3 | D165: 1.43 | E165: 1.24 | F165: 1.33 | G165: 21520600 | H165: 1.33 | I165: 1 | J165: 1 | K165: 1.3 | L165: 1.43 | M165: 1.24 | N165: 1.33 | O165: 21520600
A166: 151 | B166: 2020-07-16 | C166: 1.27 | D166: 1.29 | E166: 1.22 | F166: 1.27 | G166: 7494800 | H166: 1.27 | I166: 1 | J166: 1 | K166: 1.27 | L166: 1.29 | M166: 1.22 | N166: 1.27 | O166: 7494800
A167: 152 | B167: 2020-07-15 | C167: 1.25 | D167: 1.35 | E167: 1.23 | F167: 1.3 | G167: 10131500 | H167: 1.3 | I167: 1 | J167: 1 | K167: 1.25 | L167: 1.35 | M167: 1.23 | N167: 1.3 | O167: 10131500
A168: 153 | B168: 2020-07-14 | C168: 1.28 | D168: 1.28 | E168: 1.16 | F168: 1.22 | G168: 12412600 | H168: 1.22 | I168: 1 | J168: 1 | K168: 1.28 | L168: 1.28 | M168: 1.16 | N168: 1.22 | O168: 12412600
A169: 154 | B169: 2020-07-13 | C169: 1.36 | D169: 1.4 | E169: 1.3 | F169: 1.3 | G169: 16481100 | H169: 1.3 | I169: 1 | J169: 1 | K169: 1.36 | L169: 1.4 | M169: 1.3 | N169: 1.3 | O169: 16481100
A170: 155 | B170: 2020-07-10 | C170: 1.38 | D170: 1.49 | E170: 1.32 | F170: 1.38 | G170: 14256500 | H170: 1.38 | I170: 1 | J170: 1 | K170: 1.38 | L170: 1.49 | M170: 1.32 | N170: 1.38 | O170: 14256500
A171: 156 | B171: 2020-07-09 | C171: 1.5 | D171: 1.56 | E171: 1.38 | F171: 1.43 | G171: 22749700 | H171: 1.43 | I171: 1 | J171: 1 | K171: 1.5 | L171: 1.56 | M171: 1.38 | N171: 1.43 | O171: 22749700
A172: 157 | B172: 2020-07-08 | C172: 1.27 | D172: 1.76 | E172: 1.22 | F172: 1.56 | G172: 64075000 | H172: 1.56 | I172: 1 | J172: 1 | K172: 1.27 | L172: 1.76 | M172: 1.22 | N172: 1.56 | O172: 64075000
A173: 158 | B173: 2020-07-07 | C173: 1.35 | D173: 1.37 | E173: 1.25 | F173: 1.26 | G173: 20231700 | H173: 1.26 | I173: 1 | J173: 1 | K173: 1.35 | L173: 1.37 | M173: 1.25 | N173: 1.26 | O173: 20231700
A174: 159 | B174: 2020-07-06 | C174: 1.51 | D174: 1.52 | E174: 1.36 | F174: 1.42 | G174: 27711700 | H174: 1.42 | I174: 1 | J174: 1 | K174: 1.51 | L174: 1.52 | M174: 1.36 | N174: 1.42 | O174: 27711700
A175: 160 | B175: 2020-07-02 | C175: 1.67 | D175: 1.69 | E175: 1.44 | F175: 1.53 | G175: 41741600 | H175: 1.53 | I175: 1 | J175: 1 | K175: 1.67 | L175: 1.69 | M175: 1.44 | N175: 1.53 | O175: 41741600
A176: 161 | B176: 2020-07-01 | C176: 1.75 | D176: 1.89 | E176: 1.55 | F176: 1.73 | G176: 49477300 | H176: 1.73 | I176: 1 | J176: 1 | K176: 1.75 | L176: 1.89 | M176: 1.55 | N176: 1.73 | O176: 49477300
A177: 162 | B177: 2020-06-30 | C177: 2.18 | D177: 2.48 | E177: 1.89 | F177: 2.01 | G177: 90764800 | H177: 2.01 | I177: 1 | J177: 1 | K177: 2.18 | L177: 2.48 | M177: 1.89 | N177: 2.01 | O177: 90764800
A178: 163 | B178: 2020-06-29 | C178: 1.78 | D178: 2.3 | E178: 1.65 | F178: 2.09 | G178: 150672700 | H178: 2.09 | I178: 1 | J178: 1 | K178: 1.78 | L178: 2.3 | M178: 1.65 | N178: 2.09 | O178: 150672700
A179: 164 | B179: 2020-06-26 | C179: 1.95 | D179: 2 | E179: 1.2 | F179: 1.46 | G179: 170809900 | H179: 1.46 | I179: 1 | J179: 1 | K179: 1.95 | L179: 2 | M179: 1.2 | N179: 1.46 | O179: 170809900
A180: 165 | B180: 2020-06-25 | C180: 2.95 | D180: 2.95 | E180: 2.32 | F180: 2.44 | G180: 87765000 | H180: 2.44 | I180: 1 | J180: 1 | K180: 2.95 | L180: 2.95 | M180: 2.32 | N180: 2.44 | O180: 87765000
A181: 166 | B181: 2020-06-24 | C181: 2.8 | D181: 3.19 | E181: 2.28 | F181: 3.09 | G181: 74292300 | H181: 3.09 | I181: 1 | J181: 1 | K181: 2.8 | L181: 3.19 | M181: 2.28 | N181: 3.09 | O181: 74292300
A182: 167 | B182: 2020-06-23 | C182: 3.07 | D182: 3.24 | E182: 2.85 | F182: 2.99 | G182: 95310900 | H182: 2.99 | I182: 1 | J182: 1 | K182: 3.07 | L182: 3.24 | M182: 2.85 | N182: 2.99 | O182: 95310900
A183: 168 | B183: 2020-06-22 | C183: 2.81 | D183: 3.98 | E183: 2.6 | F183: 3.29 | G183: 362851300 | H183: 3.29 | I183: 1 | J183: 1 | K183: 2.81 | L183: 3.98 | M183: 2.6 | N183: 3.29 | O183: 362851300
A184: 169 | B184: 2020-06-19 | C184: 2.27 | D184: 2.27 | E184: 2.03 | F184: 2.22 | G184: 51945600 | H184: 2.22 | I184: 1 | J184: 1 | K184: 2.27 | L184: 2.27 | M184: 2.03 | N184: 2.22 | O184: 51945600
A185: 170 | B185: 2020-06-18 | C185: 2.16 | D185: 2.56 | E185: 1.81 | F185: 2.06 | G185: 117469700 | H185: 2.06 | I185: 1 | J185: 1 | K185: 2.16 | L185: 2.56 | M185: 1.81 | N185: 2.06 | O185: 117469700
A186: 171 | B186: 2020-06-17 | C186: 1.25 | D186: 2.4 | E186: 1.19 | F186: 2.02 | G186: 177944700 | H186: 2.02 | I186: 1 | J186: 1 | K186: 1.25 | L186: 2.4 | M186: 1.19 | N186: 2.02 | O186: 177944700
A187: 172 | B187: 2020-06-16 | C187: 1.17 | D187: 1.26 | E187: 1.1 | F187: 1.19 | G187: 24613500 | H187: 1.19 | I187: 1 | J187: 1 | K187: 1.17 | L187: 1.26 | M187: 1.1 | N187: 1.19 | O187: 24613500
A188: 173 | B188: 2020-06-15 | C188: 1.15 | D188: 1.16 | E188: 1.08 | F188: 1.1 | G188: 16871900 | H188: 1.1 | I188: 1 | J188: 1 | K188: 1.15 | L188: 1.16 | M188: 1.08 | N188: 1.1 | O188: 16871900
A189: 174 | B189: 2020-06-12 | C189: 1.19 | D189: 1.19 | E189: 1.05 | F189: 1.14 | G189: 13942500 | H189: 1.14 | I189: 1 | J189: 1 | K189: 1.19 | L189: 1.19 | M189: 1.05 | N189: 1.14 | O189: 13942500
A190: 175 | B190: 2020-06-11 | C190: 1.1 | D190: 1.15 | E190: 1 | F190: 1.09 | G190: 22238500 | H190: 1.09 | I190: 1 | J190: 1 | K190: 1.1 | L190: 1.15 | M190: 1 | N190: 1.09 | O190: 22238500
A191: 176 | B191: 2020-06-10 | C191: 1.15 | D191: 1.28 | E191: 0.98 | F191: 1.18 | G191: 54762600 | H191: 1.18 | I191: 1 | J191: 1 | K191: 1.15 | L191: 1.28 | M191: 0.98 | N191: 1.18 | O191: 54762600
A192: 177 | B192: 2020-06-09 | C192: 1.02 | D192: 1.44 | E192: 0.84 | F192: 1.02 | G192: 107215400 | H192: 1.02 | I192: 1 | J192: 1 | K192: 1.02 | L192: 1.44 | M192: 0.84 | N192: 1.02 | O192: 107215400
A193: 178 | B193: 2020-06-08 | C193: 0.66 | D193: 0.76 | E193: 0.55 | F193: 0.62 | G193: 26298300 | H193: 0.62 | I193: 1 | J193: 1 | K193: 0.66 | L193: 0.76 | M193: 0.55 | N193: 0.62 | O193: 26298300
A194: 179 | B194: 2020-06-05 | C194: 0.4 | D194: 0.52 | E194: 0.38 | F194: 0.47 | G194: 27124100 | H194: 0.47 | I194: 1 | J194: 1 | K194: 0.4 | L194: 0.52 | M194: 0.38 | N194: 0.47 | O194: 27124100
A195: 180 | B195: 2020-06-04 | C195: 0.38 | D195: 0.41 | E195: 0.37 | F195: 0.38 | G195: 10133400 | H195: 0.38 | I195: 1 | J195: 1 | K195: 0.38 | L195: 0.41 | M195: 0.37 | N195: 0.38 | O195: 10133400
A196: 181 | B196: 2020-06-03 | C196: 0.4 | D196: 0.4 | E196: 0.37 | F196: 0.38 | G196: 3255000 | H196: 0.38 | I196: 1 | J196: 1 | K196: 0.4 | L196: 0.4 | M196: 0.37 | N196: 0.38 | O196: 3255000
A197: 182 | B197: 2020-06-02 | C197: 0.4 | D197: 0.4 | E197: 0.38 | F197: 0.39 | G197: 1895000 | H197: 0.39 | I197: 1 | J197: 1 | K197: 0.4 | L197: 0.4 | M197: 0.38 | N197: 0.39 | O197: 1895000
A198: 183 | B198: 2020-06-01 | C198: 0.38 | D198: 0.42 | E198: 0.37 | F198: 0.4 | G198: 5841500 | H198: 0.4 | I198: 1 | J198: 1 | K198: 0.38 | L198: 0.42 | M198: 0.37 | N198: 0.4 | O198: 5841500
A199: 184 | B199: 2020-05-29 | C199: 0.41 | D199: 0.41 | E199: 0.38 | F199: 0.39 | G199: 3681700 | H199: 0.39 | I199: 1 | J199: 1 | K199: 0.41 | L199: 0.41 | M199: 0.38 | N199: 0.39 | O199: 3681700
A200: 185 | B200: 2020-05-28 | C200: 0.42 | D200: 0.43 | E200: 0.4 | F200: 0.41 | G200: 3472200 | H200: 0.41 | I200: 1 | J200: 1 | K200: 0.42 | L200: 0.43 | M200: 0.4 | N200: 0.41 | O200: 3472200
... 3276 more rows

Sheet CalculationsAndCharts
A1: HighVolumeBreakouts.xlsm
A2: =InputPriceData!A1 -> Ideanomics, Inc. (IDEX) -NasdaqGS (Daily)
A4: User Charting Controls | E4: Click to Shift Chart One Bar:
A5: Data Control | C5: TRUE
A6: =InputPriceData!$B$10 -> 3461 | B6: Available Input Data Rows | E6: Earliest: | F6: =OFFSET(InputPriceData!B15,CalculationsAndCharts!A6,0,1,1) -> 2007-05-23 | X6: =IF(OR(AND($R$17=3,NOT($W33)),AND($R$17=2,AND(NOT($W33),$W34))), 1,2) -> 2
A7: =MAX(A33:A56896) -> 1250 | B7: Available Calculation Rows | E7: Latest: | F7: =OFFSET(InputPriceData!B15,1,0,1,1) -> 2021-02-19
A8: =MIN(AvailableInputRows-DataPanRows,A7) -> 1250 | B8: Logically Available for Calc / Plot | E8: $ Change: | F8: =G33-G34 -> 0.53
A10: Historical Price Windowing Specifications | F10: Click to Shift
A11: 58 | B11: Input Data Offset (Pan) | F11: Points to Plot
A12: 381 | B12: Data Points to Plot (Zoom)
B13: First: | C13: =OFFSET(B32,A12,0,1,1) -> 2019-05-24
B14: ="Last: " & IF(OFFSET(InputPriceData!P15,1+A11,0,1,1)="","",TEXT(OFFSET(InputPriceData!P15,1+A11,0,1,1),"H:MM AM/PM")) -> Last: | C14: =B33 -> 2020-11-24
A15: User Controls | D15: Calulated "semi Constants"
A16: 30 | B16: VP Period | D16: Alpha | E16: 1- Alpha
C17: ATR coeff's for VP Period | D17: =1/A16 -> 0.03333333333 | E17: =1-D17 -> 0.9666666667 | R17: 2
A18: 3 | B18: SMOOTH | D18: =2/(A18+1) -> 0.5 | E18: =1-D18 -> 0.5
A19: 10 | B19: VPNCRIT
A20: 30 | B20: MA BARS
A21: Buy / Sell Filter Controls
A22: 1 | B22: MinC (Min Share Price)
A23: 100000 | B23: MinVol (Minimum Volume)
A24: 0.5 | B24: MinVC (Min $ Turnover - in Millions)
A25: Help! I would like to plot data
A26: From | B26: 2019-05-24 | C26: =OFFSET(InputPriceData!$A$15,MATCH(B26,OFFSET(InputPriceData!B15,1,0,InputPriceData!$B$10,1),0),0,1,1)-C27 -> 381 | E26: 238 | AH26: RSI of Close
A27: To | B27: 2020-11-24 | C27: =OFFSET(InputPriceData!$A$15,MATCH(B27,OFFSET(InputPriceData!$B$15,1,0,InputPriceData!$B$10,1),0),0,1,1)-1 -> 58 | E27: =$A$12-$E$26+1 -> 144 | AI27: Ema Coefficients
H28: Value @ Cursor => | I28: =OFFSET(A32,$E$27,0,1,1)&"(RR)" -> 144(RR) | J28: =OFFSET($B$32,E27,0,1,1) -> 2020-05-04 | K28: =TEXT(OFFSET(D32,$E$27,0,1,1),"#,##0.00")&"(o)" -> 0.60(o) | L28: =TEXT(OFFSET(E32,$E$27,0,1,1),"#,##0.00")&"(h)" -> 0.60(h) | M28: =TEXT(OFFSET(F32,$E$27,0,1,1),"#,##0.00")&"(l)" -> 0.58(l) | N28: =TEXT(OFFSET(G32,$E$27,0,1,1),"#,##0.00")&"(c)" -> 0.59(c) | O28: =TEXT(OFFSET(C32,$E$27,0,1,1),"#,##0.00,,""M""")&"(v)" -> 0.85M(v) | AI28: Period | AJ28: alpha | AK28: 1-alpha
E29: Cursor ==> | X29: VPN Chart Shading | AB29: Liquidity Calc | AI29: 9 | AJ29: =1/$AI$29 -> 0.1111111111 | AK29: =1 - $AJ$29 -> 0.8888888889 | AY29: Work Area For Chart Cursors
B30: =LogicallyAvailableRows -> 1250 | C30: <== Calculation Rel Row Limits ==> | H30: =LogicallyAvailableRows -> 1250 | J30: =LogicallyAvailableRows-A16+1 -> 1221 | K30: =LogicallyAvailableRows-1 -> 1249 | M30: =LogicallyAvailableRows-A16 -> 1220 | Q30: =LogicallyAvailableRows-A16-A16+1 -> 1191 | T30: =LogicallyAvailableRows-A16-A16+1-A18+1 -> 1189 | U30: =LogicallyAvailableRows-A16-A16+1-A18+1-A20+1 -> 1160 | AB30: =LogicallyAvailableRows -> 1250 | AC30: =LogicallyAvailableRows-5+1 -> 1246 | AF30: =LogicallyAvailableRows-50+1-50 -> 1151 | AG30: =LogicallyAvailableRows-A16+1 -> 1221 | AH30: =A8-1 -> 1249 | AK30: =A8-1-AI29+1 -> 1241 | AO30: =MIN(AC30,U30,AF30,AG30,AK30) -> 1151
A31: Rel Row | H31: AVG, or Typical Price | T31: VPN | U31: MAVPN | W31: VPN Above VPNCRIT | X31: Green | Z31: Red | AC31: Ma(V,5)>MinVol | AD31: Ma(C*V,5)/1000000>MinVC | AF31: MA(V,50)> ref(Ma(V,50),50) | AG31: C> MA(C,Period) | AN31: ="RSI("&$AI$29&") <" -> RSI(9) < | AP31: Buy Flag | AW31: Used To Color Vol Bars
B32: Date | C32: Volume | D32: Open | E32: High | F32: Low | G32: Close | I32: Nz of Volume | J32: ="MAV(" & A16 & ")" -> MAV(30) | K32: MF | L32: TR | M32: ="ATR(" & A16 & ")" -> ATR(30) | N32: ="MC(" & A16 & ")" -> MC(30) | O32: VMP | P32: VMN | Q32: VP | R32: VN | S32: rVPN | T32: ="=EMA(rVPN," & A18 & ")" -> =EMA(rVPN,3) | U32: ="=AVG(VPN," & A20 & ")" -> =AVG(VPN,30) | V32: VPNCRIT | X32: hi | Y32: lo | Z32: hi | AA32: lo | AB32: C>MinC | AE32: LQD | AH32: Delta | AI32: UP | AJ32: Down | AK32: CU | AL32: CD | AM32: ="RSI("&$AI$29&")" -> RSI(9) | AN32: 90 | AO32: Buy | AW32: Up Vol | AX32: Dn Vol | AY32: Volume Cursor | AZ32: =MAX(OFFSET(C33,0,0,A12,1)) -> 362851300 | BA32: OBVM Cursor | BC32: Price Chart Cursor | BE32: ComparePriceChart Cursor | BG32: Price Phasor Cursor | BI32: DMI Cursor | BK32: SMI Cursor
A33: 1 | B33: =IF(A33>$B$30,NA(),IF($A33>$A$8,"",OFFSET(InputPriceData!$B$15,$A33+$A$11,0,1,1))) -> 2020-11-24 | C33: =IF(A33>$B$30,NA(),IF($A33>$A$8,"",OFFSET(InputPriceData!$G$15,CalculationsAndCharts!$A33+$A$11,IF($C$5,8,0),1,1))) -> 351923500 | D33: =IF(A33>$B$30,NA(),IF(A33>$A$8,"",OFFSET(InputPriceData!$C$15,CalculationsAndCharts!$A33+$A$11,IF($C$5,8,0),1,1))) -> 3.95 | E33: =IF(A33>$B$30,NA(),IF(A33>$A$8,"",OFFSET(InputPriceData!$D$15,CalculationsAndCharts!$A33+$A$11,IF($C$5,8,0),1,1))) -> 4.75 | F33: =IF(A33>$B$30,NA(),IF(A33>$A$8,"",OFFSET(InputPriceData!$E$15,CalculationsAndCharts!$A33+$A$11,IF($C$5,8,0),1,1))) -> 2.21 | G33: =IF(A33>$B$30,NA(),IF(A33>$A$8,"",OFFSET(InputPriceData!$F$15,CalculationsAndCharts!$A33+$A$11,IF($C$5,8,0),1,1))) -> 3.15 | H33: =IF(A33>$H$30,NA(),AVERAGE(E33:G33)) -> 3.37 | I33: =IF(A33>$H$30,NA(),IF(IFERROR(C33,0)=0,1,C33)) -> 351923500 | J33: =IF(A33>$J$30,NA(),AVERAGE(OFFSET(I33,0,0,$A$16,1))) -> 32643186.67 | K33: =IF(A33>$K$30,NA(),H33-H34) -> 0.8433333333 | L33: =IF(A33>$K$30,NA(),MAX(E33-F33,ABS(E33-G34),ABS(F33-G34))) -> 2.54 | M33: =IF($A33>$M$30,NA(),IF($A33=$M$30,AVERAGE(OFFSET($L33,0,0,$A$16,1)),M34*$E$17+L33*$D$17)) -> 0.2399568077 | N33: =IF($A33>$M$30,NA(),0.1*M33) -> 0.02399568077 | O33: =IF($A33>$M$30,NA(),IF(K33>N33,I33,0)) -> 351923500 | P33: =IF($A33>$M$30,NA(),IF(K33<-N33,I33,0)) -> 0 | Q33: =IF($A33>$Q$30,NA(),SUM(OFFSET(O33,0,0,$A$16,1))) -> 886955400 | R33: =IF($A33>$Q$30,NA(),SUM(OFFSET(P33,0,0,$A$16,1))) -> 54890400 | S33: =IF($A33>$Q$30,NA(),(Q33-R33)/J33/$A$16*100) -> 84.96566307 | T33: =IF($A33>$T$30,NA(),IF($A33=$T$30,AVERAGE(OFFSET(S33,0,0,$A$18,1)),$D$18*S33+$E$18*T34)) -> 73.15787007 | U33: =IF($A33>$U$30,NA(),AVERAGE(OFFSET(T33,0,0,$A$20,1))) -> 16.98978122 | V33: =IF($A33>$U$30,NA(),$A$19) -> 10 | W33: =IF($A33>$U$30,NA(),(T33>=V33)) -> TRUE | X33: =IF($A33>$U$30,NA(),IF(OR(AND($R$17=3,$W33),AND($R$17=2,AND($W33,NOT($W34)))),$BJ$34,NA())) ->  | Y33: =IF($A33>$U$30,NA(),IF(OR(AND($R$17=3,$W33),AND($R$17=2,AND($W33,NOT($W34)))),$BJ$33,NA())) ->  | Z33: =IF($A33>$U$30,NA(),IF(OR(AND($R$17=3,NOT($W33)),AND($R$17=2,AND(NOT($W33),$W34))),$BJ$34,NA())) ->  | AA33: =IF($A33>$U$30,NA(),IF(OR(AND($R$17=3,NOT($W33)),AND($R$17=2,AND(NOT($W33),$W34))), $BJ$33,NA())) ->  | AB33: =IF($A33>$AB$30,NA(),G33>$A$22) -> TRUE | AC33: =IF($A33>$AC$30,NA(),AVERAGE(OFFSET(C33,0,0,5,1))>$A$23) -> TRUE | AD33: =IF($A33>$AC$30,NA(),SUMPRODUCT(OFFSET(G33,0,0,5,1),OFFSET(C33,0,0,5,1))/5/1000000>$A$24) -> TRUE | AE33: =IF($A33>$AC$30,NA(),AND(AB33,AC33,AD33)) -> TRUE | AF33: =IF($A33>$AF$30,NA(),AVERAGE(OFFSET(C33,0,0,50,1))>AVERAGE(OFFSET(C33,50,0,50,1))) -> TRUE | AG33: =IF($A33>$AG$30,NA(),G33>AVERAGE(OFFSET(G33,0,0,$A$16,1))) -> TRUE | AH33: =IF($A33<=$AH$30,G33-$G34,NA()) -> 0.53 | AI33: =IF($A33>$AH$30,NA(),IF(AH33>0,AH33,0)) -> 0.53 | AJ33: =IF($A33>$AH$30,NA(),IF(AH33<0,-AH33,0)) -> 0 | AK33: =IF($A33>$AK$30,NA(),IF($A33=$AK$30,AVERAGE(OFFSET(AI33,0,0,$AI$29,1)),AI33*$AJ$29+AK34*$AK$29)) -> 0.2217827713 | AL33: =IF($A33>$AK$30,NA(),IF($A33=$AK$30,AVERAGE(OFFSET(AJ33,0,0,$AI$29,1)),AJ33*$AJ$29+AL34*$AK$29)) -> 0.009639632599 | AM33: =IF($A33>$AK$30,NA(),IFERROR(100-100/(1+($AK33/$AL33)),0)) -> 95.83461565 | AN33: =IF($A33>$AK$30,NA(),AM33<$AN$32) -> FALSE | AO33: =IF($A33>$AO$30,NA(),AND(AE33,AF33,AND(W33,NOT(W34)),AN33,AG33)) -> FALSE | AP33: =IF($A33>$AO$30,NA(),IF(AND($R$8,AO33),F33-2*M33,NA())) ->  | AW33: =IF(G33>=D33,C33,NA()) ->  | AX33: =IF(G33<D33,C33,NA()) -> 351923500 | AY33: =$E$27 -> 144 | AZ33: 0 | BA33: =$E$27 -> 144 | BB33: 62500000 | BC33: =$E$27 -> 144 | BD33: 0.273 | BE33: =$E$27 -> 144 | BF33: 188.877 | BG33: =$E$27 -> 144 | BH33: =IF(#REF!=1,-180,NA()) ->  | BI33: =$E$27 -> 144 | BJ33: -80 | BK33: =$E$27 -> 144 | BL33: 0
A34: 2 | B34: =IF(A34>$B$30,NA(),IF($A34>$A$8,"",OFFSET(InputPriceData!$B$15,$A34+$A$11,0,1,1))) -> 2020-11-23 | C34: =IF(A34>$B$30,NA(),IF($A34>$A$8,"",OFFSET(InputPriceData!$G$15,CalculationsAndCharts!$A34+$A$11,IF($C$5,8,0),1,1))) -> 281082800 | D34: =IF(A34>$B$30,NA(),IF(A34>$A$8,"",OFFSET(InputPriceData!$C$15,CalculationsAndCharts!$A34+$A$11,IF($C$5,8,0),1,1))) -> 2.09 | E34: =IF(A34>$B$30,NA(),IF(A34>$A$8,"",OFFSET(InputPriceData!$D$15,CalculationsAndCharts!$A34+$A$11,IF($C$5,8,0),1,1))) -> 2.88 | F34: =IF(A34>$B$30,NA(),IF(A34>$A$8,"",OFFSET(InputPriceData!$E$15,CalculationsAndCharts!$A34+$A$11,IF($C$5,8,0),1,1))) -> 2.08 | G34: =IF(A34>$B$30,NA(),IF(A34>$A$8,"",OFFSET(InputPriceData!$F$15,CalculationsAndCharts!$A34+$A$11,IF($C$5,8,0),1,1))) -> 2.62 | H34: =IF(A34>$H$30,NA(),AVERAGE(E34:G34)) -> 2.526666667 | I34: =IF(A34>$H$30,NA(),IF(IFERROR(C34,0)=0,1,C34)) -> 281082800 | J34: 20977893.33 | K34: 1 | L34: =IF(A34>$K$30,NA(),MAX(E34-F34,ABS(E34-G35),ABS(F34-G35))) -> 1.34 | M34: 0.1606449735 | N34: =IF($A34>$M$30,NA(),0.1*M34) -> 0.01606449735 | O34: =IF($A34>$M$30,NA(),IF(K34>N34,I34,0)) -> 281082800 | P34: =IF($A34>$M$30,NA(),IF(K34<-N34,I34,0)) -> 0 | Q34: 535031900 | R34: 56855100 | S34: 75.98106451 | T34: =IF($A34>$T$30,NA(),IF($A34=$T$30,AVERAGE(OFFSET(S34,0,0,$A$18,1)),$D$18*S34+$E$18*T35)) -> 61.35007706 | U34: =IF($A34>$U$30,NA(),AVERAGE(OFFSET(T34,0,0,$A$20,1))) -> 14.08187144 | V34: =IF($A34>$U$30,NA(),$A$19) -> 10 | W34: =IF($A34>$U$30,NA(),(T34>=V34)) -> TRUE | X34: =IF($A34>$U$30,NA(),IF(OR(AND($R$17=3,$W34),AND($R$17=2,AND($W34,NOT($W35)))),$BJ$34,NA())) ->  | Y34: =IF($A34>$U$30,NA(),IF(OR(AND($R$17=3,$W34),AND($R$17=2,AND($W34,NOT($W35)))),$BJ$33,NA())) ->  | Z34: =IF($A34>$U$30,NA(),IF(OR(AND($R$17=3,NOT($W34)),AND($R$17=2,AND(NOT($W34),$W35))),$BJ$34,NA())) ->  | AA34: =IF($A34>$U$30,NA(),IF(OR(AND($R$17=3,NOT($W34)),AND($R$17=2,AND(NOT($W34),$W35))), $BJ$33,NA())) ->  | AB34: =IF($A34>$AB$30,NA(),G34>$A$22) -> TRUE | AC34: =IF($A34>$AC$30,NA(),AVERAGE(OFFSET(C34,0,0,5,1))>$A$23) -> TRUE | AD34: =IF($A34>$AC$30,NA(),SUMPRODUCT(OFFSET(G34,0,0,5,1),OFFSET(C34,0,0,5,1))/5/1000000>$A$24) -> TRUE | AE34: =IF($A34>$AC$30,NA(),AND(AB34,AC34,AD34)) -> TRUE | AF34: =IF($A34>$AF$30,NA(),AVERAGE(OFFSET(C34,0,0,50,1))>AVERAGE(OFFSET(C34,50,0,50,1))) -> TRUE | AG34: =IF($A34>$AG$30,NA(),G34>AVERAGE(OFFSET(G34,0,0,$A$16,1))) -> TRUE | AH34: =IF($A34<=$AH$30,G34-$G35,NA()) -> 1.08 | AI34: =IF($A34>$AH$30,NA(),IF(AH34>0,AH34,0)) -> 1.08 | AJ34: =IF($A34>$AH$30,NA(),IF(AH34<0,-AH34,0)) -> 0 | AK34: =IF($A34>$AK$30,NA(),IF($A34=$AK$30,AVERAGE(OFFSET(AI34,0,0,$AI$29,1)),AI34*$AJ$29+AK35*$AK$29)) -> 0.1832556177 | AL34: =IF($A34>$AK$30,NA(),IF($A34=$AK$30,AVERAGE(OFFSET(AJ34,0,0,$AI$29,1)),AJ34*$AJ$29+AL35*$AK$29)) -> 0.01084458667 | AM34: =IF($A34>$AK$30,NA(),IFERROR(100-100/(1+($AK34/$AL34)),0)) -> 94.41289271 | AN34: =IF($A34>$AK$30,NA(),AM34<$AN$32) -> FALSE | AO34: =IF($A34>$AO$30,NA(),AND(AE34,AF34,AND(W34,NOT(W35)),AN34,AG34)) -> FALSE | AP34: =IF($A34>$AO$30,NA(),IF(AND($R$8,AO34),F34-2*M34,NA())) ->  | AW34: 281082800 | AY34: =$E$27 -> 144 | AZ34: =CEILING(AZ32,10^INT(LOG10(AZ32))/8) -> 375000000 | BA34: =$E$27 -> 144 | BB34: 125000000 | BC34: =$E$27 -> 144 | BD34: 4.86875 | BE34: =$E$27 -> 144 | BF34: 230.34825 | BG34: =$E$27 -> 144 | BH34: =IF(#REF!=1,180,NA()) ->  | BI34: =$E$27 -> 144 | BJ34: 80 | BK34: =$E$27 -> 144 | BL34: 7
A35: 3 | B35: =IF(A35>$B$30,NA(),IF($A35>$A$8,"",OFFSET(InputPriceData!$B$15,$A35+$A$11,0,1,1))) -> 2020-11-20 | C35: =IF(A35>$B$30,NA(),IF($A35>$A$8,"",OFFSET(InputPriceData!$G$15,CalculationsAndCharts!$A35+$A$11,IF($C$5,8,0),1,1))) -> 110318300 | D35: =IF(A35>$B$30,NA(),IF(A35>$A$8,"",OFFSET(InputPriceData!$C$15,CalculationsAndCharts!$A35+$A$11,IF($C$5,8,0),1,1))) -> 1.36 | E35: =IF(A35>$B$30,NA(),IF(A35>$A$8,"",OFFSET(InputPriceData!$D$15,CalculationsAndCharts!$A35+$A$11,IF($C$5,8,0),1,1))) -> 1.75 | F35: =IF(A35>$B$30,NA(),IF(A35>$A$8,"",OFFSET(InputPriceData!$E$15,CalculationsAndCharts!$A35+$A$11,IF($C$5,8,0),1,1))) -> 1.29 | G35: =IF(A35>$B$30,NA(),IF(A35>$A$8,"",OFFSET(InputPriceData!$F$15,CalculationsAndCharts!$A35+$A$11,IF($C$5,8,0),1,1))) -> 1.54 | H35: =IF(A35>$H$30,NA(),AVERAGE(E35:G35)) -> 1.526666667 | I35: 110318300 | J35: 11703360 | K35: 0.3133333333 | L35: 0.55 | M35: 0.1199775588 | N35: 0.01199775588 | O35: 110318300 | P35: 0 | Q35: 253949100 | R35: 56855100 | S35: 56.13601564 | T35: 46.7190896 | U35: 11.59030222 | V35: 10 | W35: TRUE | AB35: TRUE | AC35: TRUE | AD35: TRUE | AE35: TRUE | AF35: FALSE | AG35: TRUE | AH35: 0.34 | AI35: 0.34 | AJ35: 0 | AK35: 0.07116256992 | AL35: 0.01220016001 | AM35: 85.36497063 | AN35: TRUE | AO35: FALSE | AW35: 110318300
A36: 4 | B36: =IF(A36>$B$30,NA(),IF($A36>$A$8,"",OFFSET(InputPriceData!$B$15,$A36+$A$11,0,1,1))) -> 2020-11-19 | C36: =IF(A36>$B$30,NA(),IF($A36>$A$8,"",OFFSET(InputPriceData!$G$15,CalculationsAndCharts!$A36+$A$11,IF($C$5,8,0),1,1))) -> 26159500 | D36: =IF(A36>$B$30,NA(),IF(A36>$A$8,"",OFFSET(InputPriceData!$C$15,CalculationsAndCharts!$A36+$A$11,IF($C$5,8,0),1,1))) -> 1.24 | E36: =IF(A36>$B$30,NA(),IF(A36>$A$8,"",OFFSET(InputPriceData!$D$15,CalculationsAndCharts!$A36+$A$11,IF($C$5,8,0),1,1))) -> 1.28 | F36: =IF(A36>$B$30,NA(),IF(A36>$A$8,"",OFFSET(InputPriceData!$E$15,CalculationsAndCharts!$A36+$A$11,IF($C$5,8,0),1,1))) -> 1.16 | G36: =IF(A36>$B$30,NA(),IF(A36>$A$8,"",OFFSET(InputPriceData!$F$15,CalculationsAndCharts!$A36+$A$11,IF($C$5,8,0),1,1))) -> 1.2 | H36: 1.213333333 | I36: 26159500 | J36: 8138823.333 | K36: 0.01 | L36: 0.12 | M36: 0.1051491988 | N36: 0.01051491988 | O36: 0 | P36: 0 | Q36: 147013000 | R36: 56855100 | S36: 36.92503462 | T36: 37.30216357 | U36: 9.589304888 | V36: 10 | W36: TRUE | AB36: TRUE | AC36: TRUE | AD36: TRUE | AE36: TRUE | AF36: FALSE | AG36: TRUE | AH36: 0.04 | AI36: 0.04 | AJ36: 0 | AK36: 0.03755789116 | AL36: 0.01372518001 | AM36: 73.23643125 | AN36: TRUE | AO36: FALSE | AX36: 26159500
A37: 5 | B37: =IF(A37>$B$30,NA(),IF($A37>$A$8,"",OFFSET(InputPriceData!$B$15,$A37+$A$11,0,1,1))) -> 2020-11-18 | C37: =IF(A37>$B$30,NA(),IF($A37>$A$8,"",OFFSET(InputPriceData!$G$15,CalculationsAndCharts!$A37+$A$11,IF($C$5,8,0),1,1))) -> 27181700 | D37: =IF(A37>$B$30,NA(),IF(A37>$A$8,"",OFFSET(InputPriceData!$C$15,CalculationsAndCharts!$A37+$A$11,IF($C$5,8,0),1,1))) -> 1.13 | E37: =IF(A37>$B$30,NA(),IF(A37>$A$8,"",OFFSET(InputPriceData!$D$15,CalculationsAndCharts!$A37+$A$11,IF($C$5,8,0),1,1))) -> 1.32 | F37: =IF(A37>$B$30,NA(),IF(A37>$A$8,"",OFFSET(InputPriceData!$E$15,CalculationsAndCharts!$A37+$A$11,IF($C$5,8,0),1,1))) -> 1.13 | G37: =IF(A37>$B$30,NA(),IF(A37>$A$8,"",OFFSET(InputPriceData!$F$15,CalculationsAndCharts!$A37+$A$11,IF($C$5,8,0),1,1))) -> 1.16 | H37: 1.203333333 | I37: 27181700 | J37: 7379103.333 | K37: 0.1066666667 | L37: 0.22 | M37: 0.1046371022 | N37: 0.01046371022 | O37: 27181700 | P37: 0 | Q37: 147013000 | R37: 56855100 | S37: 40.72667366 | T37: 37.67929252 | U37: 7.962182054 | V37: 10 | W37: TRUE | AB37: TRUE | AC37: TRUE | AD37: TRUE | AE37: TRUE | AF37: FALSE | AG37: TRUE | AH37: 0.06 | AI37: 0.06 | AJ37: 0 | AK37: 0.03725262755 | AL37: 0.01544082751 | AM37: 70.69687784 | AN37: TRUE | AO37: FALSE | AW37: 27181700
A38: 6 | B38: =IF(A38>$B$30,NA(),IF($A38>$A$8,"",OFFSET(InputPriceData!$B$15,$A38+$A$11,0,1,1))) -> 2020-11-17 | C38: =IF(A38>$B$30,NA(),IF($A38>$A$8,"",OFFSET(InputPriceData!$G$15,CalculationsAndCharts!$A38+$A$11,IF($C$5,8,0),1,1))) -> 13471600 | D38: =IF(A38>$B$30,NA(),IF(A38>$A$8,"",OFFSET(InputPriceData!$C$15,CalculationsAndCharts!$A38+$A$11,IF($C$5,8,0),1,1))) -> 1.08 | E38: =IF(A38>$B$30,NA(),IF(A38>$A$8,"",OFFSET(InputPriceData!$D$15,CalculationsAndCharts!$A38+$A$11,IF($C$5,8,0),1,1))) -> 1.16 | F38: =IF(A38>$B$30,NA(),IF(A38>$A$8,"",OFFSET(InputPriceData!$E$15,CalculationsAndCharts!$A38+$A$11,IF($C$5,8,0),1,1))) -> 1.03 | G38: =IF(A38>$B$30,NA(),IF(A38>$A$8,"",OFFSET(InputPriceData!$F$15,CalculationsAndCharts!$A38+$A$11,IF($C$5,8,0),1,1))) -> 1.1 | H38: 1.096666667 | I38: 13471600 | J38: 6630956.667 | K38: -0.06666666667 | L38: 0.14 | M38: 0.1006590712 | N38: 0.01006590712 | O38: 0 | P38: 13471600 | Q38: 119831300 | R38: 56855100 | S38: 31.65767433 | T38: 34.63191139 | U38: 6.358350059 | V38: 10 | W38: TRUE | AB38: TRUE | AC38: TRUE | AD38: TRUE | AE38: TRUE | AF38: FALSE | AG38: TRUE | AH38: -0.07 | AI38: 0 | AJ38: 0.07 | AK38: 0.034409206 | AL38: 0.01737093095 | AM38: 66.45252027 | AN38: TRUE | AO38: FALSE | AW38: 13471600
A39: 7 | B39: =IF(A39>$B$30,NA(),IF($A39>$A$8,"",OFFSET(InputPriceData!$B$15,$A39+$A$11,0,1,1))) -> 2020-11-16 | C39: =IF(A39>$B$30,NA(),IF($A39>$A$8,"",OFFSET(InputPriceData!$G$15,CalculationsAndCharts!$A39+$A$11,IF($C$5,8,0),1,1))) -> 32133300 | D39: =IF(A39>$B$30,NA(),IF(A39>$A$8,"",OFFSET(InputPriceData!$C$15,CalculationsAndCharts!$A39+$A$11,IF($C$5,8,0),1,1))) -> 1.19 | E39: =IF(A39>$B$30,NA(),IF(A39>$A$8,"",OFFSET(InputPriceData!$D$15,CalculationsAndCharts!$A39+$A$11,IF($C$5,8,0),1,1))) -> 1.22 | F39: =IF(A39>$B$30,NA(),IF(A39>$A$8,"",OFFSET(InputPriceData!$E$15,CalculationsAndCharts!$A39+$A$11,IF($C$5,8,0),1,1))) -> 1.1 | G39: =IF(A39>$B$30,NA(),IF(A39>$A$8,"",OFFSET(InputPriceData!$F$15,CalculationsAndCharts!$A39+$A$11,IF($C$5,8,0),1,1))) -> 1.17 | H39: 1.163333333 | I39: 32133300 | J39: 6669783.333 | K39: 0.15 | L39: 0.23 | M39: 0.09930248748 | N39: 0.009930248748 | O39: 32133300 | P39: 0 | Q39: 134467700 | R39: 43383500 | S39: 45.52081902 | T39: 37.60614844 | U39: 4.849609597 | V39: 10 | W39: TRUE | AB39: TRUE | AC39: TRUE | AD39: TRUE | AE39: TRUE | AF39: FALSE | AG39: TRUE | AH39: 0.18 | AI39: 0.18 | AJ39: 0 | AK39: 0.03871035675 | AL39: 0.01079229732 | AM39: 78.1985481 | AN39: TRUE | AO39: FALSE | AX39: 32133300
A40: 8 | B40: =IF(A40>$B$30,NA(),IF($A40>$A$8,"",OFFSET(InputPriceData!$B$15,$A40+$A$11,0,1,1))) -> 2020-11-13 | C40: =IF(A40>$B$30,NA(),IF($A40>$A$8,"",OFFSET(InputPriceData!$G$15,CalculationsAndCharts!$A40+$A$11,IF($C$5,8,0),1,1))) -> 14235600 | D40: =IF(A40>$B$30,NA(),IF(A40>$A$8,"",OFFSET(InputPriceData!$C$15,CalculationsAndCharts!$A40+$A$11,IF($C$5,8,0),1,1))) -> 1.04 | E40: =IF(A40>$B$30,NA(),IF(A40>$A$8,"",OFFSET(InputPriceData!$D$15,CalculationsAndCharts!$A40+$A$11,IF($C$5,8,0),1,1))) -> 1.07 | F40: =IF(A40>$B$30,NA(),IF(A40>$A$8,"",OFFSET(InputPriceData!$E$15,CalculationsAndCharts!$A40+$A$11,IF($C$5,8,0),1,1))) -> 0.98 | G40: =IF(A40>$B$30,NA(),IF(A40>$A$8,"",OFFSET(InputPriceData!$F$15,CalculationsAndCharts!$A40+$A$11,IF($C$5,8,0),1,1))) -> 0.99 | H40: 1.013333333 | I40: 14235600 | J40: 5688370 | K40: 0.03333333333 | L40: 0.1 | M40: 0.09479567671 | N40: 0.009479567671 | O40: 14235600 | P40: 0 | Q40: 102334400 | R40: 43383500 | S40: 34.54469382 | T40: 29.69147787 | U40: 3.073656618 | V40: 10 | W40: TRUE | AB40: FALSE | AC40: TRUE | AD40: TRUE | AE40: FALSE | AF40: FALSE | AG40: TRUE | AH40: 0.02 | AI40: 0.02 | AJ40: 0 | AK40: 0.02104915134 | AL40: 0.01214133448 | AM40: 63.41923241 | AN40: TRUE | AO40: FALSE | AX40: 14235600
A41: 9 | B41: =IF(A41>$B$30,NA(),IF($A41>$A$8,"",OFFSET(InputPriceData!$B$15,$A41+$A$11,0,1,1))) -> 2020-11-12 | C41: =IF(A41>$B$30,NA(),IF($A41>$A$8,"",OFFSET(InputPriceData!$G$15,CalculationsAndCharts!$A41+$A$11,IF($C$5,8,0),1,1))) -> 10522000 | D41: =IF(A41>$B$30,NA(),IF(A41>$A$8,"",OFFSET(InputPriceData!$C$15,CalculationsAndCharts!$A41+$A$11,IF($C$5,8,0),1,1))) -> 0.95 | E41: =IF(A41>$B$30,NA(),IF(A41>$A$8,"",OFFSET(InputPriceData!$D$15,CalculationsAndCharts!$A41+$A$11,IF($C$5,8,0),1,1))) -> 1.04 | F41: =IF(A41>$B$30,NA(),IF(A41>$A$8,"",OFFSET(InputPriceData!$E$15,CalculationsAndCharts!$A41+$A$11,IF($C$5,8,0),1,1))) -> 0.93 | G41: =IF(A41>$B$30,NA(),IF(A41>$A$8,"",OFFSET(InputPriceData!$F$15,CalculationsAndCharts!$A41+$A$11,IF($C$5,8,0),1,1))) -> 0.97 | H41: 0.98 | I41: 10522000 | J41: 5310286.667 | K41: 0.07666666667 | L41: 0.13 | M41: 0.09461621728 | N41: 0.009461621728 | O41: 10522000 | P41: 0 | Q41: 88098800 | R41: 46276600 | S41: 26.25231783 | T41: 24.83826191 | U41: 1.580252345 | V41: 10 | W41: TRUE | AB41: FALSE | AC41: TRUE | AD41: TRUE | AE41: FALSE | AF41: FALSE | AG41: TRUE | AH41: 0.06 | AI41: 0.06 | AJ41: 0 | AK41: 0.02118029526 | AL41: 0.01365900129 | AM41: 60.79426784 | AN41: TRUE | AO41: FALSE | AW41: 10522000
A42: 10 | B42: =IF(A42>$B$30,NA(),IF($A42>$A$8,"",OFFSET(InputPriceData!$B$15,$A42+$A$11,0,1,1))) -> 2020-11-11 | C42: =IF(A42>$B$30,NA(),IF($A42>$A$8,"",OFFSET(InputPriceData!$G$15,CalculationsAndCharts!$A42+$A$11,IF($C$5,8,0),1,1))) -> 2406700 | D42: =IF(A42>$B$30,NA(),IF(A42>$A$8,"",OFFSET(InputPriceData!$C$15,CalculationsAndCharts!$A42+$A$11,IF($C$5,8,0),1,1))) -> 0.9 | E42: =IF(A42>$B$30,NA(),IF(A42>$A$8,"",OFFSET(InputPriceData!$D$15,CalculationsAndCharts!$A42+$A$11,IF($C$5,8,0),1,1))) -> 0.91 | F42: =IF(A42>$B$30,NA(),IF(A42>$A$8,"",OFFSET(InputPriceData!$E$15,CalculationsAndCharts!$A42+$A$11,IF($C$5,8,0),1,1))) -> 0.89 | G42: =IF(A42>$B$30,NA(),IF(A42>$A$8,"",OFFSET(InputPriceData!$F$15,CalculationsAndCharts!$A42+$A$11,IF($C$5,8,0),1,1))) -> 0.91 | H42: 0.9033333333 | I42: 2406700 | J42: 5121036.667 | K42: 0.003333333333 | L42: 0.02 | M42: 0.09339608684 | N42: 0.009339608684 | O42: 0 | P42: 0 | Q42: 82421300 | R42: 46276600 | S42: 23.52694214 | T42: 23.424206 | U42: 0.4184240673 | V42: 10 | W42: TRUE | AB42: FALSE | AC42: TRUE | AD42: TRUE | AE42: FALSE | AF42: FALSE | AG42: FALSE | AH42: 0.02 | AI42: 0.02 | AJ42: 0 | AK42: 0.01632783217 | AL42: 0.01536637645 | AM42: 51.51676877 | AN42: TRUE | AO42: FALSE | AW42: 2406700
A43: 11 | B43: =IF(A43>$B$30,NA(),IF($A43>$A$8,"",OFFSET(InputPriceData!$B$15,$A43+$A$11,0,1,1))) -> 2020-11-10 | C43: =IF(A43>$B$30,NA(),IF($A43>$A$8,"",OFFSET(InputPriceData!$G$15,CalculationsAndCharts!$A43+$A$11,IF($C$5,8,0),1,1))) -> 5271700 | D43: =IF(A43>$B$30,NA(),IF(A43>$A$8,"",OFFSET(InputPriceData!$C$15,CalculationsAndCharts!$A43+$A$11,IF($C$5,8,0),1,1))) -> 0.93 | E43: =IF(A43>$B$30,NA(),IF(A43>$A$8,"",OFFSET(InputPriceData!$D$15,CalculationsAndCharts!$A43+$A$11,IF($C$5,8,0),1,1))) -> 0.93 | F43: =IF(A43>$B$30,NA(),IF(A43>$A$8,"",OFFSET(InputPriceData!$E$15,CalculationsAndCharts!$A43+$A$11,IF($C$5,8,0),1,1))) -> 0.88 | G43: =IF(A43>$B$30,NA(),IF(A43>$A$8,"",OFFSET(InputPriceData!$F$15,CalculationsAndCharts!$A43+$A$11,IF($C$5,8,0),1,1))) -> 0.89 | H43: 0.9 | I43: 5271700 | J43: 5187240 | K43: -0.1033333333 | L43: 0.09 | M43: 0.09592698639 | N43: 0.009592698639 | O43: 0 | P43: 5271700 | Q43: 82421300 | R43: 46276600 | S43: 23.22667417 | T43: 23.32146986 | U43: -0.828463318 | V43: 10 | W43: TRUE | AB43: FALSE | AC43: TRUE | AD43: TRUE | AE43: FALSE | AF43: FALSE | AG43: FALSE | AH43: -0.08 | AI43: 0 | AJ43: 0.08 | AK43: 0.01586881119 | AL43: 0.01728717351 | AM43: 47.86107646 | AN43: TRUE | AO43: FALSE | AX43: 5271700
A44: 12 | B44: =IF(A44>$B$30,NA(),IF($A44>$A$8,"",OFFSET(InputPriceData!$B$15,$A44+$A$11,0,1,1))) -> 2020-11-09 | C44: =IF(A44>$B$30,NA(),IF($A44>$A$8,"",OFFSET(InputPriceData!$G$15,CalculationsAndCharts!$A44+$A$11,IF($C$5,8,0),1,1))) -> 10425100 | D44: =IF(A44>$B$30,NA(),IF(A44>$A$8,"",OFFSET(InputPriceData!$C$15,CalculationsAndCharts!$A44+$A$11,IF($C$5,8,0),1,1))) -> 0.98 | E44: =IF(A44>$B$30,NA(),IF(A44>$A$8,"",OFFSET(InputPriceData!$D$15,CalculationsAndCharts!$A44+$A$11,IF($C$5,8,0),1,1))) -> 1.1 | F44: =IF(A44>$B$30,NA(),IF(A44>$A$8,"",OFFSET(InputPriceData!$E$15,CalculationsAndCharts!$A44+$A$11,IF($C$5,8,0),1,1))) -> 0.94 | G44: =IF(A44>$B$30,NA(),IF(A44>$A$8,"",OFFSET(InputPriceData!$F$15,CalculationsAndCharts!$A44+$A$11,IF($C$5,8,0),1,1))) -> 0.97 | H44: 1.003333333 | I44: 10425100 | J44: 5177196.667 | K44: 0.07 | L44: 0.16 | M44: 0.09613136523 | N44: 0.009613136523 | O44: 10425100 | P44: 0 | Q44: 82421300 | R44: 45975300 | S44: 23.46572373 | T44: 23.41626554 | U44: -2.182000249 | V44: 10 | W44: TRUE | AB44: FALSE | AC44: TRUE | AD44: TRUE | AE44: FALSE | AF44: FALSE | AG44: TRUE | AH44: 0.03 | AI44: 0.03 | AJ44: 0 | AK44: 0.01785241259 | AL44: 0.009448070199 | AM44: 65.39229627 | AN44: TRUE | AO44: FALSE | AX44: 10425100
A45: 13 | B45: =IF(A45>$B$30,NA(),IF($A45>$A$8,"",OFFSET(InputPriceData!$B$15,$A45+$A$11,0,1,1))) -> 2020-11-06 | C45: =IF(A45>$B$30,NA(),IF($A45>$A$8,"",OFFSET(InputPriceData!$G$15,CalculationsAndCharts!$A45+$A$11,IF($C$5,8,0),1,1))) -> 2723300 | D45: =IF(A45>$B$30,NA(),IF(A45>$A$8,"",OFFSET(InputPriceData!$C$15,CalculationsAndCharts!$A45+$A$11,IF($C$5,8,0),1,1))) -> 0.95 | E45: =IF(A45>$B$30,NA(),IF(A45>$A$8,"",OFFSET(InputPriceData!$D$15,CalculationsAndCharts!$A45+$A$11,IF($C$5,8,0),1,1))) -> 0.95 | F45: =IF(A45>$B$30,NA(),IF(A45>$A$8,"",OFFSET(InputPriceData!$E$15,CalculationsAndCharts!$A45+$A$11,IF($C$5,8,0),1,1))) -> 0.91 | G45: =IF(A45>$B$30,NA(),IF(A45>$A$8,"",OFFSET(InputPriceData!$F$15,CalculationsAndCharts!$A45+$A$11,IF($C$5,8,0),1,1))) -> 0.94 | H45: 0.9333333333 | I45: 2723300 | J45: 5059546.667 | K45: 0.01666666667 | L45: 0.04 | M45: 0.09392899852 | N45: 0.009392899852 | O45: 2723300 | P45: 0 | Q45: 78891800 | R45: 45975300 | S45: 21.68606674 | T45: 23.36680735 | U45: -3.623139065 | V45: 10 | W45: TRUE | AB45: FALSE | AC45: TRUE | AD45: TRUE | AE45: FALSE | AF45: FALSE | AG45: TRUE | AH45: 0.01 | AI45: 0.01 | AJ45: 0 | AK45: 0.01633396416 | AL45: 0.01062907897 | AM45: 60.57908256 | AN45: TRUE | AO45: FALSE | AX45: 2723300
A46: 14 | B46: =IF(A46>$B$30,NA(),IF($A46>$A$8,"",OFFSET(InputPriceData!$B$15,$A46+$A$11,0,1,1))) -> 2020-11-05 | C46: =IF(A46>$B$30,NA(),IF($A46>$A$8,"",OFFSET(InputPriceData!$G$15,CalculationsAndCharts!$A46+$A$11,IF($C$5,8,0),1,1))) -> 4079800 | D46: =IF(A46>$B$30,NA(),IF(A46>$A$8,"",OFFSET(InputPriceData!$C$15,CalculationsAndCharts!$A46+$A$11,IF($C$5,8,0),1,1))) -> 0.9 | E46: =IF(A46>$B$30,NA(),IF(A46>$A$8,"",OFFSET(InputPriceData!$D$15,CalculationsAndCharts!$A46+$A$11,IF($C$5,8,0),1,1))) -> 0.94 | F46: =IF(A46>$B$30,NA(),IF(A46>$A$8,"",OFFSET(InputPriceData!$E$15,CalculationsAndCharts!$A46+$A$11,IF($C$5,8,0),1,1))) -> 0.88 | G46: =IF(A46>$B$30,NA(),IF(A46>$A$8,"",OFFSET(InputPriceData!$F$15,CalculationsAndCharts!$A46+$A$11,IF($C$5,8,0),1,1))) -> 0.93 | H46: 0.9166666667 | I46: 4079800 | J46: 5419463.333 | K46: 0.05333333333 | L46: 0.07 | M46: 0.09578861915 | N46: 0.009578861915 | O46: 4079800 | P46: 0 | Q46: 89689300 | R46: 45975300 | S46: 26.88704109 | T46: 25.04754797 | U46: -5.205908857 | V46: 10 | W46: TRUE | AB46: FALSE | AC46: TRUE | AD46: TRUE | AE46: FALSE | AF46: FALSE | AG46: TRUE | AH46: 0.06 | AI46: 0.06 | AJ46: 0 | AK46: 0.01712570968 | AL46: 0.01195771385 | AM46: 58.88477904 | AN46: TRUE | AO46: FALSE | AW46: 4079800
A47: 15 | B47: =IF(A47>$B$30,NA(),IF($A47>$A$8,"",OFFSET(InputPriceData!$B$15,$A47+$A$11,0,1,1))) -> 2020-11-04 | C47: =IF(A47>$B$30,NA(),IF($A47>$A$8,"",OFFSET(InputPriceData!$G$15,CalculationsAndCharts!$A47+$A$11,IF($C$5,8,0),1,1))) -> 1739800 | D47: =IF(A47>$B$30,NA(),IF(A47>$A$8,"",OFFSET(InputPriceData!$C$15,CalculationsAndCharts!$A47+$A$11,IF($C$5,8,0),1,1))) -> 0.85 | E47: =IF(A47>$B$30,NA(),IF(A47>$A$8,"",OFFSET(InputPriceData!$D$15,CalculationsAndCharts!$A47+$A$11,IF($C$5,8,0),1,1))) -> 0.88 | F47: =IF(A47>$B$30,NA(),IF(A47>$A$8,"",OFFSET(InputPriceData!$E$15,CalculationsAndCharts!$A47+$A$11,IF($C$5,8,0),1,1))) -> 0.84 | G47: =IF(A47>$B$30,NA(),IF(A47>$A$8,"",OFFSET(InputPriceData!$F$15,CalculationsAndCharts!$A47+$A$11,IF($C$5,8,0),1,1))) -> 0.87 | H47: 0.8633333333 | I47: 1739800 | J47: 5659530 | K47: 0.02 | L47: 0.04 | M47: 0.09667788188 | N47: 0.009667788188 | O47: 1739800 | P47: 0 | Q47: 96891300 | R47: 45975300 | S47: 29.98835592 | T47: 23.20805485 | U47: -7.026686092 | V47: 10 | W47: TRUE | AB47: FALSE | AC47: TRUE | AD47: TRUE | AE47: FALSE | AF47: FALSE | AG47: FALSE | AH47: 0.03 | AI47: 0.03 | AJ47: 0 | AK47: 0.01176642339 | AL47: 0.01345242808 | AM47: 46.65725323 | AN47: TRUE | AO47: FALSE | AW47: 1739800
A48: 16 | B48: =IF(A48>$B$30,NA(),IF($A48>$A$8,"",OFFSET(InputPriceData!$B$15,$A48+$A$11,0,1,1))) -> 2020-11-03 | C48: =IF(A48>$B$30,NA(),IF($A48>$A$8,"",OFFSET(InputPriceData!$G$15,CalculationsAndCharts!$A48+$A$11,IF($C$5,8,0),1,1))) -> 2304400 | D48: =IF(A48>$B$30,NA(),IF(A48>$A$8,"",OFFSET(InputPriceData!$C$15,CalculationsAndCharts!$A48+$A$11,IF($C$5,8,0),1,1))) -> 0.83 | E48: =IF(A48>$B$30,NA(),IF(A48>$A$8,"",OFFSET(InputPriceData!$D$15,CalculationsAndCharts!$A48+$A$11,IF($C$5,8,0),1,1))) -> 0.87 | F48: =IF(A48>$B$30,NA(),IF(A48>$A$8,"",OFFSET(InputPriceData!$E$15,CalculationsAndCharts!$A48+$A$11,IF($C$5,8,0),1,1))) -> 0.82 | G48: =IF(A48>$B$30,NA(),IF(A48>$A$8,"",OFFSET(InputPriceData!$F$15,CalculationsAndCharts!$A48+$A$11,IF($C$5,8,0),1,1))) -> 0.84 | H48: 0.8433333333 | I48: 2304400 | J48: 6016276.667 | K48: 0.02666666667 | L48: 0.05 | M48: 0.0986322916 | N48: 0.00986322916 | O48: 2304400 | P48: 0 | Q48: 95151500 | R48: 58417500 | S48: 20.35256579 | T48: 16.42775378 | U48: -8.807159913 | V48: 10 | W48: TRUE | AB48: FALSE | AC48: TRUE | AD48: TRUE | AE48: FALSE | AF48: FALSE | AG48: FALSE | AH48: 0.02 | AI48: 0.02 | AJ48: 0 | AK48: 0.009487226316 | AL48: 0.01513398159 | AM48: 38.53274118 | AN48: TRUE | AO48: FALSE | AW48: 2304400
A49: 17 | B49: =IF(A49>$B$30,NA(),IF($A49>$A$8,"",OFFSET(InputPriceData!$B$15,$A49+$A$11,0,1,1))) -> 2020-11-02 | C49: =IF(A49>$B$30,NA(),IF($A49>$A$8,"",OFFSET(InputPriceData!$G$15,CalculationsAndCharts!$A49+$A$11,IF($C$5,8,0),1,1))) -> 2319900 | D49: =IF(A49>$B$30,NA(),IF(A49>$A$8,"",OFFSET(InputPriceData!$C$15,CalculationsAndCharts!$A49+$A$11,IF($C$5,8,0),1,1))) -> 0.8 | E49: =IF(A49>$B$30,NA(),IF(A49>$A$8,"",OFFSET(InputPriceData!$D$15,CalculationsAndCharts!$A49+$A$11,IF($C$5,8,0),1,1))) -> 0.83 | F49: =IF(A49>$B$30,NA(),IF(A49>$A$8,"",OFFSET(InputPriceData!$E$15,CalculationsAndCharts!$A49+$A$11,IF($C$5,8,0),1,1))) -> 0.8 | G49: =IF(A49>$B$30,NA(),IF(A49>$A$8,"",OFFSET(InputPriceData!$F$15,CalculationsAndCharts!$A49+$A$11,IF($C$5,8,0),1,1))) -> 0.82 | H49: 0.8166666667 | I49: 2319900 | J49: 6165106.667 | K49: 0 | L49: 0.03 | M49: 0.1003092672 | N49: 0.01003092672 | O49: 0 | P49: 0 | Q49: 92847100 | R49: 65186800 | S49: 14.9552968 | T49: 12.50294178 | U49: -10.26192493 | V49: 10 | W49: TRUE | AB49: FALSE | AC49: TRUE | AD49: TRUE | AE49: FALSE | AF49: FALSE | AG49: FALSE | AH49: 0 | AI49: 0 | AJ49: 0 | AK49: 0.008173129605 | AL49: 0.01702572928 | AM49: 32.43452269 | AN49: TRUE | AO49: FALSE | AW49: 2319900
A50: 18 | B50: =IF(A50>$B$30,NA(),IF($A50>$A$8,"",OFFSET(InputPriceData!$B$15,$A50+$A$11,0,1,1))) -> 2020-10-30 | C50: =IF(A50>$B$30,NA(),IF($A50>$A$8,"",OFFSET(InputPriceData!$G$15,CalculationsAndCharts!$A50+$A$11,IF($C$5,8,0),1,1))) -> 2805300 | D50: =IF(A50>$B$30,NA(),IF(A50>$A$8,"",OFFSET(InputPriceData!$C$15,CalculationsAndCharts!$A50+$A$11,IF($C$5,8,0),1,1))) -> 0.8 | E50: =IF(A50>$B$30,NA(),IF(A50>$A$8,"",OFFSET(InputPriceData!$D$15,CalculationsAndCharts!$A50+$A$11,IF($C$5,8,0),1,1))) -> 0.83 | F50: =IF(A50>$B$30,NA(),IF(A50>$A$8,"",OFFSET(InputPriceData!$E$15,CalculationsAndCharts!$A50+$A$11,IF($C$5,8,0),1,1))) -> 0.8 | G50: =IF(A50>$B$30,NA(),IF(A50>$A$8,"",OFFSET(InputPriceData!$F$15,CalculationsAndCharts!$A50+$A$11,IF($C$5,8,0),1,1))) -> 0.82 | H50: 0.8166666667 | I50: 2805300 | J50: 6339060 | K50: -0.01333333333 | L50: 0.03 | M50: 0.1027337247 | N50: 0.01027337247 | O50: 0 | P50: 2805300 | Q50: 92847100 | R50: 72725300 | S50: 10.58085373 | T50: 10.05058675 | U50: -11.30661177 | V50: 10 | W50: TRUE | X50: 80 | Y50: -80 | AB50: FALSE | AC50: TRUE | AD50: TRUE | AE50: FALSE | AF50: =IF($A50>$AF$30,NA(),6268340>41468510) -> FALSE | AG50: FALSE | AH50: -0.01 | AI50: 0 | AJ50: 0.01 | AK50: 0.009194770806 | AL50: 0.01915394545 | AM50: 32.43452269 | AN50: TRUE | AO50: FALSE | AW50: 2805300
A51: 19 | B51: =IF(A51>$B$30,NA(),IF($A51>$A$8,"",OFFSET(InputPriceData!$B$15,$A51+$A$11,0,1,1))) -> 2020-10-29 | C51: =IF(A51>$B$30,NA(),IF($A51>$A$8,"",OFFSET(InputPriceData!$G$15,CalculationsAndCharts!$A51+$A$11,IF($C$5,8,0),1,1))) -> 2247400 | D51: =IF(A51>$B$30,NA(),IF(A51>$A$8,"",OFFSET(InputPriceData!$C$15,CalculationsAndCharts!$A51+$A$11,IF($C$5,8,0),1,1))) -> 0.85 | E51: =IF(A51>$B$30,NA(),IF(A51>$A$8,"",OFFSET(InputPriceData!$D$15,CalculationsAndCharts!$A51+$A$11,IF($C$5,8,0),1,1))) -> 0.85 | F51: =IF(A51>$B$30,NA(),IF(A51>$A$8,"",OFFSET(InputPriceData!$E$15,CalculationsAndCharts!$A51+$A$11,IF($C$5,8,0),1,1))) -> 0.81 | G51: =IF(A51>$B$30,NA(),IF(A51>$A$8,"",OFFSET(InputPriceData!$F$15,CalculationsAndCharts!$A51+$A$11,IF($C$5,8,0),1,1))) -> 0.83 | H51: 0.83 | I51: 2247400 | J51: 6447866.667 | K51: -0.01666666667 | L51: 0.04 | M51: 0.1052417841 | N51: 0.01052417841 | O51: 0 | P51: 2247400 | Q51: 92847100 | R51: 69920000 | S51: 11.85255071 | T51: 9.520319773 | U51: -12.21569359 | V51: 10 | W51: FALSE | AB51: FALSE | AC51: TRUE | AD51: TRUE | AE51: FALSE | AF51: FALSE | AG51: FALSE | AH51: -0.01 | AI51: 0 | AJ51: 0.01 | AK51: 0.01034411716 | AL51: 0.02029818863 | AM51: 33.75763309 | AN51: TRUE | AO51: FALSE | AX51: 2247400
A52: 20 | B52: =IF(A52>$B$30,NA(),IF($A52>$A$8,"",OFFSET(InputPriceData!$B$15,$A52+$A$11,0,1,1))) -> 2020-10-28 | C52: =IF(A52>$B$30,NA(),IF($A52>$A$8,"",OFFSET(InputPriceData!$G$15,CalculationsAndCharts!$A52+$A$11,IF($C$5,8,0),1,1))) -> 3157800 | D52: =IF(A52>$B$30,NA(),IF(A52>$A$8,"",OFFSET(InputPriceData!$C$15,CalculationsAndCharts!$A52+$A$11,IF($C$5,8,0),1,1))) -> 0.86 | E52: =IF(A52>$B$30,NA(),IF(A52>$A$8,"",OFFSET(InputPriceData!$D$15,CalculationsAndCharts!$A52+$A$11,IF($C$5,8,0),1,1))) -> 0.87 | F52: =IF(A52>$B$30,NA(),IF(A52>$A$8,"",OFFSET(InputPriceData!$E$15,CalculationsAndCharts!$A52+$A$11,IF($C$5,8,0),1,1))) -> 0.83 | G52: =IF(A52>$B$30,NA(),IF(A52>$A$8,"",OFFSET(InputPriceData!$F$15,CalculationsAndCharts!$A52+$A$11,IF($C$5,8,0),1,1))) -> 0.84 | H52: 0.8466666667 | I52: 3157800 | J52: 6602523.333 | K52: -0.03666666667 | L52: 0.05 | M52: 0.1074915008 | N52: 0.01074915008 | O52: 0 | P52: 3157800 | Q52: 92847100 | R52: 74559700 | S52: 9.232530795 | T52: 7.188088831 | U52: -12.97181553 | V52: 10 | W52: FALSE | AB52: FALSE | AC52: TRUE | AD52: TRUE | AE52: FALSE | AF52: FALSE | AG52: FALSE | AH52: -0.04 | AI52: 0 | AJ52: 0.04 | AK52: 0.0116371318 | AL52: 0.0215854622 | AM52: 35.02776394 | AN52: TRUE | AO52: FALSE | AX52: 3157800
A53: 21 | B53: =IF(A53>$B$30,NA(),IF($A53>$A$8,"",OFFSET(InputPriceData!$B$15,$A53+$A$11,0,1,1))) -> 2020-10-27 | C53: =IF(A53>$B$30,NA(),IF($A53>$A$8,"",OFFSET(InputPriceData!$G$15,CalculationsAndCharts!$A53+$A$11,IF($C$5,8,0),1,1))) -> 3147700 | D53: =IF(A53>$B$30,NA(),IF(A53>$A$8,"",OFFSET(InputPriceData!$C$15,CalculationsAndCharts!$A53+$A$11,IF($C$5,8,0),1,1))) -> 0.9 | E53: =IF(A53>$B$30,NA(),IF(A53>$A$8,"",OFFSET(InputPriceData!$D$15,CalculationsAndCharts!$A53+$A$11,IF($C$5,8,0),1,1))) -> 0.9 | F53: =IF(A53>$B$30,NA(),IF(A53>$A$8,"",OFFSET(InputPriceData!$E$15,CalculationsAndCharts!$A53+$A$11,IF($C$5,8,0),1,1))) -> 0.87 | G53: =IF(A53>$B$30,NA(),IF(A53>$A$8,"",OFFSET(InputPriceData!$F$15,CalculationsAndCharts!$A53+$A$11,IF($C$5,8,0),1,1))) -> 0.88 | H53: 0.8833333333 | I53: 3147700 | J53: 6724503.333 | K53: -0.01666666667 | L53: 0.03 | M53: 0.1094739664 | N53: 0.01094739664 | O53: 0 | P53: 3147700 | Q53: 92847100 | R53: 78219100 | S53: 7.251093141 | T53: 5.143646867 | U53: -13.49454415 | V53: 10 | W53: FALSE | AB53: FALSE | AC53: TRUE | AD53: TRUE | AE53: FALSE | AF53: FALSE | AG53: FALSE | AH53: -0.02 | AI53: 0 | AJ53: 0.02 | AK53: 0.01309177328 | AL53: 0.01928364498 | AM53: 40.43738732 | AN53: TRUE | AO53: FALSE | AX53: 3147700
A54: 22 | B54: =IF(A54>$B$30,NA(),IF($A54>$A$8,"",OFFSET(InputPriceData!$B$15,$A54+$A$11,0,1,1))) -> 2020-10-26 | C54: =IF(A54>$B$30,NA(),IF($A54>$A$8,"",OFFSET(InputPriceData!$G$15,CalculationsAndCharts!$A54+$A$11,IF($C$5,8,0),1,1))) -> 4624900 | D54: =IF(A54>$B$30,NA(),IF(A54>$A$8,"",OFFSET(InputPriceData!$C$15,CalculationsAndCharts!$A54+$A$11,IF($C$5,8,0),1,1))) -> 0.9 | E54: =IF(A54>$B$30,NA(),IF(A54>$A$8,"",OFFSET(InputPriceData!$D$15,CalculationsAndCharts!$A54+$A$11,IF($C$5,8,0),1,1))) -> 0.92 | F54: =IF(A54>$B$30,NA(),IF(A54>$A$8,"",OFFSET(InputPriceData!$E$15,CalculationsAndCharts!$A54+$A$11,IF($C$5,8,0),1,1))) -> 0.88 | G54: =IF(A54>$B$30,NA(),IF(A54>$A$8,"",OFFSET(InputPriceData!$F$15,CalculationsAndCharts!$A54+$A$11,IF($C$5,8,0),1,1))) -> 0.9 | H54: 0.9 | I54: 4624900 | J54: 7022770 | K54: -0.02666666667 | L54: 0.06 | M54: 0.112214448 | N54: 0.0112214448 | O54: 0 | P54: 4624900 | Q54: 92847100 | R54: 87167100 | S54: 2.695992227 | T54: 3.036200592 | U54: -13.88123305 | V54: 10 | W54: FALSE | AB54: FALSE | AC54: TRUE | AD54: TRUE | AE54: FALSE | AF54: FALSE | AG54: FALSE | AH54: -0.04 | AI54: 0 | AJ54: 0.04 | AK54: 0.01472824494 | AL54: 0.0191941006 | AM54: 43.41753114 | AN54: TRUE | AO54: FALSE | AW54: 4624900
A55: 23 | B55: =IF(A55>$B$30,NA(),IF($A55>$A$8,"",OFFSET(InputPriceData!$B$15,$A55+$A$11,0,1,1))) -> 2020-10-23 | C55: =IF(A55>$B$30,NA(),IF($A55>$A$8,"",OFFSET(InputPriceData!$G$15,CalculationsAndCharts!$A55+$A$11,IF($C$5,8,0),1,1))) -> 6300900 | D55: =IF(A55>$B$30,NA(),IF(A55>$A$8,"",OFFSET(InputPriceData!$C$15,CalculationsAndCharts!$A55+$A$11,IF($C$5,8,0),1,1))) -> 0.95 | E55: =IF(A55>$B$30,NA(),IF(A55>$A$8,"",OFFSET(InputPriceData!$D$15,CalculationsAndCharts!$A55+$A$11,IF($C$5,8,0),1,1))) -> 0.96 | F55: =IF(A55>$B$30,NA(),IF(A55>$A$8,"",OFFSET(InputPriceData!$E$15,CalculationsAndCharts!$A55+$A$11,IF($C$5,8,0),1,1))) -> 0.88 | G55: =IF(A55>$B$30,NA(),IF(A55>$A$8,"",OFFSET(InputPriceData!$F$15,CalculationsAndCharts!$A55+$A$11,IF($C$5,8,0),1,1))) -> 0.94 | H55: 0.9266666667 | I55: 6300900 | J55: 7109203.333 | K55: -0.08 | L55: 0.08 | M55: 0.1140149462 | N55: 0.01140149462 | O55: 0 | P55: 6300900 | Q55: 100065000 | R55: 82542200 | S55: 8.216016703 | T55: 3.376408957 | U55: -13.96320327 | V55: 10 | W55: FALSE | AB55: FALSE | AC55: TRUE | AD55: TRUE | AE55: FALSE | AF55: FALSE | AG55: FALSE | AH55: -0.02 | AI55: 0 | AJ55: 0.02 | AK55: 0.01656927555 | AL55: 0.01659336318 | AM55: 49.96368259 | AN55: TRUE | AO55: FALSE | AX55: 6300900
A56: 24 | B56: =IF(A56>$B$30,NA(),IF($A56>$A$8,"",OFFSET(InputPriceData!$B$15,$A56+$A$11,0,1,1))) -> 2020-10-22 | C56: =IF(A56>$B$30,NA(),IF($A56>$A$8,"",OFFSET(InputPriceData!$G$15,CalculationsAndCharts!$A56+$A$11,IF($C$5,8,0),1,1))) -> 38285800 | D56: =IF(A56>$B$30,NA(),IF(A56>$A$8,"",OFFSET(InputPriceData!$C$15,CalculationsAndCharts!$A56+$A$11,IF($C$5,8,0),1,1))) -> 0.92 | E56: =IF(A56>$B$30,NA(),IF(A56>$A$8,"",OFFSET(InputPriceData!$D$15,CalculationsAndCharts!$A56+$A$11,IF($C$5,8,0),1,1))) -> 1.15 | F56: =IF(A56>$B$30,NA(),IF(A56>$A$8,"",OFFSET(InputPriceData!$E$15,CalculationsAndCharts!$A56+$A$11,IF($C$5,8,0),1,1))) -> 0.91 | G56: =IF(A56>$B$30,NA(),IF(A56>$A$8,"",OFFSET(InputPriceData!$F$15,CalculationsAndCharts!$A56+$A$11,IF($C$5,8,0),1,1))) -> 0.96 | H56: 1.006666667 | I56: 38285800 | J56: 7075420 | K56: 0.1433333333 | L56: 0.3 | M56: 0.1151878754 | N56: 0.01151878754 | O56: 38285800 | P56: 0 | Q56: 100065000 | R56: 81528700 | S56: 8.732720696 | T56: -1.463198788 | U56: -13.99212546 | V56: 10 | W56: FALSE | AB56: FALSE | AC56: TRUE | AD56: TRUE | AE56: FALSE | AF56: FALSE | AG56: FALSE | AH56: 0.11 | AI56: 0.11 | AJ56: 0 | AK56: 0.018640435 | AL56: 0.01616753357 | AM56: 53.55220589 | AN56: TRUE | AO56: FALSE | AW56: 38285800
A57: 25 | B57: =IF(A57>$B$30,NA(),IF($A57>$A$8,"",OFFSET(InputPriceData!$B$15,$A57+$A$11,0,1,1))) -> 2020-10-21 | C57: =IF(A57>$B$30,NA(),IF($A57>$A$8,"",OFFSET(InputPriceData!$G$15,CalculationsAndCharts!$A57+$A$11,IF($C$5,8,0),1,1))) -> 3156200 | D57: =IF(A57>$B$30,NA(),IF(A57>$A$8,"",OFFSET(InputPriceData!$C$15,CalculationsAndCharts!$A57+$A$11,IF($C$5,8,0),1,1))) -> 0.88 | E57: =IF(A57>$B$30,NA(),IF(A57>$A$8,"",OFFSET(InputPriceData!$D$15,CalculationsAndCharts!$A57+$A$11,IF($C$5,8,0),1,1))) -> 0.89 | F57: =IF(A57>$B$30,NA(),IF(A57>$A$8,"",OFFSET(InputPriceData!$E$15,CalculationsAndCharts!$A57+$A$11,IF($C$5,8,0),1,1))) -> 0.85 | G57: =IF(A57>$B$30,NA(),IF(A57>$A$8,"",OFFSET(InputPriceData!$F$15,CalculationsAndCharts!$A57+$A$11,IF($C$5,8,0),1,1))) -> 0.85 | H57: 0.8633333333 | I57: 3156200 | J57: 5918553.333 | K57: -0.006666666667 | L57: 0.04 | M57: 0.1088150435 | N57: 0.01088150435 | O57: 0 | P57: 0 | Q57: 61779200 | R57: 81528700 | S57: -11.12293207 | T57: -11.65911827 | U57: -13.64609748 | V57: 10 | W57: FALSE | AB57: FALSE | AC57: TRUE | AD57: TRUE | AE57: FALSE | AF57: FALSE | AG57: FALSE | AH57: -0.01 | AI57: 0 | AJ57: 0.01 | AK57: 0.007220489372 | AL57: 0.01818847527 | AM57: 28.41709402 | AN57: TRUE | AO57: FALSE | AX57: 3156200
A58: 26 | B58: =IF(A58>$B$30,NA(),IF($A58>$A$8,"",OFFSET(InputPriceData!$B$15,$A58+$A$11,0,1,1))) -> 2020-10-20 | C58: =IF(A58>$B$30,NA(),IF($A58>$A$8,"",OFFSET(InputPriceData!$G$15,CalculationsAndCharts!$A58+$A$11,IF($C$5,8,0),1,1))) -> 3228400 | D58: =IF(A58>$B$30,NA(),IF(A58>$A$8,"",OFFSET(InputPriceData!$C$15,CalculationsAndCharts!$A58+$A$11,IF($C$5,8,0),1,1))) -> 0.89 | E58: =IF(A58>$B$30,NA(),IF(A58>$A$8,"",OFFSET(InputPriceData!$D$15,CalculationsAndCharts!$A58+$A$11,IF($C$5,8,0),1,1))) -> 0.9 | F58: =IF(A58>$B$30,NA(),IF(A58>$A$8,"",OFFSET(InputPriceData!$E$15,CalculationsAndCharts!$A58+$A$11,IF($C$5,8,0),1,1))) -> 0.85 | G58: =IF(A58>$B$30,NA(),IF(A58>$A$8,"",OFFSET(InputPriceData!$F$15,CalculationsAndCharts!$A58+$A$11,IF($C$5,8,0),1,1))) -> 0.86 | H58: 0.87 | I58: 3228400 | J58: 5926990 | K58: -0.03333333333 | L58: 0.05 | M58: 0.111187976 | N58: 0.0111187976 | O58: 0 | P58: 3228400 | Q58: 61779200 | R58: 81528700 | S58: -11.10709933 | T58: -12.19530448 | U58: -12.96219142 | V58: 10 | W58: FALSE | AB58: FALSE | AC58: TRUE | AD58: TRUE | AE58: FALSE | AF58: FALSE | AG58: FALSE | AH58: -0.04 | AI58: 0 | AJ58: 0.04 | AK58: 0.008123050544 | AL58: 0.01921203468 | AM58: 29.71657296 | AN58: TRUE | AO58: FALSE | AX58: 3228400
A59: 27 | B59: =IF(A59>$B$30,NA(),IF($A59>$A$8,"",OFFSET(InputPriceData!$B$15,$A59+$A$11,0,1,1))) -> 2020-10-19 | C59: =IF(A59>$B$30,NA(),IF($A59>$A$8,"",OFFSET(InputPriceData!$G$15,CalculationsAndCharts!$A59+$A$11,IF($C$5,8,0),1,1))) -> 3301000 | D59: =IF(A59>$B$30,NA(),IF(A59>$A$8,"",OFFSET(InputPriceData!$C$15,CalculationsAndCharts!$A59+$A$11,IF($C$5,8,0),1,1))) -> 0.92 | E59: =IF(A59>$B$30,NA(),IF(A59>$A$8,"",OFFSET(InputPriceData!$D$15,CalculationsAndCharts!$A59+$A$11,IF($C$5,8,0),1,1))) -> 0.92 | F59: =IF(A59>$B$30,NA(),IF(A59>$A$8,"",OFFSET(InputPriceData!$E$15,CalculationsAndCharts!$A59+$A$11,IF($C$5,8,0),1,1))) -> 0.89 | G59: =IF(A59>$B$30,NA(),IF(A59>$A$8,"",OFFSET(InputPriceData!$F$15,CalculationsAndCharts!$A59+$A$11,IF($C$5,8,0),1,1))) -> 0.9 | H59: 0.9033333333 | I59: 3301000 | J59: 5990090 | K59: -0.02666666667 | L59: 0.03 | M59: 0.1132979062 | N59: 0.01132979062 | O59: 0 | P59: 3301000 | Q59: 61779200 | R59: 83421700 | S59: -12.04350296 | T59: -13.28350962 | U59: -12.26037529 | V59: 10 | W59: FALSE | AB59: FALSE | AC59: TRUE | AD59: TRUE | AE59: FALSE | AF59: FALSE | AG59: FALSE | AH59: -0.02 | AI59: 0 | AJ59: 0.02 | AK59: 0.009138431861 | AL59: 0.01661353901 | AM59: 35.48633969 | AN59: TRUE | AO59: FALSE | AX59: 3301000
A60: 28 | B60: =IF(A60>$B$30,NA(),IF($A60>$A$8,"",OFFSET(InputPriceData!$B$15,$A60+$A$11,0,1,1))) -> 2020-10-16 | C60: =IF(A60>$B$30,NA(),IF($A60>$A$8,"",OFFSET(InputPriceData!$G$15,CalculationsAndCharts!$A60+$A$11,IF($C$5,8,0),1,1))) -> 3407500 | D60: =IF(A60>$B$30,NA(),IF(A60>$A$8,"",OFFSET(InputPriceData!$C$15,CalculationsAndCharts!$A60+$A$11,IF($C$5,8,0),1,1))) -> 0.95 | E60: =IF(A60>$B$30,NA(),IF(A60>$A$8,"",OFFSET(InputPriceData!$D$15,CalculationsAndCharts!$A60+$A$11,IF($C$5,8,0),1,1))) -> 0.95 | F60: =IF(A60>$B$30,NA(),IF(A60>$A$8,"",OFFSET(InputPriceData!$E$15,CalculationsAndCharts!$A60+$A$11,IF($C$5,8,0),1,1))) -> 0.92 | G60: =IF(A60>$B$30,NA(),IF(A60>$A$8,"",OFFSET(InputPriceData!$F$15,CalculationsAndCharts!$A60+$A$11,IF($C$5,8,0),1,1))) -> 0.92 | H60: 0.93 | I60: 3407500 | J60: 6119960 | K60: -0.01 | L60: 0.03 | M60: 0.1161702478 | N60: 0.01161702478 | O60: 0 | P60: 0 | Q60: 61779200 | R60: 87317800 | S60: -13.91000377 | T60: -14.52351628 | U60: -11.51769171 | V60: 10 | W60: FALSE | AB60: FALSE | AC60: TRUE | AD60: TRUE | AE60: FALSE | AF60: FALSE | AG60: FALSE | AH60: -0.02 | AI60: 0 | AJ60: 0.02 | AK60: 0.01028073584 | AL60: 0.01619023139 | AM60: 38.83777934 | AN60: TRUE | AO60: FALSE | AX60: 3407500
A61: 29 | B61: =IF(A61>$B$30,NA(),IF($A61>$A$8,"",OFFSET(InputPriceData!$B$15,$A61+$A$11,0,1,1))) -> 2020-10-15 | C61: =IF(A61>$B$30,NA(),IF($A61>$A$8,"",OFFSET(InputPriceData!$G$15,CalculationsAndCharts!$A61+$A$11,IF($C$5,8,0),1,1))) -> 3728500 | D61: =IF(A61>$B$30,NA(),IF(A61>$A$8,"",OFFSET(InputPriceData!$C$15,CalculationsAndCharts!$A61+$A$11,IF($C$5,8,0),1,1))) -> 0.95 | E61: =IF(A61>$B$30,NA(),IF(A61>$A$8,"",OFFSET(InputPriceData!$D$15,CalculationsAndCharts!$A61+$A$11,IF($C$5,8,0),1,1))) -> 0.97 | F61: =IF(A61>$B$30,NA(),IF(A61>$A$8,"",OFFSET(InputPriceData!$E$15,CalculationsAndCharts!$A61+$A$11,IF($C$5,8,0),1,1))) -> 0.91 | G61: =IF(A61>$B$30,NA(),IF(A61>$A$8,"",OFFSET(InputPriceData!$F$15,CalculationsAndCharts!$A61+$A$11,IF($C$5,8,0),1,1))) -> 0.94 | H61: 0.94 | I61: 3728500 | J61: 6153316.667 | K61: -0.02333333333 | L61: 0.06 | M61: 0.1191416357 | N61: 0.01191416357 | O61: 0 | P61: 3728500 | Q61: 61779200 | R61: 91726000 | S61: -16.22257915 | T61: -15.1370288 | U61: -10.69838659 | V61: 10 | W61: FALSE | AB61: FALSE | AC61: TRUE | AD61: TRUE | AE61: FALSE | AF61: FALSE | AG61: FALSE | AH61: -0.01 | AI61: 0 | AJ61: 0.01 | AK61: 0.01156582782 | AL61: 0.01571401032 | AM61: 42.39698112 | AN61: TRUE | AO61: FALSE | AX61: 3728500
A62: 30 | B62: =IF(A62>$B$30,NA(),IF($A62>$A$8,"",OFFSET(InputPriceData!$B$15,$A62+$A$11,0,1,1))) -> 2020-10-14 | C62: =IF(A62>$B$30,NA(),IF($A62>$A$8,"",OFFSET(InputPriceData!$G$15,CalculationsAndCharts!$A62+$A$11,IF($C$5,8,0),1,1))) -> 3605200 | D62: =IF(A62>$B$30,NA(),IF(A62>$A$8,"",OFFSET(InputPriceData!$C$15,CalculationsAndCharts!$A62+$A$11,IF($C$5,8,0),1,1))) -> 0.98 | E62: =IF(A62>$B$30,NA(),IF(A62>$A$8,"",OFFSET(InputPriceData!$D$15,CalculationsAndCharts!$A62+$A$11,IF($C$5,8,0),1,1))) -> 0.99 | F62: =IF(A62>$B$30,NA(),IF(A62>$A$8,"",OFFSET(InputPriceData!$E$15,CalculationsAndCharts!$A62+$A$11,IF($C$5,8,0),1,1))) -> 0.95 | G62: =IF(A62>$B$30,NA(),IF(A62>$A$8,"",OFFSET(InputPriceData!$F$15,CalculationsAndCharts!$A62+$A$11,IF($C$5,8,0),1,1))) -> 0.95 | H62: 0.9633333333 | I62: 3605200 | J62: 6231976.667 | K62: -0.02 | L62: 0.04 | M62: 0.1211810024 | N62: 0.01211810024 | O62: 0 | P62: 3605200 | Q62: 61779200 | R62: 87997500 | S62: -14.02353346 | T62: -14.05147844 | U62: -9.864243674 | V62: 10 | W62: FALSE | AB62: FALSE | AC62: TRUE | AD62: TRUE | AE62: FALSE | AF62: FALSE | AG62: FALSE | AH62: -0.03 | AI62: 0 | AJ62: 0.03 | AK62: 0.0130115563 | AL62: 0.01642826161 | AM62: 44.19713581 | AN62: TRUE | AO62: FALSE | AX62: 3605200
A63: 31 | B63: =IF(A63>$B$30,NA(),IF($A63>$A$8,"",OFFSET(InputPriceData!$B$15,$A63+$A$11,0,1,1))) -> 2020-10-13 | C63: =IF(A63>$B$30,NA(),IF($A63>$A$8,"",OFFSET(InputPriceData!$G$15,CalculationsAndCharts!$A63+$A$11,IF($C$5,8,0),1,1))) -> 1964700 | D63: =IF(A63>$B$30,NA(),IF(A63>$A$8,"",OFFSET(InputPriceData!$C$15,CalculationsAndCharts!$A63+$A$11,IF($C$5,8,0),1,1))) -> 0.99 | E63: =IF(A63>$B$30,NA(),IF(A63>$A$8,"",OFFSET(InputPriceData!$D$15,CalculationsAndCharts!$A63+$A$11,IF($C$5,8,0),1,1))) -> 1 | F63: =IF(A63>$B$30,NA(),IF(A63>$A$8,"",OFFSET(InputPriceData!$E$15,CalculationsAndCharts!$A63+$A$11,IF($C$5,8,0),1,1))) -> 0.97 | G63: =IF(A63>$B$30,NA(),IF(A63>$A$8,"",OFFSET(InputPriceData!$F$15,CalculationsAndCharts!$A63+$A$11,IF($C$5,8,0),1,1))) -> 0.98 | H63: 0.9833333333 | I63: 1964700 | J63: 6285956.667 | K63: -0.02 | L63: 0.03 | M63: 0.1239803473 | N63: 0.01239803473 | O63: 0 | P63: 1964700 | Q63: 61779200 | R63: 89616900 | S63: -14.76184744 | T63: -14.07942342 | U63: -9.046580731 | V63: 10 | W63: FALSE | AB63: FALSE | AC63: TRUE | AD63: TRUE | AE63: FALSE | AF63: FALSE | AG63: FALSE | AH63: -0.02 | AI63: 0 | AJ63: 0.02 | AK63: 0.01463800084 | AL63: 0.01473179431 | AM63: 49.84032326 | AN63: TRUE | AO63: FALSE | AX63: 1964700
A64: 32 | B64: =IF(A64>$B$30,NA(),IF($A64>$A$8,"",OFFSET(InputPriceData!$B$15,$A64+$A$11,0,1,1))) -> 2020-10-12 | C64: =IF(A64>$B$30,NA(),IF($A64>$A$8,"",OFFSET(InputPriceData!$G$15,CalculationsAndCharts!$A64+$A$11,IF($C$5,8,0),1,1))) -> 2846800 | D64: =IF(A64>$B$30,NA(),IF(A64>$A$8,"",OFFSET(InputPriceData!$C$15,CalculationsAndCharts!$A64+$A$11,IF($C$5,8,0),1,1))) -> 1 | E64: =IF(A64>$B$30,NA(),IF(A64>$A$8,"",OFFSET(InputPriceData!$D$15,CalculationsAndCharts!$A64+$A$11,IF($C$5,8,0),1,1))) -> 1.02 | F64: =IF(A64>$B$30,NA(),IF(A64>$A$8,"",OFFSET(InputPriceData!$E$15,CalculationsAndCharts!$A64+$A$11,IF($C$5,8,0),1,1))) -> 0.99 | G64: =IF(A64>$B$30,NA(),IF(A64>$A$8,"",OFFSET(InputPriceData!$F$15,CalculationsAndCharts!$A64+$A$11,IF($C$5,8,0),1,1))) -> 1 | H64: 1.003333333 | I64: 2846800 | J64: 6396370 | K64: 0.003333333333 | L64: 0.03 | M64: 0.127221049 | N64: 0.0127221049 | O64: 0 | P64: 0 | Q64: 61779200 | R64: 87652200 | S64: -13.48316832 | T64: -13.3969994 | U64: -8.089235185 | V64: 10 | W64: FALSE | AB64: FALSE | AC64: TRUE | AD64: TRUE | AE64: FALSE | AF64: FALSE | AG64: FALSE | AH64: 0 | AI64: 0 | AJ64: 0 | AK64: 0.01646775095 | AL64: 0.01407326859 | AM64: 53.92010874 | AN64: TRUE | AO64: FALSE | AW64: 2846800
A65: 33 | B65: =IF(A65>$B$30,NA(),IF($A65>$A$8,"",OFFSET(InputPriceData!$B$15,$A65+$A$11,0,1,1))) -> 2020-10-09 | C65: =IF(A65>$B$30,NA(),IF($A65>$A$8,"",OFFSET(InputPriceData!$G$15,CalculationsAndCharts!$A65+$A$11,IF($C$5,8,0),1,1))) -> 3382200 | D65: =IF(A65>$B$30,NA(),IF(A65>$A$8,"",OFFSET(InputPriceData!$C$15,CalculationsAndCharts!$A65+$A$11,IF($C$5,8,0),1,1))) -> 0.99 | E65: =IF(A65>$B$30,NA(),IF(A65>$A$8,"",OFFSET(InputPriceData!$D$15,CalculationsAndCharts!$A65+$A$11,IF($C$5,8,0),1,1))) -> 1.02 | F65: =IF(A65>$B$30,NA(),IF(A65>$A$8,"",OFFSET(InputPriceData!$E$15,CalculationsAndCharts!$A65+$A$11,IF($C$5,8,0),1,1))) -> 0.98 | G65: =IF(A65>$B$30,NA(),IF(A65>$A$8,"",OFFSET(InputPriceData!$F$15,CalculationsAndCharts!$A65+$A$11,IF($C$5,8,0),1,1))) -> 1 | H65: 1 | I65: 3382200 | J65: 6407176.667 | K65: 0.02333333333 | L65: 0.05 | M65: 0.1305734989 | N65: 0.01305734989 | O65: 3382200 | P65: 0 | Q65: 61779200 | R65: 90823200 | S65: -15.11013952 | T65: -13.31083048 | U65: -7.054184761 | V65: 10 | W65: FALSE | AB65: FALSE | AC65: TRUE | AD65: TRUE | AE65: FALSE | AF65: FALSE | AG65: FALSE | AH65: 0.03 | AI65: 0.03 | AJ65: 0 | AK65: 0.01852621981 | AL65: 0.01583242717 | AM65: 53.92010874 | AN65: TRUE | AO65: FALSE | AW65: 3382200
A66: 34 | B66: =IF(A66>$B$30,NA(),IF($A66>$A$8,"",OFFSET(InputPriceData!$B$15,$A66+$A$11,0,1,1))) -> 2020-10-08 | C66: =IF(A66>$B$30,NA(),IF($A66>$A$8,"",OFFSET(InputPriceData!$G$15,CalculationsAndCharts!$A66+$A$11,IF($C$5,8,0),1,1))) -> 3367900 | D66: =IF(A66>$B$30,NA(),IF(A66>$A$8,"",OFFSET(InputPriceData!$C$15,CalculationsAndCharts!$A66+$A$11,IF($C$5,8,0),1,1))) -> 0.99 | E66: =IF(A66>$B$30,NA(),IF(A66>$A$8,"",OFFSET(InputPriceData!$D$15,CalculationsAndCharts!$A66+$A$11,IF($C$5,8,0),1,1))) -> 1 | F66: =IF(A66>$B$30,NA(),IF(A66>$A$8,"",OFFSET(InputPriceData!$E$15,CalculationsAndCharts!$A66+$A$11,IF($C$5,8,0),1,1))) -> 0.96 | G66: =IF(A66>$B$30,NA(),IF(A66>$A$8,"",OFFSET(InputPriceData!$F$15,CalculationsAndCharts!$A66+$A$11,IF($C$5,8,0),1,1))) -> 0.97 | H66: 0.9766666667 | I66: 3367900 | J66: 6550743.333 | K66: 0.003333333333 | L66: 0.04 | M66: 0.1333518954 | N66: 0.01333518954 | O66: 0 | P66: 0 | Q66: 66086200 | R66: 90823200 | S66: -12.58737558 | T66: -11.51152144 | U66: -5.970020603 | V66: 10 | W66: FALSE | AB66: FALSE | AC66: TRUE | AD66: TRUE | AE66: FALSE | AF66: FALSE | AG66: FALSE | AH66: 0.01 | AI66: 0.01 | AJ66: 0 | AK66: 0.01709199729 | AL66: 0.01781148056 | AM66: 48.96932438 | AN66: TRUE | AO66: FALSE | AX66: 3367900
A67: 35 | B67: =IF(A67>$B$30,NA(),IF($A67>$A$8,"",OFFSET(InputPriceData!$B$15,$A67+$A$11,0,1,1))) -> 2020-10-07 | C67: =IF(A67>$B$30,NA(),IF($A67>$A$8,"",OFFSET(InputPriceData!$G$15,CalculationsAndCharts!$A67+$A$11,IF($C$5,8,0),1,1))) -> 4737300 | D67: =IF(A67>$B$30,NA(),IF(A67>$A$8,"",OFFSET(InputPriceData!$C$15,CalculationsAndCharts!$A67+$A$11,IF($C$5,8,0),1,1))) -> 0.97 | E67: =IF(A67>$B$30,NA(),IF(A67>$A$8,"",OFFSET(InputPriceData!$D$15,CalculationsAndCharts!$A67+$A$11,IF($C$5,8,0),1,1))) -> 1.01 | F67: =IF(A67>$B$30,NA(),IF(A67>$A$8,"",OFFSET(InputPriceData!$E$15,CalculationsAndCharts!$A67+$A$11,IF($C$5,8,0),1,1))) -> 0.95 | G67: =IF(A67>$B$30,NA(),IF(A67>$A$8,"",OFFSET(InputPriceData!$F$15,CalculationsAndCharts!$A67+$A$11,IF($C$5,8,0),1,1))) -> 0.96 | H67: 0.9733333333 | I67: 4737300 | J67: 6588333.333 | K67: 0.01 | L67: 0.06 | M67: 0.1365709263 | N67: 0.01365709263 | O67: 0 | P67: 0 | Q67: 70581800 | R67: 90823200 | S67: -10.24103213 | T67: -10.43566731 | U67: -5.040622481 | V67: 10 | W67: FALSE | AB67: FALSE | AC67: TRUE | AD67: TRUE | AE67: FALSE | AF67: FALSE | AG67: FALSE | AH67: 0.01 | AI67: 0.01 | AJ67: 0 | AK67: 0.01797849695 | AL67: 0.02003791564 | AM67: 47.29140844 | AN67: TRUE | AO67: FALSE | AX67: 4737300
A68: 36 | B68: =IF(A68>$B$30,NA(),IF($A68>$A$8,"",OFFSET(InputPriceData!$B$15,$A68+$A$11,0,1,1))) -> 2020-10-06 | C68: =IF(A68>$B$30,NA(),IF($A68>$A$8,"",OFFSET(InputPriceData!$G$15,CalculationsAndCharts!$A68+$A$11,IF($C$5,8,0),1,1))) -> 14636400 | D68: =IF(A68>$B$30,NA(),IF(A68>$A$8,"",OFFSET(InputPriceData!$C$15,CalculationsAndCharts!$A68+$A$11,IF($C$5,8,0),1,1))) -> 0.91 | E68: =IF(A68>$B$30,NA(),IF(A68>$A$8,"",OFFSET(InputPriceData!$D$15,CalculationsAndCharts!$A68+$A$11,IF($C$5,8,0),1,1))) -> 1.04 | F68: =IF(A68>$B$30,NA(),IF(A68>$A$8,"",OFFSET(InputPriceData!$E$15,CalculationsAndCharts!$A68+$A$11,IF($C$5,8,0),1,1))) -> 0.9 | G68: =IF(A68>$B$30,NA(),IF(A68>$A$8,"",OFFSET(InputPriceData!$F$15,CalculationsAndCharts!$A68+$A$11,IF($C$5,8,0),1,1))) -> 0.95 | H68: 0.9633333333 | I68: 14636400 | J68: 6729103.333 | K68: 0.04333333333 | L68: 0.14 | M68: 0.1392113031 | N68: 0.01392113031 | O68: 14636400 | P68: 0 | Q68: 79542200 | R68: 90823200 | S68: -5.58816405 | T68: -10.63030249 | U68: -4.198149354 | V68: 10 | W68: FALSE | AB68: FALSE | AC68: TRUE | AD68: TRUE | AE68: FALSE | AF68: FALSE | AG68: FALSE | AH68: 0.04 | AI68: 0.04 | AJ68: 0 | AK68: 0.01897580907 | AL68: 0.02254265509 | AM68: 45.70450631 | AN68: TRUE | AO68: FALSE | AW68: 14636400
A69: 37 | B69: =IF(A69>$B$30,NA(),IF($A69>$A$8,"",OFFSET(InputPriceData!$B$15,$A69+$A$11,0,1,1))) -> 2020-10-05 | C69: =IF(A69>$B$30,NA(),IF($A69>$A$8,"",OFFSET(InputPriceData!$G$15,CalculationsAndCharts!$A69+$A$11,IF($C$5,8,0),1,1))) -> 2690900 | D69: =IF(A69>$B$30,NA(),IF(A69>$A$8,"",OFFSET(InputPriceData!$C$15,CalculationsAndCharts!$A69+$A$11,IF($C$5,8,0),1,1))) -> 0.91 | E69: =IF(A69>$B$30,NA(),IF(A69>$A$8,"",OFFSET(InputPriceData!$D$15,CalculationsAndCharts!$A69+$A$11,IF($C$5,8,0),1,1))) -> 0.94 | F69: =IF(A69>$B$30,NA(),IF(A69>$A$8,"",OFFSET(InputPriceData!$E$15,CalculationsAndCharts!$A69+$A$11,IF($C$5,8,0),1,1))) -> 0.91 | G69: =IF(A69>$B$30,NA(),IF(A69>$A$8,"",OFFSET(InputPriceData!$F$15,CalculationsAndCharts!$A69+$A$11,IF($C$5,8,0),1,1))) -> 0.91 | H69: 0.92 | I69: 2690900 | J69: 6419460 | K69: 0.01333333333 | L69: 0.03 | M69: 0.1391841066 | N69: 0.01391841066 | O69: 0 | P69: 0 | Q69: 64905800 | R69: 96170300 | S69: -16.23423154 | T69: -15.67244093 | U69: -3.492998516 | V69: 10 | W69: FALSE | AB69: FALSE | AC69: TRUE | AD69: TRUE | AE69: FALSE | AF69: FALSE | AG69: FALSE | AH69: 0 | AI69: 0 | AJ69: 0 | AK69: 0.0163477852 | AL69: 0.02536048698 | AM69: 39.19554647 | AN69: TRUE | AO69: FALSE | AW69: 2690900
A70: 38 | B70: =IF(A70>$B$30,NA(),IF($A70>$A$8,"",OFFSET(InputPriceData!$B$15,$A70+$A$11,0,1,1))) -> 2020-10-02 | C70: =IF(A70>$B$30,NA(),IF($A70>$A$8,"",OFFSET(InputPriceData!$G$15,CalculationsAndCharts!$A70+$A$11,IF($C$5,8,0),1,1))) -> 2893100 | D70: =IF(A70>$B$30,NA(),IF(A70>$A$8,"",OFFSET(InputPriceData!$C$15,CalculationsAndCharts!$A70+$A$11,IF($C$5,8,0),1,1))) -> 0.9 | E70: =IF(A70>$B$30,NA(),IF(A70>$A$8,"",OFFSET(InputPriceData!$D$15,CalculationsAndCharts!$A70+$A$11,IF($C$5,8,0),1,1))) -> 0.93 | F70: =IF(A70>$B$30,NA(),IF(A70>$A$8,"",OFFSET(InputPriceData!$E$15,CalculationsAndCharts!$A70+$A$11,IF($C$5,8,0),1,1))) -> 0.88 | G70: =IF(A70>$B$30,NA(),IF(A70>$A$8,"",OFFSET(InputPriceData!$F$15,CalculationsAndCharts!$A70+$A$11,IF($C$5,8,0),1,1))) -> 0.91 | H70: 0.9066666667 | I70: 2893100 | J70: 6626473.333 | K70: -0.04 | L70: 0.07 | M70: 0.1429490758 | N70: 0.01429490758 | O70: 0 | P70: 2893100 | Q70: 64905800 | R70: 105071600 | S70: -20.20471422 | T70: -15.11065032 | U70: -2.710727396 | V70: 10 | W70: FALSE | AB70: FALSE | AC70: TRUE | AD70: TRUE | AE70: FALSE | AF70: FALSE | AG70: FALSE | AH70: -0.04 | AI70: 0 | AJ70: 0.04 | AK70: 0.01839125836 | AL70: 0.02853054785 | AM70: 39.19554647 | AN70: TRUE | AO70: FALSE | AW70: 2893100
A71: 39 | B71: =IF(A71>$B$30,NA(),IF($A71>$A$8,"",OFFSET(InputPriceData!$B$15,$A71+$A$11,0,1,1))) -> 2020-10-01 | C71: =IF(A71>$B$30,NA(),IF($A71>$A$8,"",OFFSET(InputPriceData!$G$15,CalculationsAndCharts!$A71+$A$11,IF($C$5,8,0),1,1))) -> 4844500 | D71: =IF(A71>$B$30,NA(),IF(A71>$A$8,"",OFFSET(InputPriceData!$C$15,CalculationsAndCharts!$A71+$A$11,IF($C$5,8,0),1,1))) -> 0.89 | E71: =IF(A71>$B$30,NA(),IF(A71>$A$8,"",OFFSET(InputPriceData!$D$15,CalculationsAndCharts!$A71+$A$11,IF($C$5,8,0),1,1))) -> 1 | F71: =IF(A71>$B$30,NA(),IF(A71>$A$8,"",OFFSET(InputPriceData!$E$15,CalculationsAndCharts!$A71+$A$11,IF($C$5,8,0),1,1))) -> 0.89 | G71: =IF(A71>$B$30,NA(),IF(A71>$A$8,"",OFFSET(InputPriceData!$F$15,CalculationsAndCharts!$A71+$A$11,IF($C$5,8,0),1,1))) -> 0.95 | H71: 0.9466666667 | I71: 4844500 | J71: 7329000 | K71: 0.02666666667 | L71: 0.11 | M71: 0.1454645612 | N71: 0.01454645612 | O71: 4844500 | P71: 0 | Q71: 88874700 | R71: 102178500 | S71: -6.050757266 | T71: -10.01658641 | U71: -2.019794551 | V71: 10 | W71: FALSE | AB71: FALSE | AC71: TRUE | AD71: TRUE | AE71: FALSE | AF71: FALSE | AG71: FALSE | AH71: 0.04 | AI71: 0.04 | AJ71: 0 | AK71: 0.02069016565 | AL71: 0.02709686633 | AM71: 43.29661164 | AN71: TRUE | AO71: FALSE | AW71: 4844500
A72: 40 | B72: =IF(A72>$B$30,NA(),IF($A72>$A$8,"",OFFSET(InputPriceData!$B$15,$A72+$A$11,0,1,1))) -> 2020-09-30 | C72: =IF(A72>$B$30,NA(),IF($A72>$A$8,"",OFFSET(InputPriceData!$G$15,CalculationsAndCharts!$A72+$A$11,IF($C$5,8,0),1,1))) -> 4392800 | D72: =IF(A72>$B$30,NA(),IF(A72>$A$8,"",OFFSET(InputPriceData!$C$15,CalculationsAndCharts!$A72+$A$11,IF($C$5,8,0),1,1))) -> 0.9 | E72: =IF(A72>$B$30,NA(),IF(A72>$A$8,"",OFFSET(InputPriceData!$D$15,CalculationsAndCharts!$A72+$A$11,IF($C$5,8,0),1,1))) -> 0.96 | F72: =IF(A72>$B$30,NA(),IF(A72>$A$8,"",OFFSET(InputPriceData!$E$15,CalculationsAndCharts!$A72+$A$11,IF($C$5,8,0),1,1))) -> 0.89 | G72: =IF(A72>$B$30,NA(),IF(A72>$A$8,"",OFFSET(InputPriceData!$F$15,CalculationsAndCharts!$A72+$A$11,IF($C$5,8,0),1,1))) -> 0.91 | H72: 0.92 | I72: 4392800 | J72: 7347276.667 | K72: -0.006666666667 | L72: 0.07 | M72: 0.1466874771 | N72: 0.01466874771 | O72: 0 | P72: 0 | Q72: 84030200 | R72: 107571300 | S72: -10.68019307 | T72: -13.98241556 | U72: -1.593544447 | V72: 10 | W72: FALSE | AB72: FALSE | AC72: TRUE | AD72: TRUE | AE72: FALSE | AF72: FALSE | AG72: FALSE | AH72: 0 | AI72: 0 | AJ72: 0 | AK72: 0.01827643636 | AL72: 0.03048397462 | AM72: 37.48212123 | AN72: TRUE | AO72: FALSE | AW72: 4392800
A73: 41 | B73: =IF(A73>$B$30,NA(),IF($A73>$A$8,"",OFFSET(InputPriceData!$B$15,$A73+$A$11,0,1,1))) -> 2020-09-29 | C73: =IF(A73>$B$30,NA(),IF($A73>$A$8,"",OFFSET(InputPriceData!$G$15,CalculationsAndCharts!$A73+$A$11,IF($C$5,8,0),1,1))) -> 4970400 | D73: =IF(A73>$B$30,NA(),IF(A73>$A$8,"",OFFSET(InputPriceData!$C$15,CalculationsAndCharts!$A73+$A$11,IF($C$5,8,0),1,1))) -> 0.96 | E73: =IF(A73>$B$30,NA(),IF(A73>$A$8,"",OFFSET(InputPriceData!$D$15,CalculationsAndCharts!$A73+$A$11,IF($C$5,8,0),1,1))) -> 0.97 | F73: =IF(A73>$B$30,NA(),IF(A73>$A$8,"",OFFSET(InputPriceData!$E$15,CalculationsAndCharts!$A73+$A$11,IF($C$5,8,0),1,1))) -> 0.9 | G73: =IF(A73>$B$30,NA(),IF(A73>$A$8,"",OFFSET(InputPriceData!$F$15,CalculationsAndCharts!$A73+$A$11,IF($C$5,8,0),1,1))) -> 0.91 | H73: 0.9266666667 | I73: 4970400 | J73: 7526393.333 | K73: -0.05 | L73: 0.07 | M73: 0.1493318729 | N73: 0.01493318729 | O73: 0 | P73: 4970400 | Q73: 84030200 | R73: 117337600 | S73: -14.75137715 | T73: -17.28463806 | U73: -0.8251331756 | V73: 10 | W73: FALSE | AB73: FALSE | AC73: TRUE | AD73: TRUE | AE73: FALSE | AF73: FALSE | AG73: FALSE | AH73: -0.05 | AI73: 0 | AJ73: 0.05 | AK73: 0.0205609909 | AL73: 0.03429447145 | AM73: 37.48212123 | AN73: TRUE | AO73: FALSE | AX73: 4970400
A74: 42 | B74: =IF(A74>$B$30,NA(),IF($A74>$A$8,"",OFFSET(InputPriceData!$B$15,$A74+$A$11,0,1,1))) -> 2020-09-28 | C74: =IF(A74>$B$30,NA(),IF($A74>$A$8,"",OFFSET(InputPriceData!$G$15,CalculationsAndCharts!$A74+$A$11,IF($C$5,8,0),1,1))) -> 6895600 | D74: =IF(A74>$B$30,NA(),IF(A74>$A$8,"",OFFSET(InputPriceData!$C$15,CalculationsAndCharts!$A74+$A$11,IF($C$5,8,0),1,1))) -> 1 | E74: =IF(A74>$B$30,NA(),IF(A74>$A$8,"",OFFSET(InputPriceData!$D$15,CalculationsAndCharts!$A74+$A$11,IF($C$5,8,0),1,1))) -> 1.04 | F74: =IF(A74>$B$30,NA(),IF(A74>$A$8,"",OFFSET(InputPriceData!$E$15,CalculationsAndCharts!$A74+$A$11,IF($C$5,8,0),1,1))) -> 0.93 | G74: =IF(A74>$B$30,NA(),IF(A74>$A$8,"",OFFSET(InputPriceData!$F$15,CalculationsAndCharts!$A74+$A$11,IF($C$5,8,0),1,1))) -> 0.96 | H74: 0.9766666667 | I74: 6895600 | J74: 7594826.667 | K74: 0.01666666667 | L74: 0.11 | M74: 0.1520674547 | N74: 0.01520674547 | O74: 6895600 | P74: 0 | Q74: 84030200 | R74: 119390600 | S74: -15.51951153 | T74: -19.81789896 | U74: -0.05969613299 | V74: 10 | W74: FALSE | AB74: FALSE | AC74: TRUE | AD74: TRUE | AE74: FALSE | AF74: FALSE | AG74: FALSE | AH74: -0.01 | AI74: 0 | AJ74: 0.01 | AK74: 0.02313111476 | AL74: 0.03233128038 | AM74: 41.70594275 | AN74: TRUE | AO74: FALSE | AX74: 6895600
A75: 43 | B75: =IF(A75>$B$30,NA(),IF($A75>$A$8,"",OFFSET(InputPriceData!$B$15,$A75+$A$11,0,1,1))) -> 2020-09-25 | C75: =IF(A75>$B$30,NA(),IF($A75>$A$8,"",OFFSET(InputPriceData!$G$15,CalculationsAndCharts!$A75+$A$11,IF($C$5,8,0),1,1))) -> 13520800 | D75: =IF(A75>$B$30,NA(),IF(A75>$A$8,"",OFFSET(InputPriceData!$C$15,CalculationsAndCharts!$A75+$A$11,IF($C$5,8,0),1,1))) -> 0.9 | E75: =IF(A75>$B$30,NA(),IF(A75>$A$8,"",OFFSET(InputPriceData!$D$15,CalculationsAndCharts!$A75+$A$11,IF($C$5,8,0),1,1))) -> 1.04 | F75: =IF(A75>$B$30,NA(),IF(A75>$A$8,"",OFFSET(InputPriceData!$E$15,CalculationsAndCharts!$A75+$A$11,IF($C$5,8,0),1,1))) -> 0.87 | G75: =IF(A75>$B$30,NA(),IF(A75>$A$8,"",OFFSET(InputPriceData!$F$15,CalculationsAndCharts!$A75+$A$11,IF($C$5,8,0),1,1))) -> 0.97 | H75: 0.96 | I75: 13520800 | J75: 7549703.333 | K75: 0.08666666667 | L75: 0.17 | M75: 0.1535180566 | N75: 0.01535180566 | O75: 13520800 | P75: 0 | Q75: 77134600 | R75: 119390600 | S75: -18.65680373 | T75: -24.1162864 | U75: 0.6497688586 | V75: 10 | W75: FALSE | AB75: FALSE | AC75: TRUE | AD75: TRUE | AE75: FALSE | AF75: FALSE | AG75: FALSE | AH75: 0.1 | AI75: 0.1 | AJ75: 0 | AK75: 0.02602250411 | AL75: 0.03512269043 | AM75: 42.55854333 | AN75: TRUE | AO75: FALSE | AW75: 13520800
A76: 44 | B76: =IF(A76>$B$30,NA(),IF($A76>$A$8,"",OFFSET(InputPriceData!$B$15,$A76+$A$11,0,1,1))) -> 2020-09-24 | C76: =IF(A76>$B$30,NA(),IF($A76>$A$8,"",OFFSET(InputPriceData!$G$15,CalculationsAndCharts!$A76+$A$11,IF($C$5,8,0),1,1))) -> 11281800 | D76: =IF(A76>$B$30,NA(),IF(A76>$A$8,"",OFFSET(InputPriceData!$C$15,CalculationsAndCharts!$A76+$A$11,IF($C$5,8,0),1,1))) -> 0.84 | E76: =IF(A76>$B$30,NA(),IF(A76>$A$8,"",OFFSET(InputPriceData!$D$15,CalculationsAndCharts!$A76+$A$11,IF($C$5,8,0),1,1))) -> 0.93 | F76: =IF(A76>$B$30,NA(),IF(A76>$A$8,"",OFFSET(InputPriceData!$E$15,CalculationsAndCharts!$A76+$A$11,IF($C$5,8,0),1,1))) -> 0.82 | G76: =IF(A76>$B$30,NA(),IF(A76>$A$8,"",OFFSET(InputPriceData!$F$15,CalculationsAndCharts!$A76+$A$11,IF($C$5,8,0),1,1))) -> 0.87 | H76: 0.8733333333 | I76: 11281800 | J76: 7374303.333 | K76: 0.03 | L76: 0.12 | M76: 0.1529497137 | N76: 0.01529497137 | O76: 11281800 | P76: 0 | Q76: 63613800 | R76: 127649400 | S76: -28.94537834 | T76: -29.57576907 | U76: 1.380038578 | V76: 10 | W76: FALSE | AB76: FALSE | AC76: TRUE | AD76: TRUE | AE76: FALSE | AF76: FALSE | AG76: FALSE | AH76: 0.06 | AI76: 0.06 | AJ76: 0 | AK76: 0.01677531712 | AL76: 0.03951302673 | AM76: 29.80247059 | AN76: TRUE | AO76: FALSE | AW76: 11281800
A77: 45 | B77: =IF(A77>$B$30,NA(),IF($A77>$A$8,"",OFFSET(InputPriceData!$B$15,$A77+$A$11,0,1,1))) -> 2020-09-23 | C77: =IF(A77>$B$30,NA(),IF($A77>$A$8,"",OFFSET(InputPriceData!$G$15,CalculationsAndCharts!$A77+$A$11,IF($C$5,8,0),1,1))) -> 12442200 | D77: =IF(A77>$B$30,NA(),IF(A77>$A$8,"",OFFSET(InputPriceData!$C$15,CalculationsAndCharts!$A77+$A$11,IF($C$5,8,0),1,1))) -> 0.9 | E77: =IF(A77>$B$30,NA(),IF(A77>$A$8,"",OFFSET(InputPriceData!$D$15,CalculationsAndCharts!$A77+$A$11,IF($C$5,8,0),1,1))) -> 0.91 | F77: =IF(A77>$B$30,NA(),IF(A77>$A$8,"",OFFSET(InputPriceData!$E$15,CalculationsAndCharts!$A77+$A$11,IF($C$5,8,0),1,1))) -> 0.81 | G77: =IF(A77>$B$30,NA(),IF(A77>$A$8,"",OFFSET(InputPriceData!$F$15,CalculationsAndCharts!$A77+$A$11,IF($C$5,8,0),1,1))) -> 0.81 | H77: 0.8433333333 | I77: 12442200 | J77: 7562643.333 | K77: -0.07666666667 | L77: 0.1 | M77: 0.1540859107 | N77: 0.01540859107 | O77: 0 | P77: 12442200 | Q77: 52332000 | R77: 127649400 | S77: -33.19712288 | T77: -30.20615979 | U77: 2.329688049 | V77: 10 | W77: FALSE | AB77: FALSE | AC77: TRUE | AD77: TRUE | AE77: FALSE | AF77: FALSE | AG77: FALSE | AH77: -0.1 | AI77: 0 | AJ77: 0.1 | AK77: 0.01137223176 | AL77: 0.04445215507 | AM77: 20.37144053 | AN77: TRUE | AO77: FALSE | AX77: 12442200
A78: 46 | B78: =IF(A78>$B$30,NA(),IF($A78>$A$8,"",OFFSET(InputPriceData!$B$15,$A78+$A$11,0,1,1))) -> 2020-09-22 | C78: =IF(A78>$B$30,NA(),IF($A78>$A$8,"",OFFSET(InputPriceData!$G$15,CalculationsAndCharts!$A78+$A$11,IF($C$5,8,0),1,1))) -> 6769300 | D78: =IF(A78>$B$30,NA(),IF(A78>$A$8,"",OFFSET(InputPriceData!$C$15,CalculationsAndCharts!$A78+$A$11,IF($C$5,8,0),1,1))) -> 0.93 | E78: =IF(A78>$B$30,NA(),IF(A78>$A$8,"",OFFSET(InputPriceData!$D$15,CalculationsAndCharts!$A78+$A$11,IF($C$5,8,0),1,1))) -> 0.95 | F78: =IF(A78>$B$30,NA(),IF(A78>$A$8,"",OFFSET(InputPriceData!$E$15,CalculationsAndCharts!$A78+$A$11,IF($C$5,8,0),1,1))) -> 0.9 | G78: =IF(A78>$B$30,NA(),IF(A78>$A$8,"",OFFSET(InputPriceData!$F$15,CalculationsAndCharts!$A78+$A$11,IF($C$5,8,0),1,1))) -> 0.91 | H78: 0.92 | I78: 6769300 | J78: 7843933.333 | K78: -0.04333333333 | L78: 0.07 | M78: 0.1559509421 | N78: 0.01559509421 | O78: 0 | P78: 6769300 | Q78: 52332000 | R78: 136088100 | S78: -35.59272984 | T78: -27.21519671 | U78: 3.614037261 | V78: 10 | W78: FALSE | AB78: FALSE | AC78: TRUE | AD78: TRUE | AE78: FALSE | AF78: FALSE | AG78: FALSE | AH78: -0.06 | AI78: 0 | AJ78: 0.06 | AK78: 0.01279376073 | AL78: 0.03750867445 | AM78: 25.43368067 | AN78: TRUE | AO78: FALSE | AX78: 6769300
A79: 47 | B79: =IF(A79>$B$30,NA(),IF($A79>$A$8,"",OFFSET(InputPriceData!$B$15,$A79+$A$11,0,1,1))) -> 2020-09-21 | C79: =IF(A79>$B$30,NA(),IF($A79>$A$8,"",OFFSET(InputPriceData!$G$15,CalculationsAndCharts!$A79+$A$11,IF($C$5,8,0),1,1))) -> 7538500 | D79: =IF(A79>$B$30,NA(),IF(A79>$A$8,"",OFFSET(InputPriceData!$C$15,CalculationsAndCharts!$A79+$A$11,IF($C$5,8,0),1,1))) -> 1 | E79: =IF(A79>$B$30,NA(),IF(A79>$A$8,"",OFFSET(InputPriceData!$D$15,CalculationsAndCharts!$A79+$A$11,IF($C$5,8,0),1,1))) -> 1 | F79: =IF(A79>$B$30,NA(),IF(A79>$A$8,"",OFFSET(InputPriceData!$E$15,CalculationsAndCharts!$A79+$A$11,IF($C$5,8,0),1,1))) -> 0.92 | G79: =IF(A79>$B$30,NA(),IF(A79>$A$8,"",OFFSET(InputPriceData!$F$15,CalculationsAndCharts!$A79+$A$11,IF($C$5,8,0),1,1))) -> 0.97 | H79: 0.9633333333 | I79: 7538500 | J79: 8455146.667 | K79: -0.05 | L79: 0.09 | M79: 0.1589147677 | N79: 0.01589147677 | O79: 0 | P79: 7538500 | Q79: 77437700 | R79: 129318800 | S79: -20.45345951 | T79: -18.83766357 | U79: 4.904663195 | V79: 10 | W79: FALSE | AB79: FALSE | AC79: TRUE | AD79: TRUE | AE79: FALSE | AF79: FALSE | AG79: FALSE | AH79: -0.04 | AI79: 0 | AJ79: 0.04 | AK79: 0.01439298082 | AL79: 0.03469725876 | AM79: 29.31943487 | AN79: TRUE | AO79: FALSE | AX79: 7538500
A80: 48 | B80: =IF(A80>$B$30,NA(),IF($A80>$A$8,"",OFFSET(InputPriceData!$B$15,$A80+$A$11,0,1,1))) -> 2020-09-18 | C80: =IF(A80>$B$30,NA(),IF($A80>$A$8,"",OFFSET(InputPriceData!$G$15,CalculationsAndCharts!$A80+$A$11,IF($C$5,8,0),1,1))) -> 6069500 | D80: =IF(A80>$B$30,NA(),IF(A80>$A$8,"",OFFSET(InputPriceData!$C$15,CalculationsAndCharts!$A80+$A$11,IF($C$5,8,0),1,1))) -> 1.04 | E80: =IF(A80>$B$30,NA(),IF(A80>$A$8,"",OFFSET(InputPriceData!$D$15,CalculationsAndCharts!$A80+$A$11,IF($C$5,8,0),1,1))) -> 1.04 | F80: =IF(A80>$B$30,NA(),IF(A80>$A$8,"",OFFSET(InputPriceData!$E$15,CalculationsAndCharts!$A80+$A$11,IF($C$5,8,0),1,1))) -> 0.99 | G80: =IF(A80>$B$30,NA(),IF(A80>$A$8,"",OFFSET(InputPriceData!$F$15,CalculationsAndCharts!$A80+$A$11,IF($C$5,8,0),1,1))) -> 1.01 | H80: 1.013333333 | I80: 6069500 | J80: 8543966.667 | K80: -0.01 | L80: 0.05 | M80: 0.161291139 | N80: 0.0161291139 | O80: 0 | P80: 0 | Q80: 77437700 | R80: 131983400 | S80: -21.28039669 | T80: -17.22186764 | U80: 5.404473455 | V80: 10 | W80: FALSE | AB80: TRUE | AC80: TRUE | AD80: TRUE | AE80: TRUE | AF80: FALSE | AG80: FALSE | AH80: -0.03 | AI80: 0 | AJ80: 0.03 | AK80: 0.01619210343 | AL80: 0.03403441611 | AM80: 32.23815542 | AN80: TRUE | AO80: FALSE | AX80: 6069500
A81: 49 | B81: =IF(A81>$B$30,NA(),IF($A81>$A$8,"",OFFSET(InputPriceData!$B$15,$A81+$A$11,0,1,1))) -> 2020-09-17 | C81: =IF(A81>$B$30,NA(),IF($A81>$A$8,"",OFFSET(InputPriceData!$G$15,CalculationsAndCharts!$A81+$A$11,IF($C$5,8,0),1,1))) -> 6887100 | D81: =IF(A81>$B$30,NA(),IF(A81>$A$8,"",OFFSET(InputPriceData!$C$15,CalculationsAndCharts!$A81+$A$11,IF($C$5,8,0),1,1))) -> 1.05 | E81: =IF(A81>$B$30,NA(),IF(A81>$A$8,"",OFFSET(InputPriceData!$D$15,CalculationsAndCharts!$A81+$A$11,IF($C$5,8,0),1,1))) -> 1.08 | F81: =IF(A81>$B$30,NA(),IF(A81>$A$8,"",OFFSET(InputPriceData!$E$15,CalculationsAndCharts!$A81+$A$11,IF($C$5,8,0),1,1))) -> 0.95 | G81: =IF(A81>$B$30,NA(),IF(A81>$A$8,"",OFFSET(InputPriceData!$F$15,CalculationsAndCharts!$A81+$A$11,IF($C$5,8,0),1,1))) -> 1.04 | H81: 1.023333333 | I81: 6887100 | J81: 8622243.333 | K81: -0.05 | L81: 0.13 | M81: 0.1651287645 | N81: 0.01651287645 | O81: 0 | P81: 6887100 | Q81: 85855500 | R81: 131983400 | S81: -17.83290737 | T81: -13.16333859 | U81: 5.692700736 | V81: 10 | W81: FALSE | AB81: TRUE | AC81: TRUE | AD81: TRUE | AE81: TRUE | AF81: FALSE | AG81: FALSE | AH81: -0.04 | AI81: 0 | AJ81: 0.04 | AK81: 0.01821611636 | AL81: 0.03453871812 | AM81: 34.52975739 | AN81: TRUE | AO81: FALSE | AX81: 6887100
A82: 50 | B82: =IF(A82>$B$30,NA(),IF($A82>$A$8,"",OFFSET(InputPriceData!$B$15,$A82+$A$11,0,1,1))) -> 2020-09-16 | C82: =IF(A82>$B$30,NA(),IF($A82>$A$8,"",OFFSET(InputPriceData!$G$15,CalculationsAndCharts!$A82+$A$11,IF($C$5,8,0),1,1))) -> 6817200 | D82: =IF(A82>$B$30,NA(),IF(A82>$A$8,"",OFFSET(InputPriceData!$C$15,CalculationsAndCharts!$A82+$A$11,IF($C$5,8,0),1,1))) -> 1.08 | E82: =IF(A82>$B$30,NA(),IF(A82>$A$8,"",OFFSET(InputPriceData!$D$15,CalculationsAndCharts!$A82+$A$11,IF($C$5,8,0),1,1))) -> 1.09 | F82: =IF(A82>$B$30,NA(),IF(A82>$A$8,"",OFFSET(InputPriceData!$E$15,CalculationsAndCharts!$A82+$A$11,IF($C$5,8,0),1,1))) -> 1.05 | G82: =IF(A82>$B$30,NA(),IF(A82>$A$8,"",OFFSET(InputPriceData!$F$15,CalculationsAndCharts!$A82+$A$11,IF($C$5,8,0),1,1))) -> 1.08 | H82: 1.073333333 | I82: 6817200 | J82: 8776490 | K82: -0.05666666667 | L82: 0.07 | M82: 0.1663401012 | N82: 0.01663401012 | O82: 0 | P82: 6817200 | Q82: 97370000 | R82: 125096300 | S82: -10.5305196 | T82: -8.493769803 | U82: 5.795579642 | V82: 10 | W82: FALSE | AB82: TRUE | AC82: TRUE | AD82: TRUE | AE82: TRUE | AF82: FALSE | AG82: FALSE | AH82: -0.04 | AI82: 0 | AJ82: 0.04 | AK82: 0.0204931309 | AL82: 0.03385605788 | AM82: 37.70641542 | AN82: TRUE | AO82: FALSE | AW82: 6817200
A83: 51 | B83: =IF(A83>$B$30,NA(),IF($A83>$A$8,"",OFFSET(InputPriceData!$B$15,$A83+$A$11,0,1,1))) -> 2020-09-15 | C83: =IF(A83>$B$30,NA(),IF($A83>$A$8,"",OFFSET(InputPriceData!$G$15,CalculationsAndCharts!$A83+$A$11,IF($C$5,8,0),1,1))) -> 12095700 | D83: =IF(A83>$B$30,NA(),IF(A83>$A$8,"",OFFSET(InputPriceData!$C$15,CalculationsAndCharts!$A83+$A$11,IF($C$5,8,0),1,1))) -> 1.11 | E83: =IF(A83>$B$30,NA(),IF(A83>$A$8,"",OFFSET(InputPriceData!$D$15,CalculationsAndCharts!$A83+$A$11,IF($C$5,8,0),1,1))) -> 1.19 | F83: =IF(A83>$B$30,NA(),IF(A83>$A$8,"",OFFSET(InputPriceData!$E$15,CalculationsAndCharts!$A83+$A$11,IF($C$5,8,0),1,1))) -> 1.08 | G83: =IF(A83>$B$30,NA(),IF(A83>$A$8,"",OFFSET(InputPriceData!$F$15,CalculationsAndCharts!$A83+$A$11,IF($C$5,8,0),1,1))) -> 1.12 | H83: 1.13 | I83: 12095700 | J83: 9076850 | K83: -0.03 | L83: 0.13 | M83: 0.1696621737 | N83: 0.01696621737 | O83: 0 | P83: 12095700 | Q83: 97370000 | R83: 134107100 | S83: -13.49113404 | T83: -6.457020001 | U83: 5.890754589 | V83: 10 | W83: FALSE | AB83: TRUE | AC83: TRUE | AD83: TRUE | AE83: TRUE | AF83: FALSE | AG83: FALSE | AH83: -0.09 | AI83: 0 | AJ83: 0.09 | AK83: 0.02305477226 | AL83: 0.03308806512 | AM83: 41.06449431 | AN83: TRUE | AO83: FALSE | AW83: 12095700
A84: 52 | B84: =IF(A84>$B$30,NA(),IF($A84>$A$8,"",OFFSET(InputPriceData!$B$15,$A84+$A$11,0,1,1))) -> 2020-09-14 | C84: =IF(A84>$B$30,NA(),IF($A84>$A$8,"",OFFSET(InputPriceData!$G$15,CalculationsAndCharts!$A84+$A$11,IF($C$5,8,0),1,1))) -> 7217900 | D84: =IF(A84>$B$30,NA(),IF(A84>$A$8,"",OFFSET(InputPriceData!$C$15,CalculationsAndCharts!$A84+$A$11,IF($C$5,8,0),1,1))) -> 1.09 | E84: =IF(A84>$B$30,NA(),IF(A84>$A$8,"",OFFSET(InputPriceData!$D$15,CalculationsAndCharts!$A84+$A$11,IF($C$5,8,0),1,1))) -> 1.22 | F84: =IF(A84>$B$30,NA(),IF(A84>$A$8,"",OFFSET(InputPriceData!$E$15,CalculationsAndCharts!$A84+$A$11,IF($C$5,8,0),1,1))) -> 1.05 | G84: =IF(A84>$B$30,NA(),IF(A84>$A$8,"",OFFSET(InputPriceData!$F$15,CalculationsAndCharts!$A84+$A$11,IF($C$5,8,0),1,1))) -> 1.21 | H84: 1.16 | I84: 7217900 | J84: 9368143.333 | K84: 0.08333333333 | L84: 0.17 | M84: 0.1710298348 | N84: 0.01710298348 | O84: 7217900 | P84: 0 | Q84: 118204500 | R84: 122011400 | S84: -1.354555136 | T84: 0.5770940358 | U84: 6.492546799 | V84: 10 | W84: FALSE | AB84: TRUE | AC84: TRUE | AD84: TRUE | AE84: TRUE | AF84: FALSE | AG84: FALSE | AH84: 0.12 | AI84: 0.12 | AJ84: 0 | AK84: 0.0259366188 | AL84: 0.02597407326 | AM84: 49.96392413 | AN84: TRUE | AO84: FALSE | AW84: 7217900
A85: 53 | B85: =IF(A85>$B$30,NA(),IF($A85>$A$8,"",OFFSET(InputPriceData!$B$15,$A85+$A$11,0,1,1))) -> 2020-09-11 | C85: =IF(A85>$B$30,NA(),IF($A85>$A$8,"",OFFSET(InputPriceData!$G$15,CalculationsAndCharts!$A85+$A$11,IF($C$5,8,0),1,1))) -> 5287400 | D85: =IF(A85>$B$30,NA(),IF(A85>$A$8,"",OFFSET(InputPriceData!$C$15,CalculationsAndCharts!$A85+$A$11,IF($C$5,8,0),1,1))) -> 1.08 | E85: =IF(A85>$B$30,NA(),IF(A85>$A$8,"",OFFSET(InputPriceData!$D$15,CalculationsAndCharts!$A85+$A$11,IF($C$5,8,0),1,1))) -> 1.11 | F85: =IF(A85>$B$30,NA(),IF(A85>$A$8,"",OFFSET(InputPriceData!$E$15,CalculationsAndCharts!$A85+$A$11,IF($C$5,8,0),1,1))) -> 1.03 | G85: =IF(A85>$B$30,NA(),IF(A85>$A$8,"",OFFSET(InputPriceData!$F$15,CalculationsAndCharts!$A85+$A$11,IF($C$5,8,0),1,1))) -> 1.09 | H85: 1.076666667 | I85: 5287400 | J85: 9422533.333 | K85: -0.04333333333 | L85: 0.08 | M85: 0.1710653464 | N85: 0.01710653464 | O85: 0 | P85: 5287400 | Q85: 110986600 | R85: 122011400 | S85: -3.90015424 | T85: 2.508743208 | U85: 6.97692389 | V85: 10 | W85: FALSE | AB85: TRUE | AC85: TRUE | AD85: TRUE | AE85: TRUE | AF85: FALSE | AG85: FALSE | AH85: -0.01 | AI85: 0 | AJ85: 0.01 | AK85: 0.01417869614 | AL85: 0.02922083242 | AM85: 32.67016167 | AN85: TRUE | AO85: FALSE | AW85: 5287400
A86: 54 | B86: =IF(A86>$B$30,NA(),IF($A86>$A$8,"",OFFSET(InputPriceData!$B$15,$A86+$A$11,0,1,1))) -> 2020-09-10 | C86: =IF(A86>$B$30,NA(),IF($A86>$A$8,"",OFFSET(InputPriceData!$G$15,CalculationsAndCharts!$A86+$A$11,IF($C$5,8,0),1,1))) -> 3579800 | D86: =IF(A86>$B$30,NA(),IF(A86>$A$8,"",OFFSET(InputPriceData!$C$15,CalculationsAndCharts!$A86+$A$11,IF($C$5,8,0),1,1))) -> 1.16 | E86: =IF(A86>$B$30,NA(),IF(A86>$A$8,"",OFFSET(InputPriceData!$D$15,CalculationsAndCharts!$A86+$A$11,IF($C$5,8,0),1,1))) -> 1.16 | F86: =IF(A86>$B$30,NA(),IF(A86>$A$8,"",OFFSET(InputPriceData!$E$15,CalculationsAndCharts!$A86+$A$11,IF($C$5,8,0),1,1))) -> 1.1 | G86: =IF(A86>$B$30,NA(),IF(A86>$A$8,"",OFFSET(InputPriceData!$F$15,CalculationsAndCharts!$A86+$A$11,IF($C$5,8,0),1,1))) -> 1.1 | H86: 1.12 | I86: 3579800 | J86: 10368320 | K86: 0.01 | L86: 0.06 | M86: 0.1742055307 | N86: 0.01742055307 | O86: 0 | P86: 0 | Q86: 144647600 | R86: 116724000 | S86: 8.977217781 | T86: 8.917640655 | U86: 7.567926371 | V86: 10 | W86: FALSE | AB86: TRUE | AC86: TRUE | AD86: TRUE | AE86: TRUE | AF86: FALSE | AG86: FALSE | AH86: -0.01 | AI86: 0 | AJ86: 0.01 | AK86: 0.01595103316 | AL86: 0.03162343647 | AM86: 33.52855699 | AN86: TRUE | AO86: FALSE | AX86: 3579800
A87: 55 | B87: =IF(A87>$B$30,NA(),IF($A87>$A$8,"",OFFSET(InputPriceData!$B$15,$A87+$A$11,0,1,1))) -> 2020-09-09 | C87: =IF(A87>$B$30,NA(),IF($A87>$A$8,"",OFFSET(InputPriceData!$G$15,CalculationsAndCharts!$A87+$A$11,IF($C$5,8,0),1,1))) -> 3409300 | D87: =IF(A87>$B$30,NA(),IF(A87>$A$8,"",OFFSET(InputPriceData!$C$15,CalculationsAndCharts!$A87+$A$11,IF($C$5,8,0),1,1))) -> 1.11 | E87: =IF(A87>$B$30,NA(),IF(A87>$A$8,"",OFFSET(InputPriceData!$D$15,CalculationsAndCharts!$A87+$A$11,IF($C$5,8,0),1,1))) -> 1.14 | F87: =IF(A87>$B$30,NA(),IF(A87>$A$8,"",OFFSET(InputPriceData!$E$15,CalculationsAndCharts!$A87+$A$11,IF($C$5,8,0),1,1))) -> 1.08 | G87: =IF(A87>$B$30,NA(),IF(A87>$A$8,"",OFFSET(InputPriceData!$F$15,CalculationsAndCharts!$A87+$A$11,IF($C$5,8,0),1,1))) -> 1.11 | H87: 1.11 | I87: 3409300 | J87: 10509113.33 | K87: 0.01333333333 | L87: 0.06 | M87: 0.1781436525 | N87: 0.01781436525 | O87: 0 | P87: 0 | Q87: 144647600 | R87: 116724000 | S87: 8.856947652 | T87: 8.858063529 | U87: 8.067824398 | V87: 10 | W87: FALSE | AB87: TRUE | AC87: TRUE | AD87: TRUE | AE87: TRUE | AF87: FALSE | AG87: FALSE | AH87: 0.03 | AI87: 0.03 | AJ87: 0 | AK87: 0.01794491231 | AL87: 0.03432636603 | AM87: 34.33034906 | AN87: TRUE | AO87: FALSE | AW87: 3409300
A88: 56 | B88: =IF(A88>$B$30,NA(),IF($A88>$A$8,"",OFFSET(InputPriceData!$B$15,$A88+$A$11,0,1,1))) -> 2020-09-08 | C88: =IF(A88>$B$30,NA(),IF($A88>$A$8,"",OFFSET(InputPriceData!$G$15,CalculationsAndCharts!$A88+$A$11,IF($C$5,8,0),1,1))) -> 5121400 | D88: =IF(A88>$B$30,NA(),IF(A88>$A$8,"",OFFSET(InputPriceData!$C$15,CalculationsAndCharts!$A88+$A$11,IF($C$5,8,0),1,1))) -> 1.1 | E88: =IF(A88>$B$30,NA(),IF(A88>$A$8,"",OFFSET(InputPriceData!$D$15,CalculationsAndCharts!$A88+$A$11,IF($C$5,8,0),1,1))) -> 1.14 | F88: =IF(A88>$B$30,NA(),IF(A88>$A$8,"",OFFSET(InputPriceData!$E$15,CalculationsAndCharts!$A88+$A$11,IF($C$5,8,0),1,1))) -> 1.07 | G88: =IF(A88>$B$30,NA(),IF(A88>$A$8,"",OFFSET(InputPriceData!$F$15,CalculationsAndCharts!$A88+$A$11,IF($C$5,8,0),1,1))) -> 1.08 | H88: 1.096666667 | I88: 5121400 | J88: 10672493.33 | K88: -0.04 | L88: 0.09 | M88: 0.1822175715 | N88: 0.01822175715 | O88: 0 | P88: 5121400 | Q88: 144647600 | R88: 116724000 | S88: 8.721360957 | T88: 8.859179406 | U88: 8.587218457 | V88: 10 | W88: FALSE | AB88: TRUE | AC88: TRUE | AD88: TRUE | AE88: TRUE | AF88: FALSE | AG88: FALSE | AH88: -0.08 | AI88: 0 | AJ88: 0.08 | AK88: 0.01643802635 | AL88: 0.03861716178 | AM88: 29.85736114 | AN88: TRUE | AO88: FALSE | AX88: 5121400
A89: 57 | B89: =IF(A89>$B$30,NA(),IF($A89>$A$8,"",OFFSET(InputPriceData!$B$15,$A89+$A$11,0,1,1))) -> 2020-09-04 | C89: =IF(A89>$B$30,NA(),IF($A89>$A$8,"",OFFSET(InputPriceData!$G$15,CalculationsAndCharts!$A89+$A$11,IF($C$5,8,0),1,1))) -> 7197100 | D89: =IF(A89>$B$30,NA(),IF(A89>$A$8,"",OFFSET(InputPriceData!$C$15,CalculationsAndCharts!$A89+$A$11,IF($C$5,8,0),1,1))) -> 1.19 | E89: =IF(A89>$B$30,NA(),IF(A89>$A$8,"",OFFSET(InputPriceData!$D$15,CalculationsAndCharts!$A89+$A$11,IF($C$5,8,0),1,1))) -> 1.2 | F89: =IF(A89>$B$30,NA(),IF(A89>$A$8,"",OFFSET(InputPriceData!$E$15,CalculationsAndCharts!$A89+$A$11,IF($C$5,8,0),1,1))) -> 1.05 | G89: =IF(A89>$B$30,NA(),IF(A89>$A$8,"",OFFSET(InputPriceData!$F$15,CalculationsAndCharts!$A89+$A$11,IF($C$5,8,0),1,1))) -> 1.16 | H89: 1.136666667 | I89: 7197100 | J89: 10749913.33 | K89: -0.09 | L89: 0.15 | M89: 0.1853974878 | N89: 0.01853974878 | O89: 0 | P89: 7197100 | Q89: 144647600 | R89: 119046600 | S89: 7.938358573 | T89: 8.996997856 | U89: 9.102874117 | V89: 10 | W89: FALSE | Z89: 80 | AA89: -80 | AB89: TRUE | AC89: TRUE | AD89: TRUE | AE89: TRUE | AF89: FALSE | AG89: FALSE | AH89: -0.04 | AI89: 0 | AJ89: 0.04 | AK89: 0.01849277964 | AL89: 0.033444307 | AM89: 35.60611662 | AN89: TRUE | AO89: FALSE | AX89: 7197100
A90: 58 | B90: =IF(A90>$B$30,NA(),IF($A90>$A$8,"",OFFSET(InputPriceData!$B$15,$A90+$A$11,0,1,1))) -> 2020-09-03 | C90: =IF(A90>$B$30,NA(),IF($A90>$A$8,"",OFFSET(InputPriceData!$G$15,CalculationsAndCharts!$A90+$A$11,IF($C$5,8,0),1,1))) -> 4408200 | D90: =IF(A90>$B$30,NA(),IF(A90>$A$8,"",OFFSET(InputPriceData!$C$15,CalculationsAndCharts!$A90+$A$11,IF($C$5,8,0),1,1))) -> 1.26 | E90: =IF(A90>$B$30,NA(),IF(A90>$A$8,"",OFFSET(InputPriceData!$D$15,CalculationsAndCharts!$A90+$A$11,IF($C$5,8,0),1,1))) -> 1.28 | F90: =IF(A90>$B$30,NA(),IF(A90>$A$8,"",OFFSET(InputPriceData!$E$15,CalculationsAndCharts!$A90+$A$11,IF($C$5,8,0),1,1))) -> 1.2 | G90: =IF(A90>$B$30,NA(),IF(A90>$A$8,"",OFFSET(InputPriceData!$F$15,CalculationsAndCharts!$A90+$A$11,IF($C$5,8,0),1,1))) -> 1.2 | H90: 1.226666667 | I90: 4408200 | J90: 10693156.67 | K90: -0.02 | L90: 0.08 | M90: 0.1866180908 | N90: 0.01866180908 | O90: 0 | P90: 4408200 | Q90: 144647600 | R90: 111849500 | S90: 10.22401555 | T90: 10.05563714 | U90: 9.641887015 | V90: 10 | W90: TRUE | X90: 80 | Y90: -80 | AB90: TRUE | AC90: TRUE | AD90: TRUE | AE90: TRUE | AF90: FALSE | AG90: FALSE | AH90: -0.05 | AI90: 0 | AJ90: 0.05 | AK90: 0.02080437709 | AL90: 0.03262484538 | AM90: 38.93819923 | AN90: TRUE | AO90: FALSE | AX90: 4408200
A91: 59 | B91: =IF(A91>$B$30,NA(),IF($A91>$A$8,"",OFFSET(InputPriceData!$B$15,$A91+$A$11,0,1,1))) -> 2020-09-02 | C91: =IF(A91>$B$30,NA(),IF($A91>$A$8,"",OFFSET(InputPriceData!$G$15,CalculationsAndCharts!$A91+$A$11,IF($C$5,8,0),1,1))) -> 6088300 | D91: =IF(A91>$B$30,NA(),IF(A91>$A$8,"",OFFSET(InputPriceData!$C$15,CalculationsAndCharts!$A91+$A$11,IF($C$5,8,0),1,1))) -> 1.23 | E91: =IF(A91>$B$30,NA(),IF(A91>$A$8,"",OFFSET(InputPriceData!$D$15,CalculationsAndCharts!$A91+$A$11,IF($C$5,8,0),1,1))) -> 1.29 | F91: =IF(A91>$B$30,NA(),IF(A91>$A$8,"",OFFSET(InputPriceData!$E$15,CalculationsAndCharts!$A91+$A$11,IF($C$5,8,0),1,1))) -> 1.2 | G91: =IF(A91>$B$30,NA(),IF(A91>$A$8,"",OFFSET(InputPriceData!$F$15,CalculationsAndCharts!$A91+$A$11,IF($C$5,8,0),1,1))) -> 1.25 | H91: 1.246666667 | I91: 6088300 | J91: 10783940 | K91: 0.003333333333 | L91: 0.09 | M91: 0.1902945767 | N91: 0.01902945767 | O91: 0 | P91: 0 | Q91: 144647600 | R91: 114573000 | S91: 9.296107607 | T91: 9.887258733 | U91: 10.16464335 | V91: 10 | W91: FALSE | Z91: 80 | AA91: -80 | AB91: TRUE | AC91: TRUE | AD91: TRUE | AE91: TRUE | AF91: TRUE | AG91: FALSE | AH91: 0 | AI91: 0 | AJ91: 0 | AK91: 0.02340492423 | AL91: 0.03045295105 | AM91: 43.45682801 | AN91: TRUE | AO91: FALSE | AW91: 6088300
A92: 60 | B92: =IF(A92>$B$30,NA(),IF($A92>$A$8,"",OFFSET(InputPriceData!$B$15,$A92+$A$11,0,1,1))) -> 2020-09-01 | C92: =IF(A92>$B$30,NA(),IF($A92>$A$8,"",OFFSET(InputPriceData!$G$15,CalculationsAndCharts!$A92+$A$11,IF($C$5,8,0),1,1))) -> 5224600 | D92: =IF(A92>$B$30,NA(),IF(A92>$A$8,"",OFFSET(InputPriceData!$C$15,CalculationsAndCharts!$A92+$A$11,IF($C$5,8,0),1,1))) -> 1.26 | E92: =IF(A92>$B$30,NA(),IF(A92>$A$8,"",OFFSET(InputPriceData!$D$15,CalculationsAndCharts!$A92+$A$11,IF($C$5,8,0),1,1))) -> 1.27 | F92: =IF(A92>$B$30,NA(),IF(A92>$A$8,"",OFFSET(InputPriceData!$E$15,CalculationsAndCharts!$A92+$A$11,IF($C$5,8,0),1,1))) -> 1.21 | G92: =IF(A92>$B$30,NA(),IF(A92>$A$8,"",OFFSET(InputPriceData!$F$15,CalculationsAndCharts!$A92+$A$11,IF($C$5,8,0),1,1))) -> 1.25 | H92: 1.243333333 | I92: 5224600 | J92: 10895346.67 | K92: -0.04 | L92: 0.07 | M92: 0.1937530104 | N92: 0.01937530104 | O92: 0 | P92: 5224600 | Q92: 144647600 | R92: 124003500 | S92: 6.315876747 | T92: 10.47840986 | U92: 10.77955589 | V92: 10 | W92: TRUE | AB92: TRUE | AC92: TRUE | AD92: TRUE | AE92: TRUE | AF92: TRUE | AG92: FALSE | AH92: -0.03 | AI92: 0 | AJ92: 0.03 | AK92: 0.02633053976 | AL92: 0.03425956993 | AM92: 43.45682801 | AN92: TRUE | AO92: FALSE | AX92: 5224600
A93: 61 | B93: =IF(A93>$B$30,NA(),IF($A93>$A$8,"",OFFSET(InputPriceData!$B$15,$A93+$A$11,0,1,1))) -> 2020-08-31 | C93: =IF(A93>$B$30,NA(),IF($A93>$A$8,"",OFFSET(InputPriceData!$G$15,CalculationsAndCharts!$A93+$A$11,IF($C$5,8,0),1,1))) -> 5277100 | D93: =IF(A93>$B$30,NA(),IF(A93>$A$8,"",OFFSET(InputPriceData!$C$15,CalculationsAndCharts!$A93+$A$11,IF($C$5,8,0),1,1))) -> 1.31 | E93: =IF(A93>$B$30,NA(),IF(A93>$A$8,"",OFFSET(InputPriceData!$D$15,CalculationsAndCharts!$A93+$A$11,IF($C$5,8,0),1,1))) -> 1.32 | F93: =IF(A93>$B$30,NA(),IF(A93>$A$8,"",OFFSET(InputPriceData!$E$15,CalculationsAndCharts!$A93+$A$11,IF($C$5,8,0),1,1))) -> 1.25 | G93: =IF(A93>$B$30,NA(),IF(A93>$A$8,"",OFFSET(InputPriceData!$F$15,CalculationsAndCharts!$A93+$A$11,IF($C$5,8,0),1,1))) -> 1.28 | H93: 1.283333333 | I93: 5277100 | J93: 11156060 | K93: 0.003333333333 | L93: 0.07 | M93: 0.1980203556 | N93: 0.01980203556 | O93: 0 | P93: 0 | Q93: 157693600 | R93: 118778900 | S93: 11.62737263 | T93: 14.64094297 | U93: 11.45667432 | V93: 10 | W93: TRUE | AB93: TRUE | AC93: TRUE | AD93: TRUE | AE93: TRUE | AF93: TRUE | AG93: FALSE | AH93: 0 | AI93: 0 | AJ93: 0 | AK93: 0.02962185723 | AL93: 0.03479201617 | AM93: 45.986766 | AN93: TRUE | AO93: FALSE | AX93: 5277100
A94: 62 | B94: =IF(A94>$B$30,NA(),IF($A94>$A$8,"",OFFSET(InputPriceData!$B$15,$A94+$A$11,0,1,1))) -> 2020-08-28 | C94: =IF(A94>$B$30,NA(),IF($A94>$A$8,"",OFFSET(InputPriceData!$G$15,CalculationsAndCharts!$A94+$A$11,IF($C$5,8,0),1,1))) -> 3171000 | D94: =IF(A94>$B$30,NA(),IF(A94>$A$8,"",OFFSET(InputPriceData!$C$15,CalculationsAndCharts!$A94+$A$11,IF($C$5,8,0),1,1))) -> 1.3 | E94: =IF(A94>$B$30,NA(),IF(A94>$A$8,"",OFFSET(InputPriceData!$D$15,CalculationsAndCharts!$A94+$A$11,IF($C$5,8,0),1,1))) -> 1.3 | F94: =IF(A94>$B$30,NA(),IF(A94>$A$8,"",OFFSET(InputPriceData!$E$15,CalculationsAndCharts!$A94+$A$11,IF($C$5,8,0),1,1))) -> 1.26 | G94: =IF(A94>$B$30,NA(),IF(A94>$A$8,"",OFFSET(InputPriceData!$F$15,CalculationsAndCharts!$A94+$A$11,IF($C$5,8,0),1,1))) -> 1.28 | H94: 1.28 | I94: 3171000 | J94: 11540423.33 | K94: -0.03 | L94: 0.04 | M94: 0.2024348506 | N94: 0.02024348506 | O94: 0 | P94: 3171000 | Q94: 174501600 | R94: 118778900 | S94: 16.09493239 | T94: 17.65451332 | U94: 12.00333058 | V94: 10 | W94: TRUE | AB94: TRUE | AC94: TRUE | AD94: TRUE | AE94: TRUE | AF94: TRUE | AG94: FALSE | AH94: -0.01 | AI94: 0 | AJ94: 0.01 | AK94: 0.03332458938 | AL94: 0.03914101819 | AM94: 45.986766 | AN94: TRUE | AO94: FALSE | AX94: 3171000
A95: 63 | B95: =IF(A95>$B$30,NA(),IF($A95>$A$8,"",OFFSET(InputPriceData!$B$15,$A95+$A$11,0,1,1))) -> 2020-08-27 | C95: =IF(A95>$B$30,NA(),IF($A95>$A$8,"",OFFSET(InputPriceData!$G$15,CalculationsAndCharts!$A95+$A$11,IF($C$5,8,0),1,1))) -> 7689200 | D95: =IF(A95>$B$30,NA(),IF(A95>$A$8,"",OFFSET(InputPriceData!$C$15,CalculationsAndCharts!$A95+$A$11,IF($C$5,8,0),1,1))) -> 1.27 | E95: =IF(A95>$B$30,NA(),IF(A95>$A$8,"",OFFSET(InputPriceData!$D$15,CalculationsAndCharts!$A95+$A$11,IF($C$5,8,0),1,1))) -> 1.38 | F95: =IF(A95>$B$30,NA(),IF(A95>$A$8,"",OFFSET(InputPriceData!$E$15,CalculationsAndCharts!$A95+$A$11,IF($C$5,8,0),1,1))) -> 1.26 | G95: =IF(A95>$B$30,NA(),IF(A95>$A$8,"",OFFSET(InputPriceData!$F$15,CalculationsAndCharts!$A95+$A$11,IF($C$5,8,0),1,1))) -> 1.29 | H95: 1.31 | I95: 7689200 | J95: 12152076.67 | K95: 0.03333333333 | L95: 0.12 | M95: 0.2080360523 | N95: 0.02080360523 | O95: 7689200 | P95: 0 | Q95: 196022200 | R95: 115607900 | S95: 22.05776626 | T95: 19.21409424 | U95: 12.45054456 | V95: 10 | W95: TRUE | AB95: TRUE | AC95: TRUE | AD95: TRUE | AE95: TRUE | AF95: TRUE | AG95: FALSE | AH95: 0.01 | AI95: 0.01 | AJ95: 0 | AK95: 0.03749016306 | AL95: 0.04278364547 | AM95: 46.70285831 | AN95: TRUE | AO95: FALSE | AW95: 7689200
A96: 64 | B96: =IF(A96>$B$30,NA(),IF($A96>$A$8,"",OFFSET(InputPriceData!$B$15,$A96+$A$11,0,1,1))) -> 2020-08-26 | C96: =IF(A96>$B$30,NA(),IF($A96>$A$8,"",OFFSET(InputPriceData!$G$15,CalculationsAndCharts!$A96+$A$11,IF($C$5,8,0),1,1))) -> 4495600 | D96: =IF(A96>$B$30,NA(),IF(A96>$A$8,"",OFFSET(InputPriceData!$C$15,CalculationsAndCharts!$A96+$A$11,IF($C$5,8,0),1,1))) -> 1.28 | E96: =IF(A96>$B$30,NA(),IF(A96>$A$8,"",OFFSET(InputPriceData!$D$15,CalculationsAndCharts!$A96+$A$11,IF($C$5,8,0),1,1))) -> 1.3 | F96: =IF(A96>$B$30,NA(),IF(A96>$A$8,"",OFFSET(InputPriceData!$E$15,CalculationsAndCharts!$A96+$A$11,IF($C$5,8,0),1,1))) -> 1.25 | G96: =IF(A96>$B$30,NA(),IF(A96>$A$8,"",OFFSET(InputPriceData!$F$15,CalculationsAndCharts!$A96+$A$11,IF($C$5,8,0),1,1))) -> 1.28 | H96: 1.276666667 | I96: 4495600 | J96: 12145596.67 | K96: 0.03 | L96: 0.05 | M96: 0.2110717783 | N96: 0.02110717783 | O96: 4495600 | P96: 0 | Q96: 188333000 | R96: 123102700 | S96: 17.90231796 | T96: 16.37042223 | U96: 12.8358182 | V96: 10 | W96: TRUE | AB96: TRUE | AC96: TRUE | AD96: TRUE | AE96: TRUE | AF96: TRUE | AG96: FALSE | AH96: 0.02 | AI96: 0.02 | AJ96: 0 | AK96: 0.04092643344 | AL96: 0.04813160115 | AM96: 45.95479075 | AN96: TRUE | AO96: FALSE | AW96: 4495600
A97: 65 | B97: =IF(A97>$B$30,NA(),IF($A97>$A$8,"",OFFSET(InputPriceData!$B$15,$A97+$A$11,0,1,1))) -> 2020-08-25 | C97: =IF(A97>$B$30,NA(),IF($A97>$A$8,"",OFFSET(InputPriceData!$G$15,CalculationsAndCharts!$A97+$A$11,IF($C$5,8,0),1,1))) -> 8960400 | D97: =IF(A97>$B$30,NA(),IF(A97>$A$8,"",OFFSET(InputPriceData!$C$15,CalculationsAndCharts!$A97+$A$11,IF($C$5,8,0),1,1))) -> 1.22 | E97: =IF(A97>$B$30,NA(),IF(A97>$A$8,"",OFFSET(InputPriceData!$D$15,CalculationsAndCharts!$A97+$A$11,IF($C$5,8,0),1,1))) -> 1.3 | F97: =IF(A97>$B$30,NA(),IF(A97>$A$8,"",OFFSET(InputPriceData!$E$15,CalculationsAndCharts!$A97+$A$11,IF($C$5,8,0),1,1))) -> 1.18 | G97: =IF(A97>$B$30,NA(),IF(A97>$A$8,"",OFFSET(InputPriceData!$F$15,CalculationsAndCharts!$A97+$A$11,IF($C$5,8,0),1,1))) -> 1.26 | H97: 1.246666667 | I97: 8960400 | J97: =IF(A97>$J$30,NA(),AVERAGE(OFFSET(I97,0,0,$A$16,1))) -> 12333460 | K97: 0.02333333333 | L97: 0.12 | M97: =IF($A97>$M$30,NA(),IF($A97=$M$30,AVERAGE(OFFSET($L97,0,0,$A$16,1)),M98*$E$17+L97*$D$17)) -> 0.2166259775 | N97: 0.02166259775 | O97: 8960400 | P97: 0 | Q97: =IF($A97>$Q$30,NA(),SUM(OFFSET(O97,0,0,$A$16,1))) -> 193968900 | R97: =IF($A97>$Q$30,NA(),SUM(OFFSET(P97,0,0,$A$16,1))) -> 123102700 | S97: =IF($A97>$Q$30,NA(),(Q97-R97)/J97/$A$16*100) -> 19.15283032 | T97: 14.83852649 | U97: 13.32634519 | V97: 10 | W97: TRUE | AB97: TRUE | AC97: TRUE | AD97: TRUE | AE97: TRUE | AF97: TRUE | AG97: FALSE | AH97: 0.06 | AI97: 0.06 | AJ97: 0 | AK97: 0.04354223762 | AL97: 0.05414805129 | AM97: 44.57171547 | AN97: TRUE | AO97: FALSE | AW97: =IF(G97>=D97,C97,NA()) -> 8960400 | AX97: =IF(G97<D97,C97,NA()) -> 
A98: 66 | B98: =IF(A98>$B$30,NA(),IF($A98>$A$8,"",OFFSET(InputPriceData!$B$15,$A98+$A$11,0,1,1))) -> 2020-08-24 | C98: =IF(A98>$B$30,NA(),IF($A98>$A$8,"",OFFSET(InputPriceData!$G$15,CalculationsAndCharts!$A98+$A$11,IF($C$5,8,0),1,1))) -> 5347100 | D98: =IF(A98>$B$30,NA(),IF(A98>$A$8,"",OFFSET(InputPriceData!$C$15,CalculationsAndCharts!$A98+$A$11,IF($C$5,8,0),1,1))) -> 1.26 | E98: =IF(A98>$B$30,NA(),IF(A98>$A$8,"",OFFSET(InputPriceData!$D$15,CalculationsAndCharts!$A98+$A$11,IF($C$5,8,0),1,1))) -> 1.27 | F98: =IF(A98>$B$30,NA(),IF(A98>$A$8,"",OFFSET(InputPriceData!$E$15,CalculationsAndCharts!$A98+$A$11,IF($C$5,8,0),1,1))) -> 1.2 | G98: =IF(A98>$B$30,NA(),IF(A98>$A$8,"",OFFSET(InputPriceData!$F$15,CalculationsAndCharts!$A98+$A$11,IF($C$5,8,0),1,1))) -> 1.2 | H98: 1.223333333 | I98: =IF(A98>$H$30,NA(),IF(IFERROR(C98,0)=0,1,C98)) -> 5347100 | J98: 12448533.33 | K98: =IF(A98>$K$30,NA(),H98-H99) -> -0.05666666667 | L98: =IF(A98>$K$30,NA(),MAX(E98-F98,ABS(E98-G99),ABS(F98-G99))) -> 0.07 | M98: 0.2199579078 | N98: =IF($A98>$M$30,NA(),0.1*M98) -> 0.02199579078 | O98: =IF($A98>$M$30,NA(),IF(K98>N98,I98,0)) -> 0 | P98: =IF($A98>$M$30,NA(),IF(K98<-N98,I98,0)) -> 5347100 | Q98: 185008500 | R98: 135515300 | S98: 13.25275267 | T98: =IF($A98>$T$30,NA(),IF($A98=$T$30,AVERAGE(OFFSET(S98,0,0,$A$18,1)),$D$18*S98+$E$18*T99)) -> 10.52422266 | U98: =IF($A98>$U$30,NA(),AVERAGE(OFFSET(T98,0,0,$A$20,1))) -> 13.87396367 | V98: =IF($A98>$U$30,NA(),$A$19) -> 10 | W98: =IF($A98>$U$30,NA(),(T98>=V98)) -> TRUE | X98: =IF($A98>$U$30,NA(),IF(OR(AND($R$17=3,$W98),AND($R$17=2,AND($W98,NOT($W99)))),$BJ$34,NA())) -> 80 | Y98: =IF($A98>$U$30,NA(),IF(OR(AND($R$17=3,$W98),AND($R$17=2,AND($W98,NOT($W99)))),$BJ$33,NA())) -> -80 | Z98: =IF($A98>$U$30,NA(),IF(OR(AND($R$17=3,NOT($W98)),AND($R$17=2,AND(NOT($W98),$W99))),$BJ$34,NA())) ->  | AA98: =IF($A98>$U$30,NA(),IF(OR(AND($R$17=3,NOT($W98)),AND($R$17=2,AND(NOT($W98),$W99))), $BJ$33,NA())) ->  | AB98: =IF($A98>$AB$30,NA(),G98>$A$22) -> TRUE | AC98: =IF($A98>$AC$30,NA(),AVERAGE(OFFSET(C98,0,0,5,1))>$A$23) -> TRUE | AD98: =IF($A98>$AC$30,NA(),SUMPRODUCT(OFFSET(G98,0,0,5,1),OFFSET(C98,0,0,5,1))/5/1000000>$A$24) -> TRUE | AE98: =IF($A98>$AC$30,NA(),AND(AB98,AC98,AD98)) -> TRUE | AF98: =IF($A98>$AF$30,NA(),AVERAGE(OFFSET(C98,0,0,50,1))>AVERAGE(OFFSET(C98,50,0,50,1))) -> TRUE | AG98: =IF($A98>$AG$30,NA(),G98>AVERAGE(OFFSET(G98,0,0,$A$16,1))) -> FALSE | AH98: =IF($A98<=$AH$30,G98-$G99,NA()) -> -0.03 | AI98: =IF($A98>$AH$30,NA(),IF(AH98>0,AH98,0)) -> 0 | AJ98: =IF($A98>$AH$30,NA(),IF(AH98<0,-AH98,0)) -> 0.03 | AK98: =IF($A98>$AK$30,NA(),IF($A98=$AK$30,AVERAGE(OFFSET(AI98,0,0,$AI$29,1)),AI98*$AJ$29+AK99*$AK$29)) -> 0.04148501732 | AL98: =IF($A98>$AK$30,NA(),IF($A98=$AK$30,AVERAGE(OFFSET(AJ98,0,0,$AI$29,1)),AJ98*$AJ$29+AL99*$AK$29)) -> 0.0609165577 | AM98: =IF($A98>$AK$30,NA(),IFERROR(100-100/(1+($AK98/$AL98)),0)) -> 40.51208911 | AN98: =IF($A98>$AK$30,NA(),AM98<$AN$32) -> TRUE | AO98: =IF($A98>$AO$30,NA(),AND(AE98,AF98,AND(W98,NOT(W99)),AN98,AG98)) -> FALSE | AP98: =IF($A98>$AO$30,NA(),IF(AND($R$8,AO98),F98-2*M98,NA())) ->  | AX98: 5347100
A99: 67 | B99: =IF(A99>$B$30,NA(),IF($A99>$A$8,"",OFFSET(InputPriceData!$B$15,$A99+$A$11,0,1,1))) -> 2020-08-21 | C99: =IF(A99>$B$30,NA(),IF($A99>$A$8,"",OFFSET(InputPriceData!$G$15,CalculationsAndCharts!$A99+$A$11,IF($C$5,8,0),1,1))) -> 8901300 | D99: =IF(A99>$B$30,NA(),IF(A99>$A$8,"",OFFSET(InputPriceData!$C$15,CalculationsAndCharts!$A99+$A$11,IF($C$5,8,0),1,1))) -> 1.37 | E99: =IF(A99>$B$30,NA(),IF(A99>$A$8,"",OFFSET(InputPriceData!$D$15,CalculationsAndCharts!$A99+$A$11,IF($C$5,8,0),1,1))) -> 1.39 | F99: =IF(A99>$B$30,NA(),IF(A99>$A$8,"",OFFSET(InputPriceData!$E$15,CalculationsAndCharts!$A99+$A$11,IF($C$5,8,0),1,1))) -> 1.22 | G99: =IF(A99>$B$30,NA(),IF(A99>$A$8,"",OFFSET(InputPriceData!$F$15,CalculationsAndCharts!$A99+$A$11,IF($C$5,8,0),1,1))) -> 1.23 | H99: =IF(A99>$H$30,NA(),AVERAGE(E99:G99)) -> 1.28 | I99: 8901300 | J99: 12819666.67 | K99: -0.04 | L99: 0.18 | M99: 0.2251288701 | N99: 0.02251288701 | O99: 0 | P99: 8901300 | Q99: 185008500 | R99: 146649300 | S99: 9.974050287 | T99: 7.79569266 | U99: 14.59036791 | V99: 10 | W99: FALSE | AB99: TRUE | AC99: TRUE | AD99: TRUE | AE99: TRUE | AF99: TRUE | AG99: FALSE | AH99: -0.17 | AI99: 0 | AJ99: 0.17 | AK99: 0.04667064449 | AL99: 0.06478112742 | AM99: 41.87519291 | AN99: TRUE | AO99: FALSE | AX99: 8901300
A100: 68 | B100: =IF(A100>$B$30,NA(),IF($A100>$A$8,"",OFFSET(InputPriceData!$B$15,$A100+$A$11,0,1,1))) -> 2020-08-20 | C100: =IF(A100>$B$30,NA(),IF($A100>$A$8,"",OFFSET(InputPriceData!$G$15,CalculationsAndCharts!$A100+$A$11,IF($C$5,8,0),1,1))) -> 23968900 | D100: =IF(A100>$B$30,NA(),IF(A100>$A$8,"",OFFSET(InputPriceData!$C$15,CalculationsAndCharts!$A100+$A$11,IF($C$5,8,0),1,1))) -> 1.21 | E100: =IF(A100>$B$30,NA(),IF(A100>$A$8,"",OFFSET(InputPriceData!$D$15,CalculationsAndCharts!$A100+$A$11,IF($C$5,8,0),1,1))) -> 1.45 | F100: =IF(A100>$B$30,NA(),IF(A100>$A$8,"",OFFSET(InputPriceData!$E$15,CalculationsAndCharts!$A100+$A$11,IF($C$5,8,0),1,1))) -> 1.11 | G100: =IF(A100>$B$30,NA(),IF(A100>$A$8,"",OFFSET(InputPriceData!$F$15,CalculationsAndCharts!$A100+$A$11,IF($C$5,8,0),1,1))) -> 1.4 | H100: 1.32 | I100: 23968900 | J100: 12998173.33 | K100: 0.11 | L100: 0.34 | M100: 0.2266850381 | N100: 0.02266850381 | O100: 23968900 | P100: 0 | Q100: 185008500 | R100: 152004500 | S100: 8.463753368 | T100: 5.617335034 | U100: 15.42303773 | V100: 10 | W100: FALSE | AB100: TRUE | AC100: TRUE | AD100: TRUE | AE100: TRUE | AF100: TRUE | AG100: TRUE | AH100: 0.19 | AI100: 0.19 | AJ100: 0 | AK100: 0.05250447505 | AL100: 0.05162876834 | AM100: 50.42047413 | AN100: TRUE | AO100: FALSE | AW100: 23968900
A101: 69 | B101: =IF(A101>$B$30,NA(),IF($A101>$A$8,"",OFFSET(InputPriceData!$B$15,$A101+$A$11,0,1,1))) -> 2020-08-19 | C101: =IF(A101>$B$30,NA(),IF($A101>$A$8,"",OFFSET(InputPriceData!$G$15,CalculationsAndCharts!$A101+$A$11,IF($C$5,8,0),1,1))) -> 5392800 | D101: =IF(A101>$B$30,NA(),IF(A101>$A$8,"",OFFSET(InputPriceData!$C$15,CalculationsAndCharts!$A101+$A$11,IF($C$5,8,0),1,1))) -> 1.21 | E101: =IF(A101>$B$30,NA(),IF(A101>$A$8,"",OFFSET(InputPriceData!$D$15,CalculationsAndCharts!$A101+$A$11,IF($C$5,8,0),1,1))) -> 1.23 | F101: =IF(A101>$B$30,NA(),IF(A101>$A$8,"",OFFSET(InputPriceData!$E$15,CalculationsAndCharts!$A101+$A$11,IF($C$5,8,0),1,1))) -> 1.19 | G101: =IF(A101>$B$30,NA(),IF(A101>$A$8,"",OFFSET(InputPriceData!$F$15,CalculationsAndCharts!$A101+$A$11,IF($C$5,8,0),1,1))) -> 1.21 | H101: 1.21 | I101: 5392800 | J101: 12957533.33 | K101: -0.02666666667 | L101: 0.04 | M101: 0.2227776256 | N101: 0.02227776256 | O101: 0 | P101: 5392800 | Q101: 161039600 | R101: 174754200 | S101: -3.528089194 | T101: 2.770916699 | U101: 16.35005184 | V101: 10 | W101: FALSE | AB101: TRUE | AC101: TRUE | AD101: TRUE | AE101: TRUE | AF101: TRUE | AG101: FALSE | AH101: -0.02 | AI101: 0 | AJ101: 0.02 | AK101: 0.03531753443 | AL101: 0.05808236439 | AM101: 37.81324699 | AN101: TRUE | AO101: FALSE | AW101: 5392800
A102: 70 | B102: =IF(A102>$B$30,NA(),IF($A102>$A$8,"",OFFSET(InputPriceData!$B$15,$A102+$A$11,0,1,1))) -> 2020-08-18 | C102: =IF(A102>$B$30,NA(),IF($A102>$A$8,"",OFFSET(InputPriceData!$G$15,CalculationsAndCharts!$A102+$A$11,IF($C$5,8,0),1,1))) -> 9766300 | D102: =IF(A102>$B$30,NA(),IF(A102>$A$8,"",OFFSET(InputPriceData!$C$15,CalculationsAndCharts!$A102+$A$11,IF($C$5,8,0),1,1))) -> 1.27 | E102: =IF(A102>$B$30,NA(),IF(A102>$A$8,"",OFFSET(InputPriceData!$D$15,CalculationsAndCharts!$A102+$A$11,IF($C$5,8,0),1,1))) -> 1.28 | F102: =IF(A102>$B$30,NA(),IF(A102>$A$8,"",OFFSET(InputPriceData!$E$15,CalculationsAndCharts!$A102+$A$11,IF($C$5,8,0),1,1))) -> 1.2 | G102: =IF(A102>$B$30,NA(),IF(A102>$A$8,"",OFFSET(InputPriceData!$F$15,CalculationsAndCharts!$A102+$A$11,IF($C$5,8,0),1,1))) -> 1.23 | H102: 1.236666667 | I102: 9766300 | J102: 14913606.67 | K102: -0.05666666667 | L102: 0.08 | M102: 0.2290803023 | N102: 0.02290803023 | O102: 0 | P102: 9766300 | Q102: 225114600 | R102: 169361400 | S102: 12.46137196 | T102: 9.069922591 | U102: 17.39076601 | V102: 10 | W102: FALSE | AB102: TRUE | AC102: TRUE | AD102: TRUE | AE102: TRUE | AF102: TRUE | AG102: FALSE | AH102: -0.05 | AI102: 0 | AJ102: 0.05 | AK102: 0.03973222623 | AL102: 0.06284265994 | AM102: 38.73484799 | AN102: TRUE | AO102: FALSE | AX102: 9766300
A103: 71 | B103: =IF(A103>$B$30,NA(),IF($A103>$A$8,"",OFFSET(InputPriceData!$B$15,$A103+$A$11,0,1,1))) -> 2020-08-17 | C103: =IF(A103>$B$30,NA(),IF($A103>$A$8,"",OFFSET(InputPriceData!$G$15,CalculationsAndCharts!$A103+$A$11,IF($C$5,8,0),1,1))) -> 7023400 | D103: =IF(A103>$B$30,NA(),IF(A103>$A$8,"",OFFSET(InputPriceData!$C$15,CalculationsAndCharts!$A103+$A$11,IF($C$5,8,0),1,1))) -> 1.32 | E103: =IF(A103>$B$30,NA(),IF(A103>$A$8,"",OFFSET(InputPriceData!$D$15,CalculationsAndCharts!$A103+$A$11,IF($C$5,8,0),1,1))) -> 1.32 | F103: =IF(A103>$B$30,NA(),IF(A103>$A$8,"",OFFSET(InputPriceData!$E$15,CalculationsAndCharts!$A103+$A$11,IF($C$5,8,0),1,1))) -> 1.28 | G103: =IF(A103>$B$30,NA(),IF(A103>$A$8,"",OFFSET(InputPriceData!$F$15,CalculationsAndCharts!$A103+$A$11,IF($C$5,8,0),1,1))) -> 1.28 | H103: 1.293333333 | I103: 7023400 | J103: 15262453.33 | K103: -0.04333333333 | L103: 0.05 | M103: 0.2342210024 | N103: 0.02342210024 | O103: 0 | P103: 7023400 | Q103: 225114600 | R103: 179826800 | S103: 9.890895653 | T103: 5.678473219 | U103: 18.20914389 | V103: 10 | W103: FALSE | AB103: TRUE | AC103: TRUE | AD103: TRUE | AE103: TRUE | AF103: TRUE | AG103: FALSE | AH103: -0.05 | AI103: 0 | AJ103: 0.05 | AK103: 0.04469875451 | AL103: 0.06444799243 | AM103: 40.95289669 | AN103: TRUE | AO103: FALSE | AX103: 7023400
A104: 72 | B104: =IF(A104>$B$30,NA(),IF($A104>$A$8,"",OFFSET(InputPriceData!$B$15,$A104+$A$11,0,1,1))) -> 2020-08-14 | C104: =IF(A104>$B$30,NA(),IF($A104>$A$8,"",OFFSET(InputPriceData!$G$15,CalculationsAndCharts!$A104+$A$11,IF($C$5,8,0),1,1))) -> 5541900 | D104: =IF(A104>$B$30,NA(),IF(A104>$A$8,"",OFFSET(InputPriceData!$C$15,CalculationsAndCharts!$A104+$A$11,IF($C$5,8,0),1,1))) -> 1.32 | E104: =IF(A104>$B$30,NA(),IF(A104>$A$8,"",OFFSET(InputPriceData!$D$15,CalculationsAndCharts!$A104+$A$11,IF($C$5,8,0),1,1))) -> 1.38 | F104: =IF(A104>$B$30,NA(),IF(A104>$A$8,"",OFFSET(InputPriceData!$E$15,CalculationsAndCharts!$A104+$A$11,IF($C$5,8,0),1,1))) -> 1.3 | G104: =IF(A104>$B$30,NA(),IF(A104>$A$8,"",OFFSET(InputPriceData!$F$15,CalculationsAndCharts!$A104+$A$11,IF($C$5,8,0),1,1))) -> 1.33 | H104: 1.336666667 | I104: 5541900 | J104: 15952063.33 | K104: 0.003333333333 | L104: 0.08 | M104: 0.2405734508 | N104: 0.02405734508 | O104: 0 | P104: 0 | Q104: 225114600 | R104: 200515100 | S104: 5.140296375 | T104: 1.466050784 | U104: 19.19768523 | V104: 10 | W104: FALSE | AB104: TRUE | AC104: TRUE | AD104: TRUE | AE104: TRUE | AF104: TRUE | AG104: FALSE | AH104: 0.01 | AI104: 0.01 | AJ104: 0 | AK104: 0.05028609883 | AL104: 0.06625399148 | AM104: 43.14918471 | AN104: TRUE | AO104: FALSE | AW104: 5541900
A105: 73 | B105: =IF(A105>$B$30,NA(),IF($A105>$A$8,"",OFFSET(InputPriceData!$B$15,$A105+$A$11,0,1,1))) -> 2020-08-13 | C105: =IF(A105>$B$30,NA(),IF($A105>$A$8,"",OFFSET(InputPriceData!$G$15,CalculationsAndCharts!$A105+$A$11,IF($C$5,8,0),1,1))) -> 8258800 | D105: =IF(A105>$B$30,NA(),IF(A105>$A$8,"",OFFSET(InputPriceData!$C$15,CalculationsAndCharts!$A105+$A$11,IF($C$5,8,0),1,1))) -> 1.38 | E105: =IF(A105>$B$30,NA(),IF(A105>$A$8,"",OFFSET(InputPriceData!$D$15,CalculationsAndCharts!$A105+$A$11,IF($C$5,8,0),1,1))) -> 1.38 | F105: =IF(A105>$B$30,NA(),IF(A105>$A$8,"",OFFSET(InputPriceData!$E$15,CalculationsAndCharts!$A105+$A$11,IF($C$5,8,0),1,1))) -> 1.3 | G105: =IF(A105>$B$30,NA(),IF(A105>$A$8,"",OFFSET(InputPriceData!$F$15,CalculationsAndCharts!$A105+$A$11,IF($C$5,8,0),1,1))) -> 1.32 | H105: 1.333333333 | I105: 8258800 | J105: 17158720 | K105: -0.06 | L105: 0.12 | M105: 0.2461104663 | N105: 0.02461104663 | O105: 0 | P105: 8258800 | Q105: 225114600 | R105: 242256700 | S105: -3.330104654 | T105: -2.208194807 | U105: 20.39873556 | V105: 10 | W105: FALSE | AB105: TRUE | AC105: TRUE | AD105: TRUE | AE105: TRUE | AF105: TRUE | AG105: FALSE | AH105: -0.1 | AI105: 0 | AJ105: 0.1 | AK105: 0.05532186118 | AL105: 0.07453574042 | AM105: 42.60194282 | AN105: TRUE | AO105: FALSE | AX105: 8258800
A106: 74 | B106: =IF(A106>$B$30,NA(),IF($A106>$A$8,"",OFFSET(InputPriceData!$B$15,$A106+$A$11,0,1,1))) -> 2020-08-12 | C106: =IF(A106>$B$30,NA(),IF($A106>$A$8,"",OFFSET(InputPriceData!$G$15,CalculationsAndCharts!$A106+$A$11,IF($C$5,8,0),1,1))) -> 16932000 | D106: =IF(A106>$B$30,NA(),IF(A106>$A$8,"",OFFSET(InputPriceData!$C$15,CalculationsAndCharts!$A106+$A$11,IF($C$5,8,0),1,1))) -> 1.34 | E106: =IF(A106>$B$30,NA(),IF(A106>$A$8,"",OFFSET(InputPriceData!$D$15,CalculationsAndCharts!$A106+$A$11,IF($C$5,8,0),1,1))) -> 1.49 | F106: =IF(A106>$B$30,NA(),IF(A106>$A$8,"",OFFSET(InputPriceData!$E$15,CalculationsAndCharts!$A106+$A$11,IF($C$5,8,0),1,1))) -> 1.27 | G106: =IF(A106>$B$30,NA(),IF(A106>$A$8,"",OFFSET(InputPriceData!$F$15,CalculationsAndCharts!$A106+$A$11,IF($C$5,8,0),1,1))) -> 1.42 | H106: 1.393333333 | I106: 16932000 | J106: 18532670 | K106: 0.01666666667 | L106: 0.22 | M106: 0.2504591031 | N106: 0.02504591031 | O106: 0 | P106: 0 | Q106: 225114600 | R106: 283475200 | S106: -10.49688649 | T106: -1.08628496 | U106: 21.80887249 | V106: 10 | W106: FALSE | AB106: TRUE | AC106: TRUE | AD106: TRUE | AE106: TRUE | AF106: TRUE | AG106: FALSE | AH106: 0.06 | AI106: 0.06 | AJ106: 0 | AK106: 0.06223709383 | AL106: 0.07135270797 | AM106: 46.58820733 | AN106: TRUE | AO106: FALSE | AW106: 16932000
A107: 75 | B107: =IF(A107>$B$30,NA(),IF($A107>$A$8,"",OFFSET(InputPriceData!$B$15,$A107+$A$11,0,1,1))) -> 2020-08-11 | C107: =IF(A107>$B$30,NA(),IF($A107>$A$8,"",OFFSET(InputPriceData!$G$15,CalculationsAndCharts!$A107+$A$11,IF($C$5,8,0),1,1))) -> 20880900 | D107: =IF(A107>$B$30,NA(),IF(A107>$A$8,"",OFFSET(InputPriceData!$C$15,CalculationsAndCharts!$A107+$A$11,IF($C$5,8,0),1,1))) -> 1.42 | E107: =IF(A107>$B$30,NA(),IF(A107>$A$8,"",OFFSET(InputPriceData!$D$15,CalculationsAndCharts!$A107+$A$11,IF($C$5,8,0),1,1))) -> 1.45 | F107: =IF(A107>$B$30,NA(),IF(A107>$A$8,"",OFFSET(InputPriceData!$E$15,CalculationsAndCharts!$A107+$A$11,IF($C$5,8,0),1,1))) -> 1.32 | G107: =IF(A107>$B$30,NA(),IF(A107>$A$8,"",OFFSET(InputPriceData!$F$15,CalculationsAndCharts!$A107+$A$11,IF($C$5,8,0),1,1))) -> 1.36 | H107: 1.376666667 | I107: 20880900 | J107: 20993763.33 | K107: -0.41 | L107: 0.46 | M107: 0.251509417 | N107: 0.0251509417 | O107: 0 | P107: 20880900 | Q107: 315879400 | R107: 283475200 | S107: 5.145051808 | T107: 8.32431657 | U107: 23.24788947 | V107: 10 | W107: FALSE | Z107: 80 | AA107: -80 | AB107: TRUE | AC107: TRUE | AD107: TRUE | AE107: TRUE | AF107: TRUE | AG107: FALSE | AH107: -0.42 | AI107: 0 | AJ107: 0.42 | AK107: 0.06251673056 | AL107: 0.08027179647 | AM107: 43.78274071 | AN107: TRUE | AO107: FALSE | AX107: 20880900
A108: 76 | B108: =IF(A108>$B$30,NA(),IF($A108>$A$8,"",OFFSET(InputPriceData!$B$15,$A108+$A$11,0,1,1))) -> 2020-08-10 | C108: =IF(A108>$B$30,NA(),IF($A108>$A$8,"",OFFSET(InputPriceData!$G$15,CalculationsAndCharts!$A108+$A$11,IF($C$5,8,0),1,1))) -> 25105700 | D108: =IF(A108>$B$30,NA(),IF(A108>$A$8,"",OFFSET(InputPriceData!$C$15,CalculationsAndCharts!$A108+$A$11,IF($C$5,8,0),1,1))) -> 1.84 | E108: =IF(A108>$B$30,NA(),IF(A108>$A$8,"",OFFSET(InputPriceData!$D$15,CalculationsAndCharts!$A108+$A$11,IF($C$5,8,0),1,1))) -> 1.85 | F108: =IF(A108>$B$30,NA(),IF(A108>$A$8,"",OFFSET(InputPriceData!$E$15,CalculationsAndCharts!$A108+$A$11,IF($C$5,8,0),1,1))) -> 1.73 | G108: =IF(A108>$B$30,NA(),IF(A108>$A$8,"",OFFSET(InputPriceData!$F$15,CalculationsAndCharts!$A108+$A$11,IF($C$5,8,0),1,1))) -> 1.78 | H108: 1.786666667 | I108: 25105700 | J108: 25320156.67 | K108: 0.1833333333 | L108: 0.22 | M108: 0.2443200865 | N108: 0.02443200865 | O108: 25105700 | P108: 0 | Q108: 466552100 | R108: 262594300 | S108: 26.85051843 | T108: 11.50358133 | U108: 24.37763148 | V108: 10 | W108: TRUE | X108: 80 | Y108: -80 | AB108: TRUE | AC108: TRUE | AD108: TRUE | AE108: TRUE | AF108: TRUE | AG108: TRUE | AH108: 0.15 | AI108: 0.15 | AJ108: 0 | AK108: 0.07033132188 | AL108: 0.03780577102 | AM108: 65.03903516 | AN108: TRUE | AO108: TRUE | AP108: 1.241359827 | AX108: 25105700
A109: 77 | B109: =IF(A109>$B$30,NA(),IF($A109>$A$8,"",OFFSET(InputPriceData!$B$15,$A109+$A$11,0,1,1))) -> 2020-08-07 | C109: =IF(A109>$B$30,NA(),IF($A109>$A$8,"",OFFSET(InputPriceData!$G$15,CalculationsAndCharts!$A109+$A$11,IF($C$5,8,0),1,1))) -> 10203100 | D109: =IF(A109>$B$30,NA(),IF(A109>$A$8,"",OFFSET(InputPriceData!$C$15,CalculationsAndCharts!$A109+$A$11,IF($C$5,8,0),1,1))) -> 1.67 | E109: =IF(A109>$B$30,NA(),IF(A109>$A$8,"",OFFSET(InputPriceData!$D$15,CalculationsAndCharts!$A109+$A$11,IF($C$5,8,0),1,1))) -> 1.67 | F109: =IF(A109>$B$30,NA(),IF(A109>$A$8,"",OFFSET(InputPriceData!$E$15,CalculationsAndCharts!$A109+$A$11,IF($C$5,8,0),1,1))) -> 1.51 | G109: =IF(A109>$B$30,NA(),IF(A109>$A$8,"",OFFSET(InputPriceData!$F$15,CalculationsAndCharts!$A109+$A$11,IF($C$5,8,0),1,1))) -> 1.63 | H109: 1.603333333 | I109: 10203100 | J109: 30176963.33 | K109: -0.03 | L109: 0.16 | M109: 0.2451587102 | N109: 0.02451587102 | O109: 0 | P109: 10203100 | Q109: 441446400 | R109: 433404200 | S109: 0.8883376713 | T109: -3.84335577 | U109: 25.51452917 | V109: 10 | W109: FALSE | AB109: TRUE | AC109: TRUE | AD109: TRUE | AE109: TRUE | AF109: TRUE | AG109: TRUE | AH109: -0.03 | AI109: 0 | AJ109: 0.03 | AK109: 0.06037273711 | AL109: 0.0425314924 | AM109: 58.6688588 | AN109: TRUE | AO109: FALSE | AX109: 10203100
A110: 78 | B110: =IF(A110>$B$30,NA(),IF($A110>$A$8,"",OFFSET(InputPriceData!$B$15,$A110+$A$11,0,1,1))) -> 2020-08-06 | C110: =IF(A110>$B$30,NA(),IF($A110>$A$8,"",OFFSET(InputPriceData!$G$15,CalculationsAndCharts!$A110+$A$11,IF($C$5,8,0),1,1))) -> 8417800 | D110: =IF(A110>$B$30,NA(),IF(A110>$A$8,"",OFFSET(InputPriceData!$C$15,CalculationsAndCharts!$A110+$A$11,IF($C$5,8,0),1,1))) -> 1.64 | E110: =IF(A110>$B$30,NA(),IF(A110>$A$8,"",OFFSET(InputPriceData!$D$15,CalculationsAndCharts!$A110+$A$11,IF($C$5,8,0),1,1))) -> 1.68 | F110: =IF(A110>$B$30,NA(),IF(A110>$A$8,"",OFFSET(InputPriceData!$E$15,CalculationsAndCharts!$A110+$A$11,IF($C$5,8,0),1,1))) -> 1.56 | G110: =IF(A110>$B$30,NA(),IF(A110>$A$8,"",OFFSET(InputPriceData!$F$15,CalculationsAndCharts!$A110+$A$11,IF($C$5,8,0),1,1))) -> 1.66 | H110: 1.633333333 | I110: 8417800 | J110: 32762360 | K110: 0.06 | L110: 0.12 | M110: 0.2480952175 | N110: 0.02480952175 | O110: 8417800 | P110: 0 | Q110: 441446400 | R110: 510966100 | S110: -7.073127007 | T110: -8.575049211 | U110: 27.59362854 | V110: 10 | W110: FALSE | AB110: TRUE | AC110: TRUE | AD110: TRUE | AE110: TRUE | AF110: TRUE | AG110: TRUE | AH110: 0.04 | AI110: 0.04 | AJ110: 0 | AK110: 0.06791932925 | AL110: 0.04409792895 | AM110: 60.63291527 | AN110: TRUE | AO110: FALSE | AW110: 8417800
A111: 79 | B111: =IF(A111>$B$30,NA(),IF($A111>$A$8,"",OFFSET(InputPriceData!$B$15,$A111+$A$11,0,1,1))) -> 2020-08-05 | C111: =IF(A111>$B$30,NA(),IF($A111>$A$8,"",OFFSET(InputPriceData!$G$15,CalculationsAndCharts!$A111+$A$11,IF($C$5,8,0),1,1))) -> 11514500 | D111: =IF(A111>$B$30,NA(),IF(A111>$A$8,"",OFFSET(InputPriceData!$C$15,CalculationsAndCharts!$A111+$A$11,IF($C$5,8,0),1,1))) -> 1.48 | E111: =IF(A111>$B$30,NA(),IF(A111>$A$8,"",OFFSET(InputPriceData!$D$15,CalculationsAndCharts!$A111+$A$11,IF($C$5,8,0),1,1))) -> 1.65 | F111: =IF(A111>$B$30,NA(),IF(A111>$A$8,"",OFFSET(InputPriceData!$E$15,CalculationsAndCharts!$A111+$A$11,IF($C$5,8,0),1,1))) -> 1.45 | G111: =IF(A111>$B$30,NA(),IF(A111>$A$8,"",OFFSET(InputPriceData!$F$15,CalculationsAndCharts!$A111+$A$11,IF($C$5,8,0),1,1))) -> 1.62 | H111: 1.573333333 | I111: 11514500 | J111: 34958176.67 | K111: 0.09 | L111: 0.23 | M111: 0.2525122939 | N111: 0.02525122939 | O111: 11514500 | P111: 0 | Q111: 433028600 | R111: 585258400 | S111: -14.51542143 | T111: -10.07697142 | U111: 30.12288502 | V111: 10 | W111: FALSE | AB111: TRUE | AC111: TRUE | AD111: TRUE | AE111: TRUE | AF111: TRUE | AG111: TRUE | AH111: 0.2 | AI111: 0.2 | AJ111: 0 | AK111: 0.0714092454 | AL111: 0.04961017007 | AM111: 59.00643721 | AN111: TRUE | AO111: FALSE | AW111: 11514500
A112: 80 | B112: =IF(A112>$B$30,NA(),IF($A112>$A$8,"",OFFSET(InputPriceData!$B$15,$A112+$A$11,0,1,1))) -> 2020-08-04 | C112: =IF(A112>$B$30,NA(),IF($A112>$A$8,"",OFFSET(InputPriceData!$G$15,CalculationsAndCharts!$A112+$A$11,IF($C$5,8,0),1,1))) -> 15828000 | D112: =IF(A112>$B$30,NA(),IF(A112>$A$8,"",OFFSET(InputPriceData!$C$15,CalculationsAndCharts!$A112+$A$11,IF($C$5,8,0),1,1))) -> 1.66 | E112: =IF(A112>$B$30,NA(),IF(A112>$A$8,"",OFFSET(InputPriceData!$D$15,CalculationsAndCharts!$A112+$A$11,IF($C$5,8,0),1,1))) -> 1.66 | F112: =IF(A112>$B$30,NA(),IF(A112>$A$8,"",OFFSET(InputPriceData!$E$15,CalculationsAndCharts!$A112+$A$11,IF($C$5,8,0),1,1))) -> 1.37 | G112: =IF(A112>$B$30,NA(),IF(A112>$A$8,"",OFFSET(InputPriceData!$F$15,CalculationsAndCharts!$A112+$A$11,IF($C$5,8,0),1,1))) -> 1.42 | H112: 1.483333333 | I112: 15828000 | J112: 37751390 | K112: -0.14 | L112: 0.29 | M112: 0.2532885799 | N112: 0.02532885799 | O112: 0 | P112: 15828000 | Q112: 421514100 | R112: 680569300 | S112: -22.87378911 | T112: -5.638521403 | U112: 32.93914277 | V112: 10 | W112: FALSE | Z112: 80 | AA112: -80 | AB112: TRUE | AC112: TRUE | AD112: TRUE | AE112: TRUE | AF112: TRUE | AG112: FALSE | AH112: -0.22 | AI112: 0 | AJ112: 0.22 | AK112: 0.05533540108 | AL112: 0.05581144133 | AM112: 49.78585075 | AN112: TRUE | AO112: FALSE | AX112: 15828000
A113: 81 | B113: =IF(A113>$B$30,NA(),IF($A113>$A$8,"",OFFSET(InputPriceData!$B$15,$A113+$A$11,0,1,1))) -> 2020-08-03 | C113: =IF(A113>$B$30,NA(),IF($A113>$A$8,"",OFFSET(InputPriceData!$G$15,CalculationsAndCharts!$A113+$A$11,IF($C$5,8,0),1,1))) -> 20834500 | D113: =IF(A113>$B$30,NA(),IF(A113>$A$8,"",OFFSET(InputPriceData!$C$15,CalculationsAndCharts!$A113+$A$11,IF($C$5,8,0),1,1))) -> 1.54 | E113: =IF(A113>$B$30,NA(),IF(A113>$A$8,"",OFFSET(InputPriceData!$D$15,CalculationsAndCharts!$A113+$A$11,IF($C$5,8,0),1,1))) -> 1.72 | F113: =IF(A113>$B$30,NA(),IF(A113>$A$8,"",OFFSET(InputPriceData!$E$15,CalculationsAndCharts!$A113+$A$11,IF($C$5,8,0),1,1))) -> 1.51 | G113: =IF(A113>$B$30,NA(),IF(A113>$A$8,"",OFFSET(InputPriceData!$F$15,CalculationsAndCharts!$A113+$A$11,IF($C$5,8,0),1,1))) -> 1.64 | H113: 1.623333333 | I113: 20834500 | J113: 49318833.33 | K113: 0.1433333333 | L113: 0.25 | M113: 0.2520226689 | N113: 0.02520226689 | O113: 20834500 | P113: 0 | Q113: 784365400 | R113: 664741300 | S113: 8.085085819 | T113: 11.5967463 | U113: 35.74851926 | V113: 10 | W113: TRUE | AB113: TRUE | AC113: TRUE | AD113: TRUE | AE113: TRUE | AF113: TRUE | AG113: FALSE | AH113: 0.17 | AI113: 0.17 | AJ113: 0 | AK113: 0.06225232621 | AL113: 0.0352878715 | AM113: 63.82222681 | AN113: TRUE | AO113: FALSE | AW113: 20834500
A114: 82 | B114: =IF(A114>$B$30,NA(),IF($A114>$A$8,"",OFFSET(InputPriceData!$B$15,$A114+$A$11,0,1,1))) -> 2020-07-31 | C114: =IF(A114>$B$30,NA(),IF($A114>$A$8,"",OFFSET(InputPriceData!$G$15,CalculationsAndCharts!$A114+$A$11,IF($C$5,8,0),1,1))) -> 8849600 | D114: =IF(A114>$B$30,NA(),IF(A114>$A$8,"",OFFSET(InputPriceData!$C$15,CalculationsAndCharts!$A114+$A$11,IF($C$5,8,0),1,1))) -> 1.48 | E114: =IF(A114>$B$30,NA(),IF(A114>$A$8,"",OFFSET(InputPriceData!$D$15,CalculationsAndCharts!$A114+$A$11,IF($C$5,8,0),1,1))) -> 1.55 | F114: =IF(A114>$B$30,NA(),IF(A114>$A$8,"",OFFSET(InputPriceData!$E$15,CalculationsAndCharts!$A114+$A$11,IF($C$5,8,0),1,1))) -> 1.42 | G114: =IF(A114>$B$30,NA(),IF(A114>$A$8,"",OFFSET(InputPriceData!$F$15,CalculationsAndCharts!$A114+$A$11,IF($C$5,8,0),1,1))) -> 1.47 | H114: 1.48 | I114: 8849600 | J114: 50355870 | K114: 0.02333333333 | L114: 0.13 | M114: 0.2520924161 | N114: 0.02520924161 | O114: 0 | P114: 0 | Q114: 815476500 | R114: 664741300 | S114: 9.977995945 | T114: 15.10840678 | U114: 37.77784534 | V114: 10 | W114: TRUE | AB114: TRUE | AC114: TRUE | AD114: TRUE | AE114: TRUE | AF114: TRUE | AG114: FALSE | AH114: 0.04 | AI114: 0.04 | AJ114: 0 | AK114: 0.04878386699 | AL114: 0.03969885543 | AM114: 55.13377714 | AN114: TRUE | AO114: FALSE | AX114: 8849600
A115: 83 | B115: =IF(A115>$B$30,NA(),IF($A115>$A$8,"",OFFSET(InputPriceData!$B$15,$A115+$A$11,0,1,1))) -> 2020-07-30 | C115: =IF(A115>$B$30,NA(),IF($A115>$A$8,"",OFFSET(InputPriceData!$G$15,CalculationsAndCharts!$A115+$A$11,IF($C$5,8,0),1,1))) -> 33661000 | D115: =IF(A115>$B$30,NA(),IF(A115>$A$8,"",OFFSET(InputPriceData!$C$15,CalculationsAndCharts!$A115+$A$11,IF($C$5,8,0),1,1))) -> 1.3 | E115: =IF(A115>$B$30,NA(),IF(A115>$A$8,"",OFFSET(InputPriceData!$D$15,CalculationsAndCharts!$A115+$A$11,IF($C$5,8,0),1,1))) -> 1.65 | F115: =IF(A115>$B$30,NA(),IF(A115>$A$8,"",OFFSET(InputPriceData!$E$15,CalculationsAndCharts!$A115+$A$11,IF($C$5,8,0),1,1))) -> 1.29 | G115: =IF(A115>$B$30,NA(),IF(A115>$A$8,"",OFFSET(InputPriceData!$F$15,CalculationsAndCharts!$A115+$A$11,IF($C$5,8,0),1,1))) -> 1.43 | H115: 1.456666667 | I115: 33661000 | J115: 53976540 | K115: 0.1566666667 | L115: 0.36 | M115: 0.2563024994 | N115: 0.02563024994 | O115: 33661000 | P115: 0 | Q115: 932946200 | R115: 664741300 | S115: 16.56305375 | T115: 20.23881762 | U115: 39.54139338 | V115: 10 | W115: TRUE | AB115: TRUE | AC115: TRUE | AD115: TRUE | AE115: TRUE | AF115: TRUE | AG115: FALSE | AH115: 0.11 | AI115: 0.11 | AJ115: 0 | AK115: 0.04988185037 | AL115: 0.04466121236 | AM115: 52.76098418 | AN115: TRUE | AO115: FALSE | AW115: 33661000
A116: 84 | B116: =IF(A116>$B$30,NA(),IF($A116>$A$8,"",OFFSET(InputPriceData!$B$15,$A116+$A$11,0,1,1))) -> 2020-07-29 | C116: =IF(A116>$B$30,NA(),IF($A116>$A$8,"",OFFSET(InputPriceData!$G$15,CalculationsAndCharts!$A116+$A$11,IF($C$5,8,0),1,1))) -> 7803600 | D116: =IF(A116>$B$30,NA(),IF(A116>$A$8,"",OFFSET(InputPriceData!$C$15,CalculationsAndCharts!$A116+$A$11,IF($C$5,8,0),1,1))) -> 1.28 | E116: =IF(A116>$B$30,NA(),IF(A116>$A$8,"",OFFSET(InputPriceData!$D$15,CalculationsAndCharts!$A116+$A$11,IF($C$5,8,0),1,1))) -> 1.34 | F116: =IF(A116>$B$30,NA(),IF(A116>$A$8,"",OFFSET(InputPriceData!$E$15,CalculationsAndCharts!$A116+$A$11,IF($C$5,8,0),1,1))) -> 1.24 | G116: =IF(A116>$B$30,NA(),IF(A116>$A$8,"",OFFSET(InputPriceData!$F$15,CalculationsAndCharts!$A116+$A$11,IF($C$5,8,0),1,1))) -> 1.32 | H116: 1.3 | I116: 7803600 | J116: 58785996.67 | K116: 0.01 | L116: 0.1 | M116: 0.2527267235 | N116: 0.02527267235 | O116: 0 | P116: 0 | Q116: 1077229900 | R116: 664741300 | S116: 23.38927768 | T116: 23.91458149 | U116: 40.9081536 | V116: 10 | W116: TRUE | AB116: TRUE | AC116: TRUE | AD116: TRUE | AE116: TRUE | AF116: TRUE | AG116: FALSE | AH116: 0.01 | AI116: 0.01 | AJ116: 0 | AK116: 0.04236708166 | AL116: 0.05024386391 | AM116: 45.74738051 | AN116: TRUE | AO116: FALSE | AW116: 7803600
A117: 85 | B117: =IF(A117>$B$30,NA(),IF($A117>$A$8,"",OFFSET(InputPriceData!$B$15,$A117+$A$11,0,1,1))) -> 2020-07-28 | C117: =IF(A117>$B$30,NA(),IF($A117>$A$8,"",OFFSET(InputPriceData!$G$15,CalculationsAndCharts!$A117+$A$11,IF($C$5,8,0),1,1))) -> 8310700 | D117: =IF(A117>$B$30,NA(),IF(A117>$A$8,"",OFFSET(InputPriceData!$C$15,CalculationsAndCharts!$A117+$A$11,IF($C$5,8,0),1,1))) -> 1.24 | E117: =IF(A117>$B$30,NA(),IF(A117>$A$8,"",OFFSET(InputPriceData!$D$15,CalculationsAndCharts!$A117+$A$11,IF($C$5,8,0),1,1))) -> 1.34 | F117: =IF(A117>$B$30,NA(),IF(A117>$A$8,"",OFFSET(InputPriceData!$E$15,CalculationsAndCharts!$A117+$A$11,IF($C$5,8,0),1,1))) -> 1.22 | G117: =IF(A117>$B$30,NA(),IF(A117>$A$8,"",OFFSET(InputPriceData!$F$15,CalculationsAndCharts!$A117+$A$11,IF($C$5,8,0),1,1))) -> 1.31 | H117: 1.29 | I117: 8310700 | J117: 59346326.67 | K117: 0.02 | L117: 0.12 | M117: 0.2579931623 | N117: 0.02579931623 | O117: 0 | P117: 0 | Q117: 1101843400 | R117: 664741300 | S117: 24.55092138 | T117: 24.43988529 | U117: 41.88522236 | V117: 10 | W117: TRUE | AB117: TRUE | AC117: TRUE | AD117: TRUE | AE117: TRUE | AF117: TRUE | AG117: FALSE | AH117: 0.06 | AI117: 0.06 | AJ117: 0 | AK117: 0.04641296687 | AL117: 0.0565243469 | AM117: 45.08857398 | AN117: TRUE | AO117: FALSE | AW117: 8310700
A118: 86 | B118: =IF(A118>$B$30,NA(),IF($A118>$A$8,"",OFFSET(InputPriceData!$B$15,$A118+$A$11,0,1,1))) -> 2020-07-27 | C118: =IF(A118>$B$30,NA(),IF($A118>$A$8,"",OFFSET(InputPriceData!$G$15,CalculationsAndCharts!$A118+$A$11,IF($C$5,8,0),1,1))) -> 7444000 | D118: =IF(A118>$B$30,NA(),IF(A118>$A$8,"",OFFSET(InputPriceData!$C$15,CalculationsAndCharts!$A118+$A$11,IF($C$5,8,0),1,1))) -> 1.32 | E118: =IF(A118>$B$30,NA(),IF(A118>$A$8,"",OFFSET(InputPriceData!$D$15,CalculationsAndCharts!$A118+$A$11,IF($C$5,8,0),1,1))) -> 1.32 | F118: =IF(A118>$B$30,NA(),IF(A118>$A$8,"",OFFSET(InputPriceData!$E$15,CalculationsAndCharts!$A118+$A$11,IF($C$5,8,0),1,1))) -> 1.24 | G118: =IF(A118>$B$30,NA(),IF(A118>$A$8,"",OFFSET(InputPriceData!$F$15,CalculationsAndCharts!$A118+$A$11,IF($C$5,8,0),1,1))) -> 1.25 | H118: 1.27 | I118: 7444000 | J118: 59631700 | K118: -0.03 | L118: 0.08 | M118: 0.2627515472 | N118: 0.02627515472 | O118: 0 | P118: 7444000 | Q118: 1101843400 | R118: 681613200 | S118: 23.4903136 | T118: 24.3288492 | U118: 42.82407743 | V118: 10 | W118: TRUE | AB118: TRUE | AC118: TRUE | AD118: TRUE | AE118: TRUE | AF118: TRUE | AG118: FALSE | AH118: -0.04 | AI118: 0 | AJ118: 0.04 | AK118: 0.04471458773 | AL118: 0.06358989026 | AM118: 41.28600087 | AN118: TRUE | AO118: FALSE | AX118: 7444000
A119: 87 | B119: =IF(A119>$B$30,NA(),IF($A119>$A$8,"",OFFSET(InputPriceData!$B$15,$A119+$A$11,0,1,1))) -> 2020-07-24 | C119: =IF(A119>$B$30,NA(),IF($A119>$A$8,"",OFFSET(InputPriceData!$G$15,CalculationsAndCharts!$A119+$A$11,IF($C$5,8,0),1,1))) -> 5494400 | D119: =IF(A119>$B$30,NA(),IF(A119>$A$8,"",OFFSET(InputPriceData!$C$15,CalculationsAndCharts!$A119+$A$11,IF($C$5,8,0),1,1))) -> 1.29 | E119: =IF(A119>$B$30,NA(),IF(A119>$A$8,"",OFFSET(InputPriceData!$D$15,CalculationsAndCharts!$A119+$A$11,IF($C$5,8,0),1,1))) -> 1.34 | F119: =IF(A119>$B$30,NA(),IF(A119>$A$8,"",OFFSET(InputPriceData!$E$15,CalculationsAndCharts!$A119+$A$11,IF($C$5,8,0),1,1))) -> 1.27 | G119: =IF(A119>$B$30,NA(),IF(A119>$A$8,"",OFFSET(InputPriceData!$F$15,CalculationsAndCharts!$A119+$A$11,IF($C$5,8,0),1,1))) -> 1.29 | H119: 1.3 | I119: 5494400 | J119: 59848316.67 | K119: -0.02 | L119: 0.07 | M119: 0.2690533247 | N119: 0.02690533247 | O119: 0 | P119: 0 | Q119: 1115785900 | R119: 674169200 | S119: 24.59644228 | T119: 25.1673848 | U119: 43.84721953 | V119: 10 | W119: TRUE | AB119: TRUE | AC119: TRUE | AD119: TRUE | AE119: TRUE | AF119: TRUE | AG119: FALSE | AH119: -0.01 | AI119: 0 | AJ119: 0.01 | AK119: 0.05030391119 | AL119: 0.06653862654 | AM119: 43.05273762 | AN119: TRUE | AO119: FALSE | AW119: 5494400
A120: 88 | B120: =IF(A120>$B$30,NA(),IF($A120>$A$8,"",OFFSET(InputPriceData!$B$15,$A120+$A$11,0,1,1))) -> 2020-07-23 | C120: =IF(A120>$B$30,NA(),IF($A120>$A$8,"",OFFSET(InputPriceData!$G$15,CalculationsAndCharts!$A120+$A$11,IF($C$5,8,0),1,1))) -> 7131700 | D120: =IF(A120>$B$30,NA(),IF(A120>$A$8,"",OFFSET(InputPriceData!$C$15,CalculationsAndCharts!$A120+$A$11,IF($C$5,8,0),1,1))) -> 1.35 | E120: =IF(A120>$B$30,NA(),IF(A120>$A$8,"",OFFSET(InputPriceData!$D$15,CalculationsAndCharts!$A120+$A$11,IF($C$5,8,0),1,1))) -> 1.36 | F120: =IF(A120>$B$30,NA(),IF(A120>$A$8,"",OFFSET(InputPriceData!$E$15,CalculationsAndCharts!$A120+$A$11,IF($C$5,8,0),1,1))) -> 1.3 | G120: =IF(A120>$B$30,NA(),IF(A120>$A$8,"",OFFSET(InputPriceData!$F$15,CalculationsAndCharts!$A120+$A$11,IF($C$5,8,0),1,1))) -> 1.3 | H120: 1.32 | I120: 7131700 | J120: 60406453.33 | K120: -0.05333333333 | L120: 0.06 | M120: 0.2759172324 | N120: 0.02759172324 | O120: 0 | P120: 7131700 | Q120: 1115785900 | R120: 696407700 | S120: 23.1420197 | T120: 25.73832731 | U120: 44.75305821 | V120: 10 | W120: TRUE | AB120: TRUE | AC120: TRUE | AD120: TRUE | AE120: TRUE | AF120: TRUE | AG120: FALSE | AH120: -0.05 | AI120: 0 | AJ120: 0.05 | AK120: 0.05659190009 | AL120: 0.07360595486 | AM120: 43.46607716 | AN120: TRUE | AO120: FALSE | AX120: 7131700
A121: 89 | B121: =IF(A121>$B$30,NA(),IF($A121>$A$8,"",OFFSET(InputPriceData!$B$15,$A121+$A$11,0,1,1))) -> 2020-07-22 | C121: =IF(A121>$B$30,NA(),IF($A121>$A$8,"",OFFSET(InputPriceData!$G$15,CalculationsAndCharts!$A121+$A$11,IF($C$5,8,0),1,1))) -> 9430500 | D121: =IF(A121>$B$30,NA(),IF(A121>$A$8,"",OFFSET(InputPriceData!$C$15,CalculationsAndCharts!$A121+$A$11,IF($C$5,8,0),1,1))) -> 1.36 | E121: =IF(A121>$B$30,NA(),IF(A121>$A$8,"",OFFSET(InputPriceData!$D$15,CalculationsAndCharts!$A121+$A$11,IF($C$5,8,0),1,1))) -> 1.44 | F121: =IF(A121>$B$30,NA(),IF(A121>$A$8,"",OFFSET(InputPriceData!$E$15,CalculationsAndCharts!$A121+$A$11,IF($C$5,8,0),1,1))) -> 1.33 | G121: =IF(A121>$B$30,NA(),IF(A121>$A$8,"",OFFSET(InputPriceData!$F$15,CalculationsAndCharts!$A121+$A$11,IF($C$5,8,0),1,1))) -> 1.35 | H121: 1.373333333 | I121: 9430500 | J121: 61994150 | K121: -0.07333333333 | L121: 0.11 | M121: 0.2833626542 | N121: 0.02833626542 | O121: 0 | P121: 9430500 | Q121: 1170548500 | R121: 689276000 | S121: 25.87730724 | T121: 28.33463492 | U121: 45.5437609 | V121: 10 | W121: TRUE | AB121: TRUE | AC121: TRUE | AD121: TRUE | AE121: TRUE | AF121: TRUE | AG121: FALSE | AH121: -0.05 | AI121: 0 | AJ121: 0.05 | AK121: 0.0636658876 | AL121: 0.07655669921 | AM121: 45.4034468 | AN121: TRUE | AO121: FALSE | AX121: 9430500
A122: 90 | B122: =IF(A122>$B$30,NA(),IF($A122>$A$8,"",OFFSET(InputPriceData!$B$15,$A122+$A$11,0,1,1))) -> 2020-07-21 | C122: =IF(A122>$B$30,NA(),IF($A122>$A$8,"",OFFSET(InputPriceData!$G$15,CalculationsAndCharts!$A122+$A$11,IF($C$5,8,0),1,1))) -> 13046000 | D122: =IF(A122>$B$30,NA(),IF(A122>$A$8,"",OFFSET(InputPriceData!$C$15,CalculationsAndCharts!$A122+$A$11,IF($C$5,8,0),1,1))) -> 1.52 | E122: =IF(A122>$B$30,NA(),IF(A122>$A$8,"",OFFSET(InputPriceData!$D$15,CalculationsAndCharts!$A122+$A$11,IF($C$5,8,0),1,1))) -> 1.57 | F122: =IF(A122>$B$30,NA(),IF(A122>$A$8,"",OFFSET(InputPriceData!$E$15,CalculationsAndCharts!$A122+$A$11,IF($C$5,8,0),1,1))) -> 1.37 | G122: =IF(A122>$B$30,NA(),IF(A122>$A$8,"",OFFSET(InputPriceData!$F$15,CalculationsAndCharts!$A122+$A$11,IF($C$5,8,0),1,1))) -> 1.4 | H122: 1.446666667 | I122: 13046000 | J122: 65253646.67 | K122: 0.03333333333 | L122: 0.2 | M122: 0.2893406768 | N122: 0.02893406768 | O122: 13046000 | P122: 0 | Q122: 1277763900 | R122: 679845500 | S122: 30.54329429 | T122: 30.7919626 | U122: 45.69467121 | V122: 10 | W122: TRUE | AB122: TRUE | AC122: TRUE | AD122: TRUE | AE122: TRUE | AF122: TRUE | AG122: FALSE | AH122: -0.06 | AI122: 0 | AJ122: 0.06 | AK122: 0.07162412356 | AL122: 0.07987628662 | AM122: 47.27652122 | AN122: TRUE | AO122: FALSE | AX122: 13046000
A123: 91 | B123: =IF(A123>$B$30,NA(),IF($A123>$A$8,"",OFFSET(InputPriceData!$B$15,$A123+$A$11,0,1,1))) -> 2020-07-20 | C123: =IF(A123>$B$30,NA(),IF($A123>$A$8,"",OFFSET(InputPriceData!$G$15,CalculationsAndCharts!$A123+$A$11,IF($C$5,8,0),1,1))) -> 16808000 | D123: =IF(A123>$B$30,NA(),IF(A123>$A$8,"",OFFSET(InputPriceData!$C$15,CalculationsAndCharts!$A123+$A$11,IF($C$5,8,0),1,1))) -> 1.35 | E123: =IF(A123>$B$30,NA(),IF(A123>$A$8,"",OFFSET(InputPriceData!$D$15,CalculationsAndCharts!$A123+$A$11,IF($C$5,8,0),1,1))) -> 1.48 | F123: =IF(A123>$B$30,NA(),IF(A123>$A$8,"",OFFSET(InputPriceData!$E$15,CalculationsAndCharts!$A123+$A$11,IF($C$5,8,0),1,1))) -> 1.3 | G123: =IF(A123>$B$30,NA(),IF(A123>$A$8,"",OFFSET(InputPriceData!$F$15,CalculationsAndCharts!$A123+$A$11,IF($C$5,8,0),1,1))) -> 1.46 | H123: 1.413333333 | I123: 16808000 | J123: 65695390 | K123: 0.08 | L123: 0.18 | M123: 0.2924213898 | N123: 0.02924213898 | O123: 16808000 | P123: 0 | Q123: 1291016200 | R123: 679845500 | S123: 31.01032914 | T123: 31.04063091 | U123: 44.93342818 | V123: 10 | W123: TRUE | AB123: TRUE | AC123: TRUE | AD123: TRUE | AE123: TRUE | AF123: TRUE | AG123: FALSE | AH123: 0.13 | AI123: 0.13 | AJ123: 0 | AK123: 0.080577139 | AL123: 0.08236082244 | AM123: 49.45264952 | AN123: TRUE | AO123: FALSE | AW123: 16808000
A124: 92 | B124: =IF(A124>$B$30,NA(),IF($A124>$A$8,"",OFFSET(InputPriceData!$B$15,$A124+$A$11,0,1,1))) -> 2020-07-17 | C124: =IF(A124>$B$30,NA(),IF($A124>$A$8,"",OFFSET(InputPriceData!$G$15,CalculationsAndCharts!$A124+$A$11,IF($C$5,8,0),1,1))) -> 21520600 | D124: =IF(A124>$B$30,NA(),IF(A124>$A$8,"",OFFSET(InputPriceData!$C$15,CalculationsAndCharts!$A124+$A$11,IF($C$5,8,0),1,1))) -> 1.3 | E124: =IF(A124>$B$30,NA(),IF(A124>$A$8,"",OFFSET(InputPriceData!$D$15,CalculationsAndCharts!$A124+$A$11,IF($C$5,8,0),1,1))) -> 1.43 | F124: =IF(A124>$B$30,NA(),IF(A124>$A$8,"",OFFSET(InputPriceData!$E$15,CalculationsAndCharts!$A124+$A$11,IF($C$5,8,0),1,1))) -> 1.24 | G124: =IF(A124>$B$30,NA(),IF(A124>$A$8,"",OFFSET(InputPriceData!$F$15,CalculationsAndCharts!$A124+$A$11,IF($C$5,8,0),1,1))) -> 1.33 | H124: 1.333333333 | I124: 21520600 | J124: 66039260 | K124: 0.07333333333 | L124: 0.19 | M124: 0.2962979894 | N124: 0.02962979894 | O124: 21520600 | P124: 0 | Q124: 1301332300 | R124: 679845500 | S124: 31.36956209 | T124: 31.07093268 | U124: 43.5993853 | V124: 10 | W124: TRUE | AB124: TRUE | AC124: TRUE | AD124: TRUE | AE124: TRUE | AF124: TRUE | AG124: FALSE | AH124: 0.06 | AI124: 0.06 | AJ124: 0 | AK124: 0.07439928137 | AL124: 0.09265592525 | AM124: 44.53574533 | AN124: TRUE | AO124: FALSE | AW124: 21520600
A125: 93 | B125: =IF(A125>$B$30,NA(),IF($A125>$A$8,"",OFFSET(InputPriceData!$B$15,$A125+$A$11,0,1,1))) -> 2020-07-16 | C125: =IF(A125>$B$30,NA(),IF($A125>$A$8,"",OFFSET(InputPriceData!$G$15,CalculationsAndCharts!$A125+$A$11,IF($C$5,8,0),1,1))) -> 7494800 | D125: =IF(A125>$B$30,NA(),IF(A125>$A$8,"",OFFSET(InputPriceData!$C$15,CalculationsAndCharts!$A125+$A$11,IF($C$5,8,0),1,1))) -> 1.27 | E125: =IF(A125>$B$30,NA(),IF(A125>$A$8,"",OFFSET(InputPriceData!$D$15,CalculationsAndCharts!$A125+$A$11,IF($C$5,8,0),1,1))) -> 1.29 | F125: =IF(A125>$B$30,NA(),IF(A125>$A$8,"",OFFSET(InputPriceData!$E$15,CalculationsAndCharts!$A125+$A$11,IF($C$5,8,0),1,1))) -> 1.22 | G125: =IF(A125>$B$30,NA(),IF(A125>$A$8,"",OFFSET(InputPriceData!$F$15,CalculationsAndCharts!$A125+$A$11,IF($C$5,8,0),1,1))) -> 1.27 | H125: 1.26 | I125: 7494800 | J125: 65659686.67 | K125: -0.03333333333 | L125: 0.08 | M125: 0.2999634373 | N125: 0.02999634373 | O125: 0 | P125: 7494800 | Q125: 1279811700 | R125: 679845500 | S125: 30.45837461 | T125: 30.77230328 | U125: 41.76282395 | V125: 10 | W125: TRUE | AB125: TRUE | AC125: TRUE | AD125: TRUE | AE125: TRUE | AF125: TRUE | AG125: FALSE | AH125: -0.03 | AI125: 0 | AJ125: 0.03 | AK125: 0.07619919155 | AL125: 0.1042379159 | AM125: 42.23033312 | AN125: TRUE | AO125: FALSE | AW125: 7494800
A126: 94 | B126: =IF(A126>$B$30,NA(),IF($A126>$A$8,"",OFFSET(InputPriceData!$B$15,$A126+$A$11,0,1,1))) -> 2020-07-15 | C126: =IF(A126>$B$30,NA(),IF($A126>$A$8,"",OFFSET(InputPriceData!$G$15,CalculationsAndCharts!$A126+$A$11,IF($C$5,8,0),1,1))) -> 10131500 | D126: =IF(A126>$B$30,NA(),IF(A126>$A$8,"",OFFSET(InputPriceData!$C$15,CalculationsAndCharts!$A126+$A$11,IF($C$5,8,0),1,1))) -> 1.25 | E126: =IF(A126>$B$30,NA(),IF(A126>$A$8,"",OFFSET(InputPriceData!$D$15,CalculationsAndCharts!$A126+$A$11,IF($C$5,8,0),1,1))) -> 1.35 | F126: =IF(A126>$B$30,NA(),IF(A126>$A$8,"",OFFSET(InputPriceData!$E$15,CalculationsAndCharts!$A126+$A$11,IF($C$5,8,0),1,1))) -> 1.23 | G126: =IF(A126>$B$30,NA(),IF(A126>$A$8,"",OFFSET(InputPriceData!$F$15,CalculationsAndCharts!$A126+$A$11,IF($C$5,8,0),1,1))) -> 1.3 | H126: 1.293333333 | I126: 10131500 | J126: 65518360 | K126: 0.07333333333 | L126: 0.13 | M126: 0.3075483834 | N126: 0.03075483834 | O126: 10131500 | P126: 0 | Q126: 1279811700 | R126: 672350700 | S126: 30.90538286 | T126: 31.08623194 | U126: 39.95475284 | V126: 10 | W126: TRUE | AB126: TRUE | AC126: TRUE | AD126: TRUE | AE126: TRUE | AF126: TRUE | AG126: FALSE | AH126: 0.08 | AI126: 0.08 | AJ126: 0 | AK126: 0.08572409049 | AL126: 0.1135176554 | AM126: 43.02516529 | AN126: TRUE | AO126: FALSE | AW126: 10131500
A127: 95 | B127: =IF(A127>$B$30,NA(),IF($A127>$A$8,"",OFFSET(InputPriceData!$B$15,$A127+$A$11,0,1,1))) -> 2020-07-14 | C127: =IF(A127>$B$30,NA(),IF($A127>$A$8,"",OFFSET(InputPriceData!$G$15,CalculationsAndCharts!$A127+$A$11,IF($C$5,8,0),1,1))) -> 12412600 | D127: =IF(A127>$B$30,NA(),IF(A127>$A$8,"",OFFSET(InputPriceData!$C$15,CalculationsAndCharts!$A127+$A$11,IF($C$5,8,0),1,1))) -> 1.28 | E127: =IF(A127>$B$30,NA(),IF(A127>$A$8,"",OFFSET(InputPriceData!$D$15,CalculationsAndCharts!$A127+$A$11,IF($C$5,8,0),1,1))) -> 1.28 | F127: =IF(A127>$B$30,NA(),IF(A127>$A$8,"",OFFSET(InputPriceData!$E$15,CalculationsAndCharts!$A127+$A$11,IF($C$5,8,0),1,1))) -> 1.16 | G127: =IF(A127>$B$30,NA(),IF(A127>$A$8,"",OFFSET(InputPriceData!$F$15,CalculationsAndCharts!$A127+$A$11,IF($C$5,8,0),1,1))) -> 1.22 | H127: 1.22 | I127: 12412600 | J127: 65243810 | K127: -0.1133333333 | L127: 0.14 | M127: 0.3136707415 | N127: 0.03136707415 | O127: 0 | P127: 12412600 | Q127: 1269680200 | R127: 672350700 | S127: 30.51781209 | T127: 31.26708102 | U127: 38.12005785 | V127: 10 | W127: TRUE | AB127: TRUE | AC127: TRUE | AD127: TRUE | AE127: TRUE | AF127: TRUE | AG127: FALSE | AH127: -0.08 | AI127: 0 | AJ127: 0.08 | AK127: 0.0864396018 | AL127: 0.1277073623 | AM127: 40.36461696 | AN127: TRUE | AO127: FALSE | AX127: 12412600
A128: 96 | B128: =IF(A128>$B$30,NA(),IF($A128>$A$8,"",OFFSET(InputPriceData!$B$15,$A128+$A$11,0,1,1))) -> 2020-07-13 | C128: =IF(A128>$B$30,NA(),IF($A128>$A$8,"",OFFSET(InputPriceData!$G$15,CalculationsAndCharts!$A128+$A$11,IF($C$5,8,0),1,1))) -> 16481100 | D128: =IF(A128>$B$30,NA(),IF(A128>$A$8,"",OFFSET(InputPriceData!$C$15,CalculationsAndCharts!$A128+$A$11,IF($C$5,8,0),1,1))) -> 1.36 | E128: =IF(A128>$B$30,NA(),IF(A128>$A$8,"",OFFSET(InputPriceData!$D$15,CalculationsAndCharts!$A128+$A$11,IF($C$5,8,0),1,1))) -> 1.4 | F128: =IF(A128>$B$30,NA(),IF(A128>$A$8,"",OFFSET(InputPriceData!$E$15,CalculationsAndCharts!$A128+$A$11,IF($C$5,8,0),1,1))) -> 1.3 | G128: =IF(A128>$B$30,NA(),IF(A128>$A$8,"",OFFSET(InputPriceData!$F$15,CalculationsAndCharts!$A128+$A$11,IF($C$5,8,0),1,1))) -> 1.3 | H128: 1.333333333 | I128: 16481100 | J128: 65024773.33 | K128: -0.06333333333 | L128: 0.1 | M128: 0.3196593877 | N128: 0.03196593877 | O128: 0 | P128: 16481100 | Q128: 1269680200 | R128: 659938100 | S128: 31.25691275 | T128: 32.01634996 | U128: 36.25264484 | V128: 10 | W128: TRUE | AB128: TRUE | AC128: TRUE | AD128: TRUE | AE128: TRUE | AF128: TRUE | AG128: FALSE | AH128: -0.08 | AI128: 0 | AJ128: 0.08 | AK128: 0.09724455203 | AL128: 0.1336707826 | AM128: 42.11264366 | AN128: TRUE | AO128: FALSE | AX128: 16481100
A129: 97 | B129: =IF(A129>$B$30,NA(),IF($A129>$A$8,"",OFFSET(InputPriceData!$B$15,$A129+$A$11,0,1,1))) -> 2020-07-10 | C129: =IF(A129>$B$30,NA(),IF($A129>$A$8,"",OFFSET(InputPriceData!$G$15,CalculationsAndCharts!$A129+$A$11,IF($C$5,8,0),1,1))) -> 14256500 | D129: =IF(A129>$B$30,NA(),IF(A129>$A$8,"",OFFSET(InputPriceData!$C$15,CalculationsAndCharts!$A129+$A$11,IF($C$5,8,0),1,1))) -> 1.38 | E129: =IF(A129>$B$30,NA(),IF(A129>$A$8,"",OFFSET(InputPriceData!$D$15,CalculationsAndCharts!$A129+$A$11,IF($C$5,8,0),1,1))) -> 1.49 | F129: =IF(A129>$B$30,NA(),IF(A129>$A$8,"",OFFSET(InputPriceData!$E$15,CalculationsAndCharts!$A129+$A$11,IF($C$5,8,0),1,1))) -> 1.32 | G129: =IF(A129>$B$30,NA(),IF(A129>$A$8,"",OFFSET(InputPriceData!$F$15,CalculationsAndCharts!$A129+$A$11,IF($C$5,8,0),1,1))) -> 1.38 | H129: 1.396666667 | I129: 14256500 | J129: 64598126.67 | K129: -0.06 | L129: 0.17 | M129: 0.3272338494 | N129: 0.03272338494 | O129: 0 | P129: 14256500 | Q129: 1269680200 | R129: 647138700 | S129: 32.12381597 | T129: 32.77578717 | U129: 34.3447052 | V129: 10 | W129: TRUE | AB129: TRUE | AC129: TRUE | AD129: TRUE | AE129: TRUE | AF129: TRUE | AG129: FALSE | AH129: -0.05 | AI129: 0 | AJ129: 0.05 | AK129: 0.109400121 | AL129: 0.1403796304 | AM129: 43.79863475 | AN129: TRUE | AO129: FALSE | AW129: 14256500
A130: 98 | B130: =IF(A130>$B$30,NA(),IF($A130>$A$8,"",OFFSET(InputPriceData!$B$15,$A130+$A$11,0,1,1))) -> 2020-07-09 | C130: =IF(A130>$B$30,NA(),IF($A130>$A$8,"",OFFSET(InputPriceData!$G$15,CalculationsAndCharts!$A130+$A$11,IF($C$5,8,0),1,1))) -> 22749700 | D130: =IF(A130>$B$30,NA(),IF(A130>$A$8,"",OFFSET(InputPriceData!$C$15,CalculationsAndCharts!$A130+$A$11,IF($C$5,8,0),1,1))) -> 1.5 | E130: =IF(A130>$B$30,NA(),IF(A130>$A$8,"",OFFSET(InputPriceData!$D$15,CalculationsAndCharts!$A130+$A$11,IF($C$5,8,0),1,1))) -> 1.56 | F130: =IF(A130>$B$30,NA(),IF(A130>$A$8,"",OFFSET(InputPriceData!$E$15,CalculationsAndCharts!$A130+$A$11,IF($C$5,8,0),1,1))) -> 1.38 | G130: =IF(A130>$B$30,NA(),IF(A130>$A$8,"",OFFSET(InputPriceData!$F$15,CalculationsAndCharts!$A130+$A$11,IF($C$5,8,0),1,1))) -> 1.43 | H130: 1.456666667 | I130: 22749700 | J130: 64238650 | K130: -0.05666666667 | L130: 0.18 | M130: 0.3326557063 | N130: 0.03326557063 | O130: 0 | P130: 22749700 | Q130: 1269680200 | R130: 636354400 | S130: 32.86317505 | T130: 33.42775837 | U130: 32.46967074 | V130: 10 | W130: TRUE | AB130: TRUE | AC130: TRUE | AD130: TRUE | AE130: TRUE | AF130: TRUE | AG130: TRUE | AH130: -0.13 | AI130: 0 | AJ130: 0.13 | AK130: 0.1230751362 | AL130: 0.1516770842 | AM130: 44.79495597 | AN130: TRUE | AO130: FALSE | AX130: 22749700
A131: 99 | B131: =IF(A131>$B$30,NA(),IF($A131>$A$8,"",OFFSET(InputPriceData!$B$15,$A131+$A$11,0,1,1))) -> 2020-07-08 | C131: =IF(A131>$B$30,NA(),IF($A131>$A$8,"",OFFSET(InputPriceData!$G$15,CalculationsAndCharts!$A131+$A$11,IF($C$5,8,0),1,1))) -> 64075000 | D131: =IF(A131>$B$30,NA(),IF(A131>$A$8,"",OFFSET(InputPriceData!$C$15,CalculationsAndCharts!$A131+$A$11,IF($C$5,8,0),1,1))) -> 1.27 | E131: =IF(A131>$B$30,NA(),IF(A131>$A$8,"",OFFSET(InputPriceData!$D$15,CalculationsAndCharts!$A131+$A$11,IF($C$5,8,0),1,1))) -> 1.76 | F131: =IF(A131>$B$30,NA(),IF(A131>$A$8,"",OFFSET(InputPriceData!$E$15,CalculationsAndCharts!$A131+$A$11,IF($C$5,8,0),1,1))) -> 1.22 | G131: =IF(A131>$B$30,NA(),IF(A131>$A$8,"",OFFSET(InputPriceData!$F$15,CalculationsAndCharts!$A131+$A$11,IF($C$5,8,0),1,1))) -> 1.56 | H131: 1.513333333 | I131: 64075000 | J131: 63640873.33 | K131: 0.22 | L131: 0.54 | M131: 0.3379196961 | N131: 0.03379196961 | O131: 64075000 | P131: 0 | Q131: 1269680200 | R131: 613604700 | S131: 34.3634243 | T131: 33.99234169 | U131: 30.57144059 | V131: 10 | W131: TRUE | AB131: TRUE | AC131: TRUE | AD131: TRUE | AE131: TRUE | AF131: TRUE | AG131: TRUE | AH131: 0.3 | AI131: 0.3 | AJ131: 0 | AK131: 0.1384595282 | AL131: 0.1543867198 | AM131: 47.28062222 | AN131: TRUE | AO131: FALSE | AW131: 64075000
A132: 100 | B132: =IF(A132>$B$30,NA(),IF($A132>$A$8,"",OFFSET(InputPriceData!$B$15,$A132+$A$11,0,1,1))) -> 2020-07-07 | C132: =IF(A132>$B$30,NA(),IF($A132>$A$8,"",OFFSET(InputPriceData!$G$15,CalculationsAndCharts!$A132+$A$11,IF($C$5,8,0),1,1))) -> 20231700 | D132: =IF(A132>$B$30,NA(),IF(A132>$A$8,"",OFFSET(InputPriceData!$C$15,CalculationsAndCharts!$A132+$A$11,IF($C$5,8,0),1,1))) -> 1.35 | E132: =IF(A132>$B$30,NA(),IF(A132>$A$8,"",OFFSET(InputPriceData!$D$15,CalculationsAndCharts!$A132+$A$11,IF($C$5,8,0),1,1))) -> 1.37 | F132: =IF(A132>$B$30,NA(),IF(A132>$A$8,"",OFFSET(InputPriceData!$E$15,CalculationsAndCharts!$A132+$A$11,IF($C$5,8,0),1,1))) -> 1.25 | G132: =IF(A132>$B$30,NA(),IF(A132>$A$8,"",OFFSET(InputPriceData!$F$15,CalculationsAndCharts!$A132+$A$11,IF($C$5,8,0),1,1))) -> 1.26 | H132: 1.293333333 | I132: 20231700 | J132: 61844900 | K132: -0.14 | L132: 0.17 | M132: 0.3309514098 | N132: 0.03309514098 | O132: 0 | P132: 20231700 | Q132: 1205605200 | R132: 613604700 | S132: 31.90780485 | T132: 33.62125908 | U132: 28.53454153 | V132: 10 | W132: TRUE | AB132: TRUE | AC132: TRUE | AD132: TRUE | AE132: TRUE | AF132: TRUE | AG132: FALSE | AH132: -0.16 | AI132: 0 | AJ132: 0.16 | AK132: 0.1182669692 | AL132: 0.1736850597 | AM132: 40.50904172 | AN132: TRUE | AO132: FALSE | AX132: 20231700
A133: 101 | B133: =IF(A133>$B$30,NA(),IF($A133>$A$8,"",OFFSET(InputPriceData!$B$15,$A133+$A$11,0,1,1))) -> 2020-07-06 | C133: =IF(A133>$B$30,NA(),IF($A133>$A$8,"",OFFSET(InputPriceData!$G$15,CalculationsAndCharts!$A133+$A$11,IF($C$5,8,0),1,1))) -> 27711700 | D133: =IF(A133>$B$30,NA(),IF(A133>$A$8,"",OFFSET(InputPriceData!$C$15,CalculationsAndCharts!$A133+$A$11,IF($C$5,8,0),1,1))) -> 1.51 | E133: =IF(A133>$B$30,NA(),IF(A133>$A$8,"",OFFSET(InputPriceData!$D$15,CalculationsAndCharts!$A133+$A$11,IF($C$5,8,0),1,1))) -> 1.52 | F133: =IF(A133>$B$30,NA(),IF(A133>$A$8,"",OFFSET(InputPriceData!$E$15,CalculationsAndCharts!$A133+$A$11,IF($C$5,8,0),1,1))) -> 1.36 | G133: =IF(A133>$B$30,NA(),IF(A133>$A$8,"",OFFSET(InputPriceData!$F$15,CalculationsAndCharts!$A133+$A$11,IF($C$5,8,0),1,1))) -> 1.42 | H133: 1.433333333 | I133: 27711700 | J133: 61521230 | K133: -0.12 | L133: 0.17 | M133: 0.3365014584 | N133: 0.03365014584 | O133: 0 | P133: 27711700 | Q133: 1205605200 | R133: 593373000 | S133: 33.17186604 | T133: 35.33471332 | U133: 26.34909462 | V133: 10 | W133: TRUE | AB133: TRUE | AC133: TRUE | AD133: TRUE | AE133: TRUE | AF133: TRUE | AG133: TRUE | AH133: -0.11 | AI133: 0 | AJ133: 0.11 | AK133: 0.1330503403 | AL133: 0.1753956922 | AM133: 43.13569517 | AN133: TRUE | AO133: FALSE | AX133: 27711700
A134: 102 | B134: =IF(A134>$B$30,NA(),IF($A134>$A$8,"",OFFSET(InputPriceData!$B$15,$A134+$A$11,0,1,1))) -> 2020-07-02 | C134: =IF(A134>$B$30,NA(),IF($A134>$A$8,"",OFFSET(InputPriceData!$G$15,CalculationsAndCharts!$A134+$A$11,IF($C$5,8,0),1,1))) -> 41741600 | D134: =IF(A134>$B$30,NA(),IF(A134>$A$8,"",OFFSET(InputPriceData!$C$15,CalculationsAndCharts!$A134+$A$11,IF($C$5,8,0),1,1))) -> 1.67 | E134: =IF(A134>$B$30,NA(),IF(A134>$A$8,"",OFFSET(InputPriceData!$D$15,CalculationsAndCharts!$A134+$A$11,IF($C$5,8,0),1,1))) -> 1.69 | F134: =IF(A134>$B$30,NA(),IF(A134>$A$8,"",OFFSET(InputPriceData!$E$15,CalculationsAndCharts!$A134+$A$11,IF($C$5,8,0),1,1))) -> 1.44 | G134: =IF(A134>$B$30,NA(),IF(A134>$A$8,"",OFFSET(InputPriceData!$F$15,CalculationsAndCharts!$A134+$A$11,IF($C$5,8,0),1,1))) -> 1.53 | H134: 1.553333333 | I134: 41741600 | J134: 60733470 | K134: -0.17 | L134: 0.29 | M134: 0.342242888 | N134: 0.0342242888 | O134: 0 | P134: 41741600 | Q134: 1205605200 | R134: 569740200 | S134: 34.89920797 | T134: 37.4975606 | U134: 23.96108063 | V134: 10 | W134: TRUE | AB134: TRUE | AC134: TRUE | AD134: TRUE | AE134: TRUE | AF134: TRUE | AG134: TRUE | AH134: -0.2 | AI134: 0 | AJ134: 0.2 | AK134: 0.1496816329 | AL134: 0.1835701537 | AM134: 44.915478 | AN134: TRUE | AO134: FALSE | AX134: 41741600
A135: 103 | B135: =IF(A135>$B$30,NA(),IF($A135>$A$8,"",OFFSET(InputPriceData!$B$15,$A135+$A$11,0,1,1))) -> 2020-07-01 | C135: =IF(A135>$B$30,NA(),IF($A135>$A$8,"",OFFSET(InputPriceData!$G$15,CalculationsAndCharts!$A135+$A$11,IF($C$5,8,0),1,1))) -> 49477300 | D135: =IF(A135>$B$30,NA(),IF(A135>$A$8,"",OFFSET(InputPriceData!$C$15,CalculationsAndCharts!$A135+$A$11,IF($C$5,8,0),1,1))) -> 1.75 | E135: =IF(A135>$B$30,NA(),IF(A135>$A$8,"",OFFSET(InputPriceData!$D$15,CalculationsAndCharts!$A135+$A$11,IF($C$5,8,0),1,1))) -> 1.89 | F135: =IF(A135>$B$30,NA(),IF(A135>$A$8,"",OFFSET(InputPriceData!$E$15,CalculationsAndCharts!$A135+$A$11,IF($C$5,8,0),1,1))) -> 1.55 | G135: =IF(A135>$B$30,NA(),IF(A135>$A$8,"",OFFSET(InputPriceData!$F$15,CalculationsAndCharts!$A135+$A$11,IF($C$5,8,0),1,1))) -> 1.73 | H135: 1.723333333 | I135: 49477300 | J135: 59385640 | K135: -0.4033333333 | L135: 0.46 | M135: 0.3440443669 | N135: 0.03440443669 | O135: 0 | P135: 49477300 | Q135: 1206911900 | R135: 527998600 | S135: 38.10760199 | T135: 40.09591324 | U135: 21.51667017 | V135: 10 | W135: TRUE | AB135: TRUE | AC135: TRUE | AD135: TRUE | AE135: TRUE | AF135: TRUE | AG135: TRUE | AH135: -0.28 | AI135: 0 | AJ135: 0.28 | AK135: 0.168391837 | AL135: 0.1815164229 | AM135: 48.12456757 | AN135: TRUE | AO135: FALSE | AX135: 49477300
A136: 104 | B136: =IF(A136>$B$30,NA(),IF($A136>$A$8,"",OFFSET(InputPriceData!$B$15,$A136+$A$11,0,1,1))) -> 2020-06-30 | C136: =IF(A136>$B$30,NA(),IF($A136>$A$8,"",OFFSET(InputPriceData!$G$15,CalculationsAndCharts!$A136+$A$11,IF($C$5,8,0),1,1))) -> 90764800 | D136: =IF(A136>$B$30,NA(),IF(A136>$A$8,"",OFFSET(InputPriceData!$C$15,CalculationsAndCharts!$A136+$A$11,IF($C$5,8,0),1,1))) -> 2.18 | E136: =IF(A136>$B$30,NA(),IF(A136>$A$8,"",OFFSET(InputPriceData!$D$15,CalculationsAndCharts!$A136+$A$11,IF($C$5,8,0),1,1))) -> 2.48 | F136: =IF(A136>$B$30,NA(),IF(A136>$A$8,"",OFFSET(InputPriceData!$E$15,CalculationsAndCharts!$A136+$A$11,IF($C$5,8,0),1,1))) -> 1.89 | G136: =IF(A136>$B$30,NA(),IF(A136>$A$8,"",OFFSET(InputPriceData!$F$15,CalculationsAndCharts!$A136+$A$11,IF($C$5,8,0),1,1))) -> 2.01 | H136: 2.126666667 | I136: 90764800 | J136: 57875096.67 | K136: 0.1133333333 | L136: 0.59 | M136: 0.3400458968 | N136: 0.03400458968 | O136: 90764800 | P136: 0 | Q136: 1206911900 | R136: 478521300 | S136: 41.95187233 | T136: 42.08422449 | U136: 18.81745959 | V136: 10 | W136: TRUE | AB136: TRUE | AC136: TRUE | AD136: TRUE | AE136: TRUE | AF136: TRUE | AG136: TRUE | AH136: -0.08 | AI136: 0 | AJ136: 0.08 | AK136: 0.1894408166 | AL136: 0.1692059758 | AM136: 52.82099844 | AN136: TRUE | AO136: FALSE | AX136: 90764800
A137: 105 | B137: =IF(A137>$B$30,NA(),IF($A137>$A$8,"",OFFSET(InputPriceData!$B$15,$A137+$A$11,0,1,1))) -> 2020-06-29 | C137: =IF(A137>$B$30,NA(),IF($A137>$A$8,"",OFFSET(InputPriceData!$G$15,CalculationsAndCharts!$A137+$A$11,IF($C$5,8,0),1,1))) -> 150672700 | D137: =IF(A137>$B$30,NA(),IF(A137>$A$8,"",OFFSET(InputPriceData!$C$15,CalculationsAndCharts!$A137+$A$11,IF($C$5,8,0),1,1))) -> 1.78 | E137: =IF(A137>$B$30,NA(),IF(A137>$A$8,"",OFFSET(InputPriceData!$D$15,CalculationsAndCharts!$A137+$A$11,IF($C$5,8,0),1,1))) -> 2.3 | F137: =IF(A137>$B$30,NA(),IF(A137>$A$8,"",OFFSET(InputPriceData!$E$15,CalculationsAndCharts!$A137+$A$11,IF($C$5,8,0),1,1))) -> 1.65 | G137: =IF(A137>$B$30,NA(),IF(A137>$A$8,"",OFFSET(InputPriceData!$F$15,CalculationsAndCharts!$A137+$A$11,IF($C$5,8,0),1,1))) -> 2.09 | H137: 2.013333333 | I137: 150672700 | J137: 54914776.67 | K137: 0.46 | L137: 0.84 | M137: 0.3314267898 | N137: 0.03314267898 | O137: 150672700 | P137: 0 | Q137: 1118102300 | R137: 478521300 | S137: 38.82264112 | T137: 42.21657665 | U137: 15.93523382 | V137: 10 | W137: TRUE | AB137: TRUE | AC137: TRUE | AD137: TRUE | AE137: TRUE | AF137: TRUE | AG137: TRUE | AH137: 0.63 | AI137: 0.63 | AJ137: 0 | AK137: 0.2131209187 | AL137: 0.1803567228 | AM137: 54.16341267 | AN137: TRUE | AO137: FALSE | AW137: 150672700
A138: 106 | B138: =IF(A138>$B$30,NA(),IF($A138>$A$8,"",OFFSET(InputPriceData!$B$15,$A138+$A$11,0,1,1))) -> 2020-06-26 | C138: =IF(A138>$B$30,NA(),IF($A138>$A$8,"",OFFSET(InputPriceData!$G$15,CalculationsAndCharts!$A138+$A$11,IF($C$5,8,0),1,1))) -> 170809900 | D138: =IF(A138>$B$30,NA(),IF(A138>$A$8,"",OFFSET(InputPriceData!$C$15,CalculationsAndCharts!$A138+$A$11,IF($C$5,8,0),1,1))) -> 1.95 | E138: =IF(A138>$B$30,NA(),IF(A138>$A$8,"",OFFSET(InputPriceData!$D$15,CalculationsAndCharts!$A138+$A$11,IF($C$5,8,0),1,1))) -> 2 | F138: =IF(A138>$B$30,NA(),IF(A138>$A$8,"",OFFSET(InputPriceData!$E$15,CalculationsAndCharts!$A138+$A$11,IF($C$5,8,0),1,1))) -> 1.2 | G138: =IF(A138>$B$30,NA(),IF(A138>$A$8,"",OFFSET(InputPriceData!$F$15,CalculationsAndCharts!$A138+$A$11,IF($C$5,8,0),1,1))) -> 1.46 | H138: 1.553333333 | I138: 170809900 | J138: 49912506.67 | K138: -1.016666667 | L138: 1.24 | M138: 0.3138897825 | N138: 0.03138897825 | O138: 0 | P138: 170809900 | Q138: 968034200 | R138: 478521300 | S138: 32.69139892 | T138: 45.61051218 | U138: 12.86223125 | V138: 10 | W138: TRUE | AB138: TRUE | AC138: TRUE | AD138: TRUE | AE138: TRUE | AF138: TRUE | AG138: TRUE | AH138: -0.98 | AI138: 0 | AJ138: 0.98 | AK138: 0.1610110335 | AL138: 0.2029013131 | AM138: 44.24445475 | AN138: TRUE | AO138: FALSE | AX138: 170809900
A139: 107 | B139: =IF(A139>$B$30,NA(),IF($A139>$A$8,"",OFFSET(InputPriceData!$B$15,$A139+$A$11,0,1,1))) -> 2020-06-25 | C139: =IF(A139>$B$30,NA(),IF($A139>$A$8,"",OFFSET(InputPriceData!$G$15,CalculationsAndCharts!$A139+$A$11,IF($C$5,8,0),1,1))) -> 87765000 | D139: =IF(A139>$B$30,NA(),IF(A139>$A$8,"",OFFSET(InputPriceData!$C$15,CalculationsAndCharts!$A139+$A$11,IF($C$5,8,0),1,1))) -> 2.95 | E139: =IF(A139>$B$30,NA(),IF(A139>$A$8,"",OFFSET(InputPriceData!$D$15,CalculationsAndCharts!$A139+$A$11,IF($C$5,8,0),1,1))) -> 2.95 | F139: =IF(A139>$B$30,NA(),IF(A139>$A$8,"",OFFSET(InputPriceData!$E$15,CalculationsAndCharts!$A139+$A$11,IF($C$5,8,0),1,1))) -> 2.32 | G139: =IF(A139>$B$30,NA(),IF(A139>$A$8,"",OFFSET(InputPriceData!$F$15,CalculationsAndCharts!$A139+$A$11,IF($C$5,8,0),1,1))) -> 2.44 | H139: 2.57 | I139: 87765000 | J139: 44236860 | K139: -0.2833333333 | L139: 0.77 | M139: 0.2819549475 | N139: 0.02819549475 | O139: 0 | P139: 87765000 | Q139: 968034200 | R139: 307711400 | S139: 49.75660569 | T139: 58.52962544 | U139: 9.63760052 | V139: 10 | W139: TRUE | AB139: TRUE | AC139: TRUE | AD139: TRUE | AE139: TRUE | AF139: TRUE | AG139: TRUE | AH139: -0.65 | AI139: 0 | AJ139: 0.65 | AK139: 0.1811374127 | AL139: 0.1057639773 | AM139: 63.13577384 | AN139: TRUE | AO139: FALSE | AX139: 87765000
A140: 108 | B140: =IF(A140>$B$30,NA(),IF($A140>$A$8,"",OFFSET(InputPriceData!$B$15,$A140+$A$11,0,1,1))) -> 2020-06-24 | C140: =IF(A140>$B$30,NA(),IF($A140>$A$8,"",OFFSET(InputPriceData!$G$15,CalculationsAndCharts!$A140+$A$11,IF($C$5,8,0),1,1))) -> 74292300 | D140: =IF(A140>$B$30,NA(),IF(A140>$A$8,"",OFFSET(InputPriceData!$C$15,CalculationsAndCharts!$A140+$A$11,IF($C$5,8,0),1,1))) -> 2.8 | E140: =IF(A140>$B$30,NA(),IF(A140>$A$8,"",OFFSET(InputPriceData!$D$15,CalculationsAndCharts!$A140+$A$11,IF($C$5,8,0),1,1))) -> 3.19 | F140: =IF(A140>$B$30,NA(),IF(A140>$A$8,"",OFFSET(InputPriceData!$E$15,CalculationsAndCharts!$A140+$A$11,IF($C$5,8,0),1,1))) -> 2.28 | G140: =IF(A140>$B$30,NA(),IF(A140>$A$8,"",OFFSET(InputPriceData!$F$15,CalculationsAndCharts!$A140+$A$11,IF($C$5,8,0),1,1))) -> 3.09 | H140: 2.853333333 | I140: 74292300 | J140: 41354483.33 | K140: -0.1733333333 | L140: 0.91 | M140: 0.2651258077 | N140: 0.02651258077 | O140: 0 | P140: 74292300 | Q140: 968034200 | R140: 221240100 | S140: 60.19452949 | T140: 67.30264518 | U140: 6.07522416 | V140: 10 | W140: TRUE | AB140: TRUE | AC140: TRUE | AD140: TRUE | AE140: TRUE | AF140: TRUE | AG140: TRUE | AH140: 0.1 | AI140: 0.1 | AJ140: 0 | AK140: 0.2037795893 | AL140: 0.03773447443 | AM140: 84.3758687 | AN140: TRUE | AO140: FALSE | AW140: 74292300
A141: 109 | B141: =IF(A141>$B$30,NA(),IF($A141>$A$8,"",OFFSET(InputPriceData!$B$15,$A141+$A$11,0,1,1))) -> 2020-06-23 | C141: =IF(A141>$B$30,NA(),IF($A141>$A$8,"",OFFSET(InputPriceData!$G$15,CalculationsAndCharts!$A141+$A$11,IF($C$5,8,0),1,1))) -> 95310900 | D141: =IF(A141>$B$30,NA(),IF(A141>$A$8,"",OFFSET(InputPriceData!$C$15,CalculationsAndCharts!$A141+$A$11,IF($C$5,8,0),1,1))) -> 3.07 | E141: =IF(A141>$B$30,NA(),IF(A141>$A$8,"",OFFSET(InputPriceData!$D$15,CalculationsAndCharts!$A141+$A$11,IF($C$5,8,0),1,1))) -> 3.24 | F141: =IF(A141>$B$30,NA(),IF(A141>$A$8,"",OFFSET(InputPriceData!$E$15,CalculationsAndCharts!$A141+$A$11,IF($C$5,8,0),1,1))) -> 2.85 | G141: =IF(A141>$B$30,NA(),IF(A141>$A$8,"",OFFSET(InputPriceData!$F$15,CalculationsAndCharts!$A141+$A$11,IF($C$5,8,0),1,1))) -> 2.99 | H141: 3.026666667 | I141: 95310900 | J141: 38928256.67 | K141: -0.2633333333 | L141: 0.44 | M141: 0.2428887666 | N141: 0.02428887666 | O141: 0 | P141: 95310900 | Q141: 968034200 | R141: 148453300 | S141: 70.17874848 | T141: 74.41076087 | U141: 2.695849777 | V141: 10 | W141: TRUE | AB141: TRUE | AC141: TRUE | AD141: TRUE | AE141: TRUE | AF141: TRUE | AG141: TRUE | AH141: -0.3 | AI141: 0 | AJ141: 0.3 | AK141: 0.216752038 | AL141: 0.04245128374 | AM141: 83.6223998 | AN141: TRUE | AO141: FALSE | AX141: 95310900
A142: 110 | B142: =IF(A142>$B$30,NA(),IF($A142>$A$8,"",OFFSET(InputPriceData!$B$15,$A142+$A$11,0,1,1))) -> 2020-06-22 | C142: =IF(A142>$B$30,NA(),IF($A142>$A$8,"",OFFSET(InputPriceData!$G$15,CalculationsAndCharts!$A142+$A$11,IF($C$5,8,0),1,1))) -> 362851300 | D142: =IF(A142>$B$30,NA(),IF(A142>$A$8,"",OFFSET(InputPriceData!$C$15,CalculationsAndCharts!$A142+$A$11,IF($C$5,8,0),1,1))) -> 2.81 | E142: =IF(A142>$B$30,NA(),IF(A142>$A$8,"",OFFSET(InputPriceData!$D$15,CalculationsAndCharts!$A142+$A$11,IF($C$5,8,0),1,1))) -> 3.98 | F142: =IF(A142>$B$30,NA(),IF(A142>$A$8,"",OFFSET(InputPriceData!$E$15,CalculationsAndCharts!$A142+$A$11,IF($C$5,8,0),1,1))) -> 2.6 | G142: =IF(A142>$B$30,NA(),IF(A142>$A$8,"",OFFSET(InputPriceData!$F$15,CalculationsAndCharts!$A142+$A$11,IF($C$5,8,0),1,1))) -> 3.29 | H142: 3.29 | I142: 362851300 | J142: 35846530 | K142: 1.116666667 | L142: 1.76 | M142: 0.2360918275 | N142: 0.02360918275 | O142: 362851300 | P142: 0 | Q142: 968034200 | R142: 56001500 | S142: 84.80901778 | T142: 78.64277327 | U142: -0.5161898746 | V142: 10 | W142: TRUE | AB142: TRUE | AC142: TRUE | AD142: TRUE | AE142: TRUE | AF142: TRUE | AG142: TRUE | AH142: 1.07 | AI142: 1.07 | AJ142: 0 | AK142: 0.2438460428 | AL142: 0.01025769421 | AM142: 95.9631864 | AN142: FALSE | AO142: FALSE | AW142: 362851300
A143: 111 | B143: =IF(A143>$B$30,NA(),IF($A143>$A$8,"",OFFSET(InputPriceData!$B$15,$A143+$A$11,0,1,1))) -> 2020-06-19 | C143: =IF(A143>$B$30,NA(),IF($A143>$A$8,"",OFFSET(InputPriceData!$G$15,CalculationsAndCharts!$A143+$A$11,IF($C$5,8,0),1,1))) -> 51945600 | D143: =IF(A143>$B$30,NA(),IF(A143>$A$8,"",OFFSET(InputPriceData!$C$15,CalculationsAndCharts!$A143+$A$11,IF($C$5,8,0),1,1))) -> 2.27 | E143: =IF(A143>$B$30,NA(),IF(A143>$A$8,"",OFFSET(InputPriceData!$D$15,CalculationsAndCharts!$A143+$A$11,IF($C$5,8,0),1,1))) -> 2.27 | F143: =IF(A143>$B$30,NA(),IF(A143>$A$8,"",OFFSET(InputPriceData!$E$15,CalculationsAndCharts!$A143+$A$11,IF($C$5,8,0),1,1))) -> 2.03 | G143: =IF(A143>$B$30,NA(),IF(A143>$A$8,"",OFFSET(InputPriceData!$F$15,CalculationsAndCharts!$A143+$A$11,IF($C$5,8,0),1,1))) -> 2.22 | H143: 2.173333333 | I143: 51945600 | J143: 23793180 | K143: 0.03 | L143: 0.24 | M143: 0.1835432698 | N143: 0.01835432698 | O143: 51945600 | P143: 0 | Q143: 605182900 | R143: 56001500 | S143: 76.93820946 | T143: 72.47652877 | U143: -3.491215394 | V143: 10 | W143: TRUE | AB143: TRUE | AC143: TRUE | AD143: TRUE | AE143: TRUE | AF143: TRUE | AG143: TRUE | AH143: 0.16 | AI143: 0.16 | AJ143: 0 | AK143: 0.1405767981 | AL143: 0.01153990598 | AM143: 92.41378121 | AN143: FALSE | AO143: FALSE | AX143: 51945600
A144: 112 | B144: =IF(A144>$B$30,NA(),IF($A144>$A$8,"",OFFSET(InputPriceData!$B$15,$A144+$A$11,0,1,1))) -> 2020-06-18 | C144: =IF(A144>$B$30,NA(),IF($A144>$A$8,"",OFFSET(InputPriceData!$G$15,CalculationsAndCharts!$A144+$A$11,IF($C$5,8,0),1,1))) -> 117469700 | D144: =IF(A144>$B$30,NA(),IF(A144>$A$8,"",OFFSET(InputPriceData!$C$15,CalculationsAndCharts!$A144+$A$11,IF($C$5,8,0),1,1))) -> 2.16 | E144: =IF(A144>$B$30,NA(),IF(A144>$A$8,"",OFFSET(InputPriceData!$D$15,CalculationsAndCharts!$A144+$A$11,IF($C$5,8,0),1,1))) -> 2.56 | F144: =IF(A144>$B$30,NA(),IF(A144>$A$8,"",OFFSET(InputPriceData!$E$15,CalculationsAndCharts!$A144+$A$11,IF($C$5,8,0),1,1))) -> 1.81 | G144: =IF(A144>$B$30,NA(),IF(A144>$A$8,"",OFFSET(InputPriceData!$F$15,CalculationsAndCharts!$A144+$A$11,IF($C$5,8,0),1,1))) -> 2.06 | H144: 2.143333333 | I144: 117469700 | J144: 22104590 | K144: 0.2733333333 | L144: 0.75 | M144: 0.1815964861 | N144: 0.01815964861 | O144: 117469700 | P144: 0 | Q144: 553237300 | R144: 57289400 | S144: 74.78807192 | T144: 68.01484807 | U144: -5.997358131 | V144: 10 | W144: TRUE | AB144: TRUE | AC144: TRUE | AD144: TRUE | AE144: TRUE | AF144: TRUE | AG144: TRUE | AH144: 0.04 | AI144: 0.04 | AJ144: 0 | AK144: 0.1381488979 | AL144: 0.01298239423 | AM144: 91.40985692 | AN144: FALSE | AO144: FALSE | AX144: 117469700
A145: 113 | B145: =IF(A145>$B$30,NA(),IF($A145>$A$8,"",OFFSET(InputPriceData!$B$15,$A145+$A$11,0,1,1))) -> 2020-06-17 | C145: =IF(A145>$B$30,NA(),IF($A145>$A$8,"",OFFSET(InputPriceData!$G$15,CalculationsAndCharts!$A145+$A$11,IF($C$5,8,0),1,1))) -> 177944700 | D145: =IF(A145>$B$30,NA(),IF(A145>$A$8,"",OFFSET(InputPriceData!$C$15,CalculationsAndCharts!$A145+$A$11,IF($C$5,8,0),1,1))) -> 1.25 | E145: =IF(A145>$B$30,NA(),IF(A145>$A$8,"",OFFSET(InputPriceData!$D$15,CalculationsAndCharts!$A145+$A$11,IF($C$5,8,0),1,1))) -> 2.4 | F145: =IF(A145>$B$30,NA(),IF(A145>$A$8,"",OFFSET(InputPriceData!$E$15,CalculationsAndCharts!$A145+$A$11,IF($C$5,8,0),1,1))) -> 1.19 | G145: =IF(A145>$B$30,NA(),IF(A145>$A$8,"",OFFSET(InputPriceData!$F$15,CalculationsAndCharts!$A145+$A$11,IF($C$5,8,0),1,1))) -> 2.02 | H145: 1.87 | I145: 177944700 | J145: 18216226.67 | K145: 0.6866666667 | L145: 1.21 | M145: 0.1619963649 | N145: 0.01619963649 | O145: 177944700 | P145: 0 | Q145: 435767600 | R145: 57289400 | S145: 69.25660419 | T145: 61.24162421 | U145: -8.222245566 | V145: 10 | W145: TRUE | AB145: TRUE | AC145: TRUE | AD145: TRUE | AE145: TRUE | AF145: TRUE | AG145: TRUE | AH145: 0.83 | AI145: 0.83 | AJ145: 0 | AK145: 0.1504175101 | AL145: 0.01460519351 | AM145: 91.14958537 | AN145: FALSE | AO145: FALSE | AW145: 177944700
A146: 114 | B146: =IF(A146>$B$30,NA(),IF($A146>$A$8,"",OFFSET(InputPriceData!$B$15,$A146+$A$11,0,1,1))) -> 2020-06-16 | C146: =IF(A146>$B$30,NA(),IF($A146>$A$8,"",OFFSET(InputPriceData!$G$15,CalculationsAndCharts!$A146+$A$11,IF($C$5,8,0),1,1))) -> 24613500 | D146: =IF(A146>$B$30,NA(),IF(A146>$A$8,"",OFFSET(InputPriceData!$C$15,CalculationsAndCharts!$A146+$A$11,IF($C$5,8,0),1,1))) -> 1.17 | E146: =IF(A146>$B$30,NA(),IF(A146>$A$8,"",OFFSET(InputPriceData!$D$15,CalculationsAndCharts!$A146+$A$11,IF($C$5,8,0),1,1))) -> 1.26 | F146: =IF(A146>$B$30,NA(),IF(A146>$A$8,"",OFFSET(InputPriceData!$E$15,CalculationsAndCharts!$A146+$A$11,IF($C$5,8,0),1,1))) -> 1.1 | G146: =IF(A146>$B$30,NA(),IF(A146>$A$8,"",OFFSET(InputPriceData!$F$15,CalculationsAndCharts!$A146+$A$11,IF($C$5,8,0),1,1))) -> 1.19 | H146: 1.183333333 | I146: 24613500 | J146: 12329843.33 | K146: 0.07 | L146: 0.16 | M146: 0.1258583085 | N146: 0.01258583085 | O146: 24613500 | P146: 0 | Q146: 257822900 | R146: 58642600 | S146: 53.84775097 | T146: 53.22664424 | U146: -10.18785763 | V146: 10 | W146: TRUE | AB146: TRUE | AC146: TRUE | AD146: TRUE | AE146: TRUE | AF146: TRUE | AG146: TRUE | AH146: 0.09 | AI146: 0.09 | AJ146: 0 | AK146: 0.06546969885 | AL146: 0.0164308427 | AM146: 79.93805366 | AN146: TRUE | AO146: FALSE | AW146: 24613500
A147: 115 | B147: =IF(A147>$B$30,NA(),IF($A147>$A$8,"",OFFSET(InputPriceData!$B$15,$A147+$A$11,0,1,1))) -> 2020-06-15 | C147: =IF(A147>$B$30,NA(),IF($A147>$A$8,"",OFFSET(InputPriceData!$G$15,CalculationsAndCharts!$A147+$A$11,IF($C$5,8,0),1,1))) -> 16871900 | D147: =IF(A147>$B$30,NA(),IF(A147>$A$8,"",OFFSET(InputPriceData!$C$15,CalculationsAndCharts!$A147+$A$11,IF($C$5,8,0),1,1))) -> 1.15 | E147: =IF(A147>$B$30,NA(),IF(A147>$A$8,"",OFFSET(InputPriceData!$D$15,CalculationsAndCharts!$A147+$A$11,IF($C$5,8,0),1,1))) -> 1.16 | F147: =IF(A147>$B$30,NA(),IF(A147>$A$8,"",OFFSET(InputPriceData!$E$15,CalculationsAndCharts!$A147+$A$11,IF($C$5,8,0),1,1))) -> 1.08 | G147: =IF(A147>$B$30,NA(),IF(A147>$A$8,"",OFFSET(InputPriceData!$F$15,CalculationsAndCharts!$A147+$A$11,IF($C$5,8,0),1,1))) -> 1.1 | H147: 1.113333333 | I147: 16871900 | J147: 11537733.33 | K147: -0.01333333333 | L147: 0.08 | M147: 0.1246810088 | N147: 0.01246810088 | O147: 0 | P147: 16871900 | Q147: 233209400 | R147: 59492800 | S147: 50.18796297 | T147: 52.60553751 | U147: -11.75954534 | V147: 10 | W147: TRUE | AB147: TRUE | AC147: TRUE | AD147: TRUE | AE147: TRUE | AF147: TRUE | AG147: TRUE | AH147: -0.04 | AI147: 0 | AJ147: 0.04 | AK147: 0.06240341121 | AL147: 0.01848469803 | AM147: 77.14781788 | AN147: TRUE | AO147: FALSE | AX147: 16871900
A148: 116 | B148: =IF(A148>$B$30,NA(),IF($A148>$A$8,"",OFFSET(InputPriceData!$B$15,$A148+$A$11,0,1,1))) -> 2020-06-12 | C148: =IF(A148>$B$30,NA(),IF($A148>$A$8,"",OFFSET(InputPriceData!$G$15,CalculationsAndCharts!$A148+$A$11,IF($C$5,8,0),1,1))) -> 13942500 | D148: =IF(A148>$B$30,NA(),IF(A148>$A$8,"",OFFSET(InputPriceData!$C$15,CalculationsAndCharts!$A148+$A$11,IF($C$5,8,0),1,1))) -> 1.19 | E148: =IF(A148>$B$30,NA(),IF(A148>$A$8,"",OFFSET(InputPriceData!$D$15,CalculationsAndCharts!$A148+$A$11,IF($C$5,8,0),1,1))) -> 1.19 | F148: =IF(A148>$B$30,NA(),IF(A148>$A$8,"",OFFSET(InputPriceData!$E$15,CalculationsAndCharts!$A148+$A$11,IF($C$5,8,0),1,1))) -> 1.05 | G148: =IF(A148>$B$30,NA(),IF(A148>$A$8,"",OFFSET(InputPriceData!$F$15,CalculationsAndCharts!$A148+$A$11,IF($C$5,8,0),1,1))) -> 1.14 | H148: 1.126666667 | I148: 13942500 | J148: 11009610 | K148: 0.04666666667 | L148: 0.14 | M148: 0.1262217332 | N148: 0.01262217332 | O148: 13942500 | P148: 0 | Q148: 233209400 | R148: 42620900 | S148: 57.70367888 | T148: 55.02311204 | U148: -12.97240165 | V148: 10 | W148: TRUE | AB148: TRUE | AC148: TRUE | AD148: TRUE | AE148: TRUE | AF148: TRUE | AG148: TRUE | AH148: 0.05 | AI148: 0.05 | AJ148: 0 | AK148: 0.07020383761 | AL148: 0.01579528529 | AM148: 81.63320188 | AN148: TRUE | AO148: FALSE | AX148: 13942500
A149: 117 | B149: =IF(A149>$B$30,NA(),IF($A149>$A$8,"",OFFSET(InputPriceData!$B$15,$A149+$A$11,0,1,1))) -> 2020-06-11 | C149: =IF(A149>$B$30,NA(),IF($A149>$A$8,"",OFFSET(InputPriceData!$G$15,CalculationsAndCharts!$A149+$A$11,IF($C$5,8,0),1,1))) -> 22238500 | D149: =IF(A149>$B$30,NA(),IF(A149>$A$8,"",OFFSET(InputPriceData!$C$15,CalculationsAndCharts!$A149+$A$11,IF($C$5,8,0),1,1))) -> 1.1 | E149: =IF(A149>$B$30,NA(),IF(A149>$A$8,"",OFFSET(InputPriceData!$D$15,CalculationsAndCharts!$A149+$A$11,IF($C$5,8,0),1,1))) -> 1.15 | F149: =IF(A149>$B$30,NA(),IF(A149>$A$8,"",OFFSET(InputPriceData!$E$15,CalculationsAndCharts!$A149+$A$11,IF($C$5,8,0),1,1))) -> 1 | G149: =IF(A149>$B$30,NA(),IF(A149>$A$8,"",OFFSET(InputPriceData!$F$15,CalculationsAndCharts!$A149+$A$11,IF($C$5,8,0),1,1))) -> 1.09 | H149: 1.08 | I149: 22238500 | J149: 10586560 | K149: -0.06666666667 | L149: 0.18 | M149: 0.1257466206 | N149: 0.01257466206 | O149: 0 | P149: 22238500 | Q149: 219266900 | R149: 43871900 | S149: 55.22568237 | T149: 52.3425452 | U149: -14.19969045 | V149: 10 | W149: TRUE | AB149: TRUE | AC149: TRUE | AD149: TRUE | AE149: TRUE | AF149: TRUE | AG149: TRUE | AH149: -0.09 | AI149: 0 | AJ149: 0.09 | AK149: 0.07272931731 | AL149: 0.01776969595 | AM149: 80.36476276 | AN149: TRUE | AO149: FALSE | AX149: 22238500
A150: 118 | B150: =IF(A150>$B$30,NA(),IF($A150>$A$8,"",OFFSET(InputPriceData!$B$15,$A150+$A$11,0,1,1))) -> 2020-06-10 | C150: =IF(A150>$B$30,NA(),IF($A150>$A$8,"",OFFSET(InputPriceData!$G$15,CalculationsAndCharts!$A150+$A$11,IF($C$5,8,0),1,1))) -> 54762600 | D150: =IF(A150>$B$30,NA(),IF(A150>$A$8,"",OFFSET(InputPriceData!$C$15,CalculationsAndCharts!$A150+$A$11,IF($C$5,8,0),1,1))) -> 1.15 | E150: =IF(A150>$B$30,NA(),IF(A150>$A$8,"",OFFSET(InputPriceData!$D$15,CalculationsAndCharts!$A150+$A$11,IF($C$5,8,0),1,1))) -> 1.28 | F150: =IF(A150>$B$30,NA(),IF(A150>$A$8,"",OFFSET(InputPriceData!$E$15,CalculationsAndCharts!$A150+$A$11,IF($C$5,8,0),1,1))) -> 0.98 | G150: =IF(A150>$B$30,NA(),IF(A150>$A$8,"",OFFSET(InputPriceData!$F$15,CalculationsAndCharts!$A150+$A$11,IF($C$5,8,0),1,1))) -> 1.18 | H150: 1.146666667 | I150: 54762600 | J150: 9896043.333 | K150: 0.04666666667 | L150: 0.3 | M150: 0.1238758144 | N150: 0.01238758144 | O150: 54762600 | P150: 0 | Q150: 219266900 | R150: 23156400 | S150: 66.05687189 | T150: 49.45940803 | U150: -15.28410489 | V150: 10 | W150: TRUE | AB150: TRUE | AC150: TRUE | AD150: TRUE | AE150: TRUE | AF150: TRUE | AG150: TRUE | AH150: 0.16 | AI150: 0.16 | AJ150: 0 | AK150: 0.08182048197 | AL150: 0.008740907943 | AM150: 90.34808548 | AN150: FALSE | AO150: FALSE | AW150: 54762600
A151: 119 | B151: =IF(A151>$B$30,NA(),IF($A151>$A$8,"",OFFSET(InputPriceData!$B$15,$A151+$A$11,0,1,1))) -> 2020-06-09 | C151: =IF(A151>$B$30,NA(),IF($A151>$A$8,"",OFFSET(InputPriceData!$G$15,CalculationsAndCharts!$A151+$A$11,IF($C$5,8,0),1,1))) -> 107215400 | D151: =IF(A151>$B$30,NA(),IF(A151>$A$8,"",OFFSET(InputPriceData!$C$15,CalculationsAndCharts!$A151+$A$11,IF($C$5,8,0),1,1))) -> 1.02 | E151: =IF(A151>$B$30,NA(),IF(A151>$A$8,"",OFFSET(InputPriceData!$D$15,CalculationsAndCharts!$A151+$A$11,IF($C$5,8,0),1,1))) -> 1.44 | F151: =IF(A151>$B$30,NA(),IF(A151>$A$8,"",OFFSET(InputPriceData!$E$15,CalculationsAndCharts!$A151+$A$11,IF($C$5,8,0),1,1))) -> 0.84 | G151: =IF(A151>$B$30,NA(),IF(A151>$A$8,"",OFFSET(InputPriceData!$F$15,CalculationsAndCharts!$A151+$A$11,IF($C$5,8,0),1,1))) -> 1.02 | H151: 1.1 | I151: 107215400 | J151: 8101846.667 | K151: 0.4566666667 | L151: 0.82 | M151: 0.1178025666 | N151: 0.01178025666 | O151: 107215400 | P151: 0 | Q151: 164504300 | R151: 24093100 | S151: 57.7692164 | T151: 32.86194416 | U151: -16.19052274 | V151: 10 | W151: TRUE | X151: 80 | Y151: -80 | AB151: TRUE | AC151: TRUE | AD151: TRUE | AE151: TRUE | AF151: TRUE | AG151: TRUE | AH151: 0.4 | AI151: 0.4 | AJ151: 0 | AK151: 0.07204804222 | AL151: 0.009833521436 | AM151: 87.9905549 | AN151: TRUE | AO151: TRUE | AP151: 0.6043948668 | AW151: 107215400
A152: 120 | B152: =IF(A152>$B$30,NA(),IF($A152>$A$8,"",OFFSET(InputPriceData!$B$15,$A152+$A$11,0,1,1))) -> 2020-06-08 | C152: =IF(A152>$B$30,NA(),IF($A152>$A$8,"",OFFSET(InputPriceData!$G$15,CalculationsAndCharts!$A152+$A$11,IF($C$5,8,0),1,1))) -> 26298300 | D152: =IF(A152>$B$30,NA(),IF(A152>$A$8,"",OFFSET(InputPriceData!$C$15,CalculationsAndCharts!$A152+$A$11,IF($C$5,8,0),1,1))) -> 0.66 | E152: =IF(A152>$B$30,NA(),IF(A152>$A$8,"",OFFSET(InputPriceData!$D$15,CalculationsAndCharts!$A152+$A$11,IF($C$5,8,0),1,1))) -> 0.76 | F152: =IF(A152>$B$30,NA(),IF(A152>$A$8,"",OFFSET(InputPriceData!$E$15,CalculationsAndCharts!$A152+$A$11,IF($C$5,8,0),1,1))) -> 0.55 | G152: =IF(A152>$B$30,NA(),IF(A152>$A$8,"",OFFSET(InputPriceData!$F$15,CalculationsAndCharts!$A152+$A$11,IF($C$5,8,0),1,1))) -> 0.62 | H152: 0.6433333333 | I152: 26298300 | J152: 4555283.333 | K152: 0.1866666667 | L152: 0.29 | M152: 0.09358886202 | N152: 0.009358886202 | O152: 26298300 | P152: 0 | Q152: 58107400 | R152: 24093100 | S152: 24.88999952 | T152: 7.954671928 | U152: -16.48960881 | V152: 10 | W152: FALSE | AB152: FALSE | AC152: TRUE | AD152: TRUE | AE152: FALSE | AF152: TRUE | AG152: TRUE | AH152: 0.15 | AI152: 0.15 | AJ152: 0 | AK152: 0.0310540475 | AL152: 0.01106271161 | AM152: 73.7332315 | AN152: TRUE | AO152: FALSE | AX152: 26298300
A153: 121 | B153: =IF(A153>$B$30,NA(),IF($A153>$A$8,"",OFFSET(InputPriceData!$B$15,$A153+$A$11,0,1,1))) -> 2020-06-05 | C153: =IF(A153>$B$30,NA(),IF($A153>$A$8,"",OFFSET(InputPriceData!$G$15,CalculationsAndCharts!$A153+$A$11,IF($C$5,8,0),1,1))) -> 27124100 | D153: =IF(A153>$B$30,NA(),IF(A153>$A$8,"",OFFSET(InputPriceData!$C$15,CalculationsAndCharts!$A153+$A$11,IF($C$5,8,0),1,1))) -> 0.4 | E153: =IF(A153>$B$30,NA(),IF(A153>$A$8,"",OFFSET(InputPriceData!$D$15,CalculationsAndCharts!$A153+$A$11,IF($C$5,8,0),1,1))) -> 0.52 | F153: =IF(A153>$B$30,NA(),IF(A153>$A$8,"",OFFSET(InputPriceData!$E$15,CalculationsAndCharts!$A153+$A$11,IF($C$5,8,0),1,1))) -> 0.38 | G153: =IF(A153>$B$30,NA(),IF(A153>$A$8,"",OFFSET(InputPriceData!$F$15,CalculationsAndCharts!$A153+$A$11,IF($C$5,8,0),1,1))) -> 0.47 | H153: 0.4566666667 | I153: 27124100 | J153: 3710826.667 | K153: 0.07 | L153: 0.14 | M153: 0.08681606416 | N153: 0.008681606416 | O153: 27124100 | P153: 0 | Q153: 31809100 | R153: 25057700 | S153: 6.064596568 | T153: -8.980655668 | U153: -15.96892258 | V153: 10 | W153: FALSE | AB153: FALSE | AC153: TRUE | AD153: TRUE | AE153: FALSE | AF153: TRUE | AG153: FALSE | AH153: 0.09 | AI153: 0.09 | AJ153: 0 | AK153: 0.01618580344 | AL153: 0.01244555057 | AM153: 56.53174291 | AN153: TRUE | AO153: FALSE | AW153: 27124100
A154: 122 | B154: =IF(A154>$B$30,NA(),IF($A154>$A$8,"",OFFSET(InputPriceData!$B$15,$A154+$A$11,0,1,1))) -> 2020-06-04 | C154: =IF(A154>$B$30,NA(),IF($A154>$A$8,"",OFFSET(InputPriceData!$G$15,CalculationsAndCharts!$A154+$A$11,IF($C$5,8,0),1,1))) -> 10133400 | D154: =IF(A154>$B$30,NA(),IF(A154>$A$8,"",OFFSET(InputPriceData!$C$15,CalculationsAndCharts!$A154+$A$11,IF($C$5,8,0),1,1))) -> 0.38 | E154: =IF(A154>$B$30,NA(),IF(A154>$A$8,"",OFFSET(InputPriceData!$D$15,CalculationsAndCharts!$A154+$A$11,IF($C$5,8,0),1,1))) -> 0.41 | F154: =IF(A154>$B$30,NA(),IF(A154>$A$8,"",OFFSET(InputPriceData!$E$15,CalculationsAndCharts!$A154+$A$11,IF($C$5,8,0),1,1))) -> 0.37 | G154: =IF(A154>$B$30,NA(),IF(A154>$A$8,"",OFFSET(InputPriceData!$F$15,CalculationsAndCharts!$A154+$A$11,IF($C$5,8,0),1,1))) -> 0.38 | H154: 0.3866666667 | I154: 10133400 | J154: 2821076.667 | K154: 0.003333333333 | L154: 0.04 | M154: 0.08498213533 | N154: 0.008498213533 | O154: 0 | P154: 0 | Q154: 4685000 | R154: 25489300 | S154: -24.58198584 | T154: -24.0259079 | U154: -14.88513315 | V154: 10 | W154: FALSE | AB154: FALSE | AC154: TRUE | AD154: TRUE | AE154: FALSE | AF154: TRUE | AG154: FALSE | AH154: 0 | AI154: 0 | AJ154: 0 | AK154: 0.006959028865 | AL154: 0.01400124439 | AM154: 33.20104075 | AN154: TRUE | AO154: FALSE | AW154: 10133400
A155: 123 | B155: =IF(A155>$B$30,NA(),IF($A155>$A$8,"",OFFSET(InputPriceData!$B$15,$A155+$A$11,0,1,1))) -> 2020-06-03 | C155: =IF(A155>$B$30,NA(),IF($A155>$A$8,"",OFFSET(InputPriceData!$G$15,CalculationsAndCharts!$A155+$A$11,IF($C$5,8,0),1,1))) -> 3255000 | D155: =IF(A155>$B$30,NA(),IF(A155>$A$8,"",OFFSET(InputPriceData!$C$15,CalculationsAndCharts!$A155+$A$11,IF($C$5,8,0),1,1))) -> 0.4 | E155: =IF(A155>$B$30,NA(),IF(A155>$A$8,"",OFFSET(InputPriceData!$D$15,CalculationsAndCharts!$A155+$A$11,IF($C$5,8,0),1,1))) -> 0.4 | F155: =IF(A155>$B$30,NA(),IF(A155>$A$8,"",OFFSET(InputPriceData!$E$15,CalculationsAndCharts!$A155+$A$11,IF($C$5,8,0),1,1))) -> 0.37 | G155: =IF(A155>$B$30,NA(),IF(A155>$A$8,"",OFFSET(InputPriceData!$F$15,CalculationsAndCharts!$A155+$A$11,IF($C$5,8,0),1,1))) -> 0.38 | H155: 0.3833333333 | I155: 3255000 | J155: 2583056.667 | K155: -0.006666666667 | L155: 0.03 | M155: 0.08653324345 | N155: 0.008653324345 | O155: 0 | P155: 0 | Q155: 7677800 | R155: 25489300 | S155: -22.98504227 | T155: -23.46982997 | U155: -13.3176721 | V155: 10 | W155: FALSE | AB155: FALSE | AC155: TRUE | AD155: TRUE | AE155: FALSE | AF155: TRUE | AG155: FALSE | AH155: -0.01 | AI155: 0 | AJ155: 0.01 | AK155: 0.007828907473 | AL155: 0.01575139994 | AM155: 33.20104075 | AN155: TRUE | AO155: FALSE | AX155: 3255000
A156: 124 | B156: =IF(A156>$B$30,NA(),IF($A156>$A$8,"",OFFSET(InputPriceData!$B$15,$A156+$A$11,0,1,1))) -> 2020-06-02 | C156: =IF(A156>$B$30,NA(),IF($A156>$A$8,"",OFFSET(InputPriceData!$G$15,CalculationsAndCharts!$A156+$A$11,IF($C$5,8,0),1,1))) -> 1895000 | D156: =IF(A156>$B$30,NA(),IF(A156>$A$8,"",OFFSET(InputPriceData!$C$15,CalculationsAndCharts!$A156+$A$11,IF($C$5,8,0),1,1))) -> 0.4 | E156: =IF(A156>$B$30,NA(),IF(A156>$A$8,"",OFFSET(InputPriceData!$D$15,CalculationsAndCharts!$A156+$A$11,IF($C$5,8,0),1,1))) -> 0.4 | F156: =IF(A156>$B$30,NA(),IF(A156>$A$8,"",OFFSET(InputPriceData!$E$15,CalculationsAndCharts!$A156+$A$11,IF($C$5,8,0),1,1))) -> 0.38 | G156: =IF(A156>$B$30,NA(),IF(A156>$A$8,"",OFFSET(InputPriceData!$F$15,CalculationsAndCharts!$A156+$A$11,IF($C$5,8,0),1,1))) -> 0.39 | H156: 0.39 | I156: 1895000 | J156: 2491413.333 | K156: -0.006666666667 | L156: 0.02 | M156: 0.08848266564 | N156: 0.008848266564 | O156: 0 | P156: 0 | Q156: 8183500 | R156: 25489300 | S156: -23.15392602 | T156: -23.95461768 | U156: -11.87829744 | V156: 10 | W156: FALSE | AB156: FALSE | AC156: TRUE | AD156: TRUE | AE156: FALSE | AF156: TRUE | AG156: FALSE | AH156: -0.01 | AI156: 0 | AJ156: 0.01 | AK156: 0.008807520907 | AL156: 0.01647032493 | AM156: 34.84284604 | AN156: TRUE | AO156: FALSE | AX156: 1895000
A157: 125 | B157: =IF(A157>$B$30,NA(),IF($A157>$A$8,"",OFFSET(InputPriceData!$B$15,$A157+$A$11,0,1,1))) -> 2020-06-01 | C157: =IF(A157>$B$30,NA(),IF($A157>$A$8,"",OFFSET(InputPriceData!$G$15,CalculationsAndCharts!$A157+$A$11,IF($C$5,8,0),1,1))) -> 5841500 | D157: =IF(A157>$B$30,NA(),IF(A157>$A$8,"",OFFSET(InputPriceData!$C$15,CalculationsAndCharts!$A157+$A$11,IF($C$5,8,0),1,1))) -> 0.38 | E157: =IF(A157>$B$30,NA(),IF(A157>$A$8,"",OFFSET(InputPriceData!$D$15,CalculationsAndCharts!$A157+$A$11,IF($C$5,8,0),1,1))) -> 0.42 | F157: =IF(A157>$B$30,NA(),IF(A157>$A$8,"",OFFSET(InputPriceData!$E$15,CalculationsAndCharts!$A157+$A$11,IF($C$5,8,0),1,1))) -> 0.37 | G157: =IF(A157>$B$30,NA(),IF(A157>$A$8,"",OFFSET(InputPriceData!$F$15,CalculationsAndCharts!$A157+$A$11,IF($C$5,8,0),1,1))) -> 0.4 | H157: 0.3966666667 | I157: 5841500 | J157: 2445326.667 | K157: 0.003333333333 | L157: 0.05 | M157: 0.09084413687 | N157: 0.009084413687 | O157: 0 | P157: 0 | Q157: 8183500 | R157: 26001700 | S157: -24.28877941 | T157: -24.75530933 | U157: -10.51439854 | V157: 10 | W157: FALSE | AB157: FALSE | AC157: TRUE | AD157: TRUE | AE157: FALSE | AF157: TRUE | AG157: FALSE | AH157: 0.01 | AI157: 0.01 | AJ157: 0 | AK157: 0.00990846102 | AL157: 0.01727911554 | AM157: 36.44481146 | AN157: TRUE | AO157: FALSE | AW157: 5841500
A158: 126 | B158: =IF(A158>$B$30,NA(),IF($A158>$A$8,"",OFFSET(InputPriceData!$B$15,$A158+$A$11,0,1,1))) -> 2020-05-29 | C158: =IF(A158>$B$30,NA(),IF($A158>$A$8,"",OFFSET(InputPriceData!$G$15,CalculationsAndCharts!$A158+$A$11,IF($C$5,8,0),1,1))) -> 3681700 | D158: =IF(A158>$B$30,NA(),IF(A158>$A$8,"",OFFSET(InputPriceData!$C$15,CalculationsAndCharts!$A158+$A$11,IF($C$5,8,0),1,1))) -> 0.41 | E158: =IF(A158>$B$30,NA(),IF(A158>$A$8,"",OFFSET(InputPriceData!$D$15,CalculationsAndCharts!$A158+$A$11,IF($C$5,8,0),1,1))) -> 0.41 | F158: =IF(A158>$B$30,NA(),IF(A158>$A$8,"",OFFSET(InputPriceData!$E$15,CalculationsAndCharts!$A158+$A$11,IF($C$5,8,0),1,1))) -> 0.38 | G158: =IF(A158>$B$30,NA(),IF(A158>$A$8,"",OFFSET(InputPriceData!$F$15,CalculationsAndCharts!$A158+$A$11,IF($C$5,8,0),1,1))) -> 0.39 | H158: 0.3933333333 | I158: 3681700 | J158: 2268430 | K158: -0.02 | L158: 0.03 | M158: 0.09225255538 | N158: 0.009225255538 | O158: 0 | P158: 3681700 | Q158: 8183500 | R158: 26536300 | S158: -26.96843191 | T158: -25.22183925 | U158: -9.210912844 | V158: 10 | W158: FALSE | AB158: FALSE | AC158: TRUE | AD158: TRUE | AE158: FALSE | AF158: TRUE | AG158: FALSE | AH158: -0.02 | AI158: 0 | AJ158: 0.02 | AK158: 0.009897018648 | AL158: 0.01943900499 | AM158: 33.73674214 | AN158: TRUE | AO158: FALSE | AX158: 3681700
A159: 127 | B159: =IF(A159>$B$30,NA(),IF($A159>$A$8,"",OFFSET(InputPriceData!$B$15,$A159+$A$11,0,1,1))) -> 2020-05-28 | C159: =IF(A159>$B$30,NA(),IF($A159>$A$8,"",OFFSET(InputPriceData!$G$15,CalculationsAndCharts!$A159+$A$11,IF($C$5,8,0),1,1))) -> 3472200 | D159: =IF(A159>$B$30,NA(),IF(A159>$A$8,"",OFFSET(InputPriceData!$C$15,CalculationsAndCharts!$A159+$A$11,IF($C$5,8,0),1,1))) -> 0.42 | E159: =IF(A159>$B$30,NA(),IF(A159>$A$8,"",OFFSET(InputPriceData!$D$15,CalculationsAndCharts!$A159+$A$11,IF($C$5,8,0),1,1))) -> 0.43 | F159: =IF(A159>$B$30,NA(),IF(A159>$A$8,"",OFFSET(InputPriceData!$E$15,CalculationsAndCharts!$A159+$A$11,IF($C$5,8,0),1,1))) -> 0.4 | G159: =IF(A159>$B$30,NA(),IF(A159>$A$8,"",OFFSET(InputPriceData!$F$15,CalculationsAndCharts!$A159+$A$11,IF($C$5,8,0),1,1))) -> 0.41 | H159: 0.4133333333 | I159: 3472200 | J159: 2163640 | K159: -0.01 | L159: 0.03 | M159: 0.09439919522 | N159: 0.009439919522 | O159: 0 | P159: 3472200 | Q159: 8183500 | R159: 23392600 | S159: -23.43134717 | T159: -23.47524659 | U159: -7.911996105 | V159: 10 | W159: FALSE | AB159: FALSE | AC159: TRUE | AD159: TRUE | AE159: FALSE | AF159: TRUE | AG159: FALSE | AH159: -0.02 | AI159: 0 | AJ159: 0.02 | AK159: 0.01113414598 | AL159: 0.01936888061 | AM159: 36.50177449 | AN159: TRUE | AO159: FALSE | AX159: 3472200
A160: 128 | B160: =IF(A160>$B$30,NA(),IF($A160>$A$8,"",OFFSET(InputPriceData!$B$15,$A160+$A$11,0,1,1))) -> 2020-05-27 | C160: =IF(A160>$B$30,NA(),IF($A160>$A$8,"",OFFSET(InputPriceData!$G$15,CalculationsAndCharts!$A160+$A$11,IF($C$5,8,0),1,1))) -> 4816400 | D160: =IF(A160>$B$30,NA(),IF(A160>$A$8,"",OFFSET(InputPriceData!$C$15,CalculationsAndCharts!$A160+$A$11,IF($C$5,8,0),1,1))) -> 0.42 | E160: =IF(A160>$B$30,NA(),IF(A160>$A$8,"",OFFSET(InputPriceData!$D$15,CalculationsAndCharts!$A160+$A$11,IF($C$5,8,0),1,1))) -> 0.43 | F160: =IF(A160>$B$30,NA(),IF(A160>$A$8,"",OFFSET(InputPriceData!$E$15,CalculationsAndCharts!$A160+$A$11,IF($C$5,8,0),1,1))) -> 0.41 | G160: =IF(A160>$B$30,NA(),IF(A160>$A$8,"",OFFSET(InputPriceData!$F$15,CalculationsAndCharts!$A160+$A$11,IF($C$5,8,0),1,1))) -> 0.43 | H160: 0.4233333333 | I160: 4816400 | J160: 2068863.333 | K160: -0.006666666667 | L160: 0.02 | M160: 0.09661985712 | N160: 0.009661985712 | O160: 0 | P160: 0 | Q160: 8183500 | R160: 20549300 | S160: -19.92366179 | T160: -23.51914601 | U160: -6.649684333 | V160: 10 | W160: FALSE | AB160: FALSE | AC160: TRUE | AD160: TRUE | AE160: FALSE | AF160: TRUE | AG160: FALSE | AH160: 0.01 | AI160: 0.01 | AJ160: 0 | AK160: 0.01252591423 | AL160: 0.01928999069 | AM160: 39.36997631 | AN160: TRUE | AO160: FALSE | AW160: 4816400
A161: 129 | B161: =IF(A161>$B$30,NA(),IF($A161>$A$8,"",OFFSET(InputPriceData!$B$15,$A161+$A$11,0,1,1))) -> 2020-05-26 | C161: =IF(A161>$B$30,NA(),IF($A161>$A$8,"",OFFSET(InputPriceData!$G$15,CalculationsAndCharts!$A161+$A$11,IF($C$5,8,0),1,1))) -> 10195800 | D161: =IF(A161>$B$30,NA(),IF(A161>$A$8,"",OFFSET(InputPriceData!$C$15,CalculationsAndCharts!$A161+$A$11,IF($C$5,8,0),1,1))) -> 0.42 | E161: =IF(A161>$B$30,NA(),IF(A161>$A$8,"",OFFSET(InputPriceData!$D$15,CalculationsAndCharts!$A161+$A$11,IF($C$5,8,0),1,1))) -> 0.47 | F161: =IF(A161>$B$30,NA(),IF(A161>$A$8,"",OFFSET(InputPriceData!$E$15,CalculationsAndCharts!$A161+$A$11,IF($C$5,8,0),1,1))) -> 0.4 | G161: =IF(A161>$B$30,NA(),IF(A161>$A$8,"",OFFSET(InputPriceData!$F$15,CalculationsAndCharts!$A161+$A$11,IF($C$5,8,0),1,1))) -> 0.42 | H161: 0.43 | I161: 10195800 | J161: =IF(A161>$J$30,NA(),AVERAGE(OFFSET(I161,0,0,$A$16,1))) -> 1925193.333 | K161: 0.003333333333 | L161: 0.07 | M161: =IF($A161>$M$30,NA(),IF($A161=$M$30,AVERAGE(OFFSET($L161,0,0,$A$16,1)),M162*$E$17+L161*$D$17)) -> 0.09926192116 | N161: 0.009926192116 | O161: 0 | P161: 0 | Q161: =IF($A161>$Q$30,NA(),SUM(OFFSET(O161,0,0,$A$16,1))) -> 8183500 | R161: =IF($A161>$Q$30,NA(),SUM(OFFSET(P161,0,0,$A$16,1))) -> 21055600 | S161: =IF($A161>$Q$30,NA(),(Q161-R161)/J161/$A$16*100) -> -22.28711229 | T161: -27.11463024 | U161: -5.260252341 | V161: 10 | W161: FALSE | AB161: FALSE | AC161: TRUE | AD161: TRUE | AE161: FALSE | AF161: TRUE | AG161: FALSE | AH161: 0 | AI161: 0 | AJ161: 0 | AK161: 0.0128416535 | AL161: 0.02170123952 | AM161: 37.17596408 | AN161: TRUE | AO161: FALSE | AW161: =IF(G161>=D161,C161,NA()) -> 10195800 | AX161: =IF(G161<D161,C161,NA()) -> 
A162: 130 | B162: =IF(A162>$B$30,NA(),IF($A162>$A$8,"",OFFSET(InputPriceData!$B$15,$A162+$A$11,0,1,1))) -> 2020-05-22 | C162: =IF(A162>$B$30,NA(),IF($A162>$A$8,"",OFFSET(InputPriceData!$G$15,CalculationsAndCharts!$A162+$A$11,IF($C$5,8,0),1,1))) -> 10521600 | D162: =IF(A162>$B$30,NA(),IF(A162>$A$8,"",OFFSET(InputPriceData!$C$15,CalculationsAndCharts!$A162+$A$11,IF($C$5,8,0),1,1))) -> 0.46 | E162: =IF(A162>$B$30,NA(),IF(A162>$A$8,"",OFFSET(InputPriceData!$D$15,CalculationsAndCharts!$A162+$A$11,IF($C$5,8,0),1,1))) -> 0.46 | F162: =IF(A162>$B$30,NA(),IF(A162>$A$8,"",OFFSET(InputPriceData!$E$15,CalculationsAndCharts!$A162+$A$11,IF($C$5,8,0),1,1))) -> 0.4 | G162: =IF(A162>$B$30,NA(),IF(A162>$A$8,"",OFFSET(InputPriceData!$F$15,CalculationsAndCharts!$A162+$A$11,IF($C$5,8,0),1,1))) -> 0.42 | H162: 0.4266666667 | I162: =IF(A162>$H$30,NA(),IF(IFERROR(C162,0)=0,1,C162)) -> 10521600 | J162: 1596576.667 | K162: =IF(A162>$K$30,NA(),H162-H163) -> 0.003333333333 | L162: =IF(A162>$K$30,NA(),MAX(E162-F162,ABS(E162-G163),ABS(F162-G163))) -> 0.06 | M162: 0.1002709529 | N162: =IF($A162>$M$30,NA(),0.1*M162) -> 0.01002709529 | O162: =IF($A162>$M$30,NA(),IF(K162>N162,I162,0)) -> 0 | P162: =IF($A162>$M$30,NA(),IF(K162<-N162,I162,0)) -> 0 | Q162: 8183500 | R162: 21392900 | S162: -27.57859002 | T162: =IF($A162>$T$30,NA(),IF($A162=$T$30,AVERAGE(OFFSET(S162,0,0,$A$18,1)),$D$18*S162+$E$18*T163)) -> -31.94214819 | U162: =IF($A162>$U$30,NA(),AVERAGE(OFFSET(T162,0,0,$A$20,1))) -> -3.760110781 | V162: =IF($A162>$U$30,NA(),$A$19) -> 10 | W162: =IF($A162>$U$30,NA(),(T162>=V162)) -> FALSE | X162: =IF($A162>$U$30,NA(),IF(OR(AND($R$17=3,$W162),AND($R$17=2,AND($W162,NOT($W163)))),$BJ$34,NA())) ->  | Y162: =IF($A162>$U$30,NA(),IF(OR(AND($R$17=3,$W162),AND($R$17=2,AND($W162,NOT($W163)))),$BJ$33,NA())) ->  | Z162: =IF($A162>$U$30,NA(),IF(OR(AND($R$17=3,NOT($W162)),AND($R$17=2,AND(NOT($W162),$W163))),$BJ$34,NA())) ->  | AA162: =IF($A162>$U$30,NA(),IF(OR(AND($R$17=3,NOT($W162)),AND($R$17=2,AND(NOT($W162),$W163))), $BJ$33,NA())) ->  | AB162: =IF($A162>$AB$30,NA(),G162>$A$22) -> FALSE | AC162: =IF($A162>$AC$30,NA(),AVERAGE(OFFSET(C162,0,0,5,1))>$A$23) -> TRUE | AD162: =IF($A162>$AC$30,NA(),SUMPRODUCT(OFFSET(G162,0,0,5,1),OFFSET(C162,0,0,5,1))/5/1000000>$A$24) -> TRUE | AE162: =IF($A162>$AC$30,NA(),AND(AB162,AC162,AD162)) -> FALSE | AF162: =IF($A162>$AF$30,NA(),AVERAGE(OFFSET(C162,0,0,50,1))>AVERAGE(OFFSET(C162,50,0,50,1))) -> TRUE | AG162: =IF($A162>$AG$30,NA(),G162>AVERAGE(OFFSET(G162,0,0,$A$16,1))) -> FALSE | AH162: =IF($A162<=$AH$30,G162-$G163,NA()) -> 0.01 | AI162: =IF($A162>$AH$30,NA(),IF(AH162>0,AH162,0)) -> 0.01 | AJ162: =IF($A162>$AH$30,NA(),IF(AH162<0,-AH162,0)) -> 0 | AK162: =IF($A162>$AK$30,NA(),IF($A162=$AK$30,AVERAGE(OFFSET(AI162,0,0,$AI$29,1)),AI162*$AJ$29+AK163*$AK$29)) -> 0.01444686019 | AL162: =IF($A162>$AK$30,NA(),IF($A162=$AK$30,AVERAGE(OFFSET(AJ162,0,0,$AI$29,1)),AJ162*$AJ$29+AL163*$AK$29)) -> 0.02441389446 | AM162: =IF($A162>$AK$30,NA(),IFERROR(100-100/(1+($AK162/$AL162)),0)) -> 37.17596408 | AN162: =IF($A162>$AK$30,NA(),AM162<$AN$32) -> TRUE | AO162: =IF($A162>$AO$30,NA(),AND(AE162,AF162,AND(W162,NOT(W163)),AN162,AG162)) -> FALSE | AP162: =IF($A162>$AO$30,NA(),IF(AND($R$8,AO162),F162-2*M162,NA())) ->  | AX162: 10521600
A163: 131 | B163: =IF(A163>$B$30,NA(),IF($A163>$A$8,"",OFFSET(InputPriceData!$B$15,$A163+$A$11,0,1,1))) -> 2020-05-21 | C163: =IF(A163>$B$30,NA(),IF($A163>$A$8,"",OFFSET(InputPriceData!$G$15,CalculationsAndCharts!$A163+$A$11,IF($C$5,8,0),1,1))) -> 4078900 | D163: =IF(A163>$B$30,NA(),IF(A163>$A$8,"",OFFSET(InputPriceData!$C$15,CalculationsAndCharts!$A163+$A$11,IF($C$5,8,0),1,1))) -> 0.47 | E163: =IF(A163>$B$30,NA(),IF(A163>$A$8,"",OFFSET(InputPriceData!$D$15,CalculationsAndCharts!$A163+$A$11,IF($C$5,8,0),1,1))) -> 0.47 | F163: =IF(A163>$B$30,NA(),IF(A163>$A$8,"",OFFSET(InputPriceData!$E$15,CalculationsAndCharts!$A163+$A$11,IF($C$5,8,0),1,1))) -> 0.39 | G163: =IF(A163>$B$30,NA(),IF(A163>$A$8,"",OFFSET(InputPriceData!$F$15,CalculationsAndCharts!$A163+$A$11,IF($C$5,8,0),1,1))) -> 0.41 | H163: =IF(A163>$H$30,NA(),AVERAGE(E163:G163)) -> 0.4233333333 | I163: 4078900 | J163: 1274123.333 | K163: -0.05666666667 | L163: 0.11 | M163: 0.1016596065 | N163: 0.01016596065 | O163: 0 | P163: 4078900 | Q163: 8183500 | R163: 22240900 | S163: -36.77665951 | T163: -36.30570635 | U163: -2.141520128 | V163: 10 | W163: FALSE | AB163: FALSE | AC163: TRUE | AD163: TRUE | AE163: FALSE | AF163: TRUE | AG163: FALSE | AH163: -0.09 | AI163: 0 | AJ163: 0.09 | AK163: 0.01500271772 | AL163: 0.02746563127 | AM163: 35.32682121 | AN163: TRUE | AO163: FALSE | AX163: 4078900
A164: 132 | B164: =IF(A164>$B$30,NA(),IF($A164>$A$8,"",OFFSET(InputPriceData!$B$15,$A164+$A$11,0,1,1))) -> 2020-05-20 | C164: =IF(A164>$B$30,NA(),IF($A164>$A$8,"",OFFSET(InputPriceData!$G$15,CalculationsAndCharts!$A164+$A$11,IF($C$5,8,0),1,1))) -> 1306700 | D164: =IF(A164>$B$30,NA(),IF(A164>$A$8,"",OFFSET(InputPriceData!$C$15,CalculationsAndCharts!$A164+$A$11,IF($C$5,8,0),1,1))) -> 0.45 | E164: =IF(A164>$B$30,NA(),IF(A164>$A$8,"",OFFSET(InputPriceData!$D$15,CalculationsAndCharts!$A164+$A$11,IF($C$5,8,0),1,1))) -> 0.5 | F164: =IF(A164>$B$30,NA(),IF(A164>$A$8,"",OFFSET(InputPriceData!$E$15,CalculationsAndCharts!$A164+$A$11,IF($C$5,8,0),1,1))) -> 0.44 | G164: =IF(A164>$B$30,NA(),IF(A164>$A$8,"",OFFSET(InputPriceData!$F$15,CalculationsAndCharts!$A164+$A$11,IF($C$5,8,0),1,1))) -> 0.5 | H164: 0.48 | I164: 1306700 | J164: 1163896.667 | K164: 0.01333333333 | L164: 0.06 | M164: 0.1013720067 | N164: 0.01013720067 | O164: 1306700 | P164: 0 | Q164: 8183500 | R164: 18934100 | S164: -30.78910213 | T164: -35.83475319 | U164: -0.4148578162 | V164: 10 | W164: FALSE | AB164: FALSE | AC164: TRUE | AD164: TRUE | AE164: FALSE | AF164: TRUE | AG164: FALSE | AH164: 0.04 | AI164: 0.04 | AJ164: 0 | AK164: 0.01687805743 | AL164: 0.01964883518 | AM164: 46.20720851 | AN164: TRUE | AO164: FALSE | AW164: 1306700
A165: 133 | B165: =IF(A165>$B$30,NA(),IF($A165>$A$8,"",OFFSET(InputPriceData!$B$15,$A165+$A$11,0,1,1))) -> 2020-05-19 | C165: =IF(A165>$B$30,NA(),IF($A165>$A$8,"",OFFSET(InputPriceData!$G$15,CalculationsAndCharts!$A165+$A$11,IF($C$5,8,0),1,1))) -> 4161000 | D165: =IF(A165>$B$30,NA(),IF(A165>$A$8,"",OFFSET(InputPriceData!$C$15,CalculationsAndCharts!$A165+$A$11,IF($C$5,8,0),1,1))) -> 0.47 | E165: =IF(A165>$B$30,NA(),IF(A165>$A$8,"",OFFSET(InputPriceData!$D$15,CalculationsAndCharts!$A165+$A$11,IF($C$5,8,0),1,1))) -> 0.51 | F165: =IF(A165>$B$30,NA(),IF(A165>$A$8,"",OFFSET(InputPriceData!$E$15,CalculationsAndCharts!$A165+$A$11,IF($C$5,8,0),1,1))) -> 0.43 | G165: =IF(A165>$B$30,NA(),IF(A165>$A$8,"",OFFSET(InputPriceData!$F$15,CalculationsAndCharts!$A165+$A$11,IF($C$5,8,0),1,1))) -> 0.46 | H165: 0.4666666667 | I165: 4161000 | J165: 1147253.333 | K165: 0 | L165: 0.08 | M165: 0.1027986276 | N165: 0.01027986276 | O165: 0 | P165: 0 | Q165: 6876800 | R165: 19741500 | S165: -37.37825996 | T165: -40.88040426 | U165: 1.287158974 | V165: 10 | W165: FALSE | AB165: FALSE | AC165: TRUE | AD165: TRUE | AE165: FALSE | AF165: TRUE | AG165: FALSE | AH165: -0.02 | AI165: 0 | AJ165: 0.02 | AK165: 0.01398781461 | AL165: 0.02210493958 | AM165: 38.75518764 | AN165: TRUE | AO165: FALSE | AX165: 4161000
A166: 134 | B166: =IF(A166>$B$30,NA(),IF($A166>$A$8,"",OFFSET(InputPriceData!$B$15,$A166+$A$11,0,1,1))) -> 2020-05-18 | C166: =IF(A166>$B$30,NA(),IF($A166>$A$8,"",OFFSET(InputPriceData!$G$15,CalculationsAndCharts!$A166+$A$11,IF($C$5,8,0),1,1))) -> 1955200 | D166: =IF(A166>$B$30,NA(),IF(A166>$A$8,"",OFFSET(InputPriceData!$C$15,CalculationsAndCharts!$A166+$A$11,IF($C$5,8,0),1,1))) -> 0.44 | E166: =IF(A166>$B$30,NA(),IF(A166>$A$8,"",OFFSET(InputPriceData!$D$15,CalculationsAndCharts!$A166+$A$11,IF($C$5,8,0),1,1))) -> 0.49 | F166: =IF(A166>$B$30,NA(),IF(A166>$A$8,"",OFFSET(InputPriceData!$E$15,CalculationsAndCharts!$A166+$A$11,IF($C$5,8,0),1,1))) -> 0.43 | G166: =IF(A166>$B$30,NA(),IF(A166>$A$8,"",OFFSET(InputPriceData!$F$15,CalculationsAndCharts!$A166+$A$11,IF($C$5,8,0),1,1))) -> 0.48 | H166: 0.4666666667 | I166: 1955200 | J166: 1035636.667 | K166: 0.04 | L166: 0.06 | M166: 0.1035847872 | N166: 0.01035847872 | O166: 1955200 | P166: 0 | Q166: 7689300 | R166: 19741500 | S166: -38.7915968 | T166: -44.38254856 | U166: 3.150519872 | V166: 10 | W166: FALSE | AB166: FALSE | AC166: TRUE | AD166: TRUE | AE166: FALSE | AF166: TRUE | AG166: FALSE | AH166: 0.05 | AI166: 0.05 | AJ166: 0 | AK166: 0.01573629144 | AL166: 0.02236805702 | AM166: 41.29788875 | AN166: TRUE | AO166: FALSE | AW166: 1955200
A167: 135 | B167: =IF(A167>$B$30,NA(),IF($A167>$A$8,"",OFFSET(InputPriceData!$B$15,$A167+$A$11,0,1,1))) -> 2020-05-15 | C167: =IF(A167>$B$30,NA(),IF($A167>$A$8,"",OFFSET(InputPriceData!$G$15,CalculationsAndCharts!$A167+$A$11,IF($C$5,8,0),1,1))) -> 604600 | D167: =IF(A167>$B$30,NA(),IF(A167>$A$8,"",OFFSET(InputPriceData!$C$15,CalculationsAndCharts!$A167+$A$11,IF($C$5,8,0),1,1))) -> 0.44 | E167: =IF(A167>$B$30,NA(),IF(A167>$A$8,"",OFFSET(InputPriceData!$D$15,CalculationsAndCharts!$A167+$A$11,IF($C$5,8,0),1,1))) -> 0.44 | F167: =IF(A167>$B$30,NA(),IF(A167>$A$8,"",OFFSET(InputPriceData!$E$15,CalculationsAndCharts!$A167+$A$11,IF($C$5,8,0),1,1))) -> 0.41 | G167: =IF(A167>$B$30,NA(),IF(A167>$A$8,"",OFFSET(InputPriceData!$F$15,CalculationsAndCharts!$A167+$A$11,IF($C$5,8,0),1,1))) -> 0.43 | H167: 0.4266666667 | I167: 604600 | J167: 983853.3333 | K167: 0.02 | L167: 0.03 | M167: 0.1050877109 | N167: 0.01050877109 | O167: 604600 | P167: 0 | Q167: 5734100 | R167: 20143200 | S167: -48.81859085 | T167: -49.97350032 | U167: 5.118054513 | V167: 10 | W167: FALSE | AB167: FALSE | AC167: TRUE | AD167: TRUE | AE167: FALSE | AF167: TRUE | AG167: FALSE | AH167: 0.02 | AI167: 0.02 | AJ167: 0 | AK167: 0.01145332787 | AL167: 0.02516406415 | AM167: 31.2783823 | AN167: TRUE | AO167: FALSE | AX167: 604600
A168: 136 | B168: =IF(A168>$B$30,NA(),IF($A168>$A$8,"",OFFSET(InputPriceData!$B$15,$A168+$A$11,0,1,1))) -> 2020-05-14 | C168: =IF(A168>$B$30,NA(),IF($A168>$A$8,"",OFFSET(InputPriceData!$G$15,CalculationsAndCharts!$A168+$A$11,IF($C$5,8,0),1,1))) -> 540500 | D168: =IF(A168>$B$30,NA(),IF(A168>$A$8,"",OFFSET(InputPriceData!$C$15,CalculationsAndCharts!$A168+$A$11,IF($C$5,8,0),1,1))) -> 0.4 | E168: =IF(A168>$B$30,NA(),IF(A168>$A$8,"",OFFSET(InputPriceData!$D$15,CalculationsAndCharts!$A168+$A$11,IF($C$5,8,0),1,1))) -> 0.42 | F168: =IF(A168>$B$30,NA(),IF(A168>$A$8,"",OFFSET(InputPriceData!$E$15,CalculationsAndCharts!$A168+$A$11,IF($C$5,8,0),1,1))) -> 0.39 | G168: =IF(A168>$B$30,NA(),IF(A168>$A$8,"",OFFSET(InputPriceData!$F$15,CalculationsAndCharts!$A168+$A$11,IF($C$5,8,0),1,1))) -> 0.41 | H168: 0.4066666667 | I168: 540500 | J168: 1005196.667 | K168: -0.006666666667 | L168: 0.03 | M168: 0.1076769423 | N168: 0.01076769423 | O168: 0 | P168: 0 | Q168: 5129500 | R168: 21388100 | S168: -53.91515425 | T168: -51.1284098 | U168: 7.334056488 | V168: 10 | W168: FALSE | AB168: FALSE | AC168: TRUE | AD168: TRUE | AE168: FALSE | AF168: TRUE | AG168: FALSE | AH168: 0.01 | AI168: 0.01 | AJ168: 0 | AK168: 0.01038499385 | AL168: 0.02830957217 | AM168: 26.83837788 | AN168: TRUE | AO168: FALSE | AW168: 540500
A169: 137 | B169: =IF(A169>$B$30,NA(),IF($A169>$A$8,"",OFFSET(InputPriceData!$B$15,$A169+$A$11,0,1,1))) -> 2020-05-13 | C169: =IF(A169>$B$30,NA(),IF($A169>$A$8,"",OFFSET(InputPriceData!$G$15,CalculationsAndCharts!$A169+$A$11,IF($C$5,8,0),1,1))) -> 1293700 | D169: =IF(A169>$B$30,NA(),IF(A169>$A$8,"",OFFSET(InputPriceData!$C$15,CalculationsAndCharts!$A169+$A$11,IF($C$5,8,0),1,1))) -> 0.44 | E169: =IF(A169>$B$30,NA(),IF(A169>$A$8,"",OFFSET(InputPriceData!$D$15,CalculationsAndCharts!$A169+$A$11,IF($C$5,8,0),1,1))) -> 0.46 | F169: =IF(A169>$B$30,NA(),IF(A169>$A$8,"",OFFSET(InputPriceData!$E$15,CalculationsAndCharts!$A169+$A$11,IF($C$5,8,0),1,1))) -> 0.38 | G169: =IF(A169>$B$30,NA(),IF(A169>$A$8,"",OFFSET(InputPriceData!$F$15,CalculationsAndCharts!$A169+$A$11,IF($C$5,8,0),1,1))) -> 0.4 | H169: 0.4133333333 | I169: 1293700 | J169: 1190596.667 | K169: -0.02666666667 | L169: 0.08 | M169: 0.1103554576 | N169: 0.01103554576 | O169: 0 | P169: 1293700 | Q169: 5129500 | R169: 27490600 | S169: -62.6047444 | T169: -48.34166535 | U169: 9.724616167 | V169: 10 | W169: FALSE | AB169: FALSE | AC169: TRUE | AD169: TRUE | AE169: FALSE | AF169: TRUE | AG169: FALSE | AH169: -0.04 | AI169: 0 | AJ169: 0.04 | AK169: 0.01043311808 | AL169: 0.03184826869 | AM169: 24.67543966 | AN169: TRUE | AO169: FALSE | AX169: 1293700
A170: 138 | B170: =IF(A170>$B$30,NA(),IF($A170>$A$8,"",OFFSET(InputPriceData!$B$15,$A170+$A$11,0,1,1))) -> 2020-05-12 | C170: =IF(A170>$B$30,NA(),IF($A170>$A$8,"",OFFSET(InputPriceData!$G$15,CalculationsAndCharts!$A170+$A$11,IF($C$5,8,0),1,1))) -> 1505500 | D170: =IF(A170>$B$30,NA(),IF(A170>$A$8,"",OFFSET(InputPriceData!$C$15,CalculationsAndCharts!$A170+$A$11,IF($C$5,8,0),1,1))) -> 0.45 | E170: =IF(A170>$B$30,NA(),IF(A170>$A$8,"",OFFSET(InputPriceData!$D$15,CalculationsAndCharts!$A170+$A$11,IF($C$5,8,0),1,1))) -> 0.46 | F170: =IF(A170>$B$30,NA(),IF(A170>$A$8,"",OFFSET(InputPriceData!$E$15,CalculationsAndCharts!$A170+$A$11,IF($C$5,8,0),1,1))) -> 0.42 | G170: =IF(A170>$B$30,NA(),IF(A170>$A$8,"",OFFSET(InputPriceData!$F$15,CalculationsAndCharts!$A170+$A$11,IF($C$5,8,0),1,1))) -> 0.44 | H170: 0.44 | I170: 1505500 | J170: 1265140 | K170: -0.06333333333 | L170: 0.07 | M170: 0.1114021975 | N170: 0.01114021975 | O170: 0 | P170: 1505500 | Q170: 8659500 | R170: 26196900 | S170: -46.20674392 | T170: -34.0785863 | U170: 12.17706099 | V170: 10 | W170: FALSE | AB170: FALSE | AC170: TRUE | AD170: TRUE | AE170: FALSE | AF170: TRUE | AG170: FALSE | AH170: -0.05 | AI170: 0 | AJ170: 0.05 | AK170: 0.01173725784 | AL170: 0.03082930228 | AM170: 27.57389323 | AN170: TRUE | AO170: FALSE | AX170: 1505500
A171: 139 | B171: =IF(A171>$B$30,NA(),IF($A171>$A$8,"",OFFSET(InputPriceData!$B$15,$A171+$A$11,0,1,1))) -> 2020-05-11 | C171: =IF(A171>$B$30,NA(),IF($A171>$A$8,"",OFFSET(InputPriceData!$G$15,CalculationsAndCharts!$A171+$A$11,IF($C$5,8,0),1,1))) -> 2859100 | D171: =IF(A171>$B$30,NA(),IF(A171>$A$8,"",OFFSET(InputPriceData!$C$15,CalculationsAndCharts!$A171+$A$11,IF($C$5,8,0),1,1))) -> 0.56 | E171: =IF(A171>$B$30,NA(),IF(A171>$A$8,"",OFFSET(InputPriceData!$D$15,CalculationsAndCharts!$A171+$A$11,IF($C$5,8,0),1,1))) -> 0.56 | F171: =IF(A171>$B$30,NA(),IF(A171>$A$8,"",OFFSET(InputPriceData!$E$15,CalculationsAndCharts!$A171+$A$11,IF($C$5,8,0),1,1))) -> 0.46 | G171: =IF(A171>$B$30,NA(),IF(A171>$A$8,"",OFFSET(InputPriceData!$F$15,CalculationsAndCharts!$A171+$A$11,IF($C$5,8,0),1,1))) -> 0.49 | H171: 0.5033333333 | I171: 2859100 | J171: 1312413.333 | K171: -0.02 | L171: 0.1 | M171: 0.1128298594 | N171: 0.01128298594 | O171: 0 | P171: 2859100 | Q171: 11583200 | R171: 24691400 | S171: -33.29286505 | T171: -21.95042868 | U171: 13.95858845 | V171: 10 | W171: FALSE | AB171: FALSE | AC171: TRUE | AD171: TRUE | AE171: FALSE | AF171: TRUE | AG171: FALSE | AH171: -0.04 | AI171: 0 | AJ171: 0.04 | AK171: 0.01320441507 | AL171: 0.02843296506 | AM171: 31.71288642 | AN171: TRUE | AO171: FALSE | AX171: 2859100
A172: 140 | B172: =IF(A172>$B$30,NA(),IF($A172>$A$8,"",OFFSET(InputPriceData!$B$15,$A172+$A$11,0,1,1))) -> 2020-05-08 | C172: =IF(A172>$B$30,NA(),IF($A172>$A$8,"",OFFSET(InputPriceData!$G$15,CalculationsAndCharts!$A172+$A$11,IF($C$5,8,0),1,1))) -> 1250800 | D172: =IF(A172>$B$30,NA(),IF(A172>$A$8,"",OFFSET(InputPriceData!$C$15,CalculationsAndCharts!$A172+$A$11,IF($C$5,8,0),1,1))) -> 0.54 | E172: =IF(A172>$B$30,NA(),IF(A172>$A$8,"",OFFSET(InputPriceData!$D$15,CalculationsAndCharts!$A172+$A$11,IF($C$5,8,0),1,1))) -> 0.54 | F172: =IF(A172>$B$30,NA(),IF(A172>$A$8,"",OFFSET(InputPriceData!$E$15,CalculationsAndCharts!$A172+$A$11,IF($C$5,8,0),1,1))) -> 0.5 | G172: =IF(A172>$B$30,NA(),IF(A172>$A$8,"",OFFSET(InputPriceData!$F$15,CalculationsAndCharts!$A172+$A$11,IF($C$5,8,0),1,1))) -> 0.53 | H172: 0.5233333333 | I172: 1250800 | J172: 1315306.667 | K172: -0.01 | L172: 0.04 | M172: 0.1132722684 | N172: 0.01132722684 | O172: 0 | P172: 0 | Q172: 14529100 | R172: 21832300 | S172: -18.50823129 | T172: -10.60799232 | U172: 15.09021842 | V172: 10 | W172: FALSE | AB172: FALSE | AC172: TRUE | AD172: TRUE | AE172: FALSE | AF172: TRUE | AG172: FALSE | AH172: 0.01 | AI172: 0.01 | AJ172: 0 | AK172: 0.01485496695 | AL172: 0.0269870857 | AM172: 35.50248138 | AN172: TRUE | AO172: FALSE | AX172: 1250800
A173: 141 | B173: =IF(A173>$B$30,NA(),IF($A173>$A$8,"",OFFSET(InputPriceData!$B$15,$A173+$A$11,0,1,1))) -> 2020-05-07 | C173: =IF(A173>$B$30,NA(),IF($A173>$A$8,"",OFFSET(InputPriceData!$G$15,CalculationsAndCharts!$A173+$A$11,IF($C$5,8,0),1,1))) -> 1287900 | D173: =IF(A173>$B$30,NA(),IF(A173>$A$8,"",OFFSET(InputPriceData!$C$15,CalculationsAndCharts!$A173+$A$11,IF($C$5,8,0),1,1))) -> 0.55 | E173: =IF(A173>$B$30,NA(),IF(A173>$A$8,"",OFFSET(InputPriceData!$D$15,CalculationsAndCharts!$A173+$A$11,IF($C$5,8,0),1,1))) -> 0.57 | F173: =IF(A173>$B$30,NA(),IF(A173>$A$8,"",OFFSET(InputPriceData!$E$15,CalculationsAndCharts!$A173+$A$11,IF($C$5,8,0),1,1))) -> 0.51 | G173: =IF(A173>$B$30,NA(),IF(A173>$A$8,"",OFFSET(InputPriceData!$F$15,CalculationsAndCharts!$A173+$A$11,IF($C$5,8,0),1,1))) -> 0.52 | H173: 0.5333333333 | I173: 1287900 | J173: 1422010 | K173: -0.01666666667 | L173: 0.06 | M173: 0.1157988983 | N173: 0.01157988983 | O173: 0 | P173: 1287900 | Q173: 18981000 | R173: 21832300 | S173: -6.683731713 | T173: -2.707753344 | U173: 15.60588032 | V173: 10 | W173: FALSE | AB173: FALSE | AC173: TRUE | AD173: TRUE | AE173: FALSE | AF173: TRUE | AG173: FALSE | AH173: -0.02 | AI173: 0 | AJ173: 0.02 | AK173: 0.01546183782 | AL173: 0.03036047141 | AM173: 33.74303496 | AN173: TRUE | AO173: FALSE | AX173: 1287900
A174: 142 | B174: =IF(A174>$B$30,NA(),IF($A174>$A$8,"",OFFSET(InputPriceData!$B$15,$A174+$A$11,0,1,1))) -> 2020-05-06 | C174: =IF(A174>$B$30,NA(),IF($A174>$A$8,"",OFFSET(InputPriceData!$G$15,CalculationsAndCharts!$A174+$A$11,IF($C$5,8,0),1,1))) -> 818800 | D174: =IF(A174>$B$30,NA(),IF(A174>$A$8,"",OFFSET(InputPriceData!$C$15,CalculationsAndCharts!$A174+$A$11,IF($C$5,8,0),1,1))) -> 0.55 | E174: =IF(A174>$B$30,NA(),IF(A174>$A$8,"",OFFSET(InputPriceData!$D$15,CalculationsAndCharts!$A174+$A$11,IF($C$5,8,0),1,1))) -> 0.58 | F174: =IF(A174>$B$30,NA(),IF(A174>$A$8,"",OFFSET(InputPriceData!$E$15,CalculationsAndCharts!$A174+$A$11,IF($C$5,8,0),1,1))) -> 0.53 | G174: =IF(A174>$B$30,NA(),IF(A174>$A$8,"",OFFSET(InputPriceData!$F$15,CalculationsAndCharts!$A174+$A$11,IF($C$5,8,0),1,1))) -> 0.54 | H174: 0.55 | I174: 818800 | J174: 1434970 | K174: -0.006666666667 | L174: 0.05 | M174: 0.1177229983 | N174: 0.01177229983 | O174: 0 | P174: 0 | Q174: 20657700 | R174: 20544400 | S174: 0.2631878483 | T174: 1.268225026 | U174: 15.60972631 | V174: 10 | W174: FALSE | AB174: FALSE | AC174: TRUE | AD174: TRUE | AE174: FALSE | AF174: TRUE | AG174: FALSE | AH174: -0.01 | AI174: 0 | AJ174: 0.01 | AK174: 0.01739456755 | AL174: 0.03165553034 | AM174: 35.46286001 | AN174: TRUE | AO174: FALSE | AX174: 818800
A175: 143 | B175: =IF(A175>$B$30,NA(),IF($A175>$A$8,"",OFFSET(InputPriceData!$B$15,$A175+$A$11,0,1,1))) -> 2020-05-05 | C175: =IF(A175>$B$30,NA(),IF($A175>$A$8,"",OFFSET(InputPriceData!$G$15,CalculationsAndCharts!$A175+$A$11,IF($C$5,8,0),1,1))) -> 1353200 | D175: =IF(A175>$B$30,NA(),IF(A175>$A$8,"",OFFSET(InputPriceData!$C$15,CalculationsAndCharts!$A175+$A$11,IF($C$5,8,0),1,1))) -> 0.59 | E175: =IF(A175>$B$30,NA(),IF(A175>$A$8,"",OFFSET(InputPriceData!$D$15,CalculationsAndCharts!$A175+$A$11,IF($C$5,8,0),1,1))) -> 0.6 | F175: =IF(A175>$B$30,NA(),IF(A175>$A$8,"",OFFSET(InputPriceData!$E$15,CalculationsAndCharts!$A175+$A$11,IF($C$5,8,0),1,1))) -> 0.52 | G175: =IF(A175>$B$30,NA(),IF(A175>$A$8,"",OFFSET(InputPriceData!$F$15,CalculationsAndCharts!$A175+$A$11,IF($C$5,8,0),1,1))) -> 0.55 | H175: 0.5566666667 | I175: 1353200 | J175: 1433376.667 | K175: -0.03333333333 | L175: 0.08 | M175: 0.1200582741 | N175: 0.01200582741 | O175: 0 | P175: 1353200 | Q175: 20657700 | R175: 21315400 | S175: -1.529488643 | T175: 2.273262203 | U175: 15.3830597 | V175: 10 | W175: FALSE | AB175: FALSE | AC175: TRUE | AD175: TRUE | AE175: FALSE | AF175: TRUE | AG175: FALSE | AH175: -0.04 | AI175: 0 | AJ175: 0.04 | AK175: 0.01956888849 | AL175: 0.03436247163 | AM175: 36.28480433 | AN175: TRUE | AO175: FALSE | AX175: 1353200
A176: 144 | B176: =IF(A176>$B$30,NA(),IF($A176>$A$8,"",OFFSET(InputPriceData!$B$15,$A176+$A$11,0,1,1))) -> 2020-05-04 | C176: =IF(A176>$B$30,NA(),IF($A176>$A$8,"",OFFSET(InputPriceData!$G$15,CalculationsAndCharts!$A176+$A$11,IF($C$5,8,0),1,1))) -> 850200 | D176: =IF(A176>$B$30,NA(),IF(A176>$A$8,"",OFFSET(InputPriceData!$C$15,CalculationsAndCharts!$A176+$A$11,IF($C$5,8,0),1,1))) -> 0.6 | E176: =IF(A176>$B$30,NA(),IF(A176>$A$8,"",OFFSET(InputPriceData!$D$15,CalculationsAndCharts!$A176+$A$11,IF($C$5,8,0),1,1))) -> 0.6 | F176: =IF(A176>$B$30,NA(),IF(A176>$A$8,"",OFFSET(InputPriceData!$E$15,CalculationsAndCharts!$A176+$A$11,IF($C$5,8,0),1,1))) -> 0.58 | G176: =IF(A176>$B$30,NA(),IF(A176>$A$8,"",OFFSET(InputPriceData!$F$15,CalculationsAndCharts!$A176+$A$11,IF($C$5,8,0),1,1))) -> 0.59 | H176: 0.59 | I176: 850200 | J176: 1471303.333 | K176: -0.02666666667 | L176: 0.04 | M176: 0.1214395939 | N176: 0.01214395939 | O176: 0 | P176: 850200 | Q176: 20657700 | R176: 22453200 | S176: -4.067821954 | T176: 6.07601305 | U176: 15.05220219 | V176: 10 | W176: FALSE | Z176: 80 | AA176: -80 | AB176: FALSE | AC176: TRUE | AD176: TRUE | AE176: FALSE | AF176: TRUE | AG176: FALSE | AH176: -0.03 | AI176: 0 | AJ176: 0.03 | AK176: 0.02201499956 | AL176: 0.03365778058 | AM176: 39.54356061 | AN176: TRUE | AO176: FALSE | AX176: 850200
A177: 145 | B177: =IF(A177>$B$30,NA(),IF($A177>$A$8,"",OFFSET(InputPriceData!$B$15,$A177+$A$11,0,1,1))) -> 2020-05-01 | C177: =IF(A177>$B$30,NA(),IF($A177>$A$8,"",OFFSET(InputPriceData!$G$15,CalculationsAndCharts!$A177+$A$11,IF($C$5,8,0),1,1))) -> 1028200 | D177: =IF(A177>$B$30,NA(),IF(A177>$A$8,"",OFFSET(InputPriceData!$C$15,CalculationsAndCharts!$A177+$A$11,IF($C$5,8,0),1,1))) -> 0.64 | E177: =IF(A177>$B$30,NA(),IF(A177>$A$8,"",OFFSET(InputPriceData!$D$15,CalculationsAndCharts!$A177+$A$11,IF($C$5,8,0),1,1))) -> 0.64 | F177: =IF(A177>$B$30,NA(),IF(A177>$A$8,"",OFFSET(InputPriceData!$E$15,CalculationsAndCharts!$A177+$A$11,IF($C$5,8,0),1,1))) -> 0.59 | G177: =IF(A177>$B$30,NA(),IF(A177>$A$8,"",OFFSET(InputPriceData!$F$15,CalculationsAndCharts!$A177+$A$11,IF($C$5,8,0),1,1))) -> 0.62 | H177: 0.6166666667 | I177: 1028200 | J177: 1719206.667 | K177: -0.006666666667 | L177: 0.05 | M177: 0.1242478557 | N177: 0.01242478557 | O177: 0 | P177: 0 | Q177: 28945000 | R177: 21603000 | S177: 14.23524804 | T177: 16.21984805 | U177: 14.42591346 | V177: 10 | W177: TRUE | AB177: FALSE | AC177: TRUE | AD177: TRUE | AE177: FALSE | AF177: TRUE | AG177: FALSE | AH177: 0.02 | AI177: 0.02 | AJ177: 0 | AK177: 0.0247668745 | AL177: 0.03411500315 | AM177: 42.06196454 | AN177: TRUE | AO177: FALSE | AX177: 1028200
A178: 146 | B178: =IF(A178>$B$30,NA(),IF($A178>$A$8,"",OFFSET(InputPriceData!$B$15,$A178+$A$11,0,1,1))) -> 2020-04-30 | C178: =IF(A178>$B$30,NA(),IF($A178>$A$8,"",OFFSET(InputPriceData!$G$15,CalculationsAndCharts!$A178+$A$11,IF($C$5,8,0),1,1))) -> 1251000 | D178: =IF(A178>$B$30,NA(),IF(A178>$A$8,"",OFFSET(InputPriceData!$C$15,CalculationsAndCharts!$A178+$A$11,IF($C$5,8,0),1,1))) -> 0.65 | E178: =IF(A178>$B$30,NA(),IF(A178>$A$8,"",OFFSET(InputPriceData!$D$15,CalculationsAndCharts!$A178+$A$11,IF($C$5,8,0),1,1))) -> 0.67 | F178: =IF(A178>$B$30,NA(),IF(A178>$A$8,"",OFFSET(InputPriceData!$E$15,CalculationsAndCharts!$A178+$A$11,IF($C$5,8,0),1,1))) -> 0.6 | G178: =IF(A178>$B$30,NA(),IF(A178>$A$8,"",OFFSET(InputPriceData!$F$15,CalculationsAndCharts!$A178+$A$11,IF($C$5,8,0),1,1))) -> 0.6 | H178: 0.6233333333 | I178: 1251000 | J178: 1726833.333 | K178: -0.04333333333 | L178: 0.07 | M178: 0.1268081266 | N178: 0.01268081266 | O178: 0 | P178: 1251000 | Q178: 30202000 | R178: 21603000 | S178: 16.5987839 | T178: 18.20444807 | U178: 12.97027477 | V178: 10 | W178: TRUE | AB178: FALSE | AC178: TRUE | AD178: TRUE | AE178: FALSE | AF178: TRUE | AG178: FALSE | AH178: -0.04 | AI178: 0 | AJ178: 0.04 | AK178: 0.02536273381 | AL178: 0.03837937855 | AM178: 39.78960357 | AN178: TRUE | AO178: FALSE | AX178: 1251000
A179: 147 | B179: =IF(A179>$B$30,NA(),IF($A179>$A$8,"",OFFSET(InputPriceData!$B$15,$A179+$A$11,0,1,1))) -> 2020-04-29 | C179: =IF(A179>$B$30,NA(),IF($A179>$A$8,"",OFFSET(InputPriceData!$G$15,CalculationsAndCharts!$A179+$A$11,IF($C$5,8,0),1,1))) -> 1523000 | D179: =IF(A179>$B$30,NA(),IF(A179>$A$8,"",OFFSET(InputPriceData!$C$15,CalculationsAndCharts!$A179+$A$11,IF($C$5,8,0),1,1))) -> 0.73 | E179: =IF(A179>$B$30,NA(),IF(A179>$A$8,"",OFFSET(InputPriceData!$D$15,CalculationsAndCharts!$A179+$A$11,IF($C$5,8,0),1,1))) -> 0.74 | F179: =IF(A179>$B$30,NA(),IF(A179>$A$8,"",OFFSET(InputPriceData!$E$15,CalculationsAndCharts!$A179+$A$11,IF($C$5,8,0),1,1))) -> 0.62 | G179: =IF(A179>$B$30,NA(),IF(A179>$A$8,"",OFFSET(InputPriceData!$F$15,CalculationsAndCharts!$A179+$A$11,IF($C$5,8,0),1,1))) -> 0.64 | H179: 0.6666666667 | I179: 1523000 | J179: 1715730 | K179: -0.06666666667 | L179: 0.12 | M179: 0.1287670275 | N179: 0.01287670275 | O179: 0 | P179: 1523000 | Q179: 30202000 | R179: 21269900 | S179: 17.35335202 | T179: 19.81011223 | U179: 11.37365684 | V179: 10 | W179: TRUE | AB179: FALSE | AC179: TRUE | AD179: TRUE | AE179: FALSE | AF179: TRUE | AG179: FALSE | AH179: -0.08 | AI179: 0 | AJ179: 0.08 | AK179: 0.02853307554 | AL179: 0.03817680087 | AM179: 42.77189087 | AN179: TRUE | AO179: FALSE | AX179: 1523000
A180: 148 | B180: =IF(A180>$B$30,NA(),IF($A180>$A$8,"",OFFSET(InputPriceData!$B$15,$A180+$A$11,0,1,1))) -> 2020-04-28 | C180: =IF(A180>$B$30,NA(),IF($A180>$A$8,"",OFFSET(InputPriceData!$G$15,CalculationsAndCharts!$A180+$A$11,IF($C$5,8,0),1,1))) -> 936700 | D180: =IF(A180>$B$30,NA(),IF(A180>$A$8,"",OFFSET(InputPriceData!$C$15,CalculationsAndCharts!$A180+$A$11,IF($C$5,8,0),1,1))) -> 0.81 | E180: =IF(A180>$B$30,NA(),IF(A180>$A$8,"",OFFSET(InputPriceData!$D$15,CalculationsAndCharts!$A180+$A$11,IF($C$5,8,0),1,1))) -> 0.82 | F180: =IF(A180>$B$30,NA(),IF(A180>$A$8,"",OFFSET(InputPriceData!$E$15,CalculationsAndCharts!$A180+$A$11,IF($C$5,8,0),1,1))) -> 0.66 | G180: =IF(A180>$B$30,NA(),IF(A180>$A$8,"",OFFSET(InputPriceData!$F$15,CalculationsAndCharts!$A180+$A$11,IF($C$5,8,0),1,1))) -> 0.72 | H180: 0.7333333333 | I180: 936700 | J180: 1688126.667 | K180: -0.01666666667 | L180: 0.16 | M180: 0.1290693388 | N180: 0.01290693388 | O180: 0 | P180: 936700 | Q180: 30202000 | R180: 19746900 | S180: 20.64438293 | T180: 22.26687244 | U180: 9.733043149 | V180: 10 | W180: TRUE | AB180: FALSE | AC180: TRUE | AD180: TRUE | AE180: FALSE | AF180: TRUE | AG180: FALSE | AH180: -0.08 | AI180: 0 | AJ180: 0.08 | AK180: 0.03209970998 | AL180: 0.03294890098 | AM180: 49.34726431 | AN180: TRUE | AO180: FALSE | AX180: 936700
A181: 149 | B181: =IF(A181>$B$30,NA(),IF($A181>$A$8,"",OFFSET(InputPriceData!$B$15,$A181+$A$11,0,1,1))) -> 2020-04-27 | C181: =IF(A181>$B$30,NA(),IF($A181>$A$8,"",OFFSET(InputPriceData!$G$15,CalculationsAndCharts!$A181+$A$11,IF($C$5,8,0),1,1))) -> 818500 | D181: =IF(A181>$B$30,NA(),IF(A181>$A$8,"",OFFSET(InputPriceData!$C$15,CalculationsAndCharts!$A181+$A$11,IF($C$5,8,0),1,1))) -> 0.7 | E181: =IF(A181>$B$30,NA(),IF(A181>$A$8,"",OFFSET(InputPriceData!$D$15,CalculationsAndCharts!$A181+$A$11,IF($C$5,8,0),1,1))) -> 0.8 | F181: =IF(A181>$B$30,NA(),IF(A181>$A$8,"",OFFSET(InputPriceData!$E$15,CalculationsAndCharts!$A181+$A$11,IF($C$5,8,0),1,1))) -> 0.65 | G181: =IF(A181>$B$30,NA(),IF(A181>$A$8,"",OFFSET(InputPriceData!$F$15,CalculationsAndCharts!$A181+$A$11,IF($C$5,8,0),1,1))) -> 0.8 | H181: 0.75 | I181: 818500 | J181: 1685006.667 | K181: 0.08333333333 | L181: 0.15 | M181: 0.1280027643 | N181: 0.01280027643 | O181: 818500 | P181: 0 | Q181: 31045100 | R181: 18810200 | S181: 24.20346507 | T181: 23.88936196 | U181: 7.949037951 | V181: 10 | W181: TRUE | AB181: FALSE | AC181: TRUE | AD181: TRUE | AE181: FALSE | AF181: TRUE | AG181: TRUE | AH181: 0.13 | AI181: 0.13 | AJ181: 0 | AK181: 0.03611217373 | AL181: 0.0270675136 | AM181: 57.15788611 | AN181: TRUE | AO181: FALSE | AW181: 818500
A182: 150 | B182: =IF(A182>$B$30,NA(),IF($A182>$A$8,"",OFFSET(InputPriceData!$B$15,$A182+$A$11,0,1,1))) -> 2020-04-24 | C182: =IF(A182>$B$30,NA(),IF($A182>$A$8,"",OFFSET(InputPriceData!$G$15,CalculationsAndCharts!$A182+$A$11,IF($C$5,8,0),1,1))) -> 964600 | D182: =IF(A182>$B$30,NA(),IF(A182>$A$8,"",OFFSET(InputPriceData!$C$15,CalculationsAndCharts!$A182+$A$11,IF($C$5,8,0),1,1))) -> 0.69 | E182: =IF(A182>$B$30,NA(),IF(A182>$A$8,"",OFFSET(InputPriceData!$D$15,CalculationsAndCharts!$A182+$A$11,IF($C$5,8,0),1,1))) -> 0.72 | F182: =IF(A182>$B$30,NA(),IF(A182>$A$8,"",OFFSET(InputPriceData!$E$15,CalculationsAndCharts!$A182+$A$11,IF($C$5,8,0),1,1))) -> 0.61 | G182: =IF(A182>$B$30,NA(),IF(A182>$A$8,"",OFFSET(InputPriceData!$F$15,CalculationsAndCharts!$A182+$A$11,IF($C$5,8,0),1,1))) -> 0.67 | H182: 0.6666666667 | I182: 964600 | J182: 1672080 | K182: -0.02333333333 | L182: 0.11 | M182: 0.1272442389 | N182: 0.01272442389 | O182: 0 | P182: 964600 | Q182: 30657300 | R182: 18810200 | S182: 23.61749039 | T182: 23.57525885 | U182: 6.006015419 | V182: 10 | W182: TRUE | AB182: FALSE | AC182: TRUE | AD182: TRUE | AE182: FALSE | AF182: TRUE | AG182: FALSE | AH182: -0.02 | AI182: 0 | AJ182: 0.02 | AK182: 0.02437619545 | AL182: 0.0304509528 | AM182: 44.46008269 | AN182: TRUE | AO182: FALSE | AX182: 964600
A183: 151 | B183: =IF(A183>$B$30,NA(),IF($A183>$A$8,"",OFFSET(InputPriceData!$B$15,$A183+$A$11,0,1,1))) -> 2020-04-23 | C183: =IF(A183>$B$30,NA(),IF($A183>$A$8,"",OFFSET(InputPriceData!$G$15,CalculationsAndCharts!$A183+$A$11,IF($C$5,8,0),1,1))) -> 431600 | D183: =IF(A183>$B$30,NA(),IF(A183>$A$8,"",OFFSET(InputPriceData!$C$15,CalculationsAndCharts!$A183+$A$11,IF($C$5,8,0),1,1))) -> 0.7 | E183: =IF(A183>$B$30,NA(),IF(A183>$A$8,"",OFFSET(InputPriceData!$D$15,CalculationsAndCharts!$A183+$A$11,IF($C$5,8,0),1,1))) -> 0.72 | F183: =IF(A183>$B$30,NA(),IF(A183>$A$8,"",OFFSET(InputPriceData!$E$15,CalculationsAndCharts!$A183+$A$11,IF($C$5,8,0),1,1))) -> 0.66 | G183: =IF(A183>$B$30,NA(),IF(A183>$A$8,"",OFFSET(InputPriceData!$F$15,CalculationsAndCharts!$A183+$A$11,IF($C$5,8,0),1,1))) -> 0.69 | H183: 0.69 | I183: 431600 | J183: 1666006.667 | K183: -0.09333333333 | L183: 0.06 | M183: 0.1278388679 | N183: 0.01278388679 | O183: 0 | P183: 431600 | Q183: 30657300 | R183: 18628000 | S183: 24.06813098 | T183: 23.53302731 | U183: 4.030584407 | V183: 10 | W183: TRUE | AB183: FALSE | AC183: TRUE | AD183: TRUE | AE183: FALSE | AF183: TRUE | AG183: FALSE | AH183: -0.02 | AI183: 0 | AJ183: 0.02 | AK183: 0.02742321988 | AL183: 0.0317573219 | AM183: 46.33823729 | AN183: TRUE | AO183: FALSE | AX183: 431600
A184: 152 | B184: =IF(A184>$B$30,NA(),IF($A184>$A$8,"",OFFSET(InputPriceData!$B$15,$A184+$A$11,0,1,1))) -> 2020-04-22 | C184: =IF(A184>$B$30,NA(),IF($A184>$A$8,"",OFFSET(InputPriceData!$G$15,CalculationsAndCharts!$A184+$A$11,IF($C$5,8,0),1,1))) -> 2992800 | D184: =IF(A184>$B$30,NA(),IF(A184>$A$8,"",OFFSET(InputPriceData!$C$15,CalculationsAndCharts!$A184+$A$11,IF($C$5,8,0),1,1))) -> 0.75 | E184: =IF(A184>$B$30,NA(),IF(A184>$A$8,"",OFFSET(InputPriceData!$D$15,CalculationsAndCharts!$A184+$A$11,IF($C$5,8,0),1,1))) -> 0.97 | F184: =IF(A184>$B$30,NA(),IF(A184>$A$8,"",OFFSET(InputPriceData!$E$15,CalculationsAndCharts!$A184+$A$11,IF($C$5,8,0),1,1))) -> 0.67 | G184: =IF(A184>$B$30,NA(),IF(A184>$A$8,"",OFFSET(InputPriceData!$F$15,CalculationsAndCharts!$A184+$A$11,IF($C$5,8,0),1,1))) -> 0.71 | H184: 0.7833333333 | I184: 2992800 | J184: 1677063.333 | K184: 0.1433333333 | L184: 0.33 | M184: 0.1301781392 | N184: 0.01301781392 | O184: 2992800 | P184: 0 | Q184: 31420600 | R184: 18196400 | S184: 26.28443768 | T184: 22.99792365 | U184: 2.057184931 | V184: 10 | W184: TRUE | AB184: FALSE | AC184: TRUE | AD184: TRUE | AE184: FALSE | AF184: TRUE | AG184: TRUE | AH184: 0.07 | AI184: 0.07 | AJ184: 0 | AK184: 0.03085112236 | AL184: 0.03322698714 | AM184: 48.14611824 | AN184: TRUE | AO184: FALSE | AX184: 2992800
A185: 153 | B185: =IF(A185>$B$30,NA(),IF($A185>$A$8,"",OFFSET(InputPriceData!$B$15,$A185+$A$11,0,1,1))) -> 2020-04-21 | C185: =IF(A185>$B$30,NA(),IF($A185>$A$8,"",OFFSET(InputPriceData!$G$15,CalculationsAndCharts!$A185+$A$11,IF($C$5,8,0),1,1))) -> 505700 | D185: =IF(A185>$B$30,NA(),IF(A185>$A$8,"",OFFSET(InputPriceData!$C$15,CalculationsAndCharts!$A185+$A$11,IF($C$5,8,0),1,1))) -> 0.6 | E185: =IF(A185>$B$30,NA(),IF(A185>$A$8,"",OFFSET(InputPriceData!$D$15,CalculationsAndCharts!$A185+$A$11,IF($C$5,8,0),1,1))) -> 0.69 | F185: =IF(A185>$B$30,NA(),IF(A185>$A$8,"",OFFSET(InputPriceData!$E$15,CalculationsAndCharts!$A185+$A$11,IF($C$5,8,0),1,1))) -> 0.59 | G185: =IF(A185>$B$30,NA(),IF(A185>$A$8,"",OFFSET(InputPriceData!$F$15,CalculationsAndCharts!$A185+$A$11,IF($C$5,8,0),1,1))) -> 0.64 | H185: 0.64 | I185: 505700 | J185: 1594356.667 | K185: 0.03333333333 | L185: 0.1 | M185: 0.1232877302 | N185: 0.01232877302 | O185: 505700 | P185: 0 | Q185: 28939400 | R185: 18196400 | S185: 22.46046995 | T185: 19.71140962 | U185: 0.07010401009 | V185: 10 | W185: TRUE | AB185: FALSE | AC185: TRUE | AD185: FALSE | AE185: FALSE | AF185: TRUE | AG185: FALSE | AH185: 0.05 | AI185: 0.05 | AJ185: 0 | AK185: 0.02595751266 | AL185: 0.03738036053 | AM185: 40.98260859 | AN185: TRUE | AO185: FALSE | AW185: 505700
A186: 154 | B186: =IF(A186>$B$30,NA(),IF($A186>$A$8,"",OFFSET(InputPriceData!$B$15,$A186+$A$11,0,1,1))) -> 2020-04-20 | C186: =IF(A186>$B$30,NA(),IF($A186>$A$8,"",OFFSET(InputPriceData!$G$15,CalculationsAndCharts!$A186+$A$11,IF($C$5,8,0),1,1))) -> 512400 | D186: =IF(A186>$B$30,NA(),IF(A186>$A$8,"",OFFSET(InputPriceData!$C$15,CalculationsAndCharts!$A186+$A$11,IF($C$5,8,0),1,1))) -> 0.62 | E186: =IF(A186>$B$30,NA(),IF(A186>$A$8,"",OFFSET(InputPriceData!$D$15,CalculationsAndCharts!$A186+$A$11,IF($C$5,8,0),1,1))) -> 0.64 | F186: =IF(A186>$B$30,NA(),IF(A186>$A$8,"",OFFSET(InputPriceData!$E$15,CalculationsAndCharts!$A186+$A$11,IF($C$5,8,0),1,1))) -> 0.59 | G186: =IF(A186>$B$30,NA(),IF(A186>$A$8,"",OFFSET(InputPriceData!$F$15,CalculationsAndCharts!$A186+$A$11,IF($C$5,8,0),1,1))) -> 0.59 | H186: 0.6066666667 | I186: 512400 | J186: 1604630 | K186: -0.05333333333 | L186: 0.05 | M186: 0.1240907554 | N186: 0.01240907554 | O186: 0 | P186: 512400 | Q186: 28433700 | R186: 19010300 | S186: 19.57543691 | T186: 16.96234929 | U186: -1.82888957 | V186: 10 | W186: TRUE | AB186: FALSE | AC186: TRUE | AD186: FALSE | AE186: FALSE | AF186: TRUE | AG186: FALSE | AH186: -0.05 | AI186: 0 | AJ186: 0.05 | AK186: 0.02295220174 | AL186: 0.04205290559 | AM186: 35.30830527 | AN186: TRUE | AO186: FALSE | AX186: 512400
A187: 155 | B187: =IF(A187>$B$30,NA(),IF($A187>$A$8,"",OFFSET(InputPriceData!$B$15,$A187+$A$11,0,1,1))) -> 2020-04-17 | C187: =IF(A187>$B$30,NA(),IF($A187>$A$8,"",OFFSET(InputPriceData!$G$15,CalculationsAndCharts!$A187+$A$11,IF($C$5,8,0),1,1))) -> 534600 | D187: =IF(A187>$B$30,NA(),IF(A187>$A$8,"",OFFSET(InputPriceData!$C$15,CalculationsAndCharts!$A187+$A$11,IF($C$5,8,0),1,1))) -> 0.71 | E187: =IF(A187>$B$30,NA(),IF(A187>$A$8,"",OFFSET(InputPriceData!$D$15,CalculationsAndCharts!$A187+$A$11,IF($C$5,8,0),1,1))) -> 0.71 | F187: =IF(A187>$B$30,NA(),IF(A187>$A$8,"",OFFSET(InputPriceData!$E$15,CalculationsAndCharts!$A187+$A$11,IF($C$5,8,0),1,1))) -> 0.63 | G187: =IF(A187>$B$30,NA(),IF(A187>$A$8,"",OFFSET(InputPriceData!$F$15,CalculationsAndCharts!$A187+$A$11,IF($C$5,8,0),1,1))) -> 0.64 | H187: 0.66 | I187: 534600 | J187: 1669156.667 | K187: -0.02 | L187: 0.08 | M187: 0.126645609 | N187: 0.0126645609 | O187: 0 | P187: 534600 | Q187: 28433700 | R187: 20946100 | S187: 14.95286043 | T187: 14.34926167 | U187: -3.567659447 | V187: 10 | W187: TRUE | AB187: FALSE | AC187: TRUE | AD187: FALSE | AE187: FALSE | AF187: TRUE | AG187: FALSE | AH187: -0.02 | AI187: 0 | AJ187: 0.02 | AK187: 0.02582122696 | AL187: 0.04105951879 | AM187: 38.6078634 | AN187: TRUE | AO187: FALSE | AX187: 534600
A188: 156 | B188: =IF(A188>$B$30,NA(),IF($A188>$A$8,"",OFFSET(InputPriceData!$B$15,$A188+$A$11,0,1,1))) -> 2020-04-16 | C188: =IF(A188>$B$30,NA(),IF($A188>$A$8,"",OFFSET(InputPriceData!$G$15,CalculationsAndCharts!$A188+$A$11,IF($C$5,8,0),1,1))) -> 538000 | D188: =IF(A188>$B$30,NA(),IF(A188>$A$8,"",OFFSET(InputPriceData!$C$15,CalculationsAndCharts!$A188+$A$11,IF($C$5,8,0),1,1))) -> 0.68 | E188: =IF(A188>$B$30,NA(),IF(A188>$A$8,"",OFFSET(InputPriceData!$D$15,CalculationsAndCharts!$A188+$A$11,IF($C$5,8,0),1,1))) -> 0.73 | F188: =IF(A188>$B$30,NA(),IF(A188>$A$8,"",OFFSET(InputPriceData!$E$15,CalculationsAndCharts!$A188+$A$11,IF($C$5,8,0),1,1))) -> 0.65 | G188: =IF(A188>$B$30,NA(),IF(A188>$A$8,"",OFFSET(InputPriceData!$F$15,CalculationsAndCharts!$A188+$A$11,IF($C$5,8,0),1,1))) -> 0.66 | H188: 0.68 | I188: 538000 | J188: 1696543.333 | K188: -0.02333333333 | L188: 0.08 | M188: 0.1282540783 | N188: 0.01282540783 | O188: 0 | P188: 538000 | Q188: 28433700 | R188: 21767700 | S188: 13.09721925 | T188: 13.74566292 | U188: -5.134725593 | V188: 10 | W188: TRUE | AB188: FALSE | AC188: TRUE | AD188: FALSE | AE188: FALSE | AF188: TRUE | AG188: FALSE | AH188: -0.02 | AI188: 0 | AJ188: 0.02 | AK188: 0.02904888033 | AL188: 0.04369195864 | AM188: 39.93476119 | AN188: TRUE | AO188: FALSE | AX188: 538000
A189: 157 | B189: =IF(A189>$B$30,NA(),IF($A189>$A$8,"",OFFSET(InputPriceData!$B$15,$A189+$A$11,0,1,1))) -> 2020-04-15 | C189: =IF(A189>$B$30,NA(),IF($A189>$A$8,"",OFFSET(InputPriceData!$G$15,CalculationsAndCharts!$A189+$A$11,IF($C$5,8,0),1,1))) -> 628900 | D189: =IF(A189>$B$30,NA(),IF(A189>$A$8,"",OFFSET(InputPriceData!$C$15,CalculationsAndCharts!$A189+$A$11,IF($C$5,8,0),1,1))) -> 0.75 | E189: =IF(A189>$B$30,NA(),IF(A189>$A$8,"",OFFSET(InputPriceData!$D$15,CalculationsAndCharts!$A189+$A$11,IF($C$5,8,0),1,1))) -> 0.76 | F189: =IF(A189>$B$30,NA(),IF(A189>$A$8,"",OFFSET(InputPriceData!$E$15,CalculationsAndCharts!$A189+$A$11,IF($C$5,8,0),1,1))) -> 0.67 | G189: =IF(A189>$B$30,NA(),IF(A189>$A$8,"",OFFSET(InputPriceData!$F$15,CalculationsAndCharts!$A189+$A$11,IF($C$5,8,0),1,1))) -> 0.68 | H189: 0.7033333333 | I189: 628900 | J189: 1734466.667 | K189: -0.07333333333 | L189: 0.09 | M189: 0.129918012 | N189: 0.0129918012 | O189: 0 | P189: 628900 | Q189: 28433700 | R189: 22905400 | S189: 10.62439943 | T189: 14.39410658 | U189: -6.67495353 | V189: 10 | W189: TRUE | AB189: FALSE | AC189: TRUE | AD189: FALSE | AE189: FALSE | AF189: TRUE | AG189: TRUE | AH189: -0.08 | AI189: 0 | AJ189: 0.08 | AK189: 0.03267999037 | AL189: 0.04665345347 | AM189: 41.19320779 | AN189: TRUE | AO189: FALSE | AX189: 628900
A190: 158 | B190: =IF(A190>$B$30,NA(),IF($A190>$A$8,"",OFFSET(InputPriceData!$B$15,$A190+$A$11,0,1,1))) -> 2020-04-14 | C190: =IF(A190>$B$30,NA(),IF($A190>$A$8,"",OFFSET(InputPriceData!$G$15,CalculationsAndCharts!$A190+$A$11,IF($C$5,8,0),1,1))) -> 506300 | D190: =IF(A190>$B$30,NA(),IF(A190>$A$8,"",OFFSET(InputPriceData!$C$15,CalculationsAndCharts!$A190+$A$11,IF($C$5,8,0),1,1))) -> 0.8 | E190: =IF(A190>$B$30,NA(),IF(A190>$A$8,"",OFFSET(InputPriceData!$D$15,CalculationsAndCharts!$A190+$A$11,IF($C$5,8,0),1,1))) -> 0.82 | F190: =IF(A190>$B$30,NA(),IF(A190>$A$8,"",OFFSET(InputPriceData!$E$15,CalculationsAndCharts!$A190+$A$11,IF($C$5,8,0),1,1))) -> 0.75 | G190: =IF(A190>$B$30,NA(),IF(A190>$A$8,"",OFFSET(InputPriceData!$F$15,CalculationsAndCharts!$A190+$A$11,IF($C$5,8,0),1,1))) -> 0.76 | H190: 0.7766666667 | I190: 506300 | J190: 1849223.333 | K190: -0.03 | L190: 0.07 | M190: 0.1312944952 | N190: 0.01312944952 | O190: 0 | P190: 506300 | Q190: 32505300 | R190: 22276500 | S190: 18.43801091 | T190: 18.16381373 | U190: -8.320741204 | V190: 10 | W190: TRUE | AB190: FALSE | AC190: TRUE | AD190: TRUE | AE190: FALSE | AF190: TRUE | AG190: TRUE | AH190: -0.03 | AI190: 0 | AJ190: 0.03 | AK190: 0.03676498916 | AL190: 0.04248513515 | AM190: 46.39108075 | AN190: TRUE | AO190: FALSE | AX190: 506300
A191: 159 | B191: =IF(A191>$B$30,NA(),IF($A191>$A$8,"",OFFSET(InputPriceData!$B$15,$A191+$A$11,0,1,1))) -> 2020-04-13 | C191: =IF(A191>$B$30,NA(),IF($A191>$A$8,"",OFFSET(InputPriceData!$G$15,CalculationsAndCharts!$A191+$A$11,IF($C$5,8,0),1,1))) -> 337300 | D191: =IF(A191>$B$30,NA(),IF(A191>$A$8,"",OFFSET(InputPriceData!$C$15,CalculationsAndCharts!$A191+$A$11,IF($C$5,8,0),1,1))) -> 0.82 | E191: =IF(A191>$B$30,NA(),IF(A191>$A$8,"",OFFSET(InputPriceData!$D$15,CalculationsAndCharts!$A191+$A$11,IF($C$5,8,0),1,1))) -> 0.84 | F191: =IF(A191>$B$30,NA(),IF(A191>$A$8,"",OFFSET(InputPriceData!$E$15,CalculationsAndCharts!$A191+$A$11,IF($C$5,8,0),1,1))) -> 0.79 | G191: =IF(A191>$B$30,NA(),IF(A191>$A$8,"",OFFSET(InputPriceData!$F$15,CalculationsAndCharts!$A191+$A$11,IF($C$5,8,0),1,1))) -> 0.79 | H191: 0.8066666667 | I191: 337300 | J191: 1867266.667 | K191: -0.02 | L191: 0.05 | M191: 0.1334080985 | N191: 0.01334080985 | O191: 0 | P191: 337300 | Q191: 32505300 | R191: 21770200 | S191: 19.16366168 | T191: 17.88961655 | U191: -10.54321713 | V191: 10 | W191: TRUE | AB191: FALSE | AC191: TRUE | AD191: TRUE | AE191: FALSE | AF191: TRUE | AG191: TRUE | AH191: -0.03 | AI191: 0 | AJ191: 0.03 | AK191: 0.04136061281 | AL191: 0.04404577705 | AM191: 48.42800741 | AN191: TRUE | AO191: FALSE | AX191: 337300
A192: 160 | B192: =IF(A192>$B$30,NA(),IF($A192>$A$8,"",OFFSET(InputPriceData!$B$15,$A192+$A$11,0,1,1))) -> 2020-04-09 | C192: =IF(A192>$B$30,NA(),IF($A192>$A$8,"",OFFSET(InputPriceData!$G$15,CalculationsAndCharts!$A192+$A$11,IF($C$5,8,0),1,1))) -> 848000 | D192: =IF(A192>$B$30,NA(),IF(A192>$A$8,"",OFFSET(InputPriceData!$C$15,CalculationsAndCharts!$A192+$A$11,IF($C$5,8,0),1,1))) -> 0.86 | E192: =IF(A192>$B$30,NA(),IF(A192>$A$8,"",OFFSET(InputPriceData!$D$15,CalculationsAndCharts!$A192+$A$11,IF($C$5,8,0),1,1))) -> 0.9 | F192: =IF(A192>$B$30,NA(),IF(A192>$A$8,"",OFFSET(InputPriceData!$E$15,CalculationsAndCharts!$A192+$A$11,IF($C$5,8,0),1,1))) -> 0.76 | G192: =IF(A192>$B$30,NA(),IF(A192>$A$8,"",OFFSET(InputPriceData!$F$15,CalculationsAndCharts!$A192+$A$11,IF($C$5,8,0),1,1))) -> 0.82 | H192: 0.8266666667 | I192: 848000 | J192: 1889893.333 | K192: -0.05 | L192: 0.14 | M192: 0.1362842398 | N192: 0.01362842398 | O192: 0 | P192: 848000 | Q192: 32505300 | R192: 22449000 | S192: 17.73697986 | T192: 16.61557143 | U192: -12.77541089 | V192: 10 | W192: TRUE | AB192: FALSE | AC192: TRUE | AD192: TRUE | AE192: FALSE | AF192: TRUE | AG192: TRUE | AH192: -0.03 | AI192: 0 | AJ192: 0.03 | AK192: 0.04653068941 | AL192: 0.04580149918 | AM192: 50.39487325 | AN192: TRUE | AO192: FALSE | AX192: 848000
A193: 161 | B193: =IF(A193>$B$30,NA(),IF($A193>$A$8,"",OFFSET(InputPriceData!$B$15,$A193+$A$11,0,1,1))) -> 2020-04-08 | C193: =IF(A193>$B$30,NA(),IF($A193>$A$8,"",OFFSET(InputPriceData!$G$15,CalculationsAndCharts!$A193+$A$11,IF($C$5,8,0),1,1))) -> 772100 | D193: =IF(A193>$B$30,NA(),IF(A193>$A$8,"",OFFSET(InputPriceData!$C$15,CalculationsAndCharts!$A193+$A$11,IF($C$5,8,0),1,1))) -> 0.95 | E193: =IF(A193>$B$30,NA(),IF(A193>$A$8,"",OFFSET(InputPriceData!$D$15,CalculationsAndCharts!$A193+$A$11,IF($C$5,8,0),1,1))) -> 0.95 | F193: =IF(A193>$B$30,NA(),IF(A193>$A$8,"",OFFSET(InputPriceData!$E$15,CalculationsAndCharts!$A193+$A$11,IF($C$5,8,0),1,1))) -> 0.83 | G193: =IF(A193>$B$30,NA(),IF(A193>$A$8,"",OFFSET(InputPriceData!$F$15,CalculationsAndCharts!$A193+$A$11,IF($C$5,8,0),1,1))) -> 0.85 | H193: 0.8766666667 | I193: 772100 | J193: 1922126.667 | K193: -0.05666666667 | L193: 0.12 | M193: 0.1361561101 | N193: 0.01361561101 | O193: 0 | P193: 772100 | Q193: 32505300 | R193: 23416000 | S193: 15.76257548 | T193: 15.49416299 | U193: -14.86068947 | V193: 10 | W193: TRUE | AB193: FALSE | AC193: TRUE | AD193: TRUE | AE193: FALSE | AF193: TRUE | AG193: TRUE | AH193: -0.05 | AI193: 0 | AJ193: 0.05 | AK193: 0.05234702559 | AL193: 0.04777668658 | AM193: 52.28234596 | AN193: TRUE | AO193: FALSE | AX193: 772100
A194: 162 | B194: =IF(A194>$B$30,NA(),IF($A194>$A$8,"",OFFSET(InputPriceData!$B$15,$A194+$A$11,0,1,1))) -> 2020-04-07 | C194: =IF(A194>$B$30,NA(),IF($A194>$A$8,"",OFFSET(InputPriceData!$G$15,CalculationsAndCharts!$A194+$A$11,IF($C$5,8,0),1,1))) -> 807400 | D194: =IF(A194>$B$30,NA(),IF(A194>$A$8,"",OFFSET(InputPriceData!$C$15,CalculationsAndCharts!$A194+$A$11,IF($C$5,8,0),1,1))) -> 1.02 | E194: =IF(A194>$B$30,NA(),IF(A194>$A$8,"",OFFSET(InputPriceData!$D$15,CalculationsAndCharts!$A194+$A$11,IF($C$5,8,0),1,1))) -> 1.02 | F194: =IF(A194>$B$30,NA(),IF(A194>$A$8,"",OFFSET(InputPriceData!$E$15,CalculationsAndCharts!$A194+$A$11,IF($C$5,8,0),1,1))) -> 0.88 | G194: =IF(A194>$B$30,NA(),IF(A194>$A$8,"",OFFSET(InputPriceData!$F$15,CalculationsAndCharts!$A194+$A$11,IF($C$5,8,0),1,1))) -> 0.9 | H194: 0.9333333333 | I194: 807400 | J194: 1927646.667 | K194: -0.03333333333 | L194: 0.14 | M194: 0.1367132174 | N194: 0.01367132174 | O194: 0 | P194: 807400 | Q194: 32505300 | R194: 23581600 | S194: 15.43107831 | T194: 15.2257505 | U194: -16.75200803 | V194: 10 | W194: TRUE | AB194: FALSE | AC194: TRUE | AD194: TRUE | AE194: FALSE | AF194: TRUE | AG194: TRUE | AH194: -0.07 | AI194: 0 | AJ194: 0.07 | AK194: 0.05889040378 | AL194: 0.0474987724 | AM194: 55.35375486 | AN194: TRUE | AO194: FALSE | AX194: 807400
A195: 163 | B195: =IF(A195>$B$30,NA(),IF($A195>$A$8,"",OFFSET(InputPriceData!$B$15,$A195+$A$11,0,1,1))) -> 2020-04-06 | C195: =IF(A195>$B$30,NA(),IF($A195>$A$8,"",OFFSET(InputPriceData!$G$15,CalculationsAndCharts!$A195+$A$11,IF($C$5,8,0),1,1))) -> 812500 | D195: =IF(A195>$B$30,NA(),IF(A195>$A$8,"",OFFSET(InputPriceData!$C$15,CalculationsAndCharts!$A195+$A$11,IF($C$5,8,0),1,1))) -> 1 | E195: =IF(A195>$B$30,NA(),IF(A195>$A$8,"",OFFSET(InputPriceData!$D$15,CalculationsAndCharts!$A195+$A$11,IF($C$5,8,0),1,1))) -> 1.03 | F195: =IF(A195>$B$30,NA(),IF(A195>$A$8,"",OFFSET(InputPriceData!$E$15,CalculationsAndCharts!$A195+$A$11,IF($C$5,8,0),1,1))) -> 0.9 | G195: =IF(A195>$B$30,NA(),IF(A195>$A$8,"",OFFSET(InputPriceData!$F$15,CalculationsAndCharts!$A195+$A$11,IF($C$5,8,0),1,1))) -> 0.97 | H195: 0.9666666667 | I195: 812500 | J195: 1928210 | K195: 0.06666666667 | L195: 0.16 | M195: 0.13659988 | N195: 0.013659988 | O195: 812500 | P195: 0 | Q195: 32505300 | R195: 23598500 | S195: 15.39735471 | T195: 15.02042269 | U195: -18.56448155 | V195: 10 | W195: TRUE | AB195: FALSE | AC195: TRUE | AD195: TRUE | AE195: FALSE | AF195: TRUE | AG195: TRUE | AH195: 0.1 | AI195: 0.1 | AJ195: 0 | AK195: 0.06625170426 | AL195: 0.04468611895 | AM195: 59.7196721 | AN195: TRUE | AO195: FALSE | AX195: 812500
A196: 164 | B196: =IF(A196>$B$30,NA(),IF($A196>$A$8,"",OFFSET(InputPriceData!$B$15,$A196+$A$11,0,1,1))) -> 2020-04-03 | C196: =IF(A196>$B$30,NA(),IF($A196>$A$8,"",OFFSET(InputPriceData!$G$15,CalculationsAndCharts!$A196+$A$11,IF($C$5,8,0),1,1))) -> 401700 | D196: =IF(A196>$B$30,NA(),IF(A196>$A$8,"",OFFSET(InputPriceData!$C$15,CalculationsAndCharts!$A196+$A$11,IF($C$5,8,0),1,1))) -> 0.9 | E196: =IF(A196>$B$30,NA(),IF(A196>$A$8,"",OFFSET(InputPriceData!$D$15,CalculationsAndCharts!$A196+$A$11,IF($C$5,8,0),1,1))) -> 1 | F196: =IF(A196>$B$30,NA(),IF(A196>$A$8,"",OFFSET(InputPriceData!$E$15,CalculationsAndCharts!$A196+$A$11,IF($C$5,8,0),1,1))) -> 0.83 | G196: =IF(A196>$B$30,NA(),IF(A196>$A$8,"",OFFSET(InputPriceData!$F$15,CalculationsAndCharts!$A196+$A$11,IF($C$5,8,0),1,1))) -> 0.87 | H196: 0.9 | I196: 401700 | J196: 1924923.333 | K196: -0.01666666667 | L196: 0.17 | M196: 0.1357929794 | N196: 0.01357929794 | O196: 0 | P196: 401700 | Q196: 31692800 | R196: 24312400 | S196: 12.78042242 | T196: 14.64349067 | U196: -20.30040055 | V196: 10 | W196: TRUE | AB196: FALSE | AC196: TRUE | AD196: TRUE | AE196: FALSE | AF196: TRUE | AG196: TRUE | AH196: -0.04 | AI196: 0 | AJ196: 0.04 | AK196: 0.06203316729 | AL196: 0.05027188382 | AM196: 55.23631099 | AN196: TRUE | AO196: FALSE | AX196: 401700
A197: 165 | B197: =IF(A197>$B$30,NA(),IF($A197>$A$8,"",OFFSET(InputPriceData!$B$15,$A197+$A$11,0,1,1))) -> 2020-04-02 | C197: =IF(A197>$B$30,NA(),IF($A197>$A$8,"",OFFSET(InputPriceData!$G$15,CalculationsAndCharts!$A197+$A$11,IF($C$5,8,0),1,1))) -> 1244900 | D197: =IF(A197>$B$30,NA(),IF(A197>$A$8,"",OFFSET(InputPriceData!$C$15,CalculationsAndCharts!$A197+$A$11,IF($C$5,8,0),1,1))) -> 0.99 | E197: =IF(A197>$B$30,NA(),IF(A197>$A$8,"",OFFSET(InputPriceData!$D$15,CalculationsAndCharts!$A197+$A$11,IF($C$5,8,0),1,1))) -> 1.06 | F197: =IF(A197>$B$30,NA(),IF(A197>$A$8,"",OFFSET(InputPriceData!$E$15,CalculationsAndCharts!$A197+$A$11,IF($C$5,8,0),1,1))) -> 0.78 | G197: =IF(A197>$B$30,NA(),IF(A197>$A$8,"",OFFSET(InputPriceData!$F$15,CalculationsAndCharts!$A197+$A$11,IF($C$5,8,0),1,1))) -> 0.91 | H197: 0.9166666667 | I197: 1244900 | J197: 1931013.333 | K197: -0.1466666667 | L197: 0.28 | M197: 0.1346134269 | N197: 0.01346134269 | O197: 0 | P197: 1244900 | Q197: 31692800 | R197: 24495100 | S197: 12.42473727 | T197: 16.50655892 | U197: -22.00983284 | V197: 10 | W197: TRUE | AB197: FALSE | AC197: TRUE | AD197: TRUE | AE197: FALSE | AF197: TRUE | AG197: TRUE | AH197: -0.03 | AI197: 0 | AJ197: 0.03 | AK197: 0.0697873132 | AL197: 0.0515558693 | AM197: 57.51234784 | AN197: TRUE | AO197: FALSE | AX197: 1244900
A198: 166 | B198: =IF(A198>$B$30,NA(),IF($A198>$A$8,"",OFFSET(InputPriceData!$B$15,$A198+$A$11,0,1,1))) -> 2020-04-01 | C198: =IF(A198>$B$30,NA(),IF($A198>$A$8,"",OFFSET(InputPriceData!$G$15,CalculationsAndCharts!$A198+$A$11,IF($C$5,8,0),1,1))) -> 6102500 | D198: =IF(A198>$B$30,NA(),IF(A198>$A$8,"",OFFSET(InputPriceData!$C$15,CalculationsAndCharts!$A198+$A$11,IF($C$5,8,0),1,1))) -> 1.31 | E198: =IF(A198>$B$30,NA(),IF(A198>$A$8,"",OFFSET(InputPriceData!$D$15,CalculationsAndCharts!$A198+$A$11,IF($C$5,8,0),1,1))) -> 1.33 | F198: =IF(A198>$B$30,NA(),IF(A198>$A$8,"",OFFSET(InputPriceData!$E$15,CalculationsAndCharts!$A198+$A$11,IF($C$5,8,0),1,1))) -> 0.92 | G198: =IF(A198>$B$30,NA(),IF(A198>$A$8,"",OFFSET(InputPriceData!$F$15,CalculationsAndCharts!$A198+$A$11,IF($C$5,8,0),1,1))) -> 0.94 | H198: 1.063333333 | I198: 6102500 | J198: 1913150 | K198: -0.2066666667 | L198: 0.42 | M198: 0.1296000968 | N198: 0.01296000968 | O198: 0 | P198: 6102500 | Q198: 32401800 | R198: 23250200 | S198: 15.94508185 | T198: 20.58838058 | U198: -23.88760111 | V198: 10 | W198: TRUE | AB198: FALSE | AC198: TRUE | AD198: TRUE | AE198: FALSE | AF198: TRUE | AG198: TRUE | AH198: -0.4 | AI198: 0 | AJ198: 0.4 | AK198: 0.07851072735 | AL198: 0.05425035296 | AM198: 59.13685484 | AN198: TRUE | AO198: FALSE | AX198: 6102500
A199: 167 | B199: =IF(A199>$B$30,NA(),IF($A199>$A$8,"",OFFSET(InputPriceData!$B$15,$A199+$A$11,0,1,1))) -> 2020-03-31 | C199: =IF(A199>$B$30,NA(),IF($A199>$A$8,"",OFFSET(InputPriceData!$G$15,CalculationsAndCharts!$A199+$A$11,IF($C$5,8,0),1,1))) -> 3530000 | D199: =IF(A199>$B$30,NA(),IF(A199>$A$8,"",OFFSET(InputPriceData!$C$15,CalculationsAndCharts!$A199+$A$11,IF($C$5,8,0),1,1))) -> 1.16 | E199: =IF(A199>$B$30,NA(),IF(A199>$A$8,"",OFFSET(InputPriceData!$D$15,CalculationsAndCharts!$A199+$A$11,IF($C$5,8,0),1,1))) -> 1.35 | F199: =IF(A199>$B$30,NA(),IF(A199>$A$8,"",OFFSET(InputPriceData!$E$15,CalculationsAndCharts!$A199+$A$11,IF($C$5,8,0),1,1))) -> 1.12 | G199: =IF(A199>$B$30,NA(),IF(A199>$A$8,"",OFFSET(InputPriceData!$F$15,CalculationsAndCharts!$A199+$A$11,IF($C$5,8,0),1,1))) -> 1.34 | H199: 1.27 | I199: 3530000 | J199: 1743390 | K199: 0.2233333333 | L199: 0.23 | M199: 0.119586307 | N199: 0.0119586307 | O199: 3530000 | P199: 0 | Q199: 33411500 | R199: 17147700 | S199: 31.09612116 | T199: 25.23167931 | U199: -26.08050202 | V199: 10 | W199: TRUE | AB199: TRUE | AC199: TRUE | AD199: TRUE | AE199: TRUE | AF199: TRUE | AG199: TRUE | AH199: 0.18 | AI199: 0.18 | AJ199: 0 | AK199: 0.08832456827 | AL199: 0.01103164708 | AM199: 88.89687269 | AN199: TRUE | AO199: FALSE | AW199: 3530000
A200: 168 | B200: =IF(A200>$B$30,NA(),IF($A200>$A$8,"",OFFSET(InputPriceData!$B$15,$A200+$A$11,0,1,1))) -> 2020-03-30 | C200: =IF(A200>$B$30,NA(),IF($A200>$A$8,"",OFFSET(InputPriceData!$G$15,CalculationsAndCharts!$A200+$A$11,IF($C$5,8,0),1,1))) -> 2923700 | D200: =IF(A200>$B$30,NA(),IF(A200>$A$8,"",OFFSET(InputPriceData!$C$15,CalculationsAndCharts!$A200+$A$11,IF($C$5,8,0),1,1))) -> 0.9 | E200: =IF(A200>$B$30,NA(),IF(A200>$A$8,"",OFFSET(InputPriceData!$D$15,CalculationsAndCharts!$A200+$A$11,IF($C$5,8,0),1,1))) -> 1.18 | F200: =IF(A200>$B$30,NA(),IF(A200>$A$8,"",OFFSET(InputPriceData!$E$15,CalculationsAndCharts!$A200+$A$11,IF($C$5,8,0),1,1))) -> 0.8 | G200: =IF(A200>$B$30,NA(),IF(A200>$A$8,"",OFFSET(InputPriceData!$F$15,CalculationsAndCharts!$A200+$A$11,IF($C$5,8,0),1,1))) -> 1.16 | H200: 1.046666667 | I200: 2923700 | J200: 1639636.667 | K200: 0.07666666667 | L200: 0.38 | M200: 0.1157789383 | N200: 0.01157789383 | O200: 2923700 | P200: 0 | Q200: 30298900 | R200: 17147700 | S200: 26.73600452 | T200: 19.36723746 | U200: -28.56624775 | V200: 10 | W200: TRUE | AB200: TRUE | AC200: TRUE | AD200: TRUE | AE200: TRUE | AF200: TRUE | AG200: TRUE | AH200: 0.18 | AI200: 0.18 | AJ200: 0 | AK200: 0.0768651393 | AL200: 0.01241060296 | AM200: 86.09857208 | AN200: TRUE | AO200: FALSE | AW200: 2923700
A201: 169 | B201: =IF(A201>$B$30,NA(),IF($A201>$A$8,"",OFFSET(InputPriceData!$B$15,$A201+$A$11,0,1,1))) -> 2020-03-27 | C201: =IF(A201>$B$30,NA(),IF($A201>$A$8,"",OFFSET(InputPriceData!$G$15,CalculationsAndCharts!$A201+$A$11,IF($C$5,8,0),1,1))) -> 2945900 | D201: =IF(A201>$B$30,NA(),IF(A201>$A$8,"",OFFSET(InputPriceData!$C$15,CalculationsAndCharts!$A201+$A$11,IF($C$5,8,0),1,1))) -> 0.97 | E201: =IF(A201>$B$30,NA(),IF(A201>$A$8,"",OFFSET(InputPriceData!$D$15,CalculationsAndCharts!$A201+$A$11,IF($C$5,8,0),1,1))) -> 1.02 | F201: =IF(A201>$B$30,NA(),IF(A201>$A$8,"",OFFSET(InputPriceData!$E$15,CalculationsAndCharts!$A201+$A$11,IF($C$5,8,0),1,1))) -> 0.91 | G201: =IF(A201>$B$30,NA(),IF(A201>$A$8,"",OFFSET(InputPriceData!$F$15,CalculationsAndCharts!$A201+$A$11,IF($C$5,8,0),1,1))) -> 0.98 | H201: 0.97 | I201: 2945900 | J201: 1580640 | K201: 0.05666666667 | L201: 0.12 | M201: 0.1066678672 | N201: 0.01066678672 | O201: 2945900 | P201: 0 | Q201: 27375200 | R201: 18301500 | S201: 19.13507609 | T201: 11.9984704 | U201: -30.87191239 | V201: 10 | W201: TRUE | X201: 80 | Y201: -80 | AB201: FALSE | AC201: TRUE | AD201: TRUE | AE201: FALSE | AF201: TRUE | AG201: TRUE | AH201: -0.05 | AI201: 0 | AJ201: 0.05 | AK201: 0.06397328172 | AL201: 0.01396192833 | AM201: 82.08521113 | AN201: TRUE | AO201: FALSE | AW201: 2945900
A202: 170 | B202: =IF(A202>$B$30,NA(),IF($A202>$A$8,"",OFFSET(InputPriceData!$B$15,$A202+$A$11,0,1,1))) -> 2020-03-26 | C202: =IF(A202>$B$30,NA(),IF($A202>$A$8,"",OFFSET(InputPriceData!$G$15,CalculationsAndCharts!$A202+$A$11,IF($C$5,8,0),1,1))) -> 4451900 | D202: =IF(A202>$B$30,NA(),IF(A202>$A$8,"",OFFSET(InputPriceData!$C$15,CalculationsAndCharts!$A202+$A$11,IF($C$5,8,0),1,1))) -> 0.66 | E202: =IF(A202>$B$30,NA(),IF(A202>$A$8,"",OFFSET(InputPriceData!$D$15,CalculationsAndCharts!$A202+$A$11,IF($C$5,8,0),1,1))) -> 1.06 | F202: =IF(A202>$B$30,NA(),IF(A202>$A$8,"",OFFSET(InputPriceData!$E$15,CalculationsAndCharts!$A202+$A$11,IF($C$5,8,0),1,1))) -> 0.65 | G202: =IF(A202>$B$30,NA(),IF(A202>$A$8,"",OFFSET(InputPriceData!$F$15,CalculationsAndCharts!$A202+$A$11,IF($C$5,8,0),1,1))) -> 1.03 | H202: 0.9133333333 | I202: 4451900 | J202: 1501746.667 | K202: 0.27 | L202: 0.41 | M202: 0.1062081385 | N202: 0.01062081385 | O202: 4451900 | P202: 0 | Q202: 24429300 | R202: 18880600 | S202: 12.31610303 | T202: 4.861864703 | U202: -32.77336962 | V202: 10 | W202: FALSE | AB202: TRUE | AC202: TRUE | AD202: TRUE | AE202: TRUE | AF202: TRUE | AG202: TRUE | AH202: 0.35 | AI202: 0.35 | AJ202: 0 | AK202: 0.07196994193 | AL202: 0.009457169375 | AM202: 88.38572409 | AN202: TRUE | AO202: FALSE | AW202: 4451900
... 1080 more rows

Sheet Follow
A1: Stocks and Indexes I wish to follow
A3: To ease following a stock, enter a Yahoo Finance acceptable symbol in column "A" anywhere below cell "A9".
A4: Thereafter you may doubleclick the cell containing a symbol of interest to initiate data retrieval and charting for that symbol.
A7: Symbol
A8: To | B8: Description | C8: Last Trade as of most recent check
A9: Follow | C9: Date | D9: Time | E9: Open | F9: High | G9: Low | H9: Close | I9: Volume | J9: Change | K9: Retrieved @
A10: A | B10: Agilent Technologies, Inc. (A) -NYSE (Daily) | C10: 2020-03-09 | D10: 16:04:00 | E10: 72.589996 | F10: 74.190002 | G10: 70.169998 | H10: 70.75 | I10: 4591093 | J10: -7.809998 | K10: 2020-03-09T16:59:21
A11: AA | B11: Alcoa Corporation (AA) -NYSE (Daily) | C11: 2020-01-31 | D11: 16:04:00 | E11: 14.01 | F11: 14.24 | G11: 13.62 | H11: 13.95 | I11: 9931500 | J11: -0.34 | K11: 2020-02-02T15:07:13
A12: AAL | B12: American Airlines Group Inc. (AAL) -NasdaqGS (Daily) | C12: 2020-03-09 | D12: 16:00:00 | E12: 14.87 | F12: 15.79 | G12: 14.46 | H12: 14.75 | I12: 41078614 | J12: -1.22 | K12: 2020-03-09T17:00:15
A13: AAPL | B13: Apple Inc. (AAPL) -NasdaqGS (Daily) | C13: 2020-06-17 | D13: 16:00:00 | E13: 355.149994 | F13: 355.369995 | G13: 351.089996 | H13: 351.589996 | I13: 27604481 | J13: -0.489991 | K13: 2020-06-17T17:45:34
A14: ADM | B14: Archer-Daniels-Midland Company (ADM) -NYSE (Weekly) | C14: 2018-07-13 | D14: 16:00:00 | E14: 47.5 | F14: 47.84 | G14: 47.169998 | H14: 47.57 | I14: 2402809 | J14: 0
A15: ADBE | B15: Adobe Inc. (ADBE) -NasdaqGS (Daily) | C15: 2020-06-17 | D15: 16:00:00 | E15: 414 | F15: 417.425995 | G15: 411.429993 | H15: 413.48999 | I15: 2026063 | J15: 1.819977 | K15: 2020-06-17T17:42:59
A16: ALGN | B16: Align Technology, Inc. (ALGN) -NasdaqGS (Daily) | C16: 2020-01-30 | D16: 16:00:00 | E16: 248.740005 | F16: 264.450012 | G16: 248.350006 | H16: 262.890015 | I16: 1833160 | J16: 1.290009
A17: AMC | B17: AMC Entertainment Holdings, Inc. (AMC) -NYSE (Weekly) | C17: 2018-07-13 | D17: 16:02:00 | E17: 17.049999 | F17: 17.15 | G17: 16.525 | H17: 17.049999 | I17: 1442776 | J17: 0
A18: AMD | B18: Advanced Micro Devices, Inc. (AMD) -NasdaqGS (Daily) | C18: 2020-08-19 | D18: 12:40:00 | E18: 81.775703 | F18: 81.849998 | G18: 80.449997 | H18: 80.760002 | I18: 18434143 | J18: -0.900002 | K18: 2020-08-19T12:40:49
A19: BSX | B19: Boston Scientific Corporation C (BSX) -NYQ (Daily) | C19: 2015-03-13 | D19: 16:01:00 | E19: 16.84 | F19: 16.91 | G19: 16.44 | H19: 16.61 | I19: 7262460 | J19: -0.28
A20: CASY | B20: Casey's General Stores, Inc. (CASY) -NasdaqGS (Daily) | C20: 2019-04-10 | D20: 16:00:00 | E20: 128.979996 | F20: 130.330002 | G20: 128.779999 | H20: 130.179993 | I20: 351300 | J20: 1.489991
A21: CAT | B21: Caterpillar Inc. (CAT) -NYSE (Daily) | C21: 2020-03-13 | D21: 11:48:00 | E21: 98.389999 | F21: 99.910004 | G21: 90.150101 | H21: 90.269997 | I21: 3568294 | J21: -1.990005 | K21: 2020-03-13T11:48:53
A22: CSCO | B22: Cisco Systems, In (CSCO) -NasdaqNM (Daily) | C22: 2015-02-19 | D22: 16:00:00 | E22: 29.32 | F22: 29.39 | G22: 29.13 | H22: 29.31 | I22: 21469012 | J22: -0.18
A23: CVS | B23: CVS Health Corporation (CVS) -NYSE (Daily) | C23: 2020-03-09 | D23: 16:07:00 | E23: 59.75 | F23: 63 | G23: 59.599998 | H23: 61.299999 | I23: 13065424 | J23: -2.850003 | K23: 2020-03-09T17:51:54
A24: DIS | B24: The Walt Disney Company (DIS) -NYSE (Daily) | C24: 2020-03-09 | D24: 16:07:00 | E24: 108.690002 | F24: 110.43 | G24: 104.279999 | H24: 104.349998 | I24: 26101127 | J24: -10.919999 | K24: 2020-03-09T16:59:51
A25: F | B25: Ford Motor Company (F) -NYSE (Daily) | C25: 2020-01-31 | D25: 16:03:00 | E25: 8.78 | F25: 8.84 | G25: 8.74 | H25: 8.82 | I25: 59781000 | J25: -0.02 | K25: 2020-02-02T15:09:03
A26: FAS | B26: Direxion Daily Financial Bull 3X ETF (FAS) -NYSEArca (Daily) | C26: 2017-10-13 | D26: 16:00:00 | E26: 58.099998 | F26: 58.939999 | G26: 57.43 | H26: 58.450001 | I26: 1709300 | J26: 0.07
A27: FB | B27: Facebook, Inc. (FB) -NasdaqGS (Daily) | C27: 2020-02-14 | D27: 16:00:00 | E27: 214 | F27: 214.929993 | G27: 212.649994 | H27: 214.179993 | I27: 10727400 | J27: 1.039994 | K27: 2020-02-15T17:19:34
A28: GSK | B28: GlaxoSmithKline plc (GSK) -NYSE (Daily) | C28: 2021-01-15 | D28: 16:00:00 | E28: 38.41 | F28: 38.66 | G28: 38.209999 | H28: 38.470001 | I28: 3100400 | J28: 0.310001 | K28: 2021-01-17T18:07:58
A29: GDX | B29: VanEck Vectors Gold Miners ETF (GDX) -NYSEArca (Daily) | C29: 2020-01-31 | D29: 16:00:00 | E29: 28.799999 | F29: 29.24 | G29: 28.76 | H29: 28.99 | I29: 41946000 | J29: 0.26 | K29: 2020-02-02T15:11:17
A30: GOOG | B30: Alphabet Inc. (GOOG) -NasdaqGS (Daily) | C30: 2020-02-14 | D30: 16:00:00 | E30: 1515.599976 | F30: 1520.73999 | G30: 1507.339966 | H30: 1520.73999 | I30: 1196700 | J30: 6.079956 | K30: 2020-02-15T17:20:39
A31: HAL | B31: Halliburton Company (HAL) -NYSE (Daily) | C31: 2020-09-17 | D31: 11:11:00 | E31: 14.73 | F31: 14.945 | G31: 14.57 | H31: 14.91 | I31: 4265279 | J31: -0.16 | K31: 2020-09-17T11:11:52
A32: HD | B32: The Home Depot, Inc. (HD) -NYSE (Daily) | C32: 2020-03-13 | D32: 11:54:00 | E32: 200.449997 | F32: 201.179993 | G32: 192.270096 | H32: 193.449997 | I32: 3274582 | J32: 2.860001 | K32: 2020-03-13T11:54:29
A33: HSY | B33: The Hershey Company (HSY) -NYSE (Daily) | C33: 2021-01-15 | D33: 16:00:00 | E33: 147.089996 | F33: 149.490005 | G33: 146.880005 | H33: 148.460007 | I33: 1193700 | J33: 1.040009 | K33: 2021-01-17T18:06:10
A34: HTLD | B34: Heartland Express, Inc. (HTLD) -NasdaqGS (Daily) | C34: 2020-03-09 | D34: 16:00:00 | E34: 17.33 | F34: 17.690001 | G34: 16.82 | H34: 16.879999 | I34: 284762 | J34: -1.280001 | K34: 2020-03-09T17:00:56
A35: IDEX | B35: Ideanomics, Inc. (IDEX) -NasdaqGS (Daily) | C35: 2021-02-19 | D35: 10:11:00 | E35: 3.99 | F35: 4.15 | G35: 3.88 | H35: 3.92 | I35: 8623006 | J35: 0.19 | K35: 2021-02-19T10:11:40
A36: IBM | B36: International Business Machines Corporation (IBM) -NYSE (Daily) | C36: 2021-02-09 | D36: 16:00:00 | E36: 121.900002 | F36: 122.565002 | G36: 121.050003 | H36: 122.099998 | I36: 4173266 | J36: -1.510003 | K36: 2021-02-09T17:01:49
A37: INTC | B37: Intel Corporation (INTC) -NasdaqGS (Daily) | C37: 2020-02-14 | D37: 16:00:00 | E37: 67.519997 | F37: 67.860001 | G37: 66.82 | H37: 67.269997 | I37: 13402800 | J37: -0.170005 | K37: 2020-02-15T17:21:41
A38: JAH | B38: Jarden Corporation Common Stock (JAH) -NYQ (Daily) | C38: 2016-01-08 | D38: 16:02:00 | E38: 53.82 | F38: 53.88 | G38: 52.65 | H38: 52.73 | I38: 4519480 | J38: -0.81
A39: JNJ | B39: Johnson & Johnson (JNJ) -NYSE (Daily) | C39: 2019-08-14 | D39: 10:33:00 | E39: 132.529999 | F39: 132.539993 | G39: 131.419998 | H39: 131.759995 | I39: 870520 | J39: -0.169998
A40: KO | B40: The Coca-Cola Company (KO) -NYSE (Daily) | C40: 2020-03-09 | D40: 16:07:00 | E40: 52.049999 | F40: 53.580002 | G40: 51.474998 | H40: 51.860001 | I40: 27771279 | J40: -3.399997 | K40: 2020-03-09T17:05:43
A41: LOW | B41: Lowe's Companies, Inc. (LOW) -NYSE (Daily) | C41: 2020-03-09 | D41: 16:03:00 | E41: 97.82 | F41: 99.82 | G41: 93.150101 | H41: 94.220001 | I41: 8167579 | J41: -11.089997 | K41: 2020-03-09T16:57:19
A42: LMT | B42: Lockheed Martin Corporation (LMT) -NYSE (Daily) | C42: 2021-02-09 | D42: 16:04:00 | E42: 338.540009 | F42: 344.48999 | G42: 336.570007 | H42: 342.339996 | I42: 1545066 | J42: 4.5 | K42: 2021-02-09T16:56:05
A43: MCD | B43: McDonald's Corporation (MCD) -NYSE (Daily) | C43: 2020-03-09 | D43: 16:01:00 | E43: 187.669998 | F43: 194.470001 | G43: 184.100006 | H43: 186.860001 | I43: 7601343 | J43: -12 | K43: 2020-03-09T16:58:16
A44: MDT | B44: Medtronic plc (MDT) -NYSE (Daily) | C44: 2020-03-09 | D44: 16:07:00 | E44: 94.019997 | F44: 95.470001 | G44: 91.709999 | H44: 92.400002 | I44: 9000931 | J44: -6.659996 | K44: 2020-03-09T17:48:45
A45: MGM | B45: MGM Resorts International (MGM) -NYSE (Daily) | C45: 2020-03-09 | D45: 16:02:00 | E45: 18.6 | F45: 19.58 | G45: 17.530001 | H45: 17.879999 | I45: 26050818 | J45: -2.51 | K45: 2020-03-09T17:13:53
A46: MO | B46: Altria Group, Inc. (MO) -NYSE (Daily) | C46: 2020-01-31 | D46: 16:05:00 | E46: 48.25 | F46: 48.799999 | G46: 47.240002 | H46: 47.529999 | I46: 11790800 | J46: -0.470001 | K46: 2020-02-02T15:20:55
A47: MSFT | B47: Microsoft Corporation (MSFT) -NasdaqGS (Daily) | C47: 2020-03-09 | D47: 16:00:00 | E47: 151 | F47: 157.75 | G47: 150 | H47: 150.619995 | I47: 69167627 | J47: -10.950012 | K47: 2020-03-09T17:06:41
A48: NFLX | B48: Netflix, Inc. (NFLX) -NasdaqGS (Daily) | C48: 2020-03-09 | D48: 16:00:00 | E48: 343.859985 | F48: 357.470001 | G48: 341.720886 | H48: 346.48999 | I48: 6746188 | J48: -22.480011 | K48: 2020-03-09T17:23:37
A49: NUGT | B49: Direxion Daily Gold Miners Index Bull 3X Shares (NUGT) -NYSEArca (Daily) | C49: 2020-01-31 | D49: 16:00:00 | E49: 32.439999 | F49: 33.830002 | G49: 32.240002 | H49: 33.02 | I49: 11325200 | J49: 0.84 | K49: 2020-02-02T15:21:51
A50: NVS | B50: Novartis AG (NVS) -NYSE (Daily) | C50: 2020-03-06 | D50: 16:02:00 | E50: 84.330002 | F50: 85.830002 | G50: 83.970001 | H50: 85.720001 | I50: 5624700 | J50: -0.089997 | K50: 2020-03-08T16:56:35
A51: NVDA | B51: NVIDIA Corporation (NVDA) -NasdaqGS (Daily) | C51: 2020-12-14 | D51: 16:00:00 | E51: 523.515015 | F51: 535.549988 | G51: 523.099976 | H51: 532.349976 | I51: 6580666 | J51: 11.819947 | K51: 2020-12-14T18:31:17
A52: PRU | B52: Prudential Financial, Inc. (PRU) -NYSE (Daily) | C52: 2020-03-09 | D52: 16:02:00 | E52: 63.75 | F52: 65.830002 | G52: 57.375 | H52: 58.240002 | I52: 7614493 | J52: -11.569996 | K52: 2020-03-09T17:11:43
A53: PSEC | B53: Prospect Capital Corporation (PSEC) -NasdaqGS (Daily) | C53: 2020-02-14 | D53: 16:00:00 | E53: 6.53 | F53: 6.56 | G53: 6.51 | H53: 6.52 | I53: 1235500 | J53: -0.04 | K53: 2020-02-15T14:43:16
A54: RPM | B54: RPM International Inc. (RPM) -NYSE (Daily) | C54: 2020-03-09 | D54: 16:02:00 | E54: 64.470001 | F54: 66.730003 | G54: 63.5 | H54: 65.290001 | I54: 1115882 | J54: -2.919998 | K54: 2020-03-09T17:10:08
A55: RSP | B55: Invesco S&P 500 Equal Weight ETF (RSP) -NYSEArca (Daily) | C55: 2020-01-31 | D55: 16:00:00 | E55: 115.279999 | F55: 115.32 | G55: 113.230003 | H55: 113.540001 | I55: 747600 | J55: -2.309997 | K55: 2020-02-02T15:28:52
A56: SPR | B56: Spirit AeroSystems Holdings, Inc. (SPR) -NYSE (Daily) | C56: 2020-03-09 | D56: 16:06:00 | E56: 43.700001 | F56: 43.880001 | G56: 41.5 | H56: 42.139999 | I56: 2091368 | J56: -5.23 | K56: 2020-03-09T17:09:37
A57: SQ | B57: Square, Inc. (SQ) -NYSE (Daily) | C57: 2020-10-02 | D57: 16:00:00 | E57: 164.050003 | F57: 171.240005 | G57: 163.800995 | H57: 169.610001 | I57: 11150500 | J57: 1.119996 | K57: 2020-10-04T20:00:52
A58: SWKS | B58: Skyworks Solutions, Inc. (SWKS) -NasdaqGS (Daily) | C58: 2020-01-31 | D58: 16:00:00 | E58: 115.5 | F58: 115.739998 | G58: 112.720001 | H58: 113.150002 | I58: 2444600 | J58: -3.080001 | K58: 2020-02-02T15:26:46
A59: TOL | B59: Toll Brothers, Inc. (TOL) -NYSE (Daily) | C59: 2020-03-09 | D59: 16:07:00 | E59: 34.759998 | F59: 35.314999 | G59: 32.060001 | H59: 34.110001 | I59: 3127968 | J59: -2.86 | K59: 2020-03-09T17:12:09
A60: TSLA | B60: Tesla, Inc. (TSLA) -NasdaqGS (Daily) | C60: 2020-03-13 | D60: 12:08:00 | E60: 595 | F60: 607.570007 | G60: 502.01001 | H60: 510 | I60: 12224537 | J60: -50.549988 | K60: 2020-03-13T12:08:39
A61: TXN | B61: Texas Instruments Incorporated (TXN) -NasdaqGS (Daily) | C61: 2020-06-19 | D61: 11:30:00 | E61: 128.059998 | F61: 128.179993 | G61: 126.07 | H61: 126.370003 | I61: 2078988 | J61: 0.39 | K61: 2020-06-19T11:31:00
A62: UNP | B62: Union Pacific Corporation (UNP) -NYSE (Daily) | C62: 2020-03-09 | D62: 16:07:00 | E62: 145.199997 | F62: 145.580002 | G62: 133.179993 | H62: 135.839996 | I62: 9380024 | J62: -20.25 | K62: 2020-03-09T17:11:21
A63: VZ | B63: Verizon Communications Inc. (VZ) -NYSE (Daily) | C63: 2019-04-10 | D63: 16:00:00 | E63: 58.400002 | F63: 58.700001 | G63: 58.360001 | H63: 58.610001 | I63: 8022000 | J63: 0.209999
A64: WBA | B64: Walgreens Boots Alliance, Inc. (WBA) -NasdaqGS (Daily) | C64: 2020-01-31 | D64: 16:00:00 | E64: 51.709999 | F64: 51.919998 | G64: 50.66 | H64: 50.849998 | I64: 6532300 | J64: -1.100003 | K64: 2020-02-02T15:28:06
A65: WMT | B65: Walmart Inc. (WMT) -NYSE (Daily) | C65: 2020-03-09 | D65: 16:01:00 | E65: 113.82 | F65: 120.629997 | G65: 112.730003 | H65: 117.160004 | I65: 19567750 | J65: -0.069999 | K65: 2020-03-09T17:10:39
A67: ^AEX | B67: AEX-INDEX (^AEX) -Amsterdam (Daily) | C67: 2020-03-09 | D67: 18:05:00 | E67: 506.950012 | F67: 506.950012 | G67: 485.730011 | H67: 490.660004 | I67: 0 | J67: -40.629974 | K67: 2020-03-09T17:41:58
A68: ^AORD | B68: ALL ORDINARIES (^AORD) -ASX (Daily) | C68: 2020-03-09 | D68: 16:17:00 | E68: 6472.399902 | F68: 6287.299805 | G68: 5822.399902 | H68: 5822.399902 | I68: 0 | J68: -465.100098 | K68: 2020-03-09T17:45:59
A69: ^DJI | B69: Dow Jones Industrial Average (^DJI) -DJI (Daily) | C69: 2021-01-15 | D69: 17:18:00 | E69: 30926.76953 | F69: 30941.98047 | G69: 30612.66992 | H69: 30814.25977 | I69: 433000000 | J69: -177.259765 | K69: 2021-01-18T09:45:18
A70: ^FTSE | B70: FTSE 100 (^FTSE) -FTSE Index (Daily) | C70: 2020-03-09 | D70: 16:45:00 | E70: 6462.549805 | F70: 6462.549805 | G70: 5891.560059 | H70: 5965.77002 | I70: 0 | J70: -496.830078 | K70: 2020-03-09T17:43:57
A71: ^GSPC | B71: S&P 500 (^GSPC) -SNP (Daily) | C71: 2021-01-15 | D71: 17:18:00 | E71: 3788.72998 | F71: 3788.72998 | G71: 3749.620117 | H71: 3768.25 | I71: 5353060000 | J71: -27.290039 | K71: 2021-01-17T18:23:17
A72: ^HSI | B72: HANG SENG INDEX (^HSI) -HKSE (Daily) | C72: 2020-03-09 | D72: 16:08:00 | E72: 25134.01953 | F72: 25321.2793 | G72: 24948.38086 | H72: 25040.46094 | I72: 0 | J72: -1106.208984 | K72: 2020-03-09T17:39:06
A73: ^MID | B73: S&P MID CAP 400 INDEX (^MID) -NYSE (Daily) | C73: 2020-02-14 | D73: 16:06:00 | E73: 2099.459961 | F73: 2100.51001 | G73: 2089.610107 | H73: 2096.610107 | I73: 0 | J73: -0.679932 | K73: 2020-02-14T21:04:41
A74: ^NDX | B74: NASDAQ 100 (^NDX) -Nasdaq GIDS (Daily) | C74: 2020-02-14 | D74: 16:51:00 | E74: 9613.881836 | F74: 9634.750977 | G74: 9583.083008 | H74: 9623.580078 | I74: 469910279 | J74: 27.879883 | K74: 2020-02-14T16:52:02
A75: ^NYA | B75: NYSE COMPOSITE (DJ) (^NYA) -NYSE (Weekly) | C75: 2021-01-11 | D75: 16:10:00 | E75: 14828.03027 | F75: 15129.12012 | G75: 14791.65039 | H75: 14894.16992 | I75: 24551330000 | J75: -72.660156 | K75: 2021-01-18T09:10:33
A76: ^OEX | B76: S&P 100 INDEX (^OEX) -Chicago Options (Daily) | C76: 2019-09-13 | D76: 16:56:00 | E76: 1332.27002 | F76: 1334.420044 | G76: 1328.73999 | H76: 1330.969971 | I76: 3520060000 | J76: -1.010009
A77: ^RUT | B77: Russell 2000 (^RUT) -Chicago Options (Daily) | C77: 2021-01-15 | D77: 16:00:00 | E77: 2154.689941 | F77: 2154.689941 | G77: 2102.530029 | H77: 2123.199951 | I77: 53530600 | J77: -32.150147 | K77: 2021-01-18T08:41:42
A78: ^SSEC | B78: SSE Composite Index (^SSEC) -Shanghai (Daily) | C78: 2020-03-09 | D78: 15:00:00 | E78: 3039.939453 | F78: 2989.205078 | G78: 2940.713867 | H78: 2943.290771 | I78: 2801367936 | J78: -388.231202 | K78: 2020-03-09T17:38:09
A79: ^VIX | B79: CBOE Volatility Index (^VIX) -Chicago Options (Daily) | C79: 2020-03-09 | D79: 16:14:00 | E79: 41.939999 | F79: 62.119999 | G79: 41.939999 | H79: 54.459999 | I79: 0 | J79: 12.52 | K79: 2020-03-09T17:38:36
A80: IWM | B80: iShares Russell 2000 ETF (IWM) -NYSEArca (Daily) | C80: 2021-02-19 | D80: 09:56:00 | E80: 222.460007 | F80: 223.080002 | G80: 222.169998 | H80: 222.970001 | I80: 3614630 | J80: 2.380005 | K80: 2021-02-19T09:56:07
A81: QQQ | B81: Invesco QQQ Trust (QQQ) -NasdaqGM (Daily) | C81: 2020-08-27 | D81: 15:01:00 | E81: 293.079987 | F81: 293.851013 | G81: 288.704987 | H81: 291.994995 | I81: 41822663 | J81: 0.035004 | K81: 2020-08-27T15:02:03
A82: XLE | B82: Energy Select Sector SPDR Fund (XLE) -NYSEArca (Daily) | C82: 2020-07-10 | D82: 16:00:00 | E82: 34.240002 | F82: 35.580002 | G82: 34.240002 | H82: 35.540001 | I82: 25223900 | J82: 1.100002 | K82: 2020-07-11T16:34:13
A83: SPY | B83: SPDR S&P 500 ETF Trust (SPY) -NYSEArca (Daily) | C83: 2021-01-15 | D83: 16:00:00 | E83: 376.720001 | F83: 377.579987 | G83: 373.700012 | H83: 375.700012 | I83: 107046400 | J83: -2.759979 | K83: 2021-01-17T18:11:47
A85: ACAD | B85: ACADIA Pharmaceut (ACAD) -NasdaqNM (Daily) | C85: 2014-07-21 | D85: 16:00:00 | E85: 20.13 | F85: 20.55 | G85: 19.8101 | H85: 20.31 | I85: 691016
